Workbook

Sheet Introduction
A1: Introduction
A2: This workbook contains preliminary quantitative scores for all projects evaluated in Prioritization 4.0 (P4.0), which are subject to North Carolina’s Strategic Transportation Investments (STI) Law. The lists of projects do not include "Committed Projects," which are projects where right-of-way acquisition or construction is scheduled prior to 2021.
A4: There are 8 different tabs at the bottom of the workbook, including this Introduction tab. The All Projects tab lists all projects evaluated in P4.0 across all 6 modes. The other 6 tabs are mode-specific and include the data used in the project scoring.
I5: Introduction
A6: All data used for scoring and evaluating projects, including scores and initial point-in-time cost estimates, have been generated by either the North Carolina Department of Transportation and/or through coordination with local governments. The results are intended for use in the Department’s Strategic Prioritization Process and for preliminary level planning, scoring, and evaluation purposes only. MPOs, RPOs, and NCDOT Divisions will assign local input points for Regional Impact and Division Needs projects in the spring and summer of 2016 to produce final project scores and rankings. Per the STI law, these scores will be used in the development of NCDOT’s Draft State Transportation Improvement Program (STIP) to be released in late 2016.
A8: For more information on P4.0 and the STI law, click here.
A10: Instructions
A11: This spreadsheet uses macros. Full functionality requires Microsoft Excel 2007® or later. Earlier versions of Excel may disable some features. You may need to enable editing, if prompted.
A13: Projects on each tab are initially organized by SPOT ID, the unique identifier given to each project.
A15: On the All Projects tab, search for projects using the various boxes at the top of the spreadsheet. You can also filter or sort projects by clicking on the arrow in each column header. To remove all filters you have applied, click the red Clear Search box at the top of the spreadsheet. Note that clicking the Clear Search box twice may result in an error message (click End to clear the message).
A18: Last updated April 13, 2016

Sheet All Projects
D2: Prioritization 4.0 Preliminary Quantitative Scores for All Projects
K4: Projects in blue text are funded in the Statewide Mobility category. Projects not fully funded in the Statewide Mobility category are eligible to receive local input points (see column W)
A5: 1 | B5: 2 | C5: 3 | D5: 4 | E5: 5 | F5: 6 | G5: 7 | H5: 8 | I5: 9 | J5: 10 | K5: 11 | L5: 12 | M5: 13 | N5: 14 | O5: 15 | P5: 16 | Q5: 17
A7: SPOT ID | B7: Mode | C7: TIP | D7: Project Category | E7: Route / Facility Name | F7: From / Cross Street | G7: To / Cross Street | H7: Description | I7: Specific Improvement Type | J7: Cost To NCDOT | K7: Statewide Mobility Quantitative Score (Out of 100) | L7: Regional Impact Quantitative Score (Out of 70) | M7: Division Needs Quantitative Score (Out of 50) | N7: Funding Region | O7: Division(s) | P7: MPO(s)/RPO(s) | Q7: County(s) | R7: Programmed Amount | S7: Draft Right-of-Way Date | T7: Draft Construction Date | U7: Funded Status | V7: Comments | W7: Eligible for Local Input Points
A8: A130004 | B8: Aviation | C8: =IF(VLOOKUP($A8,Aviation!$A:$O,2,FALSE)<>0,VLOOKUP($A8,Aviation!$A:$O,2,FALSE),"") ->  | D8: =IF(VLOOKUP($A8,Aviation!$A:$O,3,FALSE)<>0,VLOOKUP($A8,Aviation!$A:$O,3,FALSE),"") -> Division Needs | E8: =IF(VLOOKUP($A8,Aviation!$A:$O,4,FALSE)<>0,VLOOKUP($A8,Aviation!$A:$O,4,FALSE),"") -> 7W6 - Hyde County | H8: =IF(VLOOKUP($A8,Aviation!$A:$O,6,FALSE)<>0,VLOOKUP($A8,Aviation!$A:$O,6,FALSE),"") -> Design and Installation of 3 60'x60' Corporate Hangars and associated apron/taxiways (includes Project Request Numbers: 3078 ) | I8: =IF(VLOOKUP($A8,Aviation!$A:$O,7,FALSE)<>0,VLOOKUP($A8,Aviation!$A:$O,7,FALSE),"") -> 1900 - Hangars | J8: =IF(VLOOKUP($A8,Aviation!$A:$O,8,FALSE)<>0,VLOOKUP($A8,Aviation!$A:$O,8,FALSE),"") -> 1784250 | K8: =IF(VLOOKUP($A8,Aviation!$A:$O,9,FALSE)<>0,VLOOKUP($A8,Aviation!$A:$O,9,FALSE),"") -> N/A | L8: =IF(VLOOKUP($A8,Aviation!$A:$O,10,FALSE)<>0,VLOOKUP($A8,Aviation!$A:$O,10,FALSE),"") -> N/A | M8: =IF(VLOOKUP($A8,Aviation!$A:$O,11,FALSE)<>0,VLOOKUP($A8,Aviation!$A:$O,11,FALSE),"") -> 17.0695 | N8: =IF(VLOOKUP($A8,Aviation!$A:$O,12,FALSE)<>0,VLOOKUP($A8,Aviation!$A:$O,12,FALSE),"") -> A | O8: =IF(VLOOKUP($A8,Aviation!$A:$O,13,FALSE)<>0,VLOOKUP($A8,Aviation!$A:$O,13,FALSE),"") -> 01 | P8: =IF(VLOOKUP($A8,Aviation!$A:$O,14,FALSE)<>0,VLOOKUP($A8,Aviation!$A:$O,14,FALSE),"") -> Albemarle RPO | Q8: =IF(VLOOKUP($A8,Aviation!$A:$O,15,FALSE)<>0,VLOOKUP($A8,Aviation!$A:$O,15,FALSE),"") -> Hyde | W8: Yes
A9: A130005 | B9: Aviation | C9: =IF(VLOOKUP($A9,Aviation!$A:$O,2,FALSE)<>0,VLOOKUP($A9,Aviation!$A:$O,2,FALSE),"") ->  | D9: =IF(VLOOKUP($A9,Aviation!$A:$O,3,FALSE)<>0,VLOOKUP($A9,Aviation!$A:$O,3,FALSE),"") -> Division Needs | E9: =IF(VLOOKUP($A9,Aviation!$A:$O,4,FALSE)<>0,VLOOKUP($A9,Aviation!$A:$O,4,FALSE),"") -> 7W6 - Hyde County | H9: =IF(VLOOKUP($A9,Aviation!$A:$O,6,FALSE)<>0,VLOOKUP($A9,Aviation!$A:$O,6,FALSE),"") -> Extend runway 300 ft. at approach end of Runway 11 for a total runway length of 5,000 ft. (includes Project Request Numbers: 2585 ) | I9: =IF(VLOOKUP($A9,Aviation!$A:$O,7,FALSE)<>0,VLOOKUP($A9,Aviation!$A:$O,7,FALSE),"") -> 0500 - Runway Length/Width | J9: =IF(VLOOKUP($A9,Aviation!$A:$O,8,FALSE)<>0,VLOOKUP($A9,Aviation!$A:$O,8,FALSE),"") -> 328275 | K9: =IF(VLOOKUP($A9,Aviation!$A:$O,9,FALSE)<>0,VLOOKUP($A9,Aviation!$A:$O,9,FALSE),"") -> N/A | L9: =IF(VLOOKUP($A9,Aviation!$A:$O,10,FALSE)<>0,VLOOKUP($A9,Aviation!$A:$O,10,FALSE),"") -> N/A | M9: =IF(VLOOKUP($A9,Aviation!$A:$O,11,FALSE)<>0,VLOOKUP($A9,Aviation!$A:$O,11,FALSE),"") -> 46.5015 | N9: =IF(VLOOKUP($A9,Aviation!$A:$O,12,FALSE)<>0,VLOOKUP($A9,Aviation!$A:$O,12,FALSE),"") -> A | O9: =IF(VLOOKUP($A9,Aviation!$A:$O,13,FALSE)<>0,VLOOKUP($A9,Aviation!$A:$O,13,FALSE),"") -> 01 | P9: =IF(VLOOKUP($A9,Aviation!$A:$O,14,FALSE)<>0,VLOOKUP($A9,Aviation!$A:$O,14,FALSE),"") -> Albemarle RPO | Q9: =IF(VLOOKUP($A9,Aviation!$A:$O,15,FALSE)<>0,VLOOKUP($A9,Aviation!$A:$O,15,FALSE),"") -> Hyde | W9: Yes
A10: A130006 | B10: Aviation | C10: =IF(VLOOKUP($A10,Aviation!$A:$O,2,FALSE)<>0,VLOOKUP($A10,Aviation!$A:$O,2,FALSE),"") -> AV-5770 | D10: =IF(VLOOKUP($A10,Aviation!$A:$O,3,FALSE)<>0,VLOOKUP($A10,Aviation!$A:$O,3,FALSE),"") -> Division Needs | E10: =IF(VLOOKUP($A10,Aviation!$A:$O,4,FALSE)<>0,VLOOKUP($A10,Aviation!$A:$O,4,FALSE),"") -> ECG - Elizabeth City CG Air Station | H10: =IF(VLOOKUP($A10,Aviation!$A:$O,6,FALSE)<>0,VLOOKUP($A10,Aviation!$A:$O,6,FALSE),"") -> Construct phase 1 partial parallel taxiway (4,000' x 75') from the Runway 10 threshold to Taxiway 'C'. (includes Project Request Numbers: 2274 ) | I10: =IF(VLOOKUP($A10,Aviation!$A:$O,7,FALSE)<>0,VLOOKUP($A10,Aviation!$A:$O,7,FALSE),"") -> 1100 - Taxiway Requirements | J10: =IF(VLOOKUP($A10,Aviation!$A:$O,8,FALSE)<>0,VLOOKUP($A10,Aviation!$A:$O,8,FALSE),"") -> 3659718 | K10: =IF(VLOOKUP($A10,Aviation!$A:$O,9,FALSE)<>0,VLOOKUP($A10,Aviation!$A:$O,9,FALSE),"") -> N/A | L10: =IF(VLOOKUP($A10,Aviation!$A:$O,10,FALSE)<>0,VLOOKUP($A10,Aviation!$A:$O,10,FALSE),"") -> N/A | M10: =IF(VLOOKUP($A10,Aviation!$A:$O,11,FALSE)<>0,VLOOKUP($A10,Aviation!$A:$O,11,FALSE),"") -> 37.0125 | N10: =IF(VLOOKUP($A10,Aviation!$A:$O,12,FALSE)<>0,VLOOKUP($A10,Aviation!$A:$O,12,FALSE),"") -> A | O10: =IF(VLOOKUP($A10,Aviation!$A:$O,13,FALSE)<>0,VLOOKUP($A10,Aviation!$A:$O,13,FALSE),"") -> 01 | P10: =IF(VLOOKUP($A10,Aviation!$A:$O,14,FALSE)<>0,VLOOKUP($A10,Aviation!$A:$O,14,FALSE),"") -> Albemarle RPO | Q10: =IF(VLOOKUP($A10,Aviation!$A:$O,15,FALSE)<>0,VLOOKUP($A10,Aviation!$A:$O,15,FALSE),"") -> Pasquotank | W10: Yes
A11: A130011 | B11: Aviation | C11: =IF(VLOOKUP($A11,Aviation!$A:$O,2,FALSE)<>0,VLOOKUP($A11,Aviation!$A:$O,2,FALSE),"") ->  | D11: =IF(VLOOKUP($A11,Aviation!$A:$O,3,FALSE)<>0,VLOOKUP($A11,Aviation!$A:$O,3,FALSE),"") -> Division Needs | E11: =IF(VLOOKUP($A11,Aviation!$A:$O,4,FALSE)<>0,VLOOKUP($A11,Aviation!$A:$O,4,FALSE),"") -> ECG - Elizabeth City CG Air Station | H11: =IF(VLOOKUP($A11,Aviation!$A:$O,6,FALSE)<>0,VLOOKUP($A11,Aviation!$A:$O,6,FALSE),"") -> Airport private cost, or private investment (Vision 100 - partial reimbursement only) (includes Project Request Numbers: 2275 ) | I11: =IF(VLOOKUP($A11,Aviation!$A:$O,7,FALSE)<>0,VLOOKUP($A11,Aviation!$A:$O,7,FALSE),"") -> 1900 - Hangars | J11: =IF(VLOOKUP($A11,Aviation!$A:$O,8,FALSE)<>0,VLOOKUP($A11,Aviation!$A:$O,8,FALSE),"") -> 150300 | K11: =IF(VLOOKUP($A11,Aviation!$A:$O,9,FALSE)<>0,VLOOKUP($A11,Aviation!$A:$O,9,FALSE),"") -> N/A | L11: =IF(VLOOKUP($A11,Aviation!$A:$O,10,FALSE)<>0,VLOOKUP($A11,Aviation!$A:$O,10,FALSE),"") -> N/A | M11: =IF(VLOOKUP($A11,Aviation!$A:$O,11,FALSE)<>0,VLOOKUP($A11,Aviation!$A:$O,11,FALSE),"") -> 25.3645 | N11: =IF(VLOOKUP($A11,Aviation!$A:$O,12,FALSE)<>0,VLOOKUP($A11,Aviation!$A:$O,12,FALSE),"") -> A | O11: =IF(VLOOKUP($A11,Aviation!$A:$O,13,FALSE)<>0,VLOOKUP($A11,Aviation!$A:$O,13,FALSE),"") -> 01 | P11: =IF(VLOOKUP($A11,Aviation!$A:$O,14,FALSE)<>0,VLOOKUP($A11,Aviation!$A:$O,14,FALSE),"") -> Albemarle RPO | Q11: =IF(VLOOKUP($A11,Aviation!$A:$O,15,FALSE)<>0,VLOOKUP($A11,Aviation!$A:$O,15,FALSE),"") -> Pasquotank | W11: Yes
A12: A130014 | B12: Aviation | C12: =IF(VLOOKUP($A12,Aviation!$A:$O,2,FALSE)<>0,VLOOKUP($A12,Aviation!$A:$O,2,FALSE),"") ->  | D12: =IF(VLOOKUP($A12,Aviation!$A:$O,3,FALSE)<>0,VLOOKUP($A12,Aviation!$A:$O,3,FALSE),"") -> Division Needs | E12: =IF(VLOOKUP($A12,Aviation!$A:$O,4,FALSE)<>0,VLOOKUP($A12,Aviation!$A:$O,4,FALSE),"") -> EDE - Northeastern Regional | H12: =IF(VLOOKUP($A12,Aviation!$A:$O,6,FALSE)<>0,VLOOKUP($A12,Aviation!$A:$O,6,FALSE),"") -> The airport has a waiting list for hangars. This project provides additional box hangars. (includes Project Request Numbers: 2482 ) | I12: =IF(VLOOKUP($A12,Aviation!$A:$O,7,FALSE)<>0,VLOOKUP($A12,Aviation!$A:$O,7,FALSE),"") -> 1900 - Hangars | J12: =IF(VLOOKUP($A12,Aviation!$A:$O,8,FALSE)<>0,VLOOKUP($A12,Aviation!$A:$O,8,FALSE),"") -> 1112400 | K12: =IF(VLOOKUP($A12,Aviation!$A:$O,9,FALSE)<>0,VLOOKUP($A12,Aviation!$A:$O,9,FALSE),"") -> N/A | L12: =IF(VLOOKUP($A12,Aviation!$A:$O,10,FALSE)<>0,VLOOKUP($A12,Aviation!$A:$O,10,FALSE),"") -> N/A | M12: =IF(VLOOKUP($A12,Aviation!$A:$O,11,FALSE)<>0,VLOOKUP($A12,Aviation!$A:$O,11,FALSE),"") -> 20.3645 | N12: =IF(VLOOKUP($A12,Aviation!$A:$O,12,FALSE)<>0,VLOOKUP($A12,Aviation!$A:$O,12,FALSE),"") -> A | O12: =IF(VLOOKUP($A12,Aviation!$A:$O,13,FALSE)<>0,VLOOKUP($A12,Aviation!$A:$O,13,FALSE),"") -> 01 | P12: =IF(VLOOKUP($A12,Aviation!$A:$O,14,FALSE)<>0,VLOOKUP($A12,Aviation!$A:$O,14,FALSE),"") -> Albemarle RPO | Q12: =IF(VLOOKUP($A12,Aviation!$A:$O,15,FALSE)<>0,VLOOKUP($A12,Aviation!$A:$O,15,FALSE),"") -> Chowan | W12: Yes
A13: A130021 | B13: Aviation | C13: =IF(VLOOKUP($A13,Aviation!$A:$O,2,FALSE)<>0,VLOOKUP($A13,Aviation!$A:$O,2,FALSE),"") ->  | D13: =IF(VLOOKUP($A13,Aviation!$A:$O,3,FALSE)<>0,VLOOKUP($A13,Aviation!$A:$O,3,FALSE),"") -> Division Needs | E13: =IF(VLOOKUP($A13,Aviation!$A:$O,4,FALSE)<>0,VLOOKUP($A13,Aviation!$A:$O,4,FALSE),"") -> MQI - Dare County | H13: =IF(VLOOKUP($A13,Aviation!$A:$O,6,FALSE)<>0,VLOOKUP($A13,Aviation!$A:$O,6,FALSE),"") -> Construct corporate hangar taxiway (Southeast side). (includes Project Request Numbers: 2359 ) | I13: =IF(VLOOKUP($A13,Aviation!$A:$O,7,FALSE)<>0,VLOOKUP($A13,Aviation!$A:$O,7,FALSE),"") -> 1240 - Corporate and T-hangar Taxiway: Construction | J13: =IF(VLOOKUP($A13,Aviation!$A:$O,8,FALSE)<>0,VLOOKUP($A13,Aviation!$A:$O,8,FALSE),"") -> 225000 | K13: =IF(VLOOKUP($A13,Aviation!$A:$O,9,FALSE)<>0,VLOOKUP($A13,Aviation!$A:$O,9,FALSE),"") -> N/A | L13: =IF(VLOOKUP($A13,Aviation!$A:$O,10,FALSE)<>0,VLOOKUP($A13,Aviation!$A:$O,10,FALSE),"") -> N/A | M13: =IF(VLOOKUP($A13,Aviation!$A:$O,11,FALSE)<>0,VLOOKUP($A13,Aviation!$A:$O,11,FALSE),"") -> 39.0575 | N13: =IF(VLOOKUP($A13,Aviation!$A:$O,12,FALSE)<>0,VLOOKUP($A13,Aviation!$A:$O,12,FALSE),"") -> A | O13: =IF(VLOOKUP($A13,Aviation!$A:$O,13,FALSE)<>0,VLOOKUP($A13,Aviation!$A:$O,13,FALSE),"") -> 01 | P13: =IF(VLOOKUP($A13,Aviation!$A:$O,14,FALSE)<>0,VLOOKUP($A13,Aviation!$A:$O,14,FALSE),"") -> Albemarle RPO | Q13: =IF(VLOOKUP($A13,Aviation!$A:$O,15,FALSE)<>0,VLOOKUP($A13,Aviation!$A:$O,15,FALSE),"") -> Dare | W13: Yes
A14: A130025 | B14: Aviation | C14: =IF(VLOOKUP($A14,Aviation!$A:$O,2,FALSE)<>0,VLOOKUP($A14,Aviation!$A:$O,2,FALSE),"") ->  | D14: =IF(VLOOKUP($A14,Aviation!$A:$O,3,FALSE)<>0,VLOOKUP($A14,Aviation!$A:$O,3,FALSE),"") -> Division Needs | E14: =IF(VLOOKUP($A14,Aviation!$A:$O,4,FALSE)<>0,VLOOKUP($A14,Aviation!$A:$O,4,FALSE),"") -> MQI - Dare County | H14: =IF(VLOOKUP($A14,Aviation!$A:$O,6,FALSE)<>0,VLOOKUP($A14,Aviation!$A:$O,6,FALSE),"") -> Construct a 3-unit box hangar adjacent to the taxilanes and 14-unit T-Hangar that was most recently constructed (Southeast side), in accordance with Airport Master Plan and ALP. (includes Project Request Numbers: 2358 ) | I14: =IF(VLOOKUP($A14,Aviation!$A:$O,7,FALSE)<>0,VLOOKUP($A14,Aviation!$A:$O,7,FALSE),"") -> 1900 - Hangars | J14: =IF(VLOOKUP($A14,Aviation!$A:$O,8,FALSE)<>0,VLOOKUP($A14,Aviation!$A:$O,8,FALSE),"") -> 486000 | K14: =IF(VLOOKUP($A14,Aviation!$A:$O,9,FALSE)<>0,VLOOKUP($A14,Aviation!$A:$O,9,FALSE),"") -> N/A | L14: =IF(VLOOKUP($A14,Aviation!$A:$O,10,FALSE)<>0,VLOOKUP($A14,Aviation!$A:$O,10,FALSE),"") -> N/A | M14: =IF(VLOOKUP($A14,Aviation!$A:$O,11,FALSE)<>0,VLOOKUP($A14,Aviation!$A:$O,11,FALSE),"") -> 23.6035 | N14: =IF(VLOOKUP($A14,Aviation!$A:$O,12,FALSE)<>0,VLOOKUP($A14,Aviation!$A:$O,12,FALSE),"") -> A | O14: =IF(VLOOKUP($A14,Aviation!$A:$O,13,FALSE)<>0,VLOOKUP($A14,Aviation!$A:$O,13,FALSE),"") -> 01 | P14: =IF(VLOOKUP($A14,Aviation!$A:$O,14,FALSE)<>0,VLOOKUP($A14,Aviation!$A:$O,14,FALSE),"") -> Albemarle RPO | Q14: =IF(VLOOKUP($A14,Aviation!$A:$O,15,FALSE)<>0,VLOOKUP($A14,Aviation!$A:$O,15,FALSE),"") -> Dare | W14: Yes
A15: A130037 | B15: Aviation | C15: =IF(VLOOKUP($A15,Aviation!$A:$O,2,FALSE)<>0,VLOOKUP($A15,Aviation!$A:$O,2,FALSE),"") ->  | D15: =IF(VLOOKUP($A15,Aviation!$A:$O,3,FALSE)<>0,VLOOKUP($A15,Aviation!$A:$O,3,FALSE),"") -> Division Needs | E15: =IF(VLOOKUP($A15,Aviation!$A:$O,4,FALSE)<>0,VLOOKUP($A15,Aviation!$A:$O,4,FALSE),"") -> ONX - Currituck County | H15: =IF(VLOOKUP($A15,Aviation!$A:$O,6,FALSE)<>0,VLOOKUP($A15,Aviation!$A:$O,6,FALSE),"") -> Construction of 10,000 SF Corporate Hangar and 3,000 SF office space. (includes Project Request Numbers: 2624 ) | I15: =IF(VLOOKUP($A15,Aviation!$A:$O,7,FALSE)<>0,VLOOKUP($A15,Aviation!$A:$O,7,FALSE),"") -> 1900 - Hangars | J15: =IF(VLOOKUP($A15,Aviation!$A:$O,8,FALSE)<>0,VLOOKUP($A15,Aviation!$A:$O,8,FALSE),"") -> 1116000 | K15: =IF(VLOOKUP($A15,Aviation!$A:$O,9,FALSE)<>0,VLOOKUP($A15,Aviation!$A:$O,9,FALSE),"") -> N/A | L15: =IF(VLOOKUP($A15,Aviation!$A:$O,10,FALSE)<>0,VLOOKUP($A15,Aviation!$A:$O,10,FALSE),"") -> N/A | M15: =IF(VLOOKUP($A15,Aviation!$A:$O,11,FALSE)<>0,VLOOKUP($A15,Aviation!$A:$O,11,FALSE),"") -> 20.3645 | N15: =IF(VLOOKUP($A15,Aviation!$A:$O,12,FALSE)<>0,VLOOKUP($A15,Aviation!$A:$O,12,FALSE),"") -> A | O15: =IF(VLOOKUP($A15,Aviation!$A:$O,13,FALSE)<>0,VLOOKUP($A15,Aviation!$A:$O,13,FALSE),"") -> 01 | P15: =IF(VLOOKUP($A15,Aviation!$A:$O,14,FALSE)<>0,VLOOKUP($A15,Aviation!$A:$O,14,FALSE),"") -> Albemarle RPO | Q15: =IF(VLOOKUP($A15,Aviation!$A:$O,15,FALSE)<>0,VLOOKUP($A15,Aviation!$A:$O,15,FALSE),"") -> Currituck | W15: Yes
A16: A130038 | B16: Aviation | C16: =IF(VLOOKUP($A16,Aviation!$A:$O,2,FALSE)<>0,VLOOKUP($A16,Aviation!$A:$O,2,FALSE),"") ->  | D16: =IF(VLOOKUP($A16,Aviation!$A:$O,3,FALSE)<>0,VLOOKUP($A16,Aviation!$A:$O,3,FALSE),"") -> Division Needs | E16: =IF(VLOOKUP($A16,Aviation!$A:$O,4,FALSE)<>0,VLOOKUP($A16,Aviation!$A:$O,4,FALSE),"") -> ONX - Currituck County | H16: =IF(VLOOKUP($A16,Aviation!$A:$O,6,FALSE)<>0,VLOOKUP($A16,Aviation!$A:$O,6,FALSE),"") -> Construction of one new 10-unit T-Hangar and Hangar Taxiway and Apron Site work and Paving. (includes Project Request Numbers: 2633 ) | I16: =IF(VLOOKUP($A16,Aviation!$A:$O,7,FALSE)<>0,VLOOKUP($A16,Aviation!$A:$O,7,FALSE),"") -> 1900 - Hangars | J16: =IF(VLOOKUP($A16,Aviation!$A:$O,8,FALSE)<>0,VLOOKUP($A16,Aviation!$A:$O,8,FALSE),"") -> 1080000 | K16: =IF(VLOOKUP($A16,Aviation!$A:$O,9,FALSE)<>0,VLOOKUP($A16,Aviation!$A:$O,9,FALSE),"") -> N/A | L16: =IF(VLOOKUP($A16,Aviation!$A:$O,10,FALSE)<>0,VLOOKUP($A16,Aviation!$A:$O,10,FALSE),"") -> N/A | M16: =IF(VLOOKUP($A16,Aviation!$A:$O,11,FALSE)<>0,VLOOKUP($A16,Aviation!$A:$O,11,FALSE),"") -> 20.5925 | N16: =IF(VLOOKUP($A16,Aviation!$A:$O,12,FALSE)<>0,VLOOKUP($A16,Aviation!$A:$O,12,FALSE),"") -> A | O16: =IF(VLOOKUP($A16,Aviation!$A:$O,13,FALSE)<>0,VLOOKUP($A16,Aviation!$A:$O,13,FALSE),"") -> 01 | P16: =IF(VLOOKUP($A16,Aviation!$A:$O,14,FALSE)<>0,VLOOKUP($A16,Aviation!$A:$O,14,FALSE),"") -> Albemarle RPO | Q16: =IF(VLOOKUP($A16,Aviation!$A:$O,15,FALSE)<>0,VLOOKUP($A16,Aviation!$A:$O,15,FALSE),"") -> Currituck | W16: Yes
A17: A130041 | B17: Aviation | C17: =IF(VLOOKUP($A17,Aviation!$A:$O,2,FALSE)<>0,VLOOKUP($A17,Aviation!$A:$O,2,FALSE),"") ->  | D17: =IF(VLOOKUP($A17,Aviation!$A:$O,3,FALSE)<>0,VLOOKUP($A17,Aviation!$A:$O,3,FALSE),"") -> Division Needs | E17: =IF(VLOOKUP($A17,Aviation!$A:$O,4,FALSE)<>0,VLOOKUP($A17,Aviation!$A:$O,4,FALSE),"") -> ONX - Currituck County | H17: =IF(VLOOKUP($A17,Aviation!$A:$O,6,FALSE)<>0,VLOOKUP($A17,Aviation!$A:$O,6,FALSE),"") -> Strengthen Runway to 100,000 lb. dual wheel strength to support larger jet and transport aircraft traffic (includes Project Request Numbers: 2630 ) | I17: =IF(VLOOKUP($A17,Aviation!$A:$O,7,FALSE)<>0,VLOOKUP($A17,Aviation!$A:$O,7,FALSE),"") -> 0605 - Pavement Strength - Runway | J17: =IF(VLOOKUP($A17,Aviation!$A:$O,8,FALSE)<>0,VLOOKUP($A17,Aviation!$A:$O,8,FALSE),"") -> 3285000 | K17: =IF(VLOOKUP($A17,Aviation!$A:$O,9,FALSE)<>0,VLOOKUP($A17,Aviation!$A:$O,9,FALSE),"") -> N/A | L17: =IF(VLOOKUP($A17,Aviation!$A:$O,10,FALSE)<>0,VLOOKUP($A17,Aviation!$A:$O,10,FALSE),"") -> N/A | M17: =IF(VLOOKUP($A17,Aviation!$A:$O,11,FALSE)<>0,VLOOKUP($A17,Aviation!$A:$O,11,FALSE),"") -> 36.1595 | N17: =IF(VLOOKUP($A17,Aviation!$A:$O,12,FALSE)<>0,VLOOKUP($A17,Aviation!$A:$O,12,FALSE),"") -> A | O17: =IF(VLOOKUP($A17,Aviation!$A:$O,13,FALSE)<>0,VLOOKUP($A17,Aviation!$A:$O,13,FALSE),"") -> 01 | P17: =IF(VLOOKUP($A17,Aviation!$A:$O,14,FALSE)<>0,VLOOKUP($A17,Aviation!$A:$O,14,FALSE),"") -> Albemarle RPO | Q17: =IF(VLOOKUP($A17,Aviation!$A:$O,15,FALSE)<>0,VLOOKUP($A17,Aviation!$A:$O,15,FALSE),"") -> Currituck | W17: Yes
A18: A130044 | B18: Aviation | C18: =IF(VLOOKUP($A18,Aviation!$A:$O,2,FALSE)<>0,VLOOKUP($A18,Aviation!$A:$O,2,FALSE),"") ->  | D18: =IF(VLOOKUP($A18,Aviation!$A:$O,3,FALSE)<>0,VLOOKUP($A18,Aviation!$A:$O,3,FALSE),"") -> Division Needs | E18: =IF(VLOOKUP($A18,Aviation!$A:$O,4,FALSE)<>0,VLOOKUP($A18,Aviation!$A:$O,4,FALSE),"") -> PMZ - Plymouth Municipal | H18: =IF(VLOOKUP($A18,Aviation!$A:$O,6,FALSE)<>0,VLOOKUP($A18,Aviation!$A:$O,6,FALSE),"") -> Construct a new 8-unit T-Hangar (includes Project Request Numbers: 2730 ) | I18: =IF(VLOOKUP($A18,Aviation!$A:$O,7,FALSE)<>0,VLOOKUP($A18,Aviation!$A:$O,7,FALSE),"") -> 1900 - Hangars | J18: =IF(VLOOKUP($A18,Aviation!$A:$O,8,FALSE)<>0,VLOOKUP($A18,Aviation!$A:$O,8,FALSE),"") -> 414900 | K18: =IF(VLOOKUP($A18,Aviation!$A:$O,9,FALSE)<>0,VLOOKUP($A18,Aviation!$A:$O,9,FALSE),"") -> N/A | L18: =IF(VLOOKUP($A18,Aviation!$A:$O,10,FALSE)<>0,VLOOKUP($A18,Aviation!$A:$O,10,FALSE),"") -> N/A | M18: =IF(VLOOKUP($A18,Aviation!$A:$O,11,FALSE)<>0,VLOOKUP($A18,Aviation!$A:$O,11,FALSE),"") -> 23.8305 | N18: =IF(VLOOKUP($A18,Aviation!$A:$O,12,FALSE)<>0,VLOOKUP($A18,Aviation!$A:$O,12,FALSE),"") -> A | O18: =IF(VLOOKUP($A18,Aviation!$A:$O,13,FALSE)<>0,VLOOKUP($A18,Aviation!$A:$O,13,FALSE),"") -> 01 | P18: =IF(VLOOKUP($A18,Aviation!$A:$O,14,FALSE)<>0,VLOOKUP($A18,Aviation!$A:$O,14,FALSE),"") -> Albemarle RPO | Q18: =IF(VLOOKUP($A18,Aviation!$A:$O,15,FALSE)<>0,VLOOKUP($A18,Aviation!$A:$O,15,FALSE),"") -> Washington | W18: Yes
A19: A130045 | B19: Aviation | C19: =IF(VLOOKUP($A19,Aviation!$A:$O,2,FALSE)<>0,VLOOKUP($A19,Aviation!$A:$O,2,FALSE),"") ->  | D19: =IF(VLOOKUP($A19,Aviation!$A:$O,3,FALSE)<>0,VLOOKUP($A19,Aviation!$A:$O,3,FALSE),"") -> Division Needs | E19: =IF(VLOOKUP($A19,Aviation!$A:$O,4,FALSE)<>0,VLOOKUP($A19,Aviation!$A:$O,4,FALSE),"") -> PMZ - Plymouth Municipal | H19: =IF(VLOOKUP($A19,Aviation!$A:$O,6,FALSE)<>0,VLOOKUP($A19,Aviation!$A:$O,6,FALSE),"") -> Construct 80'X100' corporate hangar including site preparation, apron, and taxilane access. (includes Project Request Numbers: 2734 ) | I19: =IF(VLOOKUP($A19,Aviation!$A:$O,7,FALSE)<>0,VLOOKUP($A19,Aviation!$A:$O,7,FALSE),"") -> 1900 - Hangars | J19: =IF(VLOOKUP($A19,Aviation!$A:$O,8,FALSE)<>0,VLOOKUP($A19,Aviation!$A:$O,8,FALSE),"") -> 760500 | K19: =IF(VLOOKUP($A19,Aviation!$A:$O,9,FALSE)<>0,VLOOKUP($A19,Aviation!$A:$O,9,FALSE),"") -> N/A | L19: =IF(VLOOKUP($A19,Aviation!$A:$O,10,FALSE)<>0,VLOOKUP($A19,Aviation!$A:$O,10,FALSE),"") -> N/A | M19: =IF(VLOOKUP($A19,Aviation!$A:$O,11,FALSE)<>0,VLOOKUP($A19,Aviation!$A:$O,11,FALSE),"") -> 22.2395 | N19: =IF(VLOOKUP($A19,Aviation!$A:$O,12,FALSE)<>0,VLOOKUP($A19,Aviation!$A:$O,12,FALSE),"") -> A | O19: =IF(VLOOKUP($A19,Aviation!$A:$O,13,FALSE)<>0,VLOOKUP($A19,Aviation!$A:$O,13,FALSE),"") -> 01 | P19: =IF(VLOOKUP($A19,Aviation!$A:$O,14,FALSE)<>0,VLOOKUP($A19,Aviation!$A:$O,14,FALSE),"") -> Albemarle RPO | Q19: =IF(VLOOKUP($A19,Aviation!$A:$O,15,FALSE)<>0,VLOOKUP($A19,Aviation!$A:$O,15,FALSE),"") -> Washington | W19: Yes
A20: A130060 | B20: Aviation | C20: =IF(VLOOKUP($A20,Aviation!$A:$O,2,FALSE)<>0,VLOOKUP($A20,Aviation!$A:$O,2,FALSE),"") ->  | D20: =IF(VLOOKUP($A20,Aviation!$A:$O,3,FALSE)<>0,VLOOKUP($A20,Aviation!$A:$O,3,FALSE),"") -> Division Needs | E20: =IF(VLOOKUP($A20,Aviation!$A:$O,4,FALSE)<>0,VLOOKUP($A20,Aviation!$A:$O,4,FALSE),"") -> BUY - Burlington-Alamance Regional | H20: =IF(VLOOKUP($A20,Aviation!$A:$O,6,FALSE)<>0,VLOOKUP($A20,Aviation!$A:$O,6,FALSE),"") -> Construction of 100 foot paved overrun and Runway Safety Area improvements to C-II standards. (includes Project Request Numbers: 3184 ) | I20: =IF(VLOOKUP($A20,Aviation!$A:$O,7,FALSE)<>0,VLOOKUP($A20,Aviation!$A:$O,7,FALSE),"") -> 0500 - Runway Length/Width | J20: =IF(VLOOKUP($A20,Aviation!$A:$O,8,FALSE)<>0,VLOOKUP($A20,Aviation!$A:$O,8,FALSE),"") -> 1872900 | K20: =IF(VLOOKUP($A20,Aviation!$A:$O,9,FALSE)<>0,VLOOKUP($A20,Aviation!$A:$O,9,FALSE),"") -> N/A | L20: =IF(VLOOKUP($A20,Aviation!$A:$O,10,FALSE)<>0,VLOOKUP($A20,Aviation!$A:$O,10,FALSE),"") -> N/A | M20: =IF(VLOOKUP($A20,Aviation!$A:$O,11,FALSE)<>0,VLOOKUP($A20,Aviation!$A:$O,11,FALSE),"") -> 45.1945 | N20: =IF(VLOOKUP($A20,Aviation!$A:$O,12,FALSE)<>0,VLOOKUP($A20,Aviation!$A:$O,12,FALSE),"") -> D | O20: =IF(VLOOKUP($A20,Aviation!$A:$O,13,FALSE)<>0,VLOOKUP($A20,Aviation!$A:$O,13,FALSE),"") -> 07 | P20: =IF(VLOOKUP($A20,Aviation!$A:$O,14,FALSE)<>0,VLOOKUP($A20,Aviation!$A:$O,14,FALSE),"") -> Burlington Graham MPO | Q20: =IF(VLOOKUP($A20,Aviation!$A:$O,15,FALSE)<>0,VLOOKUP($A20,Aviation!$A:$O,15,FALSE),"") -> Alamance | W20: Yes
A21: A130062 | B21: Aviation | C21: =IF(VLOOKUP($A21,Aviation!$A:$O,2,FALSE)<>0,VLOOKUP($A21,Aviation!$A:$O,2,FALSE),"") ->  | D21: =IF(VLOOKUP($A21,Aviation!$A:$O,3,FALSE)<>0,VLOOKUP($A21,Aviation!$A:$O,3,FALSE),"") -> Division Needs | E21: =IF(VLOOKUP($A21,Aviation!$A:$O,4,FALSE)<>0,VLOOKUP($A21,Aviation!$A:$O,4,FALSE),"") -> RUQ - Rowan County | H21: =IF(VLOOKUP($A21,Aviation!$A:$O,6,FALSE)<>0,VLOOKUP($A21,Aviation!$A:$O,6,FALSE),"") -> New apron on the west side of the Runway 2-20 to provide access for future terminal area. (includes Project Request Numbers: 2712 ) | I21: =IF(VLOOKUP($A21,Aviation!$A:$O,7,FALSE)<>0,VLOOKUP($A21,Aviation!$A:$O,7,FALSE),"") -> 1200 - Aircraft Apron / Helipad Requirements | J21: =IF(VLOOKUP($A21,Aviation!$A:$O,8,FALSE)<>0,VLOOKUP($A21,Aviation!$A:$O,8,FALSE),"") -> 10129500 | K21: =IF(VLOOKUP($A21,Aviation!$A:$O,9,FALSE)<>0,VLOOKUP($A21,Aviation!$A:$O,9,FALSE),"") -> N/A | L21: =IF(VLOOKUP($A21,Aviation!$A:$O,10,FALSE)<>0,VLOOKUP($A21,Aviation!$A:$O,10,FALSE),"") -> N/A | M21: =IF(VLOOKUP($A21,Aviation!$A:$O,11,FALSE)<>0,VLOOKUP($A21,Aviation!$A:$O,11,FALSE),"") -> 32.893 | N21: =IF(VLOOKUP($A21,Aviation!$A:$O,12,FALSE)<>0,VLOOKUP($A21,Aviation!$A:$O,12,FALSE),"") -> D | O21: =IF(VLOOKUP($A21,Aviation!$A:$O,13,FALSE)<>0,VLOOKUP($A21,Aviation!$A:$O,13,FALSE),"") -> 09 | P21: =IF(VLOOKUP($A21,Aviation!$A:$O,14,FALSE)<>0,VLOOKUP($A21,Aviation!$A:$O,14,FALSE),"") -> Cabarrus Rowan MPO | Q21: =IF(VLOOKUP($A21,Aviation!$A:$O,15,FALSE)<>0,VLOOKUP($A21,Aviation!$A:$O,15,FALSE),"") -> Rowan | W21: Yes
A22: A130063 | B22: Aviation | C22: =IF(VLOOKUP($A22,Aviation!$A:$O,2,FALSE)<>0,VLOOKUP($A22,Aviation!$A:$O,2,FALSE),"") ->  | D22: =IF(VLOOKUP($A22,Aviation!$A:$O,3,FALSE)<>0,VLOOKUP($A22,Aviation!$A:$O,3,FALSE),"") -> Division Needs | E22: =IF(VLOOKUP($A22,Aviation!$A:$O,4,FALSE)<>0,VLOOKUP($A22,Aviation!$A:$O,4,FALSE),"") -> RUQ - Rowan County | H22: =IF(VLOOKUP($A22,Aviation!$A:$O,6,FALSE)<>0,VLOOKUP($A22,Aviation!$A:$O,6,FALSE),"") -> Purchase of 24.6 acres from Park Dale Mills. (includes Project Request Numbers: 2713 ) | I22: =IF(VLOOKUP($A22,Aviation!$A:$O,7,FALSE)<>0,VLOOKUP($A22,Aviation!$A:$O,7,FALSE),"") -> 1200 - Aircraft Apron / Helipad Requirements | J22: =IF(VLOOKUP($A22,Aviation!$A:$O,8,FALSE)<>0,VLOOKUP($A22,Aviation!$A:$O,8,FALSE),"") -> 360000 | K22: =IF(VLOOKUP($A22,Aviation!$A:$O,9,FALSE)<>0,VLOOKUP($A22,Aviation!$A:$O,9,FALSE),"") -> N/A | L22: =IF(VLOOKUP($A22,Aviation!$A:$O,10,FALSE)<>0,VLOOKUP($A22,Aviation!$A:$O,10,FALSE),"") -> N/A | M22: =IF(VLOOKUP($A22,Aviation!$A:$O,11,FALSE)<>0,VLOOKUP($A22,Aviation!$A:$O,11,FALSE),"") -> 39.371 | N22: =IF(VLOOKUP($A22,Aviation!$A:$O,12,FALSE)<>0,VLOOKUP($A22,Aviation!$A:$O,12,FALSE),"") -> D | O22: =IF(VLOOKUP($A22,Aviation!$A:$O,13,FALSE)<>0,VLOOKUP($A22,Aviation!$A:$O,13,FALSE),"") -> 09 | P22: =IF(VLOOKUP($A22,Aviation!$A:$O,14,FALSE)<>0,VLOOKUP($A22,Aviation!$A:$O,14,FALSE),"") -> Cabarrus Rowan MPO | Q22: =IF(VLOOKUP($A22,Aviation!$A:$O,15,FALSE)<>0,VLOOKUP($A22,Aviation!$A:$O,15,FALSE),"") -> Rowan | W22: Yes
A23: A130064 | B23: Aviation | C23: =IF(VLOOKUP($A23,Aviation!$A:$O,2,FALSE)<>0,VLOOKUP($A23,Aviation!$A:$O,2,FALSE),"") ->  | D23: =IF(VLOOKUP($A23,Aviation!$A:$O,3,FALSE)<>0,VLOOKUP($A23,Aviation!$A:$O,3,FALSE),"") -> Division Needs | E23: =IF(VLOOKUP($A23,Aviation!$A:$O,4,FALSE)<>0,VLOOKUP($A23,Aviation!$A:$O,4,FALSE),"") -> RUQ - Rowan County | H23: =IF(VLOOKUP($A23,Aviation!$A:$O,6,FALSE)<>0,VLOOKUP($A23,Aviation!$A:$O,6,FALSE),"") -> Prep. Site north of rehabilitated area for new T-Hangar and install new T-Hangar. Extend north apron to add two (2) sets of T-Hangars. (includes Project Request Numbers: 3094/3118 ) | I23: =IF(VLOOKUP($A23,Aviation!$A:$O,7,FALSE)<>0,VLOOKUP($A23,Aviation!$A:$O,7,FALSE),"") -> 1240 - Corporate and T-hangar Taxiway: Construction | J23: =IF(VLOOKUP($A23,Aviation!$A:$O,8,FALSE)<>0,VLOOKUP($A23,Aviation!$A:$O,8,FALSE),"") -> 3964144.5 | K23: =IF(VLOOKUP($A23,Aviation!$A:$O,9,FALSE)<>0,VLOOKUP($A23,Aviation!$A:$O,9,FALSE),"") -> N/A | L23: =IF(VLOOKUP($A23,Aviation!$A:$O,10,FALSE)<>0,VLOOKUP($A23,Aviation!$A:$O,10,FALSE),"") -> N/A | M23: =IF(VLOOKUP($A23,Aviation!$A:$O,11,FALSE)<>0,VLOOKUP($A23,Aviation!$A:$O,11,FALSE),"") -> 28.7175 | N23: =IF(VLOOKUP($A23,Aviation!$A:$O,12,FALSE)<>0,VLOOKUP($A23,Aviation!$A:$O,12,FALSE),"") -> D | O23: =IF(VLOOKUP($A23,Aviation!$A:$O,13,FALSE)<>0,VLOOKUP($A23,Aviation!$A:$O,13,FALSE),"") -> 09 | P23: =IF(VLOOKUP($A23,Aviation!$A:$O,14,FALSE)<>0,VLOOKUP($A23,Aviation!$A:$O,14,FALSE),"") -> Cabarrus Rowan MPO | Q23: =IF(VLOOKUP($A23,Aviation!$A:$O,15,FALSE)<>0,VLOOKUP($A23,Aviation!$A:$O,15,FALSE),"") -> Rowan | W23: Yes
A24: A130067 | B24: Aviation | C24: =IF(VLOOKUP($A24,Aviation!$A:$O,2,FALSE)<>0,VLOOKUP($A24,Aviation!$A:$O,2,FALSE),"") ->  | D24: =IF(VLOOKUP($A24,Aviation!$A:$O,3,FALSE)<>0,VLOOKUP($A24,Aviation!$A:$O,3,FALSE),"") -> Division Needs | E24: =IF(VLOOKUP($A24,Aviation!$A:$O,4,FALSE)<>0,VLOOKUP($A24,Aviation!$A:$O,4,FALSE),"") -> RUQ - Rowan County | H24: =IF(VLOOKUP($A24,Aviation!$A:$O,6,FALSE)<>0,VLOOKUP($A24,Aviation!$A:$O,6,FALSE),"") -> Add corporate hangars on west side of Runway 2-20 (includes Project Request Numbers: 3117 ) | I24: =IF(VLOOKUP($A24,Aviation!$A:$O,7,FALSE)<>0,VLOOKUP($A24,Aviation!$A:$O,7,FALSE),"") -> 1900 - Hangars | J24: =IF(VLOOKUP($A24,Aviation!$A:$O,8,FALSE)<>0,VLOOKUP($A24,Aviation!$A:$O,8,FALSE),"") -> 2938500 | K24: =IF(VLOOKUP($A24,Aviation!$A:$O,9,FALSE)<>0,VLOOKUP($A24,Aviation!$A:$O,9,FALSE),"") -> N/A | L24: =IF(VLOOKUP($A24,Aviation!$A:$O,10,FALSE)<>0,VLOOKUP($A24,Aviation!$A:$O,10,FALSE),"") -> N/A | M24: =IF(VLOOKUP($A24,Aviation!$A:$O,11,FALSE)<>0,VLOOKUP($A24,Aviation!$A:$O,11,FALSE),"") -> 19.2855 | N24: =IF(VLOOKUP($A24,Aviation!$A:$O,12,FALSE)<>0,VLOOKUP($A24,Aviation!$A:$O,12,FALSE),"") -> D | O24: =IF(VLOOKUP($A24,Aviation!$A:$O,13,FALSE)<>0,VLOOKUP($A24,Aviation!$A:$O,13,FALSE),"") -> 09 | P24: =IF(VLOOKUP($A24,Aviation!$A:$O,14,FALSE)<>0,VLOOKUP($A24,Aviation!$A:$O,14,FALSE),"") -> Cabarrus Rowan MPO | Q24: =IF(VLOOKUP($A24,Aviation!$A:$O,15,FALSE)<>0,VLOOKUP($A24,Aviation!$A:$O,15,FALSE),"") -> Rowan | W24: Yes
A25: A130085 | B25: Aviation | C25: =IF(VLOOKUP($A25,Aviation!$A:$O,2,FALSE)<>0,VLOOKUP($A25,Aviation!$A:$O,2,FALSE),"") ->  | D25: =IF(VLOOKUP($A25,Aviation!$A:$O,3,FALSE)<>0,VLOOKUP($A25,Aviation!$A:$O,3,FALSE),"") -> Division Needs | E25: =IF(VLOOKUP($A25,Aviation!$A:$O,4,FALSE)<>0,VLOOKUP($A25,Aviation!$A:$O,4,FALSE),"") -> ACZ - Henderson Field - Wallace | H25: =IF(VLOOKUP($A25,Aviation!$A:$O,6,FALSE)<>0,VLOOKUP($A25,Aviation!$A:$O,6,FALSE),"") -> There are currently no airport owned hangars available for lease on the airport. The existing hangars that are privately owned are old and dilapidated. This project will include site preparation for and construction of 8 t-hangars. (includes Project Request Numbers: 2483) | I25: =IF(VLOOKUP($A25,Aviation!$A:$O,7,FALSE)<>0,VLOOKUP($A25,Aviation!$A:$O,7,FALSE),"") -> 1900 - Hangars | J25: =IF(VLOOKUP($A25,Aviation!$A:$O,8,FALSE)<>0,VLOOKUP($A25,Aviation!$A:$O,8,FALSE),"") -> 979560 | K25: =IF(VLOOKUP($A25,Aviation!$A:$O,9,FALSE)<>0,VLOOKUP($A25,Aviation!$A:$O,9,FALSE),"") -> N/A | L25: =IF(VLOOKUP($A25,Aviation!$A:$O,10,FALSE)<>0,VLOOKUP($A25,Aviation!$A:$O,10,FALSE),"") -> N/A | M25: =IF(VLOOKUP($A25,Aviation!$A:$O,11,FALSE)<>0,VLOOKUP($A25,Aviation!$A:$O,11,FALSE),"") -> 21.0465 | N25: =IF(VLOOKUP($A25,Aviation!$A:$O,12,FALSE)<>0,VLOOKUP($A25,Aviation!$A:$O,12,FALSE),"") -> B | O25: =IF(VLOOKUP($A25,Aviation!$A:$O,13,FALSE)<>0,VLOOKUP($A25,Aviation!$A:$O,13,FALSE),"") -> 03 | P25: =IF(VLOOKUP($A25,Aviation!$A:$O,14,FALSE)<>0,VLOOKUP($A25,Aviation!$A:$O,14,FALSE),"") -> Cape Fear RPO | Q25: =IF(VLOOKUP($A25,Aviation!$A:$O,15,FALSE)<>0,VLOOKUP($A25,Aviation!$A:$O,15,FALSE),"") -> Pender | W25: Yes
A26: A130087 | B26: Aviation | C26: =IF(VLOOKUP($A26,Aviation!$A:$O,2,FALSE)<>0,VLOOKUP($A26,Aviation!$A:$O,2,FALSE),"") ->  | D26: =IF(VLOOKUP($A26,Aviation!$A:$O,3,FALSE)<>0,VLOOKUP($A26,Aviation!$A:$O,3,FALSE),"") -> Division Needs | E26: =IF(VLOOKUP($A26,Aviation!$A:$O,4,FALSE)<>0,VLOOKUP($A26,Aviation!$A:$O,4,FALSE),"") -> ACZ - Henderson Field - Wallace | H26: =IF(VLOOKUP($A26,Aviation!$A:$O,6,FALSE)<>0,VLOOKUP($A26,Aviation!$A:$O,6,FALSE),"") -> In order to accommodate corporate jet traffic, the runway needs to be extended to 5,500 lf. This project will follow or be completed simultaneously with Phase I depending on funding availability. Environment Permitting, EA, and Land acquisition for this project will completed with the Roadway Relocation and Runway Extension Phase 1 project - which extends the runway from 4,200 lf to 5,000 lf and has been funded under STI P3.0. (includes Project Request Numbers: 2476) | I26: =IF(VLOOKUP($A26,Aviation!$A:$O,7,FALSE)<>0,VLOOKUP($A26,Aviation!$A:$O,7,FALSE),"") -> 0500 - Runway Length/Width | J26: =IF(VLOOKUP($A26,Aviation!$A:$O,8,FALSE)<>0,VLOOKUP($A26,Aviation!$A:$O,8,FALSE),"") -> 1379520 | K26: =IF(VLOOKUP($A26,Aviation!$A:$O,9,FALSE)<>0,VLOOKUP($A26,Aviation!$A:$O,9,FALSE),"") -> N/A | L26: =IF(VLOOKUP($A26,Aviation!$A:$O,10,FALSE)<>0,VLOOKUP($A26,Aviation!$A:$O,10,FALSE),"") -> N/A | M26: =IF(VLOOKUP($A26,Aviation!$A:$O,11,FALSE)<>0,VLOOKUP($A26,Aviation!$A:$O,11,FALSE),"") -> 44.9675 | N26: =IF(VLOOKUP($A26,Aviation!$A:$O,12,FALSE)<>0,VLOOKUP($A26,Aviation!$A:$O,12,FALSE),"") -> B | O26: =IF(VLOOKUP($A26,Aviation!$A:$O,13,FALSE)<>0,VLOOKUP($A26,Aviation!$A:$O,13,FALSE),"") -> 03 | P26: =IF(VLOOKUP($A26,Aviation!$A:$O,14,FALSE)<>0,VLOOKUP($A26,Aviation!$A:$O,14,FALSE),"") -> Cape Fear RPO | Q26: =IF(VLOOKUP($A26,Aviation!$A:$O,15,FALSE)<>0,VLOOKUP($A26,Aviation!$A:$O,15,FALSE),"") -> Pender | W26: Yes
A27: A130091 | B27: Aviation | C27: =IF(VLOOKUP($A27,Aviation!$A:$O,2,FALSE)<>0,VLOOKUP($A27,Aviation!$A:$O,2,FALSE),"") ->  | D27: =IF(VLOOKUP($A27,Aviation!$A:$O,3,FALSE)<>0,VLOOKUP($A27,Aviation!$A:$O,3,FALSE),"") -> Division Needs | E27: =IF(VLOOKUP($A27,Aviation!$A:$O,4,FALSE)<>0,VLOOKUP($A27,Aviation!$A:$O,4,FALSE),"") -> SUT - Cape Fear Regional Jetport/Howie Franklin Field | H27: =IF(VLOOKUP($A27,Aviation!$A:$O,6,FALSE)<>0,VLOOKUP($A27,Aviation!$A:$O,6,FALSE),"") -> Purchase 26 acres for west apron expansion and hangars. The Airport needs additional land in order to build new hangars. The existing T- hangars are completely full and they currently have 40 people on a waiting list. (Project Request Numbers: 2176) | I27: =IF(VLOOKUP($A27,Aviation!$A:$O,7,FALSE)<>0,VLOOKUP($A27,Aviation!$A:$O,7,FALSE),"") -> 1200 - Aircraft Apron / Helipad Requirements | J27: =IF(VLOOKUP($A27,Aviation!$A:$O,8,FALSE)<>0,VLOOKUP($A27,Aviation!$A:$O,8,FALSE),"") -> 3114000 | K27: =IF(VLOOKUP($A27,Aviation!$A:$O,9,FALSE)<>0,VLOOKUP($A27,Aviation!$A:$O,9,FALSE),"") -> N/A | L27: =IF(VLOOKUP($A27,Aviation!$A:$O,10,FALSE)<>0,VLOOKUP($A27,Aviation!$A:$O,10,FALSE),"") -> N/A | M27: =IF(VLOOKUP($A27,Aviation!$A:$O,11,FALSE)<>0,VLOOKUP($A27,Aviation!$A:$O,11,FALSE),"") -> 33.291 | N27: =IF(VLOOKUP($A27,Aviation!$A:$O,12,FALSE)<>0,VLOOKUP($A27,Aviation!$A:$O,12,FALSE),"") -> B | O27: =IF(VLOOKUP($A27,Aviation!$A:$O,13,FALSE)<>0,VLOOKUP($A27,Aviation!$A:$O,13,FALSE),"") -> 03 | P27: =IF(VLOOKUP($A27,Aviation!$A:$O,14,FALSE)<>0,VLOOKUP($A27,Aviation!$A:$O,14,FALSE),"") -> Cape Fear RPO | Q27: =IF(VLOOKUP($A27,Aviation!$A:$O,15,FALSE)<>0,VLOOKUP($A27,Aviation!$A:$O,15,FALSE),"") -> Brunswick | W27: Yes
A28: A130104 | B28: Aviation | C28: =IF(VLOOKUP($A28,Aviation!$A:$O,2,FALSE)<>0,VLOOKUP($A28,Aviation!$A:$O,2,FALSE),"") ->  | D28: =IF(VLOOKUP($A28,Aviation!$A:$O,3,FALSE)<>0,VLOOKUP($A28,Aviation!$A:$O,3,FALSE),"") -> Division Needs | E28: =IF(VLOOKUP($A28,Aviation!$A:$O,4,FALSE)<>0,VLOOKUP($A28,Aviation!$A:$O,4,FALSE),"") -> CPC - Columbus County | H28: =IF(VLOOKUP($A28,Aviation!$A:$O,6,FALSE)<>0,VLOOKUP($A28,Aviation!$A:$O,6,FALSE),"") -> The existing terminal building does not meet the recommended square footage (3,200 SF) for terminal buildings. This project would include construction of a new terminal building that could also serve as a disaster recovery center for southeastern NC during natural disasters such as Hurricanes. CPC is far enough away from the coast that this airport with a 5,500' runway length could allow emergency aircraft to land and use the facility as a command station during a hurricane. (PC# 2387) | I28: =IF(VLOOKUP($A28,Aviation!$A:$O,7,FALSE)<>0,VLOOKUP($A28,Aviation!$A:$O,7,FALSE),"") -> 1305 - General Aviation Terminal Building: New Construction | J28: =IF(VLOOKUP($A28,Aviation!$A:$O,8,FALSE)<>0,VLOOKUP($A28,Aviation!$A:$O,8,FALSE),"") -> 1590030 | K28: =IF(VLOOKUP($A28,Aviation!$A:$O,9,FALSE)<>0,VLOOKUP($A28,Aviation!$A:$O,9,FALSE),"") -> N/A | L28: =IF(VLOOKUP($A28,Aviation!$A:$O,10,FALSE)<>0,VLOOKUP($A28,Aviation!$A:$O,10,FALSE),"") -> N/A | M28: =IF(VLOOKUP($A28,Aviation!$A:$O,11,FALSE)<>0,VLOOKUP($A28,Aviation!$A:$O,11,FALSE),"") -> 26.075 | N28: =IF(VLOOKUP($A28,Aviation!$A:$O,12,FALSE)<>0,VLOOKUP($A28,Aviation!$A:$O,12,FALSE),"") -> C | O28: =IF(VLOOKUP($A28,Aviation!$A:$O,13,FALSE)<>0,VLOOKUP($A28,Aviation!$A:$O,13,FALSE),"") -> 06 | P28: =IF(VLOOKUP($A28,Aviation!$A:$O,14,FALSE)<>0,VLOOKUP($A28,Aviation!$A:$O,14,FALSE),"") -> Cape Fear RPO | Q28: =IF(VLOOKUP($A28,Aviation!$A:$O,15,FALSE)<>0,VLOOKUP($A28,Aviation!$A:$O,15,FALSE),"") -> Columbus | W28: Yes
A29: A130106 | B29: Aviation | C29: =IF(VLOOKUP($A29,Aviation!$A:$O,2,FALSE)<>0,VLOOKUP($A29,Aviation!$A:$O,2,FALSE),"") ->  | D29: =IF(VLOOKUP($A29,Aviation!$A:$O,3,FALSE)<>0,VLOOKUP($A29,Aviation!$A:$O,3,FALSE),"") -> Division Needs | E29: =IF(VLOOKUP($A29,Aviation!$A:$O,4,FALSE)<>0,VLOOKUP($A29,Aviation!$A:$O,4,FALSE),"") -> CPC - Columbus County | H29: =IF(VLOOKUP($A29,Aviation!$A:$O,6,FALSE)<>0,VLOOKUP($A29,Aviation!$A:$O,6,FALSE),"") -> Construction of one new hangar (1-8 Unit T-Hangars) located on the west side of the terminal area. The airport utilized the FY 08 Rural Airport Grant and Vision 100 Funds received to construct the hangar taxilane to this new hangar. (includes Project Request Numbers: 2383) | I29: =IF(VLOOKUP($A29,Aviation!$A:$O,7,FALSE)<>0,VLOOKUP($A29,Aviation!$A:$O,7,FALSE),"") -> 1900 - Hangars | J29: =IF(VLOOKUP($A29,Aviation!$A:$O,8,FALSE)<>0,VLOOKUP($A29,Aviation!$A:$O,8,FALSE),"") -> 455706 | K29: =IF(VLOOKUP($A29,Aviation!$A:$O,9,FALSE)<>0,VLOOKUP($A29,Aviation!$A:$O,9,FALSE),"") -> N/A | L29: =IF(VLOOKUP($A29,Aviation!$A:$O,10,FALSE)<>0,VLOOKUP($A29,Aviation!$A:$O,10,FALSE),"") -> N/A | M29: =IF(VLOOKUP($A29,Aviation!$A:$O,11,FALSE)<>0,VLOOKUP($A29,Aviation!$A:$O,11,FALSE),"") -> 23.6605 | N29: =IF(VLOOKUP($A29,Aviation!$A:$O,12,FALSE)<>0,VLOOKUP($A29,Aviation!$A:$O,12,FALSE),"") -> C | O29: =IF(VLOOKUP($A29,Aviation!$A:$O,13,FALSE)<>0,VLOOKUP($A29,Aviation!$A:$O,13,FALSE),"") -> 06 | P29: =IF(VLOOKUP($A29,Aviation!$A:$O,14,FALSE)<>0,VLOOKUP($A29,Aviation!$A:$O,14,FALSE),"") -> Cape Fear RPO | Q29: =IF(VLOOKUP($A29,Aviation!$A:$O,15,FALSE)<>0,VLOOKUP($A29,Aviation!$A:$O,15,FALSE),"") -> Columbus | W29: Yes
A30: A130107 | B30: Aviation | C30: =IF(VLOOKUP($A30,Aviation!$A:$O,2,FALSE)<>0,VLOOKUP($A30,Aviation!$A:$O,2,FALSE),"") ->  | D30: =IF(VLOOKUP($A30,Aviation!$A:$O,3,FALSE)<>0,VLOOKUP($A30,Aviation!$A:$O,3,FALSE),"") -> Division Needs | E30: =IF(VLOOKUP($A30,Aviation!$A:$O,4,FALSE)<>0,VLOOKUP($A30,Aviation!$A:$O,4,FALSE),"") -> CPC - Columbus County | H30: =IF(VLOOKUP($A30,Aviation!$A:$O,6,FALSE)<>0,VLOOKUP($A30,Aviation!$A:$O,6,FALSE),"") -> Removal of Existing 40'x90' Forest Service Hangar and construction of a new 40'x90' Hangar. This will allow for expansion of the aircraft parking apron in order to provide adequate room for aircraft to maneuver in the terminal area and meet the minimum number of parking positions. (includes Project Request Numbers: 2384) | I30: =IF(VLOOKUP($A30,Aviation!$A:$O,7,FALSE)<>0,VLOOKUP($A30,Aviation!$A:$O,7,FALSE),"") -> 1900 - Hangars | J30: =IF(VLOOKUP($A30,Aviation!$A:$O,8,FALSE)<>0,VLOOKUP($A30,Aviation!$A:$O,8,FALSE),"") -> 183789 | K30: =IF(VLOOKUP($A30,Aviation!$A:$O,9,FALSE)<>0,VLOOKUP($A30,Aviation!$A:$O,9,FALSE),"") -> N/A | L30: =IF(VLOOKUP($A30,Aviation!$A:$O,10,FALSE)<>0,VLOOKUP($A30,Aviation!$A:$O,10,FALSE),"") -> N/A | M30: =IF(VLOOKUP($A30,Aviation!$A:$O,11,FALSE)<>0,VLOOKUP($A30,Aviation!$A:$O,11,FALSE),"") -> 25.1375 | N30: =IF(VLOOKUP($A30,Aviation!$A:$O,12,FALSE)<>0,VLOOKUP($A30,Aviation!$A:$O,12,FALSE),"") -> C | O30: =IF(VLOOKUP($A30,Aviation!$A:$O,13,FALSE)<>0,VLOOKUP($A30,Aviation!$A:$O,13,FALSE),"") -> 06 | P30: =IF(VLOOKUP($A30,Aviation!$A:$O,14,FALSE)<>0,VLOOKUP($A30,Aviation!$A:$O,14,FALSE),"") -> Cape Fear RPO | Q30: =IF(VLOOKUP($A30,Aviation!$A:$O,15,FALSE)<>0,VLOOKUP($A30,Aviation!$A:$O,15,FALSE),"") -> Columbus | W30: Yes
A31: A130110 | B31: Aviation | C31: =IF(VLOOKUP($A31,Aviation!$A:$O,2,FALSE)<>0,VLOOKUP($A31,Aviation!$A:$O,2,FALSE),"") ->  | D31: =IF(VLOOKUP($A31,Aviation!$A:$O,3,FALSE)<>0,VLOOKUP($A31,Aviation!$A:$O,3,FALSE),"") -> Division Needs | E31: =IF(VLOOKUP($A31,Aviation!$A:$O,4,FALSE)<>0,VLOOKUP($A31,Aviation!$A:$O,4,FALSE),"") -> CPC - Columbus County | H31: =IF(VLOOKUP($A31,Aviation!$A:$O,6,FALSE)<>0,VLOOKUP($A31,Aviation!$A:$O,6,FALSE),"") -> Widening runway to 100' and overlay pavement to provide 60,000 lb. dual wheel strength. Project will allow CPC to better and more safely serve corporate jets already landing at the Airport. (Project Request # 3043/2386) | I31: =IF(VLOOKUP($A31,Aviation!$A:$O,7,FALSE)<>0,VLOOKUP($A31,Aviation!$A:$O,7,FALSE),"") -> 0540 - Runway Widening | J31: =IF(VLOOKUP($A31,Aviation!$A:$O,8,FALSE)<>0,VLOOKUP($A31,Aviation!$A:$O,8,FALSE),"") -> 2045250 | K31: =IF(VLOOKUP($A31,Aviation!$A:$O,9,FALSE)<>0,VLOOKUP($A31,Aviation!$A:$O,9,FALSE),"") -> N/A | L31: =IF(VLOOKUP($A31,Aviation!$A:$O,10,FALSE)<>0,VLOOKUP($A31,Aviation!$A:$O,10,FALSE),"") -> N/A | M31: =IF(VLOOKUP($A31,Aviation!$A:$O,11,FALSE)<>0,VLOOKUP($A31,Aviation!$A:$O,11,FALSE),"") -> 38.177 | N31: =IF(VLOOKUP($A31,Aviation!$A:$O,12,FALSE)<>0,VLOOKUP($A31,Aviation!$A:$O,12,FALSE),"") -> C | O31: =IF(VLOOKUP($A31,Aviation!$A:$O,13,FALSE)<>0,VLOOKUP($A31,Aviation!$A:$O,13,FALSE),"") -> 06 | P31: =IF(VLOOKUP($A31,Aviation!$A:$O,14,FALSE)<>0,VLOOKUP($A31,Aviation!$A:$O,14,FALSE),"") -> Cape Fear RPO | Q31: =IF(VLOOKUP($A31,Aviation!$A:$O,15,FALSE)<>0,VLOOKUP($A31,Aviation!$A:$O,15,FALSE),"") -> Columbus | W31: Yes
A32: A130113 | B32: Aviation | C32: =IF(VLOOKUP($A32,Aviation!$A:$O,2,FALSE)<>0,VLOOKUP($A32,Aviation!$A:$O,2,FALSE),"") ->  | D32: =IF(VLOOKUP($A32,Aviation!$A:$O,3,FALSE)<>0,VLOOKUP($A32,Aviation!$A:$O,3,FALSE),"") -> Division Needs | E32: =IF(VLOOKUP($A32,Aviation!$A:$O,4,FALSE)<>0,VLOOKUP($A32,Aviation!$A:$O,4,FALSE),"") -> LHZ - Triangle North Executive | H32: =IF(VLOOKUP($A32,Aviation!$A:$O,6,FALSE)<>0,VLOOKUP($A32,Aviation!$A:$O,6,FALSE),"") -> Development of new industrial site, in phases, including site preparation for industrial hangar sites and construction of pavement for aprons, connector taxiway, access road, and parking. (includes Project Request Numbers: 2799 ) | I32: =IF(VLOOKUP($A32,Aviation!$A:$O,7,FALSE)<>0,VLOOKUP($A32,Aviation!$A:$O,7,FALSE),"") -> 1900 - Hangars | J32: =IF(VLOOKUP($A32,Aviation!$A:$O,8,FALSE)<>0,VLOOKUP($A32,Aviation!$A:$O,8,FALSE),"") -> 5490000 | K32: =IF(VLOOKUP($A32,Aviation!$A:$O,9,FALSE)<>0,VLOOKUP($A32,Aviation!$A:$O,9,FALSE),"") -> N/A | L32: =IF(VLOOKUP($A32,Aviation!$A:$O,10,FALSE)<>0,VLOOKUP($A32,Aviation!$A:$O,10,FALSE),"") -> N/A | M32: =IF(VLOOKUP($A32,Aviation!$A:$O,11,FALSE)<>0,VLOOKUP($A32,Aviation!$A:$O,11,FALSE),"") -> 18.3195 | N32: =IF(VLOOKUP($A32,Aviation!$A:$O,12,FALSE)<>0,VLOOKUP($A32,Aviation!$A:$O,12,FALSE),"") -> C | O32: =IF(VLOOKUP($A32,Aviation!$A:$O,13,FALSE)<>0,VLOOKUP($A32,Aviation!$A:$O,13,FALSE),"") -> 05 | P32: =IF(VLOOKUP($A32,Aviation!$A:$O,14,FALSE)<>0,VLOOKUP($A32,Aviation!$A:$O,14,FALSE),"") -> Capital Area MPO | Q32: =IF(VLOOKUP($A32,Aviation!$A:$O,15,FALSE)<>0,VLOOKUP($A32,Aviation!$A:$O,15,FALSE),"") -> Franklin | W32: Yes
A33: A130115 | B33: Aviation | C33: =IF(VLOOKUP($A33,Aviation!$A:$O,2,FALSE)<>0,VLOOKUP($A33,Aviation!$A:$O,2,FALSE),"") ->  | D33: =IF(VLOOKUP($A33,Aviation!$A:$O,3,FALSE)<>0,VLOOKUP($A33,Aviation!$A:$O,3,FALSE),"") -> Division Needs | E33: =IF(VLOOKUP($A33,Aviation!$A:$O,4,FALSE)<>0,VLOOKUP($A33,Aviation!$A:$O,4,FALSE),"") -> LHZ - Triangle North Executive | H33: =IF(VLOOKUP($A33,Aviation!$A:$O,6,FALSE)<>0,VLOOKUP($A33,Aviation!$A:$O,6,FALSE),"") -> Includes the following: 1. Environmental Assessment 2. Land Acquisition 3. Sam Horton Road (SR 1704) Relocation 4. Site Preparation- Phase I 5. Site Preparation - Phase II 6. Paving and Lighting 7. Install HIRL 8. NAVAID Relocation 9. Airport Entrance Road Relocation - Preliminary Design & Environmental Overview 10. Airport Entrance Road Relocation - Land Acquisition 11.AirportEntrance Road Relocation 12. Powerline Relocation (includes Project Request Numbers: 3219 ) | I33: =IF(VLOOKUP($A33,Aviation!$A:$O,7,FALSE)<>0,VLOOKUP($A33,Aviation!$A:$O,7,FALSE),"") -> 0500 - Runway Length/Width | J33: =IF(VLOOKUP($A33,Aviation!$A:$O,8,FALSE)<>0,VLOOKUP($A33,Aviation!$A:$O,8,FALSE),"") -> 10980000 | K33: =IF(VLOOKUP($A33,Aviation!$A:$O,9,FALSE)<>0,VLOOKUP($A33,Aviation!$A:$O,9,FALSE),"") -> N/A | L33: =IF(VLOOKUP($A33,Aviation!$A:$O,10,FALSE)<>0,VLOOKUP($A33,Aviation!$A:$O,10,FALSE),"") -> N/A | M33: =IF(VLOOKUP($A33,Aviation!$A:$O,11,FALSE)<>0,VLOOKUP($A33,Aviation!$A:$O,11,FALSE),"") -> 39.6265 | N33: =IF(VLOOKUP($A33,Aviation!$A:$O,12,FALSE)<>0,VLOOKUP($A33,Aviation!$A:$O,12,FALSE),"") -> C | O33: =IF(VLOOKUP($A33,Aviation!$A:$O,13,FALSE)<>0,VLOOKUP($A33,Aviation!$A:$O,13,FALSE),"") -> 05 | P33: =IF(VLOOKUP($A33,Aviation!$A:$O,14,FALSE)<>0,VLOOKUP($A33,Aviation!$A:$O,14,FALSE),"") -> Capital Area MPO | Q33: =IF(VLOOKUP($A33,Aviation!$A:$O,15,FALSE)<>0,VLOOKUP($A33,Aviation!$A:$O,15,FALSE),"") -> Franklin | W33: Yes
A34: A130118 | B34: Aviation | C34: =IF(VLOOKUP($A34,Aviation!$A:$O,2,FALSE)<>0,VLOOKUP($A34,Aviation!$A:$O,2,FALSE),"") ->  | D34: =IF(VLOOKUP($A34,Aviation!$A:$O,3,FALSE)<>0,VLOOKUP($A34,Aviation!$A:$O,3,FALSE),"") -> Division Needs | E34: =IF(VLOOKUP($A34,Aviation!$A:$O,4,FALSE)<>0,VLOOKUP($A34,Aviation!$A:$O,4,FALSE),"") -> EQY - Charlotte-Monroe Executive | H34: =IF(VLOOKUP($A34,Aviation!$A:$O,6,FALSE)<>0,VLOOKUP($A34,Aviation!$A:$O,6,FALSE),"") -> Relocate and widen the existing parallel taxiway section between the existing ramp and the Runway 5 taxiway extension. (includes Project Request Numbers: 2814 ) | I34: =IF(VLOOKUP($A34,Aviation!$A:$O,7,FALSE)<>0,VLOOKUP($A34,Aviation!$A:$O,7,FALSE),"") -> 1100 - Taxiway Requirements | J34: =IF(VLOOKUP($A34,Aviation!$A:$O,8,FALSE)<>0,VLOOKUP($A34,Aviation!$A:$O,8,FALSE),"") -> 1191600 | K34: =IF(VLOOKUP($A34,Aviation!$A:$O,9,FALSE)<>0,VLOOKUP($A34,Aviation!$A:$O,9,FALSE),"") -> N/A | L34: =IF(VLOOKUP($A34,Aviation!$A:$O,10,FALSE)<>0,VLOOKUP($A34,Aviation!$A:$O,10,FALSE),"") -> N/A | M34: =IF(VLOOKUP($A34,Aviation!$A:$O,11,FALSE)<>0,VLOOKUP($A34,Aviation!$A:$O,11,FALSE),"") -> 41.8425 | N34: =IF(VLOOKUP($A34,Aviation!$A:$O,12,FALSE)<>0,VLOOKUP($A34,Aviation!$A:$O,12,FALSE),"") -> E | O34: =IF(VLOOKUP($A34,Aviation!$A:$O,13,FALSE)<>0,VLOOKUP($A34,Aviation!$A:$O,13,FALSE),"") -> 10 | P34: =IF(VLOOKUP($A34,Aviation!$A:$O,14,FALSE)<>0,VLOOKUP($A34,Aviation!$A:$O,14,FALSE),"") -> Charlotte Regional Transportation Planning Organization | Q34: =IF(VLOOKUP($A34,Aviation!$A:$O,15,FALSE)<>0,VLOOKUP($A34,Aviation!$A:$O,15,FALSE),"") -> Union | W34: Yes
A35: A130119 | B35: Aviation | C35: =IF(VLOOKUP($A35,Aviation!$A:$O,2,FALSE)<>0,VLOOKUP($A35,Aviation!$A:$O,2,FALSE),"") ->  | D35: =IF(VLOOKUP($A35,Aviation!$A:$O,3,FALSE)<>0,VLOOKUP($A35,Aviation!$A:$O,3,FALSE),"") -> Division Needs | E35: =IF(VLOOKUP($A35,Aviation!$A:$O,4,FALSE)<>0,VLOOKUP($A35,Aviation!$A:$O,4,FALSE),"") -> EQY - Charlotte-Monroe Executive | H35: =IF(VLOOKUP($A35,Aviation!$A:$O,6,FALSE)<>0,VLOOKUP($A35,Aviation!$A:$O,6,FALSE),"") -> Construct a partial parallel taxiway on the east side of Runway 5-23 to allow for future development. (includes Project Request Numbers: 3183 ) | I35: =IF(VLOOKUP($A35,Aviation!$A:$O,7,FALSE)<>0,VLOOKUP($A35,Aviation!$A:$O,7,FALSE),"") -> 1100 - Taxiway Requirements | J35: =IF(VLOOKUP($A35,Aviation!$A:$O,8,FALSE)<>0,VLOOKUP($A35,Aviation!$A:$O,8,FALSE),"") -> 2908800 | K35: =IF(VLOOKUP($A35,Aviation!$A:$O,9,FALSE)<>0,VLOOKUP($A35,Aviation!$A:$O,9,FALSE),"") -> N/A | L35: =IF(VLOOKUP($A35,Aviation!$A:$O,10,FALSE)<>0,VLOOKUP($A35,Aviation!$A:$O,10,FALSE),"") -> N/A | M35: =IF(VLOOKUP($A35,Aviation!$A:$O,11,FALSE)<>0,VLOOKUP($A35,Aviation!$A:$O,11,FALSE),"") -> 38.3195 | N35: =IF(VLOOKUP($A35,Aviation!$A:$O,12,FALSE)<>0,VLOOKUP($A35,Aviation!$A:$O,12,FALSE),"") -> E | O35: =IF(VLOOKUP($A35,Aviation!$A:$O,13,FALSE)<>0,VLOOKUP($A35,Aviation!$A:$O,13,FALSE),"") -> 10 | P35: =IF(VLOOKUP($A35,Aviation!$A:$O,14,FALSE)<>0,VLOOKUP($A35,Aviation!$A:$O,14,FALSE),"") -> Charlotte Regional Transportation Planning Organization | Q35: =IF(VLOOKUP($A35,Aviation!$A:$O,15,FALSE)<>0,VLOOKUP($A35,Aviation!$A:$O,15,FALSE),"") -> Union | W35: Yes
A36: A130121 | B36: Aviation | C36: =IF(VLOOKUP($A36,Aviation!$A:$O,2,FALSE)<>0,VLOOKUP($A36,Aviation!$A:$O,2,FALSE),"") ->  | D36: =IF(VLOOKUP($A36,Aviation!$A:$O,3,FALSE)<>0,VLOOKUP($A36,Aviation!$A:$O,3,FALSE),"") -> Division Needs | E36: =IF(VLOOKUP($A36,Aviation!$A:$O,4,FALSE)<>0,VLOOKUP($A36,Aviation!$A:$O,4,FALSE),"") -> EQY - Charlotte-Monroe Executive | H36: =IF(VLOOKUP($A36,Aviation!$A:$O,6,FALSE)<>0,VLOOKUP($A36,Aviation!$A:$O,6,FALSE),"") -> Construct an apron, taxiway and access road for future corporate development off the north corner of the parallel taxiway. (includes Project Request Numbers: 2830 ) | I36: =IF(VLOOKUP($A36,Aviation!$A:$O,7,FALSE)<>0,VLOOKUP($A36,Aviation!$A:$O,7,FALSE),"") -> 1240 - Corporate and T-hangar Taxiway: Construction | J36: =IF(VLOOKUP($A36,Aviation!$A:$O,8,FALSE)<>0,VLOOKUP($A36,Aviation!$A:$O,8,FALSE),"") -> 3227940 | K36: =IF(VLOOKUP($A36,Aviation!$A:$O,9,FALSE)<>0,VLOOKUP($A36,Aviation!$A:$O,9,FALSE),"") -> N/A | L36: =IF(VLOOKUP($A36,Aviation!$A:$O,10,FALSE)<>0,VLOOKUP($A36,Aviation!$A:$O,10,FALSE),"") -> N/A | M36: =IF(VLOOKUP($A36,Aviation!$A:$O,11,FALSE)<>0,VLOOKUP($A36,Aviation!$A:$O,11,FALSE),"") -> 31.5015 | N36: =IF(VLOOKUP($A36,Aviation!$A:$O,12,FALSE)<>0,VLOOKUP($A36,Aviation!$A:$O,12,FALSE),"") -> E | O36: =IF(VLOOKUP($A36,Aviation!$A:$O,13,FALSE)<>0,VLOOKUP($A36,Aviation!$A:$O,13,FALSE),"") -> 10 | P36: =IF(VLOOKUP($A36,Aviation!$A:$O,14,FALSE)<>0,VLOOKUP($A36,Aviation!$A:$O,14,FALSE),"") -> Charlotte Regional Transportation Planning Organization | Q36: =IF(VLOOKUP($A36,Aviation!$A:$O,15,FALSE)<>0,VLOOKUP($A36,Aviation!$A:$O,15,FALSE),"") -> Union | W36: Yes
A37: A130122 | B37: Aviation | C37: =IF(VLOOKUP($A37,Aviation!$A:$O,2,FALSE)<>0,VLOOKUP($A37,Aviation!$A:$O,2,FALSE),"") ->  | D37: =IF(VLOOKUP($A37,Aviation!$A:$O,3,FALSE)<>0,VLOOKUP($A37,Aviation!$A:$O,3,FALSE),"") -> Division Needs | E37: =IF(VLOOKUP($A37,Aviation!$A:$O,4,FALSE)<>0,VLOOKUP($A37,Aviation!$A:$O,4,FALSE),"") -> EQY - Charlotte-Monroe Executive | H37: =IF(VLOOKUP($A37,Aviation!$A:$O,6,FALSE)<>0,VLOOKUP($A37,Aviation!$A:$O,6,FALSE),"") -> Construct a taxilane and apron for additional corporate hangar development (includes Project Request Numbers: 3178 ) | I37: =IF(VLOOKUP($A37,Aviation!$A:$O,7,FALSE)<>0,VLOOKUP($A37,Aviation!$A:$O,7,FALSE),"") -> 1240 - Corporate and T-hangar Taxiway: Construction | J37: =IF(VLOOKUP($A37,Aviation!$A:$O,8,FALSE)<>0,VLOOKUP($A37,Aviation!$A:$O,8,FALSE),"") -> 369360 | K37: =IF(VLOOKUP($A37,Aviation!$A:$O,9,FALSE)<>0,VLOOKUP($A37,Aviation!$A:$O,9,FALSE),"") -> N/A | L37: =IF(VLOOKUP($A37,Aviation!$A:$O,10,FALSE)<>0,VLOOKUP($A37,Aviation!$A:$O,10,FALSE),"") -> N/A | M37: =IF(VLOOKUP($A37,Aviation!$A:$O,11,FALSE)<>0,VLOOKUP($A37,Aviation!$A:$O,11,FALSE),"") -> 38.0355 | N37: =IF(VLOOKUP($A37,Aviation!$A:$O,12,FALSE)<>0,VLOOKUP($A37,Aviation!$A:$O,12,FALSE),"") -> E | O37: =IF(VLOOKUP($A37,Aviation!$A:$O,13,FALSE)<>0,VLOOKUP($A37,Aviation!$A:$O,13,FALSE),"") -> 10 | P37: =IF(VLOOKUP($A37,Aviation!$A:$O,14,FALSE)<>0,VLOOKUP($A37,Aviation!$A:$O,14,FALSE),"") -> Charlotte Regional Transportation Planning Organization | Q37: =IF(VLOOKUP($A37,Aviation!$A:$O,15,FALSE)<>0,VLOOKUP($A37,Aviation!$A:$O,15,FALSE),"") -> Union | W37: Yes
A38: A130123 | B38: Aviation | C38: =IF(VLOOKUP($A38,Aviation!$A:$O,2,FALSE)<>0,VLOOKUP($A38,Aviation!$A:$O,2,FALSE),"") ->  | D38: =IF(VLOOKUP($A38,Aviation!$A:$O,3,FALSE)<>0,VLOOKUP($A38,Aviation!$A:$O,3,FALSE),"") -> Division Needs | E38: =IF(VLOOKUP($A38,Aviation!$A:$O,4,FALSE)<>0,VLOOKUP($A38,Aviation!$A:$O,4,FALSE),"") -> EQY - Charlotte-Monroe Executive | H38: =IF(VLOOKUP($A38,Aviation!$A:$O,6,FALSE)<>0,VLOOKUP($A38,Aviation!$A:$O,6,FALSE),"") -> Construct a taxilane and apron for additional corporate hangar development (includes Project Request Numbers: 3181 ) | I38: =IF(VLOOKUP($A38,Aviation!$A:$O,7,FALSE)<>0,VLOOKUP($A38,Aviation!$A:$O,7,FALSE),"") -> 1240 - Corporate and T-hangar Taxiway: Construction | J38: =IF(VLOOKUP($A38,Aviation!$A:$O,8,FALSE)<>0,VLOOKUP($A38,Aviation!$A:$O,8,FALSE),"") -> 1261350 | K38: =IF(VLOOKUP($A38,Aviation!$A:$O,9,FALSE)<>0,VLOOKUP($A38,Aviation!$A:$O,9,FALSE),"") -> N/A | L38: =IF(VLOOKUP($A38,Aviation!$A:$O,10,FALSE)<>0,VLOOKUP($A38,Aviation!$A:$O,10,FALSE),"") -> N/A | M38: =IF(VLOOKUP($A38,Aviation!$A:$O,11,FALSE)<>0,VLOOKUP($A38,Aviation!$A:$O,11,FALSE),"") -> 35.4785 | N38: =IF(VLOOKUP($A38,Aviation!$A:$O,12,FALSE)<>0,VLOOKUP($A38,Aviation!$A:$O,12,FALSE),"") -> E | O38: =IF(VLOOKUP($A38,Aviation!$A:$O,13,FALSE)<>0,VLOOKUP($A38,Aviation!$A:$O,13,FALSE),"") -> 10 | P38: =IF(VLOOKUP($A38,Aviation!$A:$O,14,FALSE)<>0,VLOOKUP($A38,Aviation!$A:$O,14,FALSE),"") -> Charlotte Regional Transportation Planning Organization | Q38: =IF(VLOOKUP($A38,Aviation!$A:$O,15,FALSE)<>0,VLOOKUP($A38,Aviation!$A:$O,15,FALSE),"") -> Union | W38: Yes
A39: A130124 | B39: Aviation | C39: =IF(VLOOKUP($A39,Aviation!$A:$O,2,FALSE)<>0,VLOOKUP($A39,Aviation!$A:$O,2,FALSE),"") ->  | D39: =IF(VLOOKUP($A39,Aviation!$A:$O,3,FALSE)<>0,VLOOKUP($A39,Aviation!$A:$O,3,FALSE),"") -> Division Needs | E39: =IF(VLOOKUP($A39,Aviation!$A:$O,4,FALSE)<>0,VLOOKUP($A39,Aviation!$A:$O,4,FALSE),"") -> EQY - Charlotte-Monroe Executive | H39: =IF(VLOOKUP($A39,Aviation!$A:$O,6,FALSE)<>0,VLOOKUP($A39,Aviation!$A:$O,6,FALSE),"") -> Construct a taxilane and apron for additional corporate hangar development. (includes Project Request Numbers: 3182 ) | I39: =IF(VLOOKUP($A39,Aviation!$A:$O,7,FALSE)<>0,VLOOKUP($A39,Aviation!$A:$O,7,FALSE),"") -> 1240 - Corporate and T-hangar Taxiway: Construction | J39: =IF(VLOOKUP($A39,Aviation!$A:$O,8,FALSE)<>0,VLOOKUP($A39,Aviation!$A:$O,8,FALSE),"") -> 1907190 | K39: =IF(VLOOKUP($A39,Aviation!$A:$O,9,FALSE)<>0,VLOOKUP($A39,Aviation!$A:$O,9,FALSE),"") -> N/A | L39: =IF(VLOOKUP($A39,Aviation!$A:$O,10,FALSE)<>0,VLOOKUP($A39,Aviation!$A:$O,10,FALSE),"") -> N/A | M39: =IF(VLOOKUP($A39,Aviation!$A:$O,11,FALSE)<>0,VLOOKUP($A39,Aviation!$A:$O,11,FALSE),"") -> 33.6035 | N39: =IF(VLOOKUP($A39,Aviation!$A:$O,12,FALSE)<>0,VLOOKUP($A39,Aviation!$A:$O,12,FALSE),"") -> E | O39: =IF(VLOOKUP($A39,Aviation!$A:$O,13,FALSE)<>0,VLOOKUP($A39,Aviation!$A:$O,13,FALSE),"") -> 10 | P39: =IF(VLOOKUP($A39,Aviation!$A:$O,14,FALSE)<>0,VLOOKUP($A39,Aviation!$A:$O,14,FALSE),"") -> Charlotte Regional Transportation Planning Organization | Q39: =IF(VLOOKUP($A39,Aviation!$A:$O,15,FALSE)<>0,VLOOKUP($A39,Aviation!$A:$O,15,FALSE),"") -> Union | W39: Yes
A40: A130126 | B40: Aviation | C40: =IF(VLOOKUP($A40,Aviation!$A:$O,2,FALSE)<>0,VLOOKUP($A40,Aviation!$A:$O,2,FALSE),"") ->  | D40: =IF(VLOOKUP($A40,Aviation!$A:$O,3,FALSE)<>0,VLOOKUP($A40,Aviation!$A:$O,3,FALSE),"") -> Division Needs | E40: =IF(VLOOKUP($A40,Aviation!$A:$O,4,FALSE)<>0,VLOOKUP($A40,Aviation!$A:$O,4,FALSE),"") -> EQY - Charlotte-Monroe Executive | H40: =IF(VLOOKUP($A40,Aviation!$A:$O,6,FALSE)<>0,VLOOKUP($A40,Aviation!$A:$O,6,FALSE),"") -> A proposed 6,200 square foot expansion to the existing terminal building includes a new conference center, reconfiguration of existing offices and new office space. (includes Project Request Numbers: 2831) | I40: =IF(VLOOKUP($A40,Aviation!$A:$O,7,FALSE)<>0,VLOOKUP($A40,Aviation!$A:$O,7,FALSE),"") -> 1305 - General Aviation Terminal Building: New Construction | J40: =IF(VLOOKUP($A40,Aviation!$A:$O,8,FALSE)<>0,VLOOKUP($A40,Aviation!$A:$O,8,FALSE),"") -> 1710000 | K40: =IF(VLOOKUP($A40,Aviation!$A:$O,9,FALSE)<>0,VLOOKUP($A40,Aviation!$A:$O,9,FALSE),"") -> N/A | L40: =IF(VLOOKUP($A40,Aviation!$A:$O,10,FALSE)<>0,VLOOKUP($A40,Aviation!$A:$O,10,FALSE),"") -> N/A | M40: =IF(VLOOKUP($A40,Aviation!$A:$O,11,FALSE)<>0,VLOOKUP($A40,Aviation!$A:$O,11,FALSE),"") -> 24.939 | N40: =IF(VLOOKUP($A40,Aviation!$A:$O,12,FALSE)<>0,VLOOKUP($A40,Aviation!$A:$O,12,FALSE),"") -> E | O40: =IF(VLOOKUP($A40,Aviation!$A:$O,13,FALSE)<>0,VLOOKUP($A40,Aviation!$A:$O,13,FALSE),"") -> 10 | P40: =IF(VLOOKUP($A40,Aviation!$A:$O,14,FALSE)<>0,VLOOKUP($A40,Aviation!$A:$O,14,FALSE),"") -> Charlotte Regional Transportation Planning Organization | Q40: =IF(VLOOKUP($A40,Aviation!$A:$O,15,FALSE)<>0,VLOOKUP($A40,Aviation!$A:$O,15,FALSE),"") -> Union | W40: Yes
A41: A130127 | B41: Aviation | C41: =IF(VLOOKUP($A41,Aviation!$A:$O,2,FALSE)<>0,VLOOKUP($A41,Aviation!$A:$O,2,FALSE),"") ->  | D41: =IF(VLOOKUP($A41,Aviation!$A:$O,3,FALSE)<>0,VLOOKUP($A41,Aviation!$A:$O,3,FALSE),"") -> Division Needs | E41: =IF(VLOOKUP($A41,Aviation!$A:$O,4,FALSE)<>0,VLOOKUP($A41,Aviation!$A:$O,4,FALSE),"") -> EQY - Charlotte-Monroe Executive | H41: =IF(VLOOKUP($A41,Aviation!$A:$O,6,FALSE)<>0,VLOOKUP($A41,Aviation!$A:$O,6,FALSE),"") -> Land acquisition and a design process is necessary to allow for an expansion to existing parking (includes Project Request Numbers: 2825 ) | I41: =IF(VLOOKUP($A41,Aviation!$A:$O,7,FALSE)<>0,VLOOKUP($A41,Aviation!$A:$O,7,FALSE),"") -> 1325 - General Aviation Terminal Building: Construct non-revenue terminal public parking | J41: =IF(VLOOKUP($A41,Aviation!$A:$O,8,FALSE)<>0,VLOOKUP($A41,Aviation!$A:$O,8,FALSE),"") -> 980410 | K41: =IF(VLOOKUP($A41,Aviation!$A:$O,9,FALSE)<>0,VLOOKUP($A41,Aviation!$A:$O,9,FALSE),"") -> N/A | L41: =IF(VLOOKUP($A41,Aviation!$A:$O,10,FALSE)<>0,VLOOKUP($A41,Aviation!$A:$O,10,FALSE),"") -> N/A | M41: =IF(VLOOKUP($A41,Aviation!$A:$O,11,FALSE)<>0,VLOOKUP($A41,Aviation!$A:$O,11,FALSE),"") -> 20.4225 | N41: =IF(VLOOKUP($A41,Aviation!$A:$O,12,FALSE)<>0,VLOOKUP($A41,Aviation!$A:$O,12,FALSE),"") -> E | O41: =IF(VLOOKUP($A41,Aviation!$A:$O,13,FALSE)<>0,VLOOKUP($A41,Aviation!$A:$O,13,FALSE),"") -> 10 | P41: =IF(VLOOKUP($A41,Aviation!$A:$O,14,FALSE)<>0,VLOOKUP($A41,Aviation!$A:$O,14,FALSE),"") -> Charlotte Regional Transportation Planning Organization | Q41: =IF(VLOOKUP($A41,Aviation!$A:$O,15,FALSE)<>0,VLOOKUP($A41,Aviation!$A:$O,15,FALSE),"") -> Union | W41: Yes
A42: A130131 | B42: Aviation | C42: =IF(VLOOKUP($A42,Aviation!$A:$O,2,FALSE)<>0,VLOOKUP($A42,Aviation!$A:$O,2,FALSE),"") ->  | D42: =IF(VLOOKUP($A42,Aviation!$A:$O,3,FALSE)<>0,VLOOKUP($A42,Aviation!$A:$O,3,FALSE),"") -> Division Needs | E42: =IF(VLOOKUP($A42,Aviation!$A:$O,4,FALSE)<>0,VLOOKUP($A42,Aviation!$A:$O,4,FALSE),"") -> EQY - Charlotte-Monroe Executive | H42: =IF(VLOOKUP($A42,Aviation!$A:$O,6,FALSE)<>0,VLOOKUP($A42,Aviation!$A:$O,6,FALSE),"") -> Land acquisition necessary for future airport expansion. This land totals 16.0 acres at $60,000/acre. (includes Project Request Numbers: 2834 ) | I42: =IF(VLOOKUP($A42,Aviation!$A:$O,7,FALSE)<>0,VLOOKUP($A42,Aviation!$A:$O,7,FALSE),"") -> 1900 - Hangars | J42: =IF(VLOOKUP($A42,Aviation!$A:$O,8,FALSE)<>0,VLOOKUP($A42,Aviation!$A:$O,8,FALSE),"") -> 882000 | K42: =IF(VLOOKUP($A42,Aviation!$A:$O,9,FALSE)<>0,VLOOKUP($A42,Aviation!$A:$O,9,FALSE),"") -> N/A | L42: =IF(VLOOKUP($A42,Aviation!$A:$O,10,FALSE)<>0,VLOOKUP($A42,Aviation!$A:$O,10,FALSE),"") -> N/A | M42: =IF(VLOOKUP($A42,Aviation!$A:$O,11,FALSE)<>0,VLOOKUP($A42,Aviation!$A:$O,11,FALSE),"") -> 24.1715 | N42: =IF(VLOOKUP($A42,Aviation!$A:$O,12,FALSE)<>0,VLOOKUP($A42,Aviation!$A:$O,12,FALSE),"") -> E | O42: =IF(VLOOKUP($A42,Aviation!$A:$O,13,FALSE)<>0,VLOOKUP($A42,Aviation!$A:$O,13,FALSE),"") -> 10 | P42: =IF(VLOOKUP($A42,Aviation!$A:$O,14,FALSE)<>0,VLOOKUP($A42,Aviation!$A:$O,14,FALSE),"") -> Charlotte Regional Transportation Planning Organization | Q42: =IF(VLOOKUP($A42,Aviation!$A:$O,15,FALSE)<>0,VLOOKUP($A42,Aviation!$A:$O,15,FALSE),"") -> Union | W42: Yes
A43: A130132 | B43: Aviation | C43: =IF(VLOOKUP($A43,Aviation!$A:$O,2,FALSE)<>0,VLOOKUP($A43,Aviation!$A:$O,2,FALSE),"") ->  | D43: =IF(VLOOKUP($A43,Aviation!$A:$O,3,FALSE)<>0,VLOOKUP($A43,Aviation!$A:$O,3,FALSE),"") -> Division Needs | E43: =IF(VLOOKUP($A43,Aviation!$A:$O,4,FALSE)<>0,VLOOKUP($A43,Aviation!$A:$O,4,FALSE),"") -> EQY - Charlotte-Monroe Executive | H43: =IF(VLOOKUP($A43,Aviation!$A:$O,6,FALSE)<>0,VLOOKUP($A43,Aviation!$A:$O,6,FALSE),"") -> First and second phase of land acquisition to allow for additional hangar area on west side of airport property. (includes Project Request Numbers: 2828/3180 ) | I43: =IF(VLOOKUP($A43,Aviation!$A:$O,7,FALSE)<>0,VLOOKUP($A43,Aviation!$A:$O,7,FALSE),"") -> 1900 - Hangars | J43: =IF(VLOOKUP($A43,Aviation!$A:$O,8,FALSE)<>0,VLOOKUP($A43,Aviation!$A:$O,8,FALSE),"") -> 759600 | K43: =IF(VLOOKUP($A43,Aviation!$A:$O,9,FALSE)<>0,VLOOKUP($A43,Aviation!$A:$O,9,FALSE),"") -> N/A | L43: =IF(VLOOKUP($A43,Aviation!$A:$O,10,FALSE)<>0,VLOOKUP($A43,Aviation!$A:$O,10,FALSE),"") -> N/A | M43: =IF(VLOOKUP($A43,Aviation!$A:$O,11,FALSE)<>0,VLOOKUP($A43,Aviation!$A:$O,11,FALSE),"") -> 24.9095 | N43: =IF(VLOOKUP($A43,Aviation!$A:$O,12,FALSE)<>0,VLOOKUP($A43,Aviation!$A:$O,12,FALSE),"") -> E | O43: =IF(VLOOKUP($A43,Aviation!$A:$O,13,FALSE)<>0,VLOOKUP($A43,Aviation!$A:$O,13,FALSE),"") -> 10 | P43: =IF(VLOOKUP($A43,Aviation!$A:$O,14,FALSE)<>0,VLOOKUP($A43,Aviation!$A:$O,14,FALSE),"") -> Charlotte Regional Transportation Planning Organization | Q43: =IF(VLOOKUP($A43,Aviation!$A:$O,15,FALSE)<>0,VLOOKUP($A43,Aviation!$A:$O,15,FALSE),"") -> Union | W43: Yes
A44: A130133 | B44: Aviation | C44: =IF(VLOOKUP($A44,Aviation!$A:$O,2,FALSE)<>0,VLOOKUP($A44,Aviation!$A:$O,2,FALSE),"") ->  | D44: =IF(VLOOKUP($A44,Aviation!$A:$O,3,FALSE)<>0,VLOOKUP($A44,Aviation!$A:$O,3,FALSE),"") -> Division Needs | E44: =IF(VLOOKUP($A44,Aviation!$A:$O,4,FALSE)<>0,VLOOKUP($A44,Aviation!$A:$O,4,FALSE),"") -> EQY - Charlotte-Monroe Executive | H44: =IF(VLOOKUP($A44,Aviation!$A:$O,6,FALSE)<>0,VLOOKUP($A44,Aviation!$A:$O,6,FALSE),"") -> Construct new air traffic control tower and construct a new access road to the proposed air traffic control tower. (includes Project Request Numbers: 2832/3179 ) | I44: =IF(VLOOKUP($A44,Aviation!$A:$O,7,FALSE)<>0,VLOOKUP($A44,Aviation!$A:$O,7,FALSE),"") -> 3005 - Other: Not otherwise defined in system plan objectives | J44: =IF(VLOOKUP($A44,Aviation!$A:$O,8,FALSE)<>0,VLOOKUP($A44,Aviation!$A:$O,8,FALSE),"") -> 4311900 | K44: =IF(VLOOKUP($A44,Aviation!$A:$O,9,FALSE)<>0,VLOOKUP($A44,Aviation!$A:$O,9,FALSE),"") -> N/A | L44: =IF(VLOOKUP($A44,Aviation!$A:$O,10,FALSE)<>0,VLOOKUP($A44,Aviation!$A:$O,10,FALSE),"") -> N/A | M44: =IF(VLOOKUP($A44,Aviation!$A:$O,11,FALSE)<>0,VLOOKUP($A44,Aviation!$A:$O,11,FALSE),"") -> 8.4905 | N44: =IF(VLOOKUP($A44,Aviation!$A:$O,12,FALSE)<>0,VLOOKUP($A44,Aviation!$A:$O,12,FALSE),"") -> E | O44: =IF(VLOOKUP($A44,Aviation!$A:$O,13,FALSE)<>0,VLOOKUP($A44,Aviation!$A:$O,13,FALSE),"") -> 10 | P44: =IF(VLOOKUP($A44,Aviation!$A:$O,14,FALSE)<>0,VLOOKUP($A44,Aviation!$A:$O,14,FALSE),"") -> Charlotte Regional Transportation Planning Organization | Q44: =IF(VLOOKUP($A44,Aviation!$A:$O,15,FALSE)<>0,VLOOKUP($A44,Aviation!$A:$O,15,FALSE),"") -> Union | W44: Yes
A45: A130142 | B45: Aviation | C45: =IF(VLOOKUP($A45,Aviation!$A:$O,2,FALSE)<>0,VLOOKUP($A45,Aviation!$A:$O,2,FALSE),"") ->  | D45: =IF(VLOOKUP($A45,Aviation!$A:$O,3,FALSE)<>0,VLOOKUP($A45,Aviation!$A:$O,3,FALSE),"") -> Division Needs | E45: =IF(VLOOKUP($A45,Aviation!$A:$O,4,FALSE)<>0,VLOOKUP($A45,Aviation!$A:$O,4,FALSE),"") -> SVH - Statesville Regional | H45: =IF(VLOOKUP($A45,Aviation!$A:$O,6,FALSE)<>0,VLOOKUP($A45,Aviation!$A:$O,6,FALSE),"") -> Construction of a parallel taxiway to the south of the existing runway that meets current FAA separation standards and increases safety by eliminating active runway crossings for departing aircraft. The taxiway will cause Bethlehem Road to be relocated to the south of the proposed taxiway and is needed to provide access to area residents and businesses. (Includes Project Request Numbers 3382 & 3361) | I45: =IF(VLOOKUP($A45,Aviation!$A:$O,7,FALSE)<>0,VLOOKUP($A45,Aviation!$A:$O,7,FALSE),"") -> 1100 - Taxiway Requirements | J45: =IF(VLOOKUP($A45,Aviation!$A:$O,8,FALSE)<>0,VLOOKUP($A45,Aviation!$A:$O,8,FALSE),"") -> 21091500 | K45: =IF(VLOOKUP($A45,Aviation!$A:$O,9,FALSE)<>0,VLOOKUP($A45,Aviation!$A:$O,9,FALSE),"") -> N/A | L45: =IF(VLOOKUP($A45,Aviation!$A:$O,10,FALSE)<>0,VLOOKUP($A45,Aviation!$A:$O,10,FALSE),"") -> N/A | M45: =IF(VLOOKUP($A45,Aviation!$A:$O,11,FALSE)<>0,VLOOKUP($A45,Aviation!$A:$O,11,FALSE),"") -> 34.9115 | N45: =IF(VLOOKUP($A45,Aviation!$A:$O,12,FALSE)<>0,VLOOKUP($A45,Aviation!$A:$O,12,FALSE),"") -> F | O45: =IF(VLOOKUP($A45,Aviation!$A:$O,13,FALSE)<>0,VLOOKUP($A45,Aviation!$A:$O,13,FALSE),"") -> 12 | P45: =IF(VLOOKUP($A45,Aviation!$A:$O,14,FALSE)<>0,VLOOKUP($A45,Aviation!$A:$O,14,FALSE),"") -> Charlotte Regional Transportation Planning Organization | Q45: =IF(VLOOKUP($A45,Aviation!$A:$O,15,FALSE)<>0,VLOOKUP($A45,Aviation!$A:$O,15,FALSE),"") -> Iredell | W45: Yes
A46: A130144 | B46: Aviation | C46: =IF(VLOOKUP($A46,Aviation!$A:$O,2,FALSE)<>0,VLOOKUP($A46,Aviation!$A:$O,2,FALSE),"") ->  | D46: =IF(VLOOKUP($A46,Aviation!$A:$O,3,FALSE)<>0,VLOOKUP($A46,Aviation!$A:$O,3,FALSE),"") -> Division Needs | E46: =IF(VLOOKUP($A46,Aviation!$A:$O,4,FALSE)<>0,VLOOKUP($A46,Aviation!$A:$O,4,FALSE),"") -> MRH - Michael J. Smith Field | H46: =IF(VLOOKUP($A46,Aviation!$A:$O,6,FALSE)<>0,VLOOKUP($A46,Aviation!$A:$O,6,FALSE),"") -> Expand Apron to accommodate future Aircraft growth and types (8350 SY Expansion) (includes Project Request Numbers: 3022 ) | I46: =IF(VLOOKUP($A46,Aviation!$A:$O,7,FALSE)<>0,VLOOKUP($A46,Aviation!$A:$O,7,FALSE),"") -> 1200 - Aircraft Apron / Helipad Requirements | J46: =IF(VLOOKUP($A46,Aviation!$A:$O,8,FALSE)<>0,VLOOKUP($A46,Aviation!$A:$O,8,FALSE),"") -> 792697.5 | K46: =IF(VLOOKUP($A46,Aviation!$A:$O,9,FALSE)<>0,VLOOKUP($A46,Aviation!$A:$O,9,FALSE),"") -> N/A | L46: =IF(VLOOKUP($A46,Aviation!$A:$O,10,FALSE)<>0,VLOOKUP($A46,Aviation!$A:$O,10,FALSE),"") -> N/A | M46: =IF(VLOOKUP($A46,Aviation!$A:$O,11,FALSE)<>0,VLOOKUP($A46,Aviation!$A:$O,11,FALSE),"") -> 36.643 | N46: =IF(VLOOKUP($A46,Aviation!$A:$O,12,FALSE)<>0,VLOOKUP($A46,Aviation!$A:$O,12,FALSE),"") -> B | O46: =IF(VLOOKUP($A46,Aviation!$A:$O,13,FALSE)<>0,VLOOKUP($A46,Aviation!$A:$O,13,FALSE),"") -> 02 | P46: =IF(VLOOKUP($A46,Aviation!$A:$O,14,FALSE)<>0,VLOOKUP($A46,Aviation!$A:$O,14,FALSE),"") -> Down East RPO | Q46: =IF(VLOOKUP($A46,Aviation!$A:$O,15,FALSE)<>0,VLOOKUP($A46,Aviation!$A:$O,15,FALSE),"") -> Carteret | W46: Yes
A47: A130147 | B47: Aviation | C47: =IF(VLOOKUP($A47,Aviation!$A:$O,2,FALSE)<>0,VLOOKUP($A47,Aviation!$A:$O,2,FALSE),"") ->  | D47: =IF(VLOOKUP($A47,Aviation!$A:$O,3,FALSE)<>0,VLOOKUP($A47,Aviation!$A:$O,3,FALSE),"") -> Division Needs | E47: =IF(VLOOKUP($A47,Aviation!$A:$O,4,FALSE)<>0,VLOOKUP($A47,Aviation!$A:$O,4,FALSE),"") -> MRH - Michael J. Smith Field | H47: =IF(VLOOKUP($A47,Aviation!$A:$O,6,FALSE)<>0,VLOOKUP($A47,Aviation!$A:$O,6,FALSE),"") -> Currently, Hangars are at 100% occupancy. Additional hangars are needed to meet demand. (includes Project Request Numbers: 3023 ) | I47: =IF(VLOOKUP($A47,Aviation!$A:$O,7,FALSE)<>0,VLOOKUP($A47,Aviation!$A:$O,7,FALSE),"") -> 1900 - Hangars | J47: =IF(VLOOKUP($A47,Aviation!$A:$O,8,FALSE)<>0,VLOOKUP($A47,Aviation!$A:$O,8,FALSE),"") -> 1080000 | K47: =IF(VLOOKUP($A47,Aviation!$A:$O,9,FALSE)<>0,VLOOKUP($A47,Aviation!$A:$O,9,FALSE),"") -> N/A | L47: =IF(VLOOKUP($A47,Aviation!$A:$O,10,FALSE)<>0,VLOOKUP($A47,Aviation!$A:$O,10,FALSE),"") -> N/A | M47: =IF(VLOOKUP($A47,Aviation!$A:$O,11,FALSE)<>0,VLOOKUP($A47,Aviation!$A:$O,11,FALSE),"") -> 21.8425 | N47: =IF(VLOOKUP($A47,Aviation!$A:$O,12,FALSE)<>0,VLOOKUP($A47,Aviation!$A:$O,12,FALSE),"") -> B | O47: =IF(VLOOKUP($A47,Aviation!$A:$O,13,FALSE)<>0,VLOOKUP($A47,Aviation!$A:$O,13,FALSE),"") -> 02 | P47: =IF(VLOOKUP($A47,Aviation!$A:$O,14,FALSE)<>0,VLOOKUP($A47,Aviation!$A:$O,14,FALSE),"") -> Down East RPO | Q47: =IF(VLOOKUP($A47,Aviation!$A:$O,15,FALSE)<>0,VLOOKUP($A47,Aviation!$A:$O,15,FALSE),"") -> Carteret | W47: Yes
A48: A130150 | B48: Aviation | C48: =IF(VLOOKUP($A48,Aviation!$A:$O,2,FALSE)<>0,VLOOKUP($A48,Aviation!$A:$O,2,FALSE),"") ->  | D48: =IF(VLOOKUP($A48,Aviation!$A:$O,3,FALSE)<>0,VLOOKUP($A48,Aviation!$A:$O,3,FALSE),"") -> Division Needs | E48: =IF(VLOOKUP($A48,Aviation!$A:$O,4,FALSE)<>0,VLOOKUP($A48,Aviation!$A:$O,4,FALSE),"") -> MRH - Michael J. Smith Field | H48: =IF(VLOOKUP($A48,Aviation!$A:$O,6,FALSE)<>0,VLOOKUP($A48,Aviation!$A:$O,6,FALSE),"") -> Strengthen Runway 8-26 pavement to accommodate 100,000 # DW aircraft (includes Project Request Numbers: 3024 ) | I48: =IF(VLOOKUP($A48,Aviation!$A:$O,7,FALSE)<>0,VLOOKUP($A48,Aviation!$A:$O,7,FALSE),"") -> 0605 - Pavement Strength - Runway | J48: =IF(VLOOKUP($A48,Aviation!$A:$O,8,FALSE)<>0,VLOOKUP($A48,Aviation!$A:$O,8,FALSE),"") -> 2412000 | K48: =IF(VLOOKUP($A48,Aviation!$A:$O,9,FALSE)<>0,VLOOKUP($A48,Aviation!$A:$O,9,FALSE),"") -> N/A | L48: =IF(VLOOKUP($A48,Aviation!$A:$O,10,FALSE)<>0,VLOOKUP($A48,Aviation!$A:$O,10,FALSE),"") -> N/A | M48: =IF(VLOOKUP($A48,Aviation!$A:$O,11,FALSE)<>0,VLOOKUP($A48,Aviation!$A:$O,11,FALSE),"") -> 38.1475 | N48: =IF(VLOOKUP($A48,Aviation!$A:$O,12,FALSE)<>0,VLOOKUP($A48,Aviation!$A:$O,12,FALSE),"") -> B | O48: =IF(VLOOKUP($A48,Aviation!$A:$O,13,FALSE)<>0,VLOOKUP($A48,Aviation!$A:$O,13,FALSE),"") -> 02 | P48: =IF(VLOOKUP($A48,Aviation!$A:$O,14,FALSE)<>0,VLOOKUP($A48,Aviation!$A:$O,14,FALSE),"") -> Down East RPO | Q48: =IF(VLOOKUP($A48,Aviation!$A:$O,15,FALSE)<>0,VLOOKUP($A48,Aviation!$A:$O,15,FALSE),"") -> Carteret | W48: Yes
A49: A130162 | B49: Aviation | C49: =IF(VLOOKUP($A49,Aviation!$A:$O,2,FALSE)<>0,VLOOKUP($A49,Aviation!$A:$O,2,FALSE),"") ->  | D49: =IF(VLOOKUP($A49,Aviation!$A:$O,3,FALSE)<>0,VLOOKUP($A49,Aviation!$A:$O,3,FALSE),"") -> Division Needs | E49: =IF(VLOOKUP($A49,Aviation!$A:$O,4,FALSE)<>0,VLOOKUP($A49,Aviation!$A:$O,4,FALSE),"") -> DPL - Duplin County | H49: =IF(VLOOKUP($A49,Aviation!$A:$O,6,FALSE)<>0,VLOOKUP($A49,Aviation!$A:$O,6,FALSE),"") -> The County purchased land adjacent to the airport entrance roadway with the intent of developing the property into an industrial air park development. This project includes the site infrastructure needed to provide airfield access (apron and taxilane) as well as landside access to 2 of the proposed lots. (includes Project Request Numbers: 3260 ) | I49: =IF(VLOOKUP($A49,Aviation!$A:$O,7,FALSE)<>0,VLOOKUP($A49,Aviation!$A:$O,7,FALSE),"") -> 1200 - Aircraft Apron / Helipad Requirements | J49: =IF(VLOOKUP($A49,Aviation!$A:$O,8,FALSE)<>0,VLOOKUP($A49,Aviation!$A:$O,8,FALSE),"") -> 1152000 | K49: =IF(VLOOKUP($A49,Aviation!$A:$O,9,FALSE)<>0,VLOOKUP($A49,Aviation!$A:$O,9,FALSE),"") -> N/A | L49: =IF(VLOOKUP($A49,Aviation!$A:$O,10,FALSE)<>0,VLOOKUP($A49,Aviation!$A:$O,10,FALSE),"") -> N/A | M49: =IF(VLOOKUP($A49,Aviation!$A:$O,11,FALSE)<>0,VLOOKUP($A49,Aviation!$A:$O,11,FALSE),"") -> 34.086 | N49: =IF(VLOOKUP($A49,Aviation!$A:$O,12,FALSE)<>0,VLOOKUP($A49,Aviation!$A:$O,12,FALSE),"") -> B | O49: =IF(VLOOKUP($A49,Aviation!$A:$O,13,FALSE)<>0,VLOOKUP($A49,Aviation!$A:$O,13,FALSE),"") -> 03 | P49: =IF(VLOOKUP($A49,Aviation!$A:$O,14,FALSE)<>0,VLOOKUP($A49,Aviation!$A:$O,14,FALSE),"") -> East Carolina RPO | Q49: =IF(VLOOKUP($A49,Aviation!$A:$O,15,FALSE)<>0,VLOOKUP($A49,Aviation!$A:$O,15,FALSE),"") -> Duplin | W49: Yes
A50: A130167 | B50: Aviation | C50: =IF(VLOOKUP($A50,Aviation!$A:$O,2,FALSE)<>0,VLOOKUP($A50,Aviation!$A:$O,2,FALSE),"") ->  | D50: =IF(VLOOKUP($A50,Aviation!$A:$O,3,FALSE)<>0,VLOOKUP($A50,Aviation!$A:$O,3,FALSE),"") -> Division Needs | E50: =IF(VLOOKUP($A50,Aviation!$A:$O,4,FALSE)<>0,VLOOKUP($A50,Aviation!$A:$O,4,FALSE),"") -> DPL - Duplin County | H50: =IF(VLOOKUP($A50,Aviation!$A:$O,6,FALSE)<>0,VLOOKUP($A50,Aviation!$A:$O,6,FALSE),"") -> This project will include expansion of the hangar area to provide additional corporate hangars and t-hangars as well as the associated taxilanes. This project request represents the total build-out, the anticipation is that the development will be phased in accordance with demand. Construction of a taxiway connector between Taxiway A and the runway. This connector will be aligned with the access to the t-hanger area (includes Project Request Numbers: 2461 & 3444) | I50: =IF(VLOOKUP($A50,Aviation!$A:$O,7,FALSE)<>0,VLOOKUP($A50,Aviation!$A:$O,7,FALSE),"") -> 1900 - Hangars | J50: =IF(VLOOKUP($A50,Aviation!$A:$O,8,FALSE)<>0,VLOOKUP($A50,Aviation!$A:$O,8,FALSE),"") -> 1258200 | K50: =IF(VLOOKUP($A50,Aviation!$A:$O,9,FALSE)<>0,VLOOKUP($A50,Aviation!$A:$O,9,FALSE),"") -> N/A | L50: =IF(VLOOKUP($A50,Aviation!$A:$O,10,FALSE)<>0,VLOOKUP($A50,Aviation!$A:$O,10,FALSE),"") -> N/A | M50: =IF(VLOOKUP($A50,Aviation!$A:$O,11,FALSE)<>0,VLOOKUP($A50,Aviation!$A:$O,11,FALSE),"") -> 19.9675 | N50: =IF(VLOOKUP($A50,Aviation!$A:$O,12,FALSE)<>0,VLOOKUP($A50,Aviation!$A:$O,12,FALSE),"") -> B | O50: =IF(VLOOKUP($A50,Aviation!$A:$O,13,FALSE)<>0,VLOOKUP($A50,Aviation!$A:$O,13,FALSE),"") -> 03 | P50: =IF(VLOOKUP($A50,Aviation!$A:$O,14,FALSE)<>0,VLOOKUP($A50,Aviation!$A:$O,14,FALSE),"") -> East Carolina RPO | Q50: =IF(VLOOKUP($A50,Aviation!$A:$O,15,FALSE)<>0,VLOOKUP($A50,Aviation!$A:$O,15,FALSE),"") -> Duplin | W50: Yes
A51: A130168 | B51: Aviation | C51: =IF(VLOOKUP($A51,Aviation!$A:$O,2,FALSE)<>0,VLOOKUP($A51,Aviation!$A:$O,2,FALSE),"") ->  | D51: =IF(VLOOKUP($A51,Aviation!$A:$O,3,FALSE)<>0,VLOOKUP($A51,Aviation!$A:$O,3,FALSE),"") -> Division Needs | E51: =IF(VLOOKUP($A51,Aviation!$A:$O,4,FALSE)<>0,VLOOKUP($A51,Aviation!$A:$O,4,FALSE),"") -> DPL - Duplin County | H51: =IF(VLOOKUP($A51,Aviation!$A:$O,6,FALSE)<>0,VLOOKUP($A51,Aviation!$A:$O,6,FALSE),"") -> The airport currently has no available corporate hangar space. This project includes the expansion of the existing apron, a new hangar building, and a parking area that connects to Airport Road. (includes Project Request Numbers: 3261 ) | I51: =IF(VLOOKUP($A51,Aviation!$A:$O,7,FALSE)<>0,VLOOKUP($A51,Aviation!$A:$O,7,FALSE),"") -> 1900 - Hangars | J51: =IF(VLOOKUP($A51,Aviation!$A:$O,8,FALSE)<>0,VLOOKUP($A51,Aviation!$A:$O,8,FALSE),"") -> 1296000 | K51: =IF(VLOOKUP($A51,Aviation!$A:$O,9,FALSE)<>0,VLOOKUP($A51,Aviation!$A:$O,9,FALSE),"") -> N/A | L51: =IF(VLOOKUP($A51,Aviation!$A:$O,10,FALSE)<>0,VLOOKUP($A51,Aviation!$A:$O,10,FALSE),"") -> N/A | M51: =IF(VLOOKUP($A51,Aviation!$A:$O,11,FALSE)<>0,VLOOKUP($A51,Aviation!$A:$O,11,FALSE),"") -> 19.9675 | N51: =IF(VLOOKUP($A51,Aviation!$A:$O,12,FALSE)<>0,VLOOKUP($A51,Aviation!$A:$O,12,FALSE),"") -> B | O51: =IF(VLOOKUP($A51,Aviation!$A:$O,13,FALSE)<>0,VLOOKUP($A51,Aviation!$A:$O,13,FALSE),"") -> 03 | P51: =IF(VLOOKUP($A51,Aviation!$A:$O,14,FALSE)<>0,VLOOKUP($A51,Aviation!$A:$O,14,FALSE),"") -> East Carolina RPO | Q51: =IF(VLOOKUP($A51,Aviation!$A:$O,15,FALSE)<>0,VLOOKUP($A51,Aviation!$A:$O,15,FALSE),"") -> Duplin | W51: Yes
A52: A130169 | B52: Aviation | C52: =IF(VLOOKUP($A52,Aviation!$A:$O,2,FALSE)<>0,VLOOKUP($A52,Aviation!$A:$O,2,FALSE),"") ->  | D52: =IF(VLOOKUP($A52,Aviation!$A:$O,3,FALSE)<>0,VLOOKUP($A52,Aviation!$A:$O,3,FALSE),"") -> Division Needs | E52: =IF(VLOOKUP($A52,Aviation!$A:$O,4,FALSE)<>0,VLOOKUP($A52,Aviation!$A:$O,4,FALSE),"") -> DPL - Duplin County | H52: =IF(VLOOKUP($A52,Aviation!$A:$O,6,FALSE)<>0,VLOOKUP($A52,Aviation!$A:$O,6,FALSE),"") -> This project will expand the size of the existing public parking lot to accommodate anticipated demand resulting from the use of the New Terminal Building. (includes Project Request Numbers: 2457 ) | I52: =IF(VLOOKUP($A52,Aviation!$A:$O,7,FALSE)<>0,VLOOKUP($A52,Aviation!$A:$O,7,FALSE),"") -> 1325 - General Aviation Terminal Building: Construct non-revenue terminal public parking | J52: =IF(VLOOKUP($A52,Aviation!$A:$O,8,FALSE)<>0,VLOOKUP($A52,Aviation!$A:$O,8,FALSE),"") -> 275400 | K52: =IF(VLOOKUP($A52,Aviation!$A:$O,9,FALSE)<>0,VLOOKUP($A52,Aviation!$A:$O,9,FALSE),"") -> N/A | L52: =IF(VLOOKUP($A52,Aviation!$A:$O,10,FALSE)<>0,VLOOKUP($A52,Aviation!$A:$O,10,FALSE),"") -> N/A | M52: =IF(VLOOKUP($A52,Aviation!$A:$O,11,FALSE)<>0,VLOOKUP($A52,Aviation!$A:$O,11,FALSE),"") -> 22.9795 | N52: =IF(VLOOKUP($A52,Aviation!$A:$O,12,FALSE)<>0,VLOOKUP($A52,Aviation!$A:$O,12,FALSE),"") -> B | O52: =IF(VLOOKUP($A52,Aviation!$A:$O,13,FALSE)<>0,VLOOKUP($A52,Aviation!$A:$O,13,FALSE),"") -> 03 | P52: =IF(VLOOKUP($A52,Aviation!$A:$O,14,FALSE)<>0,VLOOKUP($A52,Aviation!$A:$O,14,FALSE),"") -> East Carolina RPO | Q52: =IF(VLOOKUP($A52,Aviation!$A:$O,15,FALSE)<>0,VLOOKUP($A52,Aviation!$A:$O,15,FALSE),"") -> Duplin | W52: Yes
A53: A130175 | B53: Aviation | C53: =IF(VLOOKUP($A53,Aviation!$A:$O,2,FALSE)<>0,VLOOKUP($A53,Aviation!$A:$O,2,FALSE),"") ->  | D53: =IF(VLOOKUP($A53,Aviation!$A:$O,3,FALSE)<>0,VLOOKUP($A53,Aviation!$A:$O,3,FALSE),"") -> Division Needs | E53: =IF(VLOOKUP($A53,Aviation!$A:$O,4,FALSE)<>0,VLOOKUP($A53,Aviation!$A:$O,4,FALSE),"") -> W40 - Mount Olive Municipal | H53: =IF(VLOOKUP($A53,Aviation!$A:$O,6,FALSE)<>0,VLOOKUP($A53,Aviation!$A:$O,6,FALSE),"") -> The project includes the construction of a new terminal building to replace the existing terminal building that is in need of repair and updating. The existing terminal building does not meet the square footage recommendations included in North Carolina General Aviation Development Plan. (includes Project Request Numbers: 3008 ) | I53: =IF(VLOOKUP($A53,Aviation!$A:$O,7,FALSE)<>0,VLOOKUP($A53,Aviation!$A:$O,7,FALSE),"") -> 1305 - General Aviation Terminal Building: New Construction | J53: =IF(VLOOKUP($A53,Aviation!$A:$O,8,FALSE)<>0,VLOOKUP($A53,Aviation!$A:$O,8,FALSE),"") -> 1170000 | K53: =IF(VLOOKUP($A53,Aviation!$A:$O,9,FALSE)<>0,VLOOKUP($A53,Aviation!$A:$O,9,FALSE),"") -> N/A | L53: =IF(VLOOKUP($A53,Aviation!$A:$O,10,FALSE)<>0,VLOOKUP($A53,Aviation!$A:$O,10,FALSE),"") -> N/A | M53: =IF(VLOOKUP($A53,Aviation!$A:$O,11,FALSE)<>0,VLOOKUP($A53,Aviation!$A:$O,11,FALSE),"") -> 27.325 | N53: =IF(VLOOKUP($A53,Aviation!$A:$O,12,FALSE)<>0,VLOOKUP($A53,Aviation!$A:$O,12,FALSE),"") -> A | O53: =IF(VLOOKUP($A53,Aviation!$A:$O,13,FALSE)<>0,VLOOKUP($A53,Aviation!$A:$O,13,FALSE),"") -> 04 | P53: =IF(VLOOKUP($A53,Aviation!$A:$O,14,FALSE)<>0,VLOOKUP($A53,Aviation!$A:$O,14,FALSE),"") -> East Carolina RPO | Q53: =IF(VLOOKUP($A53,Aviation!$A:$O,15,FALSE)<>0,VLOOKUP($A53,Aviation!$A:$O,15,FALSE),"") -> Wayne | W53: Yes
A54: A130178 | B54: Aviation | C54: =IF(VLOOKUP($A54,Aviation!$A:$O,2,FALSE)<>0,VLOOKUP($A54,Aviation!$A:$O,2,FALSE),"") ->  | D54: =IF(VLOOKUP($A54,Aviation!$A:$O,3,FALSE)<>0,VLOOKUP($A54,Aviation!$A:$O,3,FALSE),"") -> Division Needs | E54: =IF(VLOOKUP($A54,Aviation!$A:$O,4,FALSE)<>0,VLOOKUP($A54,Aviation!$A:$O,4,FALSE),"") -> W40 - Mount Olive Municipal | H54: =IF(VLOOKUP($A54,Aviation!$A:$O,6,FALSE)<>0,VLOOKUP($A54,Aviation!$A:$O,6,FALSE),"") -> Project includes design and construction of a new 120' x 120' aircraft maintenance hangar. (includes Project Request Numbers: 3009 ) | I54: =IF(VLOOKUP($A54,Aviation!$A:$O,7,FALSE)<>0,VLOOKUP($A54,Aviation!$A:$O,7,FALSE),"") -> 1900 - Hangars | J54: =IF(VLOOKUP($A54,Aviation!$A:$O,8,FALSE)<>0,VLOOKUP($A54,Aviation!$A:$O,8,FALSE),"") -> 783000 | K54: =IF(VLOOKUP($A54,Aviation!$A:$O,9,FALSE)<>0,VLOOKUP($A54,Aviation!$A:$O,9,FALSE),"") -> N/A | L54: =IF(VLOOKUP($A54,Aviation!$A:$O,10,FALSE)<>0,VLOOKUP($A54,Aviation!$A:$O,10,FALSE),"") -> N/A | M54: =IF(VLOOKUP($A54,Aviation!$A:$O,11,FALSE)<>0,VLOOKUP($A54,Aviation!$A:$O,11,FALSE),"") -> 22.0125 | N54: =IF(VLOOKUP($A54,Aviation!$A:$O,12,FALSE)<>0,VLOOKUP($A54,Aviation!$A:$O,12,FALSE),"") -> A | O54: =IF(VLOOKUP($A54,Aviation!$A:$O,13,FALSE)<>0,VLOOKUP($A54,Aviation!$A:$O,13,FALSE),"") -> 04 | P54: =IF(VLOOKUP($A54,Aviation!$A:$O,14,FALSE)<>0,VLOOKUP($A54,Aviation!$A:$O,14,FALSE),"") -> East Carolina RPO | Q54: =IF(VLOOKUP($A54,Aviation!$A:$O,15,FALSE)<>0,VLOOKUP($A54,Aviation!$A:$O,15,FALSE),"") -> Wayne | W54: Yes
A55: A130179 | B55: Aviation | C55: =IF(VLOOKUP($A55,Aviation!$A:$O,2,FALSE)<>0,VLOOKUP($A55,Aviation!$A:$O,2,FALSE),"") ->  | D55: =IF(VLOOKUP($A55,Aviation!$A:$O,3,FALSE)<>0,VLOOKUP($A55,Aviation!$A:$O,3,FALSE),"") -> Division Needs | E55: =IF(VLOOKUP($A55,Aviation!$A:$O,4,FALSE)<>0,VLOOKUP($A55,Aviation!$A:$O,4,FALSE),"") -> W40 - Mount Olive Municipal | H55: =IF(VLOOKUP($A55,Aviation!$A:$O,6,FALSE)<>0,VLOOKUP($A55,Aviation!$A:$O,6,FALSE),"") -> Project includes design and construction of a 245' extension and displaced threshold to provide the airport with a runway length of 5,500' (includes Project Request Numbers: 3011 ) | I55: =IF(VLOOKUP($A55,Aviation!$A:$O,7,FALSE)<>0,VLOOKUP($A55,Aviation!$A:$O,7,FALSE),"") -> 0500 - Runway Length/Width | J55: =IF(VLOOKUP($A55,Aviation!$A:$O,8,FALSE)<>0,VLOOKUP($A55,Aviation!$A:$O,8,FALSE),"") -> 423000 | K55: =IF(VLOOKUP($A55,Aviation!$A:$O,9,FALSE)<>0,VLOOKUP($A55,Aviation!$A:$O,9,FALSE),"") -> N/A | L55: =IF(VLOOKUP($A55,Aviation!$A:$O,10,FALSE)<>0,VLOOKUP($A55,Aviation!$A:$O,10,FALSE),"") -> N/A | M55: =IF(VLOOKUP($A55,Aviation!$A:$O,11,FALSE)<>0,VLOOKUP($A55,Aviation!$A:$O,11,FALSE),"") -> 46.7855 | N55: =IF(VLOOKUP($A55,Aviation!$A:$O,12,FALSE)<>0,VLOOKUP($A55,Aviation!$A:$O,12,FALSE),"") -> A | O55: =IF(VLOOKUP($A55,Aviation!$A:$O,13,FALSE)<>0,VLOOKUP($A55,Aviation!$A:$O,13,FALSE),"") -> 04 | P55: =IF(VLOOKUP($A55,Aviation!$A:$O,14,FALSE)<>0,VLOOKUP($A55,Aviation!$A:$O,14,FALSE),"") -> East Carolina RPO | Q55: =IF(VLOOKUP($A55,Aviation!$A:$O,15,FALSE)<>0,VLOOKUP($A55,Aviation!$A:$O,15,FALSE),"") -> Wayne | W55: Yes
A56: A130186 | B56: Aviation | C56: =IF(VLOOKUP($A56,Aviation!$A:$O,2,FALSE)<>0,VLOOKUP($A56,Aviation!$A:$O,2,FALSE),"") -> AV-5775 | D56: =IF(VLOOKUP($A56,Aviation!$A:$O,3,FALSE)<>0,VLOOKUP($A56,Aviation!$A:$O,3,FALSE),"") -> Statewide Mobility | E56: =IF(VLOOKUP($A56,Aviation!$A:$O,4,FALSE)<>0,VLOOKUP($A56,Aviation!$A:$O,4,FALSE),"") -> AVL - Asheville Regional | H56: =IF(VLOOKUP($A56,Aviation!$A:$O,6,FALSE)<>0,VLOOKUP($A56,Aviation!$A:$O,6,FALSE),"") -> Design and construction of an extension to Wright Brothers Way Road, which will provide additional public and vehicular access to general aviation areas of the airport. (includes Project Request Numbers: 2781 ) | I56: =IF(VLOOKUP($A56,Aviation!$A:$O,7,FALSE)<>0,VLOOKUP($A56,Aviation!$A:$O,7,FALSE),"") -> 1320 - General Aviation Terminal Building: Construct Terminal Access Road | J56: =IF(VLOOKUP($A56,Aviation!$A:$O,8,FALSE)<>0,VLOOKUP($A56,Aviation!$A:$O,8,FALSE),"") -> 500000 | K56: =IF(VLOOKUP($A56,Aviation!$A:$O,9,FALSE)<>0,VLOOKUP($A56,Aviation!$A:$O,9,FALSE),"") -> 60.733 | L56: =IF(VLOOKUP($A56,Aviation!$A:$O,10,FALSE)<>0,VLOOKUP($A56,Aviation!$A:$O,10,FALSE),"") -> 41.6725 | M56: =IF(VLOOKUP($A56,Aviation!$A:$O,11,FALSE)<>0,VLOOKUP($A56,Aviation!$A:$O,11,FALSE),"") -> 26.08 | N56: =IF(VLOOKUP($A56,Aviation!$A:$O,12,FALSE)<>0,VLOOKUP($A56,Aviation!$A:$O,12,FALSE),"") -> G | O56: =IF(VLOOKUP($A56,Aviation!$A:$O,13,FALSE)<>0,VLOOKUP($A56,Aviation!$A:$O,13,FALSE),"") -> 13 | P56: =IF(VLOOKUP($A56,Aviation!$A:$O,14,FALSE)<>0,VLOOKUP($A56,Aviation!$A:$O,14,FALSE),"") -> French Broad River MPO | Q56: =IF(VLOOKUP($A56,Aviation!$A:$O,15,FALSE)<>0,VLOOKUP($A56,Aviation!$A:$O,15,FALSE),"") -> Buncombe | R56: 0 | W56: Yes
A57: A130190 | B57: Aviation | C57: =IF(VLOOKUP($A57,Aviation!$A:$O,2,FALSE)<>0,VLOOKUP($A57,Aviation!$A:$O,2,FALSE),"") ->  | D57: =IF(VLOOKUP($A57,Aviation!$A:$O,3,FALSE)<>0,VLOOKUP($A57,Aviation!$A:$O,3,FALSE),"") -> Division Needs | E57: =IF(VLOOKUP($A57,Aviation!$A:$O,4,FALSE)<>0,VLOOKUP($A57,Aviation!$A:$O,4,FALSE),"") -> AKH - Gastonia Municipal | H57: =IF(VLOOKUP($A57,Aviation!$A:$O,6,FALSE)<>0,VLOOKUP($A57,Aviation!$A:$O,6,FALSE),"") -> Rehabilitation of existing corporate hangar taxilane. Expansion of hangar area (5 hangars, 2 corporate). (includes Project Request Numbers: 2876/2878 ) | I57: =IF(VLOOKUP($A57,Aviation!$A:$O,7,FALSE)<>0,VLOOKUP($A57,Aviation!$A:$O,7,FALSE),"") -> 1900 - Hangars | J57: =IF(VLOOKUP($A57,Aviation!$A:$O,8,FALSE)<>0,VLOOKUP($A57,Aviation!$A:$O,8,FALSE),"") -> 58500 | K57: =IF(VLOOKUP($A57,Aviation!$A:$O,9,FALSE)<>0,VLOOKUP($A57,Aviation!$A:$O,9,FALSE),"") -> N/A | L57: =IF(VLOOKUP($A57,Aviation!$A:$O,10,FALSE)<>0,VLOOKUP($A57,Aviation!$A:$O,10,FALSE),"") -> N/A | M57: =IF(VLOOKUP($A57,Aviation!$A:$O,11,FALSE)<>0,VLOOKUP($A57,Aviation!$A:$O,11,FALSE),"") -> 27.0125 | N57: =IF(VLOOKUP($A57,Aviation!$A:$O,12,FALSE)<>0,VLOOKUP($A57,Aviation!$A:$O,12,FALSE),"") -> F | O57: =IF(VLOOKUP($A57,Aviation!$A:$O,13,FALSE)<>0,VLOOKUP($A57,Aviation!$A:$O,13,FALSE),"") -> 12 | P57: =IF(VLOOKUP($A57,Aviation!$A:$O,14,FALSE)<>0,VLOOKUP($A57,Aviation!$A:$O,14,FALSE),"") -> Gaston-Cleveland-Lincoln MPO | Q57: =IF(VLOOKUP($A57,Aviation!$A:$O,15,FALSE)<>0,VLOOKUP($A57,Aviation!$A:$O,15,FALSE),"") -> Gaston | W57: Yes
A58: A130192 | B58: Aviation | C58: =IF(VLOOKUP($A58,Aviation!$A:$O,2,FALSE)<>0,VLOOKUP($A58,Aviation!$A:$O,2,FALSE),"") ->  | D58: =IF(VLOOKUP($A58,Aviation!$A:$O,3,FALSE)<>0,VLOOKUP($A58,Aviation!$A:$O,3,FALSE),"") -> Division Needs | E58: =IF(VLOOKUP($A58,Aviation!$A:$O,4,FALSE)<>0,VLOOKUP($A58,Aviation!$A:$O,4,FALSE),"") -> EHO - Shelby-Cleveland County Regional | H58: =IF(VLOOKUP($A58,Aviation!$A:$O,6,FALSE)<>0,VLOOKUP($A58,Aviation!$A:$O,6,FALSE),"") -> This project includes site preparation of a one proposed and one future T-Hangar building and associated taxilanes and paving and construction for one new 10 Unit T-Hangar building. The development will connect to the existing apron area. An existing Federal Vision grant is being used for the design and bidding. (includes Project Request Numbers: 2334 ) | I58: =IF(VLOOKUP($A58,Aviation!$A:$O,7,FALSE)<>0,VLOOKUP($A58,Aviation!$A:$O,7,FALSE),"") -> 1900 - Hangars | J58: =IF(VLOOKUP($A58,Aviation!$A:$O,8,FALSE)<>0,VLOOKUP($A58,Aviation!$A:$O,8,FALSE),"") -> 1656900 | K58: =IF(VLOOKUP($A58,Aviation!$A:$O,9,FALSE)<>0,VLOOKUP($A58,Aviation!$A:$O,9,FALSE),"") -> N/A | L58: =IF(VLOOKUP($A58,Aviation!$A:$O,10,FALSE)<>0,VLOOKUP($A58,Aviation!$A:$O,10,FALSE),"") -> N/A | M58: =IF(VLOOKUP($A58,Aviation!$A:$O,11,FALSE)<>0,VLOOKUP($A58,Aviation!$A:$O,11,FALSE),"") -> 18.9445 | N58: =IF(VLOOKUP($A58,Aviation!$A:$O,12,FALSE)<>0,VLOOKUP($A58,Aviation!$A:$O,12,FALSE),"") -> F | O58: =IF(VLOOKUP($A58,Aviation!$A:$O,13,FALSE)<>0,VLOOKUP($A58,Aviation!$A:$O,13,FALSE),"") -> 12 | P58: =IF(VLOOKUP($A58,Aviation!$A:$O,14,FALSE)<>0,VLOOKUP($A58,Aviation!$A:$O,14,FALSE),"") -> Gaston-Cleveland-Lincoln MPO | Q58: =IF(VLOOKUP($A58,Aviation!$A:$O,15,FALSE)<>0,VLOOKUP($A58,Aviation!$A:$O,15,FALSE),"") -> Cleveland | W58: Yes
A59: A130198 | B59: Aviation | C59: =IF(VLOOKUP($A59,Aviation!$A:$O,2,FALSE)<>0,VLOOKUP($A59,Aviation!$A:$O,2,FALSE),"") ->  | D59: =IF(VLOOKUP($A59,Aviation!$A:$O,3,FALSE)<>0,VLOOKUP($A59,Aviation!$A:$O,3,FALSE),"") -> Division Needs | E59: =IF(VLOOKUP($A59,Aviation!$A:$O,4,FALSE)<>0,VLOOKUP($A59,Aviation!$A:$O,4,FALSE),"") -> EHO - Shelby-Cleveland County Regional | H59: =IF(VLOOKUP($A59,Aviation!$A:$O,6,FALSE)<>0,VLOOKUP($A59,Aviation!$A:$O,6,FALSE),"") -> This project includes the demolition and reconstruction of the airport entrance and portions of highway 150. The improvements will eliminate the existing unsafe skewed intersection replacing it with a 90 degree intersection while maintaining the appropriate sight distances. (includes Project Request Numbers: 2349 ) | I59: =IF(VLOOKUP($A59,Aviation!$A:$O,7,FALSE)<>0,VLOOKUP($A59,Aviation!$A:$O,7,FALSE),"") -> 1320 - General Aviation Terminal Building: Construct Terminal Access Road | J59: =IF(VLOOKUP($A59,Aviation!$A:$O,8,FALSE)<>0,VLOOKUP($A59,Aviation!$A:$O,8,FALSE),"") -> 583200 | K59: =IF(VLOOKUP($A59,Aviation!$A:$O,9,FALSE)<>0,VLOOKUP($A59,Aviation!$A:$O,9,FALSE),"") -> N/A | L59: =IF(VLOOKUP($A59,Aviation!$A:$O,10,FALSE)<>0,VLOOKUP($A59,Aviation!$A:$O,10,FALSE),"") -> N/A | M59: =IF(VLOOKUP($A59,Aviation!$A:$O,11,FALSE)<>0,VLOOKUP($A59,Aviation!$A:$O,11,FALSE),"") -> 22.98 | N59: =IF(VLOOKUP($A59,Aviation!$A:$O,12,FALSE)<>0,VLOOKUP($A59,Aviation!$A:$O,12,FALSE),"") -> F | O59: =IF(VLOOKUP($A59,Aviation!$A:$O,13,FALSE)<>0,VLOOKUP($A59,Aviation!$A:$O,13,FALSE),"") -> 12 | P59: =IF(VLOOKUP($A59,Aviation!$A:$O,14,FALSE)<>0,VLOOKUP($A59,Aviation!$A:$O,14,FALSE),"") -> Gaston-Cleveland-Lincoln MPO | Q59: =IF(VLOOKUP($A59,Aviation!$A:$O,15,FALSE)<>0,VLOOKUP($A59,Aviation!$A:$O,15,FALSE),"") -> Cleveland | W59: Yes
A60: A130201 | B60: Aviation | C60: =IF(VLOOKUP($A60,Aviation!$A:$O,2,FALSE)<>0,VLOOKUP($A60,Aviation!$A:$O,2,FALSE),"") ->  | D60: =IF(VLOOKUP($A60,Aviation!$A:$O,3,FALSE)<>0,VLOOKUP($A60,Aviation!$A:$O,3,FALSE),"") -> Division Needs | E60: =IF(VLOOKUP($A60,Aviation!$A:$O,4,FALSE)<>0,VLOOKUP($A60,Aviation!$A:$O,4,FALSE),"") -> EHO - Shelby-Cleveland County Regional | H60: =IF(VLOOKUP($A60,Aviation!$A:$O,6,FALSE)<>0,VLOOKUP($A60,Aviation!$A:$O,6,FALSE),"") -> The existing runway length is 5,000 feet and the recommended runway length for "blue" group airports is 5,500 feet. This project includes extending the runway 5 end a distance of 500 feet, along with a corresponding extension of the parallel taxiway to the new runway end. Also included is a 150 foot wide by 300 foot long extended runway safety area beyond the new runway end. (includes Project Request Numbers: 2344 ) | I60: =IF(VLOOKUP($A60,Aviation!$A:$O,7,FALSE)<>0,VLOOKUP($A60,Aviation!$A:$O,7,FALSE),"") -> 0500 - Runway Length/Width | J60: =IF(VLOOKUP($A60,Aviation!$A:$O,8,FALSE)<>0,VLOOKUP($A60,Aviation!$A:$O,8,FALSE),"") -> 5767200 | K60: =IF(VLOOKUP($A60,Aviation!$A:$O,9,FALSE)<>0,VLOOKUP($A60,Aviation!$A:$O,9,FALSE),"") -> N/A | L60: =IF(VLOOKUP($A60,Aviation!$A:$O,10,FALSE)<>0,VLOOKUP($A60,Aviation!$A:$O,10,FALSE),"") -> N/A | M60: =IF(VLOOKUP($A60,Aviation!$A:$O,11,FALSE)<>0,VLOOKUP($A60,Aviation!$A:$O,11,FALSE),"") -> 39.6835 | N60: =IF(VLOOKUP($A60,Aviation!$A:$O,12,FALSE)<>0,VLOOKUP($A60,Aviation!$A:$O,12,FALSE),"") -> F | O60: =IF(VLOOKUP($A60,Aviation!$A:$O,13,FALSE)<>0,VLOOKUP($A60,Aviation!$A:$O,13,FALSE),"") -> 12 | P60: =IF(VLOOKUP($A60,Aviation!$A:$O,14,FALSE)<>0,VLOOKUP($A60,Aviation!$A:$O,14,FALSE),"") -> Gaston-Cleveland-Lincoln MPO | Q60: =IF(VLOOKUP($A60,Aviation!$A:$O,15,FALSE)<>0,VLOOKUP($A60,Aviation!$A:$O,15,FALSE),"") -> Cleveland | W60: Yes
A61: A130210 | B61: Aviation | C61: =IF(VLOOKUP($A61,Aviation!$A:$O,2,FALSE)<>0,VLOOKUP($A61,Aviation!$A:$O,2,FALSE),"") ->  | D61: =IF(VLOOKUP($A61,Aviation!$A:$O,3,FALSE)<>0,VLOOKUP($A61,Aviation!$A:$O,3,FALSE),"") -> Division Needs | E61: =IF(VLOOKUP($A61,Aviation!$A:$O,4,FALSE)<>0,VLOOKUP($A61,Aviation!$A:$O,4,FALSE),"") -> GWW - Goldsboro-Wayne Municipal | H61: =IF(VLOOKUP($A61,Aviation!$A:$O,6,FALSE)<>0,VLOOKUP($A61,Aviation!$A:$O,6,FALSE),"") -> Expand the existing terminal building, parking, and access road. (includes Project Request Numbers: 2146 ) | I61: =IF(VLOOKUP($A61,Aviation!$A:$O,7,FALSE)<>0,VLOOKUP($A61,Aviation!$A:$O,7,FALSE),"") -> 1315 - General Aviation Terminal Building: Construct Addition to Existing | J61: =IF(VLOOKUP($A61,Aviation!$A:$O,8,FALSE)<>0,VLOOKUP($A61,Aviation!$A:$O,8,FALSE),"") -> 3240225 | K61: =IF(VLOOKUP($A61,Aviation!$A:$O,9,FALSE)<>0,VLOOKUP($A61,Aviation!$A:$O,9,FALSE),"") -> N/A | L61: =IF(VLOOKUP($A61,Aviation!$A:$O,10,FALSE)<>0,VLOOKUP($A61,Aviation!$A:$O,10,FALSE),"") -> N/A | M61: =IF(VLOOKUP($A61,Aviation!$A:$O,11,FALSE)<>0,VLOOKUP($A61,Aviation!$A:$O,11,FALSE),"") -> 19.655 | N61: =IF(VLOOKUP($A61,Aviation!$A:$O,12,FALSE)<>0,VLOOKUP($A61,Aviation!$A:$O,12,FALSE),"") -> A | O61: =IF(VLOOKUP($A61,Aviation!$A:$O,13,FALSE)<>0,VLOOKUP($A61,Aviation!$A:$O,13,FALSE),"") -> 04 | P61: =IF(VLOOKUP($A61,Aviation!$A:$O,14,FALSE)<>0,VLOOKUP($A61,Aviation!$A:$O,14,FALSE),"") -> Goldsboro Urban Area MPO | Q61: =IF(VLOOKUP($A61,Aviation!$A:$O,15,FALSE)<>0,VLOOKUP($A61,Aviation!$A:$O,15,FALSE),"") -> Wayne | W61: Yes
A62: A130212 | B62: Aviation | C62: =IF(VLOOKUP($A62,Aviation!$A:$O,2,FALSE)<>0,VLOOKUP($A62,Aviation!$A:$O,2,FALSE),"") ->  | D62: =IF(VLOOKUP($A62,Aviation!$A:$O,3,FALSE)<>0,VLOOKUP($A62,Aviation!$A:$O,3,FALSE),"") -> Division Needs | E62: =IF(VLOOKUP($A62,Aviation!$A:$O,4,FALSE)<>0,VLOOKUP($A62,Aviation!$A:$O,4,FALSE),"") -> GWW - Goldsboro-Wayne Municipal | H62: =IF(VLOOKUP($A62,Aviation!$A:$O,6,FALSE)<>0,VLOOKUP($A62,Aviation!$A:$O,6,FALSE),"") -> Construct an access road for the corporate hangar area (includes Project Request Numbers: 2148 ) | I62: =IF(VLOOKUP($A62,Aviation!$A:$O,7,FALSE)<>0,VLOOKUP($A62,Aviation!$A:$O,7,FALSE),"") -> 1320 - General Aviation Terminal Building: Construct Terminal Access Road | J62: =IF(VLOOKUP($A62,Aviation!$A:$O,8,FALSE)<>0,VLOOKUP($A62,Aviation!$A:$O,8,FALSE),"") -> 146250 | K62: =IF(VLOOKUP($A62,Aviation!$A:$O,9,FALSE)<>0,VLOOKUP($A62,Aviation!$A:$O,9,FALSE),"") -> N/A | L62: =IF(VLOOKUP($A62,Aviation!$A:$O,10,FALSE)<>0,VLOOKUP($A62,Aviation!$A:$O,10,FALSE),"") -> N/A | M62: =IF(VLOOKUP($A62,Aviation!$A:$O,11,FALSE)<>0,VLOOKUP($A62,Aviation!$A:$O,11,FALSE),"") -> 24.969 | N62: =IF(VLOOKUP($A62,Aviation!$A:$O,12,FALSE)<>0,VLOOKUP($A62,Aviation!$A:$O,12,FALSE),"") -> A | O62: =IF(VLOOKUP($A62,Aviation!$A:$O,13,FALSE)<>0,VLOOKUP($A62,Aviation!$A:$O,13,FALSE),"") -> 04 | P62: =IF(VLOOKUP($A62,Aviation!$A:$O,14,FALSE)<>0,VLOOKUP($A62,Aviation!$A:$O,14,FALSE),"") -> Goldsboro Urban Area MPO | Q62: =IF(VLOOKUP($A62,Aviation!$A:$O,15,FALSE)<>0,VLOOKUP($A62,Aviation!$A:$O,15,FALSE),"") -> Wayne | W62: Yes
A63: A130258 | B63: Aviation | C63: =IF(VLOOKUP($A63,Aviation!$A:$O,2,FALSE)<>0,VLOOKUP($A63,Aviation!$A:$O,2,FALSE),"") ->  | D63: =IF(VLOOKUP($A63,Aviation!$A:$O,3,FALSE)<>0,VLOOKUP($A63,Aviation!$A:$O,3,FALSE),"") -> Regional Impact | E63: =IF(VLOOKUP($A63,Aviation!$A:$O,4,FALSE)<>0,VLOOKUP($A63,Aviation!$A:$O,4,FALSE),"") -> PGV - Pitt-Greenville | H63: =IF(VLOOKUP($A63,Aviation!$A:$O,6,FALSE)<>0,VLOOKUP($A63,Aviation!$A:$O,6,FALSE),"") -> Apron Expansion - Design and Construction (Concrete and Bituminous) for air carrier ramp (includes Project Request Numbers: 2538 ) | I63: =IF(VLOOKUP($A63,Aviation!$A:$O,7,FALSE)<>0,VLOOKUP($A63,Aviation!$A:$O,7,FALSE),"") -> 1200 - Aircraft Apron / Helipad Requirements | J63: =IF(VLOOKUP($A63,Aviation!$A:$O,8,FALSE)<>0,VLOOKUP($A63,Aviation!$A:$O,8,FALSE),"") -> 300000 | K63: =IF(VLOOKUP($A63,Aviation!$A:$O,9,FALSE)<>0,VLOOKUP($A63,Aviation!$A:$O,9,FALSE),"") -> N/A | L63: =IF(VLOOKUP($A63,Aviation!$A:$O,10,FALSE)<>0,VLOOKUP($A63,Aviation!$A:$O,10,FALSE),"") -> 53.087 | M63: =IF(VLOOKUP($A63,Aviation!$A:$O,11,FALSE)<>0,VLOOKUP($A63,Aviation!$A:$O,11,FALSE),"") -> 35.338 | N63: =IF(VLOOKUP($A63,Aviation!$A:$O,12,FALSE)<>0,VLOOKUP($A63,Aviation!$A:$O,12,FALSE),"") -> B | O63: =IF(VLOOKUP($A63,Aviation!$A:$O,13,FALSE)<>0,VLOOKUP($A63,Aviation!$A:$O,13,FALSE),"") -> 02 | P63: =IF(VLOOKUP($A63,Aviation!$A:$O,14,FALSE)<>0,VLOOKUP($A63,Aviation!$A:$O,14,FALSE),"") -> Greenville Urban Area MPO | Q63: =IF(VLOOKUP($A63,Aviation!$A:$O,15,FALSE)<>0,VLOOKUP($A63,Aviation!$A:$O,15,FALSE),"") -> Pitt | W63: Yes
A64: A130266 | B64: Aviation | C64: =IF(VLOOKUP($A64,Aviation!$A:$O,2,FALSE)<>0,VLOOKUP($A64,Aviation!$A:$O,2,FALSE),"") ->  | D64: =IF(VLOOKUP($A64,Aviation!$A:$O,3,FALSE)<>0,VLOOKUP($A64,Aviation!$A:$O,3,FALSE),"") -> Regional Impact | E64: =IF(VLOOKUP($A64,Aviation!$A:$O,4,FALSE)<>0,VLOOKUP($A64,Aviation!$A:$O,4,FALSE),"") -> PGV - Pitt-Greenville | H64: =IF(VLOOKUP($A64,Aviation!$A:$O,6,FALSE)<>0,VLOOKUP($A64,Aviation!$A:$O,6,FALSE),"") -> T-Hangar Site Preparation & Access Road - Design and Construction (includes Project Request Numbers: 3276 ) | I64: =IF(VLOOKUP($A64,Aviation!$A:$O,7,FALSE)<>0,VLOOKUP($A64,Aviation!$A:$O,7,FALSE),"") -> 1900 - Hangars | J64: =IF(VLOOKUP($A64,Aviation!$A:$O,8,FALSE)<>0,VLOOKUP($A64,Aviation!$A:$O,8,FALSE),"") -> 300000 | K64: =IF(VLOOKUP($A64,Aviation!$A:$O,9,FALSE)<>0,VLOOKUP($A64,Aviation!$A:$O,9,FALSE),"") -> N/A | L64: =IF(VLOOKUP($A64,Aviation!$A:$O,10,FALSE)<>0,VLOOKUP($A64,Aviation!$A:$O,10,FALSE),"") -> 41.0665 | M64: =IF(VLOOKUP($A64,Aviation!$A:$O,11,FALSE)<>0,VLOOKUP($A64,Aviation!$A:$O,11,FALSE),"") -> 24.23 | N64: =IF(VLOOKUP($A64,Aviation!$A:$O,12,FALSE)<>0,VLOOKUP($A64,Aviation!$A:$O,12,FALSE),"") -> B | O64: =IF(VLOOKUP($A64,Aviation!$A:$O,13,FALSE)<>0,VLOOKUP($A64,Aviation!$A:$O,13,FALSE),"") -> 02 | P64: =IF(VLOOKUP($A64,Aviation!$A:$O,14,FALSE)<>0,VLOOKUP($A64,Aviation!$A:$O,14,FALSE),"") -> Greenville Urban Area MPO | Q64: =IF(VLOOKUP($A64,Aviation!$A:$O,15,FALSE)<>0,VLOOKUP($A64,Aviation!$A:$O,15,FALSE),"") -> Pitt | W64: Yes
A65: A130267 | B65: Aviation | C65: =IF(VLOOKUP($A65,Aviation!$A:$O,2,FALSE)<>0,VLOOKUP($A65,Aviation!$A:$O,2,FALSE),"") ->  | D65: =IF(VLOOKUP($A65,Aviation!$A:$O,3,FALSE)<>0,VLOOKUP($A65,Aviation!$A:$O,3,FALSE),"") -> Regional Impact | E65: =IF(VLOOKUP($A65,Aviation!$A:$O,4,FALSE)<>0,VLOOKUP($A65,Aviation!$A:$O,4,FALSE),"") -> PGV - Pitt-Greenville | H65: =IF(VLOOKUP($A65,Aviation!$A:$O,6,FALSE)<>0,VLOOKUP($A65,Aviation!$A:$O,6,FALSE),"") -> Airfield Emergency Access Road Improvements; Airport is currently in the process of updating the ALP to show this project (includes Project Request Numbers: 2549 ) | I65: =IF(VLOOKUP($A65,Aviation!$A:$O,7,FALSE)<>0,VLOOKUP($A65,Aviation!$A:$O,7,FALSE),"") -> 3005 - Other: Not otherwise defined in system plan objectives | J65: =IF(VLOOKUP($A65,Aviation!$A:$O,8,FALSE)<>0,VLOOKUP($A65,Aviation!$A:$O,8,FALSE),"") -> 300000 | K65: =IF(VLOOKUP($A65,Aviation!$A:$O,9,FALSE)<>0,VLOOKUP($A65,Aviation!$A:$O,9,FALSE),"") -> N/A | L65: =IF(VLOOKUP($A65,Aviation!$A:$O,10,FALSE)<>0,VLOOKUP($A65,Aviation!$A:$O,10,FALSE),"") -> 20.925 | M65: =IF(VLOOKUP($A65,Aviation!$A:$O,11,FALSE)<>0,VLOOKUP($A65,Aviation!$A:$O,11,FALSE),"") -> 6.8725 | N65: =IF(VLOOKUP($A65,Aviation!$A:$O,12,FALSE)<>0,VLOOKUP($A65,Aviation!$A:$O,12,FALSE),"") -> B | O65: =IF(VLOOKUP($A65,Aviation!$A:$O,13,FALSE)<>0,VLOOKUP($A65,Aviation!$A:$O,13,FALSE),"") -> 02 | P65: =IF(VLOOKUP($A65,Aviation!$A:$O,14,FALSE)<>0,VLOOKUP($A65,Aviation!$A:$O,14,FALSE),"") -> Greenville Urban Area MPO | Q65: =IF(VLOOKUP($A65,Aviation!$A:$O,15,FALSE)<>0,VLOOKUP($A65,Aviation!$A:$O,15,FALSE),"") -> Pitt | W65: Yes
A66: A130268 | B66: Aviation | C66: =IF(VLOOKUP($A66,Aviation!$A:$O,2,FALSE)<>0,VLOOKUP($A66,Aviation!$A:$O,2,FALSE),"") ->  | D66: =IF(VLOOKUP($A66,Aviation!$A:$O,3,FALSE)<>0,VLOOKUP($A66,Aviation!$A:$O,3,FALSE),"") -> Regional Impact | E66: =IF(VLOOKUP($A66,Aviation!$A:$O,4,FALSE)<>0,VLOOKUP($A66,Aviation!$A:$O,4,FALSE),"") -> PGV - Pitt-Greenville | H66: =IF(VLOOKUP($A66,Aviation!$A:$O,6,FALSE)<>0,VLOOKUP($A66,Aviation!$A:$O,6,FALSE),"") -> Airfield Drainage Improvements (includes Project Request Numbers: 2558 ) | I66: =IF(VLOOKUP($A66,Aviation!$A:$O,7,FALSE)<>0,VLOOKUP($A66,Aviation!$A:$O,7,FALSE),"") -> 3005 - Other: Not otherwise defined in system plan objectives | J66: =IF(VLOOKUP($A66,Aviation!$A:$O,8,FALSE)<>0,VLOOKUP($A66,Aviation!$A:$O,8,FALSE),"") -> 300000 | K66: =IF(VLOOKUP($A66,Aviation!$A:$O,9,FALSE)<>0,VLOOKUP($A66,Aviation!$A:$O,9,FALSE),"") -> N/A | L66: =IF(VLOOKUP($A66,Aviation!$A:$O,10,FALSE)<>0,VLOOKUP($A66,Aviation!$A:$O,10,FALSE),"") -> 23.169 | M66: =IF(VLOOKUP($A66,Aviation!$A:$O,11,FALSE)<>0,VLOOKUP($A66,Aviation!$A:$O,11,FALSE),"") -> 11.3035 | N66: =IF(VLOOKUP($A66,Aviation!$A:$O,12,FALSE)<>0,VLOOKUP($A66,Aviation!$A:$O,12,FALSE),"") -> B | O66: =IF(VLOOKUP($A66,Aviation!$A:$O,13,FALSE)<>0,VLOOKUP($A66,Aviation!$A:$O,13,FALSE),"") -> 02 | P66: =IF(VLOOKUP($A66,Aviation!$A:$O,14,FALSE)<>0,VLOOKUP($A66,Aviation!$A:$O,14,FALSE),"") -> Greenville Urban Area MPO | Q66: =IF(VLOOKUP($A66,Aviation!$A:$O,15,FALSE)<>0,VLOOKUP($A66,Aviation!$A:$O,15,FALSE),"") -> Pitt | W66: Yes
A67: A130271 | B67: Aviation | C67: =IF(VLOOKUP($A67,Aviation!$A:$O,2,FALSE)<>0,VLOOKUP($A67,Aviation!$A:$O,2,FALSE),"") ->  | D67: =IF(VLOOKUP($A67,Aviation!$A:$O,3,FALSE)<>0,VLOOKUP($A67,Aviation!$A:$O,3,FALSE),"") -> Regional Impact | E67: =IF(VLOOKUP($A67,Aviation!$A:$O,4,FALSE)<>0,VLOOKUP($A67,Aviation!$A:$O,4,FALSE),"") -> PGV - Pitt-Greenville | H67: =IF(VLOOKUP($A67,Aviation!$A:$O,6,FALSE)<>0,VLOOKUP($A67,Aviation!$A:$O,6,FALSE),"") -> Visual NAVAIDS Runway 8-26 PAPIS & REILS Design and Construction (includes Project Request Numbers: 3271 ) | I67: =IF(VLOOKUP($A67,Aviation!$A:$O,7,FALSE)<>0,VLOOKUP($A67,Aviation!$A:$O,7,FALSE),"") -> 3005 - Other: Not otherwise defined in system plan objectives | J67: =IF(VLOOKUP($A67,Aviation!$A:$O,8,FALSE)<>0,VLOOKUP($A67,Aviation!$A:$O,8,FALSE),"") -> 300000 | K67: =IF(VLOOKUP($A67,Aviation!$A:$O,9,FALSE)<>0,VLOOKUP($A67,Aviation!$A:$O,9,FALSE),"") -> N/A | L67: =IF(VLOOKUP($A67,Aviation!$A:$O,10,FALSE)<>0,VLOOKUP($A67,Aviation!$A:$O,10,FALSE),"") -> 26.6585 | M67: =IF(VLOOKUP($A67,Aviation!$A:$O,11,FALSE)<>0,VLOOKUP($A67,Aviation!$A:$O,11,FALSE),"") -> 15.3645 | N67: =IF(VLOOKUP($A67,Aviation!$A:$O,12,FALSE)<>0,VLOOKUP($A67,Aviation!$A:$O,12,FALSE),"") -> B | O67: =IF(VLOOKUP($A67,Aviation!$A:$O,13,FALSE)<>0,VLOOKUP($A67,Aviation!$A:$O,13,FALSE),"") -> 02 | P67: =IF(VLOOKUP($A67,Aviation!$A:$O,14,FALSE)<>0,VLOOKUP($A67,Aviation!$A:$O,14,FALSE),"") -> Greenville Urban Area MPO | Q67: =IF(VLOOKUP($A67,Aviation!$A:$O,15,FALSE)<>0,VLOOKUP($A67,Aviation!$A:$O,15,FALSE),"") -> Pitt | W67: Yes
A68: A130272 | B68: Aviation | C68: =IF(VLOOKUP($A68,Aviation!$A:$O,2,FALSE)<>0,VLOOKUP($A68,Aviation!$A:$O,2,FALSE),"") ->  | D68: =IF(VLOOKUP($A68,Aviation!$A:$O,3,FALSE)<>0,VLOOKUP($A68,Aviation!$A:$O,3,FALSE),"") -> Division Needs | E68: =IF(VLOOKUP($A68,Aviation!$A:$O,4,FALSE)<>0,VLOOKUP($A68,Aviation!$A:$O,4,FALSE),"") -> 7A8 - Avery County-Morrison Field | H68: =IF(VLOOKUP($A68,Aviation!$A:$O,6,FALSE)<>0,VLOOKUP($A68,Aviation!$A:$O,6,FALSE),"") -> Construction of new terminal building with community hangar attached. Enhanced usage capabilities to attract EMS/ Fire/ LifeFlight, Police, and local community activities. (includes Project Request Numbers: 2906 ) | I68: =IF(VLOOKUP($A68,Aviation!$A:$O,7,FALSE)<>0,VLOOKUP($A68,Aviation!$A:$O,7,FALSE),"") -> 1315 - General Aviation Terminal Building: Construct Addition to Existing | J68: =IF(VLOOKUP($A68,Aviation!$A:$O,8,FALSE)<>0,VLOOKUP($A68,Aviation!$A:$O,8,FALSE),"") -> 1296000 | K68: =IF(VLOOKUP($A68,Aviation!$A:$O,9,FALSE)<>0,VLOOKUP($A68,Aviation!$A:$O,9,FALSE),"") -> N/A | L68: =IF(VLOOKUP($A68,Aviation!$A:$O,10,FALSE)<>0,VLOOKUP($A68,Aviation!$A:$O,10,FALSE),"") -> N/A | M68: =IF(VLOOKUP($A68,Aviation!$A:$O,11,FALSE)<>0,VLOOKUP($A68,Aviation!$A:$O,11,FALSE),"") -> 24.597 | N68: =IF(VLOOKUP($A68,Aviation!$A:$O,12,FALSE)<>0,VLOOKUP($A68,Aviation!$A:$O,12,FALSE),"") -> F | O68: =IF(VLOOKUP($A68,Aviation!$A:$O,13,FALSE)<>0,VLOOKUP($A68,Aviation!$A:$O,13,FALSE),"") -> 11 | P68: =IF(VLOOKUP($A68,Aviation!$A:$O,14,FALSE)<>0,VLOOKUP($A68,Aviation!$A:$O,14,FALSE),"") -> High Country RPO | Q68: =IF(VLOOKUP($A68,Aviation!$A:$O,15,FALSE)<>0,VLOOKUP($A68,Aviation!$A:$O,15,FALSE),"") -> Avery | W68: Yes
A69: A130275 | B69: Aviation | C69: =IF(VLOOKUP($A69,Aviation!$A:$O,2,FALSE)<>0,VLOOKUP($A69,Aviation!$A:$O,2,FALSE),"") ->  | D69: =IF(VLOOKUP($A69,Aviation!$A:$O,3,FALSE)<>0,VLOOKUP($A69,Aviation!$A:$O,3,FALSE),"") -> Division Needs | E69: =IF(VLOOKUP($A69,Aviation!$A:$O,4,FALSE)<>0,VLOOKUP($A69,Aviation!$A:$O,4,FALSE),"") -> GEV - Ashe County | H69: =IF(VLOOKUP($A69,Aviation!$A:$O,6,FALSE)<>0,VLOOKUP($A69,Aviation!$A:$O,6,FALSE),"") -> Phase I -Construct approx. 5,200 sy. apron adjacent to and immediately west of existing apron. This expansion will provide additional aircraft parking and tie-down space for both based and transient aircraft. Phase II - Construct approx. 9,100 sy apron expansion. Phase III - Construct approx. 13,500 sy apron expansion. These areas will be used to construct hangars and provide aircraft parking space to meet future demands. (includes Project Request Numbers: 2561/2566/2567 ) | I69: =IF(VLOOKUP($A69,Aviation!$A:$O,7,FALSE)<>0,VLOOKUP($A69,Aviation!$A:$O,7,FALSE),"") -> 1200 - Aircraft Apron / Helipad Requirements | J69: =IF(VLOOKUP($A69,Aviation!$A:$O,8,FALSE)<>0,VLOOKUP($A69,Aviation!$A:$O,8,FALSE),"") -> 2429100 | K69: =IF(VLOOKUP($A69,Aviation!$A:$O,9,FALSE)<>0,VLOOKUP($A69,Aviation!$A:$O,9,FALSE),"") -> N/A | L69: =IF(VLOOKUP($A69,Aviation!$A:$O,10,FALSE)<>0,VLOOKUP($A69,Aviation!$A:$O,10,FALSE),"") -> N/A | M69: =IF(VLOOKUP($A69,Aviation!$A:$O,11,FALSE)<>0,VLOOKUP($A69,Aviation!$A:$O,11,FALSE),"") -> 31.983 | N69: =IF(VLOOKUP($A69,Aviation!$A:$O,12,FALSE)<>0,VLOOKUP($A69,Aviation!$A:$O,12,FALSE),"") -> F | O69: =IF(VLOOKUP($A69,Aviation!$A:$O,13,FALSE)<>0,VLOOKUP($A69,Aviation!$A:$O,13,FALSE),"") -> 11 | P69: =IF(VLOOKUP($A69,Aviation!$A:$O,14,FALSE)<>0,VLOOKUP($A69,Aviation!$A:$O,14,FALSE),"") -> High Country RPO | Q69: =IF(VLOOKUP($A69,Aviation!$A:$O,15,FALSE)<>0,VLOOKUP($A69,Aviation!$A:$O,15,FALSE),"") -> Ashe | W69: Yes
A70: A130280 | B70: Aviation | C70: =IF(VLOOKUP($A70,Aviation!$A:$O,2,FALSE)<>0,VLOOKUP($A70,Aviation!$A:$O,2,FALSE),"") ->  | D70: =IF(VLOOKUP($A70,Aviation!$A:$O,3,FALSE)<>0,VLOOKUP($A70,Aviation!$A:$O,3,FALSE),"") -> Division Needs | E70: =IF(VLOOKUP($A70,Aviation!$A:$O,4,FALSE)<>0,VLOOKUP($A70,Aviation!$A:$O,4,FALSE),"") -> UKF - Wilkes County | H70: =IF(VLOOKUP($A70,Aviation!$A:$O,6,FALSE)<>0,VLOOKUP($A70,Aviation!$A:$O,6,FALSE),"") -> Phase I - paving two taxilanes for a 10 bay T-hangar building on a previously prepared area and the construction of a 10 bay T-hangar building. Phase II - paving one taxilane for a proposed 10 bay T-hangar building on the north hangar development area and the construction of a 10 bay T-hangar building. Phase includes paving a connector taxiway, one taxilane and construction of a 20 bay T-hangar building on the north hangar development area. (includes Project Request Numbers: 2301/2309/2313 ) | I70: =IF(VLOOKUP($A70,Aviation!$A:$O,7,FALSE)<>0,VLOOKUP($A70,Aviation!$A:$O,7,FALSE),"") -> 1900 - Hangars | J70: =IF(VLOOKUP($A70,Aviation!$A:$O,8,FALSE)<>0,VLOOKUP($A70,Aviation!$A:$O,8,FALSE),"") -> 2738610 | K70: =IF(VLOOKUP($A70,Aviation!$A:$O,9,FALSE)<>0,VLOOKUP($A70,Aviation!$A:$O,9,FALSE),"") -> N/A | L70: =IF(VLOOKUP($A70,Aviation!$A:$O,10,FALSE)<>0,VLOOKUP($A70,Aviation!$A:$O,10,FALSE),"") -> N/A | M70: =IF(VLOOKUP($A70,Aviation!$A:$O,11,FALSE)<>0,VLOOKUP($A70,Aviation!$A:$O,11,FALSE),"") -> 17.6375 | N70: =IF(VLOOKUP($A70,Aviation!$A:$O,12,FALSE)<>0,VLOOKUP($A70,Aviation!$A:$O,12,FALSE),"") -> F | O70: =IF(VLOOKUP($A70,Aviation!$A:$O,13,FALSE)<>0,VLOOKUP($A70,Aviation!$A:$O,13,FALSE),"") -> 11 | P70: =IF(VLOOKUP($A70,Aviation!$A:$O,14,FALSE)<>0,VLOOKUP($A70,Aviation!$A:$O,14,FALSE),"") -> High Country RPO | Q70: =IF(VLOOKUP($A70,Aviation!$A:$O,15,FALSE)<>0,VLOOKUP($A70,Aviation!$A:$O,15,FALSE),"") -> Wilkes | W70: Yes
A71: A130288 | B71: Aviation | C71: =IF(VLOOKUP($A71,Aviation!$A:$O,2,FALSE)<>0,VLOOKUP($A71,Aviation!$A:$O,2,FALSE),"") ->  | D71: =IF(VLOOKUP($A71,Aviation!$A:$O,3,FALSE)<>0,VLOOKUP($A71,Aviation!$A:$O,3,FALSE),"") -> Division Needs | E71: =IF(VLOOKUP($A71,Aviation!$A:$O,4,FALSE)<>0,VLOOKUP($A71,Aviation!$A:$O,4,FALSE),"") -> FQD - Rutherford County-Marchman Field | H71: =IF(VLOOKUP($A71,Aviation!$A:$O,6,FALSE)<>0,VLOOKUP($A71,Aviation!$A:$O,6,FALSE),"") -> This project will consist of a new terminal building near the eastside development area. (includes Project Request Numbers: 2920 ) | I71: =IF(VLOOKUP($A71,Aviation!$A:$O,7,FALSE)<>0,VLOOKUP($A71,Aviation!$A:$O,7,FALSE),"") -> 1305 - General Aviation Terminal Building: New Construction | J71: =IF(VLOOKUP($A71,Aviation!$A:$O,8,FALSE)<>0,VLOOKUP($A71,Aviation!$A:$O,8,FALSE),"") -> 1305000 | K71: =IF(VLOOKUP($A71,Aviation!$A:$O,9,FALSE)<>0,VLOOKUP($A71,Aviation!$A:$O,9,FALSE),"") -> N/A | L71: =IF(VLOOKUP($A71,Aviation!$A:$O,10,FALSE)<>0,VLOOKUP($A71,Aviation!$A:$O,10,FALSE),"") -> N/A | M71: =IF(VLOOKUP($A71,Aviation!$A:$O,11,FALSE)<>0,VLOOKUP($A71,Aviation!$A:$O,11,FALSE),"") -> 27.155 | N71: =IF(VLOOKUP($A71,Aviation!$A:$O,12,FALSE)<>0,VLOOKUP($A71,Aviation!$A:$O,12,FALSE),"") -> G | O71: =IF(VLOOKUP($A71,Aviation!$A:$O,13,FALSE)<>0,VLOOKUP($A71,Aviation!$A:$O,13,FALSE),"") -> 13 | P71: =IF(VLOOKUP($A71,Aviation!$A:$O,14,FALSE)<>0,VLOOKUP($A71,Aviation!$A:$O,14,FALSE),"") -> Isothermal RPO | Q71: =IF(VLOOKUP($A71,Aviation!$A:$O,15,FALSE)<>0,VLOOKUP($A71,Aviation!$A:$O,15,FALSE),"") -> Rutherford | W71: Yes
A72: A130289 | B72: Aviation | C72: =IF(VLOOKUP($A72,Aviation!$A:$O,2,FALSE)<>0,VLOOKUP($A72,Aviation!$A:$O,2,FALSE),"") ->  | D72: =IF(VLOOKUP($A72,Aviation!$A:$O,3,FALSE)<>0,VLOOKUP($A72,Aviation!$A:$O,3,FALSE),"") -> Division Needs | E72: =IF(VLOOKUP($A72,Aviation!$A:$O,4,FALSE)<>0,VLOOKUP($A72,Aviation!$A:$O,4,FALSE),"") -> FQD - Rutherford County-Marchman Field | H72: =IF(VLOOKUP($A72,Aviation!$A:$O,6,FALSE)<>0,VLOOKUP($A72,Aviation!$A:$O,6,FALSE),"") -> Update Airport Layout Plan Drawings to reflect existing and future/forecasted improvements. Preliminary engineering for the east taxiway/apron expansion project will include alternative layout options, survey, and geotechnical investigation. This also includes Site Preparation and Paving of Eastside development. The Westside Terminal/Ramp Area is built out. (includes Project Request Numbers: 2269/2918/2919 ) | I72: =IF(VLOOKUP($A72,Aviation!$A:$O,7,FALSE)<>0,VLOOKUP($A72,Aviation!$A:$O,7,FALSE),"") -> 1900 - Hangars | J72: =IF(VLOOKUP($A72,Aviation!$A:$O,8,FALSE)<>0,VLOOKUP($A72,Aviation!$A:$O,8,FALSE),"") -> 3780000 | K72: =IF(VLOOKUP($A72,Aviation!$A:$O,9,FALSE)<>0,VLOOKUP($A72,Aviation!$A:$O,9,FALSE),"") -> N/A | L72: =IF(VLOOKUP($A72,Aviation!$A:$O,10,FALSE)<>0,VLOOKUP($A72,Aviation!$A:$O,10,FALSE),"") -> N/A | M72: =IF(VLOOKUP($A72,Aviation!$A:$O,11,FALSE)<>0,VLOOKUP($A72,Aviation!$A:$O,11,FALSE),"") -> 20.7625 | N72: =IF(VLOOKUP($A72,Aviation!$A:$O,12,FALSE)<>0,VLOOKUP($A72,Aviation!$A:$O,12,FALSE),"") -> G | O72: =IF(VLOOKUP($A72,Aviation!$A:$O,13,FALSE)<>0,VLOOKUP($A72,Aviation!$A:$O,13,FALSE),"") -> 13 | P72: =IF(VLOOKUP($A72,Aviation!$A:$O,14,FALSE)<>0,VLOOKUP($A72,Aviation!$A:$O,14,FALSE),"") -> Isothermal RPO | Q72: =IF(VLOOKUP($A72,Aviation!$A:$O,15,FALSE)<>0,VLOOKUP($A72,Aviation!$A:$O,15,FALSE),"") -> Rutherford | W72: Yes
A73: A130291 | B73: Aviation | C73: =IF(VLOOKUP($A73,Aviation!$A:$O,2,FALSE)<>0,VLOOKUP($A73,Aviation!$A:$O,2,FALSE),"") -> AV-5774 | D73: =IF(VLOOKUP($A73,Aviation!$A:$O,3,FALSE)<>0,VLOOKUP($A73,Aviation!$A:$O,3,FALSE),"") -> Division Needs | E73: =IF(VLOOKUP($A73,Aviation!$A:$O,4,FALSE)<>0,VLOOKUP($A73,Aviation!$A:$O,4,FALSE),"") -> FQD - Rutherford County-Marchman Field | H73: =IF(VLOOKUP($A73,Aviation!$A:$O,6,FALSE)<>0,VLOOKUP($A73,Aviation!$A:$O,6,FALSE),"") -> The existing runway length is 5000'. The NC GA Development Plan recommended a runway length of 5500'. This project will extend the runway to 6000' as shown on the current ALP. (includes Project Request Numbers: 3209 ) | I73: =IF(VLOOKUP($A73,Aviation!$A:$O,7,FALSE)<>0,VLOOKUP($A73,Aviation!$A:$O,7,FALSE),"") -> 0500 - Runway Length/Width | J73: =IF(VLOOKUP($A73,Aviation!$A:$O,8,FALSE)<>0,VLOOKUP($A73,Aviation!$A:$O,8,FALSE),"") -> 4050000 | K73: =IF(VLOOKUP($A73,Aviation!$A:$O,9,FALSE)<>0,VLOOKUP($A73,Aviation!$A:$O,9,FALSE),"") -> N/A | L73: =IF(VLOOKUP($A73,Aviation!$A:$O,10,FALSE)<>0,VLOOKUP($A73,Aviation!$A:$O,10,FALSE),"") -> N/A | M73: =IF(VLOOKUP($A73,Aviation!$A:$O,11,FALSE)<>0,VLOOKUP($A73,Aviation!$A:$O,11,FALSE),"") -> 41.5575 | N73: =IF(VLOOKUP($A73,Aviation!$A:$O,12,FALSE)<>0,VLOOKUP($A73,Aviation!$A:$O,12,FALSE),"") -> G | O73: =IF(VLOOKUP($A73,Aviation!$A:$O,13,FALSE)<>0,VLOOKUP($A73,Aviation!$A:$O,13,FALSE),"") -> 13 | P73: =IF(VLOOKUP($A73,Aviation!$A:$O,14,FALSE)<>0,VLOOKUP($A73,Aviation!$A:$O,14,FALSE),"") -> Isothermal RPO | Q73: =IF(VLOOKUP($A73,Aviation!$A:$O,15,FALSE)<>0,VLOOKUP($A73,Aviation!$A:$O,15,FALSE),"") -> Rutherford | W73: Yes
A74: A130298 | B74: Aviation | C74: =IF(VLOOKUP($A74,Aviation!$A:$O,2,FALSE)<>0,VLOOKUP($A74,Aviation!$A:$O,2,FALSE),"") ->  | D74: =IF(VLOOKUP($A74,Aviation!$A:$O,3,FALSE)<>0,VLOOKUP($A74,Aviation!$A:$O,3,FALSE),"") -> Regional Impact | E74: =IF(VLOOKUP($A74,Aviation!$A:$O,4,FALSE)<>0,VLOOKUP($A74,Aviation!$A:$O,4,FALSE),"") -> OAJ - Albert J. Ellis | H74: =IF(VLOOKUP($A74,Aviation!$A:$O,6,FALSE)<>0,VLOOKUP($A74,Aviation!$A:$O,6,FALSE),"") -> This project will realign and extend the access roadway into the airport. This project will be funded by NCDOT Grants and local funds. (includes Project Request Numbers: 3110 ) | I74: =IF(VLOOKUP($A74,Aviation!$A:$O,7,FALSE)<>0,VLOOKUP($A74,Aviation!$A:$O,7,FALSE),"") -> 1320 - General Aviation Terminal Building: Construct Terminal Access Road | J74: =IF(VLOOKUP($A74,Aviation!$A:$O,8,FALSE)<>0,VLOOKUP($A74,Aviation!$A:$O,8,FALSE),"") -> 300000 | K74: =IF(VLOOKUP($A74,Aviation!$A:$O,9,FALSE)<>0,VLOOKUP($A74,Aviation!$A:$O,9,FALSE),"") -> N/A | L74: =IF(VLOOKUP($A74,Aviation!$A:$O,10,FALSE)<>0,VLOOKUP($A74,Aviation!$A:$O,10,FALSE),"") -> 44.48 | M74: =IF(VLOOKUP($A74,Aviation!$A:$O,11,FALSE)<>0,VLOOKUP($A74,Aviation!$A:$O,11,FALSE),"") -> 28.2375 | N74: =IF(VLOOKUP($A74,Aviation!$A:$O,12,FALSE)<>0,VLOOKUP($A74,Aviation!$A:$O,12,FALSE),"") -> B | O74: =IF(VLOOKUP($A74,Aviation!$A:$O,13,FALSE)<>0,VLOOKUP($A74,Aviation!$A:$O,13,FALSE),"") -> 03 | P74: =IF(VLOOKUP($A74,Aviation!$A:$O,14,FALSE)<>0,VLOOKUP($A74,Aviation!$A:$O,14,FALSE),"") -> Jacksonville Urban MPO | Q74: =IF(VLOOKUP($A74,Aviation!$A:$O,15,FALSE)<>0,VLOOKUP($A74,Aviation!$A:$O,15,FALSE),"") -> Onslow | W74: Yes
A75: A130299 | B75: Aviation | C75: =IF(VLOOKUP($A75,Aviation!$A:$O,2,FALSE)<>0,VLOOKUP($A75,Aviation!$A:$O,2,FALSE),"") ->  | D75: =IF(VLOOKUP($A75,Aviation!$A:$O,3,FALSE)<>0,VLOOKUP($A75,Aviation!$A:$O,3,FALSE),"") -> Regional Impact | E75: =IF(VLOOKUP($A75,Aviation!$A:$O,4,FALSE)<>0,VLOOKUP($A75,Aviation!$A:$O,4,FALSE),"") -> OAJ - Albert J. Ellis | H75: =IF(VLOOKUP($A75,Aviation!$A:$O,6,FALSE)<>0,VLOOKUP($A75,Aviation!$A:$O,6,FALSE),"") -> Improve and expand the existing airfield lighting system. To be funded by FAA, NCDOT and local funds. | I75: =IF(VLOOKUP($A75,Aviation!$A:$O,7,FALSE)<>0,VLOOKUP($A75,Aviation!$A:$O,7,FALSE),"") -> 3005 - Other: Not otherwise defined in system plan objectives | J75: =IF(VLOOKUP($A75,Aviation!$A:$O,8,FALSE)<>0,VLOOKUP($A75,Aviation!$A:$O,8,FALSE),"") -> 300000 | K75: =IF(VLOOKUP($A75,Aviation!$A:$O,9,FALSE)<>0,VLOOKUP($A75,Aviation!$A:$O,9,FALSE),"") -> N/A | L75: =IF(VLOOKUP($A75,Aviation!$A:$O,10,FALSE)<>0,VLOOKUP($A75,Aviation!$A:$O,10,FALSE),"") -> 23.229 | M75: =IF(VLOOKUP($A75,Aviation!$A:$O,11,FALSE)<>0,VLOOKUP($A75,Aviation!$A:$O,11,FALSE),"") -> 12.554 | N75: =IF(VLOOKUP($A75,Aviation!$A:$O,12,FALSE)<>0,VLOOKUP($A75,Aviation!$A:$O,12,FALSE),"") -> B | O75: =IF(VLOOKUP($A75,Aviation!$A:$O,13,FALSE)<>0,VLOOKUP($A75,Aviation!$A:$O,13,FALSE),"") -> 03 | P75: =IF(VLOOKUP($A75,Aviation!$A:$O,14,FALSE)<>0,VLOOKUP($A75,Aviation!$A:$O,14,FALSE),"") -> Jacksonville Urban MPO | Q75: =IF(VLOOKUP($A75,Aviation!$A:$O,15,FALSE)<>0,VLOOKUP($A75,Aviation!$A:$O,15,FALSE),"") -> Onslow | W75: Yes
A76: A130310 | B76: Aviation | C76: =IF(VLOOKUP($A76,Aviation!$A:$O,2,FALSE)<>0,VLOOKUP($A76,Aviation!$A:$O,2,FALSE),"") ->  | D76: =IF(VLOOKUP($A76,Aviation!$A:$O,3,FALSE)<>0,VLOOKUP($A76,Aviation!$A:$O,3,FALSE),"") -> Division Needs | E76: =IF(VLOOKUP($A76,Aviation!$A:$O,4,FALSE)<>0,VLOOKUP($A76,Aviation!$A:$O,4,FALSE),"") -> HNZ - Oxford-Henderson | H76: =IF(VLOOKUP($A76,Aviation!$A:$O,6,FALSE)<>0,VLOOKUP($A76,Aviation!$A:$O,6,FALSE),"") -> Construct a new 100' X 120' corporate hangar and associated apron. (includes Project Request Numbers: 2896 ) | I76: =IF(VLOOKUP($A76,Aviation!$A:$O,7,FALSE)<>0,VLOOKUP($A76,Aviation!$A:$O,7,FALSE),"") -> 1900 - Hangars | J76: =IF(VLOOKUP($A76,Aviation!$A:$O,8,FALSE)<>0,VLOOKUP($A76,Aviation!$A:$O,8,FALSE),"") -> 576000 | K76: =IF(VLOOKUP($A76,Aviation!$A:$O,9,FALSE)<>0,VLOOKUP($A76,Aviation!$A:$O,9,FALSE),"") -> N/A | L76: =IF(VLOOKUP($A76,Aviation!$A:$O,10,FALSE)<>0,VLOOKUP($A76,Aviation!$A:$O,10,FALSE),"") -> N/A | M76: =IF(VLOOKUP($A76,Aviation!$A:$O,11,FALSE)<>0,VLOOKUP($A76,Aviation!$A:$O,11,FALSE),"") -> 24.3425 | N76: =IF(VLOOKUP($A76,Aviation!$A:$O,12,FALSE)<>0,VLOOKUP($A76,Aviation!$A:$O,12,FALSE),"") -> C | O76: =IF(VLOOKUP($A76,Aviation!$A:$O,13,FALSE)<>0,VLOOKUP($A76,Aviation!$A:$O,13,FALSE),"") -> 05 | P76: =IF(VLOOKUP($A76,Aviation!$A:$O,14,FALSE)<>0,VLOOKUP($A76,Aviation!$A:$O,14,FALSE),"") -> Kerr-Tar RPO | Q76: =IF(VLOOKUP($A76,Aviation!$A:$O,15,FALSE)<>0,VLOOKUP($A76,Aviation!$A:$O,15,FALSE),"") -> Granville | W76: Yes
A77: A130311 | B77: Aviation | C77: =IF(VLOOKUP($A77,Aviation!$A:$O,2,FALSE)<>0,VLOOKUP($A77,Aviation!$A:$O,2,FALSE),"") ->  | D77: =IF(VLOOKUP($A77,Aviation!$A:$O,3,FALSE)<>0,VLOOKUP($A77,Aviation!$A:$O,3,FALSE),"") -> Division Needs | E77: =IF(VLOOKUP($A77,Aviation!$A:$O,4,FALSE)<>0,VLOOKUP($A77,Aviation!$A:$O,4,FALSE),"") -> HNZ - Oxford-Henderson | H77: =IF(VLOOKUP($A77,Aviation!$A:$O,6,FALSE)<>0,VLOOKUP($A77,Aviation!$A:$O,6,FALSE),"") -> Construct a new 50' x 60' corporate hangar, as well as apron, taxilane, and access road. (includes Project Request Numbers: 3067 ) | I77: =IF(VLOOKUP($A77,Aviation!$A:$O,7,FALSE)<>0,VLOOKUP($A77,Aviation!$A:$O,7,FALSE),"") -> 1900 - Hangars | J77: =IF(VLOOKUP($A77,Aviation!$A:$O,8,FALSE)<>0,VLOOKUP($A77,Aviation!$A:$O,8,FALSE),"") -> 567000 | K77: =IF(VLOOKUP($A77,Aviation!$A:$O,9,FALSE)<>0,VLOOKUP($A77,Aviation!$A:$O,9,FALSE),"") -> N/A | L77: =IF(VLOOKUP($A77,Aviation!$A:$O,10,FALSE)<>0,VLOOKUP($A77,Aviation!$A:$O,10,FALSE),"") -> N/A | M77: =IF(VLOOKUP($A77,Aviation!$A:$O,11,FALSE)<>0,VLOOKUP($A77,Aviation!$A:$O,11,FALSE),"") -> 24.5125 | N77: =IF(VLOOKUP($A77,Aviation!$A:$O,12,FALSE)<>0,VLOOKUP($A77,Aviation!$A:$O,12,FALSE),"") -> C | O77: =IF(VLOOKUP($A77,Aviation!$A:$O,13,FALSE)<>0,VLOOKUP($A77,Aviation!$A:$O,13,FALSE),"") -> 05 | P77: =IF(VLOOKUP($A77,Aviation!$A:$O,14,FALSE)<>0,VLOOKUP($A77,Aviation!$A:$O,14,FALSE),"") -> Kerr-Tar RPO | Q77: =IF(VLOOKUP($A77,Aviation!$A:$O,15,FALSE)<>0,VLOOKUP($A77,Aviation!$A:$O,15,FALSE),"") -> Granville | W77: Yes
A78: A130316 | B78: Aviation | C78: =IF(VLOOKUP($A78,Aviation!$A:$O,2,FALSE)<>0,VLOOKUP($A78,Aviation!$A:$O,2,FALSE),"") ->  | D78: =IF(VLOOKUP($A78,Aviation!$A:$O,3,FALSE)<>0,VLOOKUP($A78,Aviation!$A:$O,3,FALSE),"") -> Division Needs | E78: =IF(VLOOKUP($A78,Aviation!$A:$O,4,FALSE)<>0,VLOOKUP($A78,Aviation!$A:$O,4,FALSE),"") -> TDF - Person County Executive | H78: =IF(VLOOKUP($A78,Aviation!$A:$O,6,FALSE)<>0,VLOOKUP($A78,Aviation!$A:$O,6,FALSE),"") -> Expand existing 2,000 terminal building to +/-5,000 sq ft. Building was constructed in mid-1980s. Passenger levels are projected to increase ~40% over next 20 years and terminal needs to be expanded to accommodate increased activity at TDF. Expand terminal auto parking in conjunction with Project 2439 to expand terminal building. Expand 6in waterline from SR 1131 to terminal area. Associated with project 2439. Current terminal is served by well. (includes PRN: 2440/2439/2444 ) | I78: =IF(VLOOKUP($A78,Aviation!$A:$O,7,FALSE)<>0,VLOOKUP($A78,Aviation!$A:$O,7,FALSE),"") -> 1315 - General Aviation Terminal Building: Construct Addition to Existing | J78: =IF(VLOOKUP($A78,Aviation!$A:$O,8,FALSE)<>0,VLOOKUP($A78,Aviation!$A:$O,8,FALSE),"") -> 1700820 | K78: =IF(VLOOKUP($A78,Aviation!$A:$O,9,FALSE)<>0,VLOOKUP($A78,Aviation!$A:$O,9,FALSE),"") -> N/A | L78: =IF(VLOOKUP($A78,Aviation!$A:$O,10,FALSE)<>0,VLOOKUP($A78,Aviation!$A:$O,10,FALSE),"") -> N/A | M78: =IF(VLOOKUP($A78,Aviation!$A:$O,11,FALSE)<>0,VLOOKUP($A78,Aviation!$A:$O,11,FALSE),"") -> 24.029 | N78: =IF(VLOOKUP($A78,Aviation!$A:$O,12,FALSE)<>0,VLOOKUP($A78,Aviation!$A:$O,12,FALSE),"") -> C | O78: =IF(VLOOKUP($A78,Aviation!$A:$O,13,FALSE)<>0,VLOOKUP($A78,Aviation!$A:$O,13,FALSE),"") -> 05 | P78: =IF(VLOOKUP($A78,Aviation!$A:$O,14,FALSE)<>0,VLOOKUP($A78,Aviation!$A:$O,14,FALSE),"") -> Kerr-Tar RPO | Q78: =IF(VLOOKUP($A78,Aviation!$A:$O,15,FALSE)<>0,VLOOKUP($A78,Aviation!$A:$O,15,FALSE),"") -> Person | W78: Yes
A79: A130318 | B79: Aviation | C79: =IF(VLOOKUP($A79,Aviation!$A:$O,2,FALSE)<>0,VLOOKUP($A79,Aviation!$A:$O,2,FALSE),"") ->  | D79: =IF(VLOOKUP($A79,Aviation!$A:$O,3,FALSE)<>0,VLOOKUP($A79,Aviation!$A:$O,3,FALSE),"") -> Division Needs | E79: =IF(VLOOKUP($A79,Aviation!$A:$O,4,FALSE)<>0,VLOOKUP($A79,Aviation!$A:$O,4,FALSE),"") -> TDF - Person County Executive | H79: =IF(VLOOKUP($A79,Aviation!$A:$O,6,FALSE)<>0,VLOOKUP($A79,Aviation!$A:$O,6,FALSE),"") -> Construct T-Hangar and Executive Hangar. All existing hangars at TDF are occupied. The Airport needs new hangars to support economic development. (includes Project Request Number: 3139) | I79: =IF(VLOOKUP($A79,Aviation!$A:$O,7,FALSE)<>0,VLOOKUP($A79,Aviation!$A:$O,7,FALSE),"") -> 1900 - Hangars | J79: =IF(VLOOKUP($A79,Aviation!$A:$O,8,FALSE)<>0,VLOOKUP($A79,Aviation!$A:$O,8,FALSE),"") -> 1530000 | K79: =IF(VLOOKUP($A79,Aviation!$A:$O,9,FALSE)<>0,VLOOKUP($A79,Aviation!$A:$O,9,FALSE),"") -> N/A | L79: =IF(VLOOKUP($A79,Aviation!$A:$O,10,FALSE)<>0,VLOOKUP($A79,Aviation!$A:$O,10,FALSE),"") -> N/A | M79: =IF(VLOOKUP($A79,Aviation!$A:$O,11,FALSE)<>0,VLOOKUP($A79,Aviation!$A:$O,11,FALSE),"") -> 20.4785 | N79: =IF(VLOOKUP($A79,Aviation!$A:$O,12,FALSE)<>0,VLOOKUP($A79,Aviation!$A:$O,12,FALSE),"") -> C | O79: =IF(VLOOKUP($A79,Aviation!$A:$O,13,FALSE)<>0,VLOOKUP($A79,Aviation!$A:$O,13,FALSE),"") -> 05 | P79: =IF(VLOOKUP($A79,Aviation!$A:$O,14,FALSE)<>0,VLOOKUP($A79,Aviation!$A:$O,14,FALSE),"") -> Kerr-Tar RPO | Q79: =IF(VLOOKUP($A79,Aviation!$A:$O,15,FALSE)<>0,VLOOKUP($A79,Aviation!$A:$O,15,FALSE),"") -> Person | W79: Yes
A80: A130319 | B80: Aviation | C80: =IF(VLOOKUP($A80,Aviation!$A:$O,2,FALSE)<>0,VLOOKUP($A80,Aviation!$A:$O,2,FALSE),"") ->  | D80: =IF(VLOOKUP($A80,Aviation!$A:$O,3,FALSE)<>0,VLOOKUP($A80,Aviation!$A:$O,3,FALSE),"") -> Division Needs | E80: =IF(VLOOKUP($A80,Aviation!$A:$O,4,FALSE)<>0,VLOOKUP($A80,Aviation!$A:$O,4,FALSE),"") -> TDF - Person County Executive | H80: =IF(VLOOKUP($A80,Aviation!$A:$O,6,FALSE)<>0,VLOOKUP($A80,Aviation!$A:$O,6,FALSE),"") -> Extend runway to 7,000 ft. (Takeoff Length) (includes Project Request Numbers: 3140 ) | I80: =IF(VLOOKUP($A80,Aviation!$A:$O,7,FALSE)<>0,VLOOKUP($A80,Aviation!$A:$O,7,FALSE),"") -> 0500 - Runway Length/Width | J80: =IF(VLOOKUP($A80,Aviation!$A:$O,8,FALSE)<>0,VLOOKUP($A80,Aviation!$A:$O,8,FALSE),"") -> 2484000 | K80: =IF(VLOOKUP($A80,Aviation!$A:$O,9,FALSE)<>0,VLOOKUP($A80,Aviation!$A:$O,9,FALSE),"") -> N/A | L80: =IF(VLOOKUP($A80,Aviation!$A:$O,10,FALSE)<>0,VLOOKUP($A80,Aviation!$A:$O,10,FALSE),"") -> N/A | M80: =IF(VLOOKUP($A80,Aviation!$A:$O,11,FALSE)<>0,VLOOKUP($A80,Aviation!$A:$O,11,FALSE),"") -> 43.4895 | N80: =IF(VLOOKUP($A80,Aviation!$A:$O,12,FALSE)<>0,VLOOKUP($A80,Aviation!$A:$O,12,FALSE),"") -> C | O80: =IF(VLOOKUP($A80,Aviation!$A:$O,13,FALSE)<>0,VLOOKUP($A80,Aviation!$A:$O,13,FALSE),"") -> 05 | P80: =IF(VLOOKUP($A80,Aviation!$A:$O,14,FALSE)<>0,VLOOKUP($A80,Aviation!$A:$O,14,FALSE),"") -> Kerr-Tar RPO | Q80: =IF(VLOOKUP($A80,Aviation!$A:$O,15,FALSE)<>0,VLOOKUP($A80,Aviation!$A:$O,15,FALSE),"") -> Person | W80: Yes
A81: A130324 | B81: Aviation | C81: =IF(VLOOKUP($A81,Aviation!$A:$O,2,FALSE)<>0,VLOOKUP($A81,Aviation!$A:$O,2,FALSE),"") ->  | D81: =IF(VLOOKUP($A81,Aviation!$A:$O,3,FALSE)<>0,VLOOKUP($A81,Aviation!$A:$O,3,FALSE),"") -> Division Needs | E81: =IF(VLOOKUP($A81,Aviation!$A:$O,4,FALSE)<>0,VLOOKUP($A81,Aviation!$A:$O,4,FALSE),"") -> LBT - Lumberton Municipal | H81: =IF(VLOOKUP($A81,Aviation!$A:$O,6,FALSE)<>0,VLOOKUP($A81,Aviation!$A:$O,6,FALSE),"") -> The terminal building was constructed in 1969. The 3,100 sf facility was expanded in the mid 1980's from 2,100 sf, and includes the Robeson County Economic Development Commission offices, conference room, pilots lounge, airport managers office, rest rooms, vending machine areas, maintenance closet, terminal lobby, and mechanical room (front desk). The building is in need of renovations. (includes Project Request Numbers: 2421 ) | I81: =IF(VLOOKUP($A81,Aviation!$A:$O,7,FALSE)<>0,VLOOKUP($A81,Aviation!$A:$O,7,FALSE),"") -> 1305 - General Aviation Terminal Building: New Construction | J81: =IF(VLOOKUP($A81,Aviation!$A:$O,8,FALSE)<>0,VLOOKUP($A81,Aviation!$A:$O,8,FALSE),"") -> 1330830 | K81: =IF(VLOOKUP($A81,Aviation!$A:$O,9,FALSE)<>0,VLOOKUP($A81,Aviation!$A:$O,9,FALSE),"") -> N/A | L81: =IF(VLOOKUP($A81,Aviation!$A:$O,10,FALSE)<>0,VLOOKUP($A81,Aviation!$A:$O,10,FALSE),"") -> N/A | M81: =IF(VLOOKUP($A81,Aviation!$A:$O,11,FALSE)<>0,VLOOKUP($A81,Aviation!$A:$O,11,FALSE),"") -> 24.883 | N81: =IF(VLOOKUP($A81,Aviation!$A:$O,12,FALSE)<>0,VLOOKUP($A81,Aviation!$A:$O,12,FALSE),"") -> C | O81: =IF(VLOOKUP($A81,Aviation!$A:$O,13,FALSE)<>0,VLOOKUP($A81,Aviation!$A:$O,13,FALSE),"") -> 06 | P81: =IF(VLOOKUP($A81,Aviation!$A:$O,14,FALSE)<>0,VLOOKUP($A81,Aviation!$A:$O,14,FALSE),"") -> Lumber River RPO | Q81: =IF(VLOOKUP($A81,Aviation!$A:$O,15,FALSE)<>0,VLOOKUP($A81,Aviation!$A:$O,15,FALSE),"") -> Robeson | W81: Yes
A82: A130326 | B82: Aviation | C82: =IF(VLOOKUP($A82,Aviation!$A:$O,2,FALSE)<>0,VLOOKUP($A82,Aviation!$A:$O,2,FALSE),"") ->  | D82: =IF(VLOOKUP($A82,Aviation!$A:$O,3,FALSE)<>0,VLOOKUP($A82,Aviation!$A:$O,3,FALSE),"") -> Division Needs | E82: =IF(VLOOKUP($A82,Aviation!$A:$O,4,FALSE)<>0,VLOOKUP($A82,Aviation!$A:$O,4,FALSE),"") -> LBT - Lumberton Municipal | H82: =IF(VLOOKUP($A82,Aviation!$A:$O,6,FALSE)<>0,VLOOKUP($A82,Aviation!$A:$O,6,FALSE),"") -> This project will provide a hangar taxiway for corporate hangar development northeast of terminal building. (includes Project Request Numbers: 2409 ) | I82: =IF(VLOOKUP($A82,Aviation!$A:$O,7,FALSE)<>0,VLOOKUP($A82,Aviation!$A:$O,7,FALSE),"") -> 1240 - Corporate and T-hangar Taxiway: Construction | J82: =IF(VLOOKUP($A82,Aviation!$A:$O,8,FALSE)<>0,VLOOKUP($A82,Aviation!$A:$O,8,FALSE),"") -> 297270 | K82: =IF(VLOOKUP($A82,Aviation!$A:$O,9,FALSE)<>0,VLOOKUP($A82,Aviation!$A:$O,9,FALSE),"") -> N/A | L82: =IF(VLOOKUP($A82,Aviation!$A:$O,10,FALSE)<>0,VLOOKUP($A82,Aviation!$A:$O,10,FALSE),"") -> N/A | M82: =IF(VLOOKUP($A82,Aviation!$A:$O,11,FALSE)<>0,VLOOKUP($A82,Aviation!$A:$O,11,FALSE),"") -> 39.0585 | N82: =IF(VLOOKUP($A82,Aviation!$A:$O,12,FALSE)<>0,VLOOKUP($A82,Aviation!$A:$O,12,FALSE),"") -> C | O82: =IF(VLOOKUP($A82,Aviation!$A:$O,13,FALSE)<>0,VLOOKUP($A82,Aviation!$A:$O,13,FALSE),"") -> 06 | P82: =IF(VLOOKUP($A82,Aviation!$A:$O,14,FALSE)<>0,VLOOKUP($A82,Aviation!$A:$O,14,FALSE),"") -> Lumber River RPO | Q82: =IF(VLOOKUP($A82,Aviation!$A:$O,15,FALSE)<>0,VLOOKUP($A82,Aviation!$A:$O,15,FALSE),"") -> Robeson | W82: Yes
A83: A130328 | B83: Aviation | C83: =IF(VLOOKUP($A83,Aviation!$A:$O,2,FALSE)<>0,VLOOKUP($A83,Aviation!$A:$O,2,FALSE),"") ->  | D83: =IF(VLOOKUP($A83,Aviation!$A:$O,3,FALSE)<>0,VLOOKUP($A83,Aviation!$A:$O,3,FALSE),"") -> Division Needs | E83: =IF(VLOOKUP($A83,Aviation!$A:$O,4,FALSE)<>0,VLOOKUP($A83,Aviation!$A:$O,4,FALSE),"") -> LBT - Lumberton Municipal | H83: =IF(VLOOKUP($A83,Aviation!$A:$O,6,FALSE)<>0,VLOOKUP($A83,Aviation!$A:$O,6,FALSE),"") -> There is a waiting list for hangars at the airport. (includes Project Request Numbers: 2424 ) | I83: =IF(VLOOKUP($A83,Aviation!$A:$O,7,FALSE)<>0,VLOOKUP($A83,Aviation!$A:$O,7,FALSE),"") -> 1900 - Hangars | J83: =IF(VLOOKUP($A83,Aviation!$A:$O,8,FALSE)<>0,VLOOKUP($A83,Aviation!$A:$O,8,FALSE),"") -> 356400 | K83: =IF(VLOOKUP($A83,Aviation!$A:$O,9,FALSE)<>0,VLOOKUP($A83,Aviation!$A:$O,9,FALSE),"") -> N/A | L83: =IF(VLOOKUP($A83,Aviation!$A:$O,10,FALSE)<>0,VLOOKUP($A83,Aviation!$A:$O,10,FALSE),"") -> N/A | M83: =IF(VLOOKUP($A83,Aviation!$A:$O,11,FALSE)<>0,VLOOKUP($A83,Aviation!$A:$O,11,FALSE),"") -> 25.3645 | N83: =IF(VLOOKUP($A83,Aviation!$A:$O,12,FALSE)<>0,VLOOKUP($A83,Aviation!$A:$O,12,FALSE),"") -> C | O83: =IF(VLOOKUP($A83,Aviation!$A:$O,13,FALSE)<>0,VLOOKUP($A83,Aviation!$A:$O,13,FALSE),"") -> 06 | P83: =IF(VLOOKUP($A83,Aviation!$A:$O,14,FALSE)<>0,VLOOKUP($A83,Aviation!$A:$O,14,FALSE),"") -> Lumber River RPO | Q83: =IF(VLOOKUP($A83,Aviation!$A:$O,15,FALSE)<>0,VLOOKUP($A83,Aviation!$A:$O,15,FALSE),"") -> Robeson | W83: Yes
A84: A130332 | B84: Aviation | C84: =IF(VLOOKUP($A84,Aviation!$A:$O,2,FALSE)<>0,VLOOKUP($A84,Aviation!$A:$O,2,FALSE),"") ->  | D84: =IF(VLOOKUP($A84,Aviation!$A:$O,3,FALSE)<>0,VLOOKUP($A84,Aviation!$A:$O,3,FALSE),"") -> Division Needs | E84: =IF(VLOOKUP($A84,Aviation!$A:$O,4,FALSE)<>0,VLOOKUP($A84,Aviation!$A:$O,4,FALSE),"") -> MEB - Laurinburg-Maxton | H84: =IF(VLOOKUP($A84,Aviation!$A:$O,6,FALSE)<>0,VLOOKUP($A84,Aviation!$A:$O,6,FALSE),"") -> This project will remove the existing aged terminal building and replace it with a new 7,500 sf terminal building in the same location. (includes Project Request Numbers: 2932 ) | I84: =IF(VLOOKUP($A84,Aviation!$A:$O,7,FALSE)<>0,VLOOKUP($A84,Aviation!$A:$O,7,FALSE),"") -> 1305 - General Aviation Terminal Building: New Construction | J84: =IF(VLOOKUP($A84,Aviation!$A:$O,8,FALSE)<>0,VLOOKUP($A84,Aviation!$A:$O,8,FALSE),"") -> 2250000 | K84: =IF(VLOOKUP($A84,Aviation!$A:$O,9,FALSE)<>0,VLOOKUP($A84,Aviation!$A:$O,9,FALSE),"") -> N/A | L84: =IF(VLOOKUP($A84,Aviation!$A:$O,10,FALSE)<>0,VLOOKUP($A84,Aviation!$A:$O,10,FALSE),"") -> N/A | M84: =IF(VLOOKUP($A84,Aviation!$A:$O,11,FALSE)<>0,VLOOKUP($A84,Aviation!$A:$O,11,FALSE),"") -> 24.825 | N84: =IF(VLOOKUP($A84,Aviation!$A:$O,12,FALSE)<>0,VLOOKUP($A84,Aviation!$A:$O,12,FALSE),"") -> E | O84: =IF(VLOOKUP($A84,Aviation!$A:$O,13,FALSE)<>0,VLOOKUP($A84,Aviation!$A:$O,13,FALSE),"") -> 08 | P84: =IF(VLOOKUP($A84,Aviation!$A:$O,14,FALSE)<>0,VLOOKUP($A84,Aviation!$A:$O,14,FALSE),"") -> Lumber River RPO | Q84: =IF(VLOOKUP($A84,Aviation!$A:$O,15,FALSE)<>0,VLOOKUP($A84,Aviation!$A:$O,15,FALSE),"") -> Scotland | W84: Yes
A85: A130333 | B85: Aviation | C85: =IF(VLOOKUP($A85,Aviation!$A:$O,2,FALSE)<>0,VLOOKUP($A85,Aviation!$A:$O,2,FALSE),"") ->  | D85: =IF(VLOOKUP($A85,Aviation!$A:$O,3,FALSE)<>0,VLOOKUP($A85,Aviation!$A:$O,3,FALSE),"") -> Division Needs | E85: =IF(VLOOKUP($A85,Aviation!$A:$O,4,FALSE)<>0,VLOOKUP($A85,Aviation!$A:$O,4,FALSE),"") -> MEB - Laurinburg-Maxton | H85: =IF(VLOOKUP($A85,Aviation!$A:$O,6,FALSE)<>0,VLOOKUP($A85,Aviation!$A:$O,6,FALSE),"") -> Replace existing obsolete hangars with a new hangar unit(s). Project includes associated apron parking and access road. The design for this project is complete. (includes Project Request Numbers: 2450 ) | I85: =IF(VLOOKUP($A85,Aviation!$A:$O,7,FALSE)<>0,VLOOKUP($A85,Aviation!$A:$O,7,FALSE),"") -> 1900 - Hangars | J85: =IF(VLOOKUP($A85,Aviation!$A:$O,8,FALSE)<>0,VLOOKUP($A85,Aviation!$A:$O,8,FALSE),"") -> 3775500 | K85: =IF(VLOOKUP($A85,Aviation!$A:$O,9,FALSE)<>0,VLOOKUP($A85,Aviation!$A:$O,9,FALSE),"") -> N/A | L85: =IF(VLOOKUP($A85,Aviation!$A:$O,10,FALSE)<>0,VLOOKUP($A85,Aviation!$A:$O,10,FALSE),"") -> N/A | M85: =IF(VLOOKUP($A85,Aviation!$A:$O,11,FALSE)<>0,VLOOKUP($A85,Aviation!$A:$O,11,FALSE),"") -> 18.3195 | N85: =IF(VLOOKUP($A85,Aviation!$A:$O,12,FALSE)<>0,VLOOKUP($A85,Aviation!$A:$O,12,FALSE),"") -> E | O85: =IF(VLOOKUP($A85,Aviation!$A:$O,13,FALSE)<>0,VLOOKUP($A85,Aviation!$A:$O,13,FALSE),"") -> 08 | P85: =IF(VLOOKUP($A85,Aviation!$A:$O,14,FALSE)<>0,VLOOKUP($A85,Aviation!$A:$O,14,FALSE),"") -> Lumber River RPO | Q85: =IF(VLOOKUP($A85,Aviation!$A:$O,15,FALSE)<>0,VLOOKUP($A85,Aviation!$A:$O,15,FALSE),"") -> Scotland | W85: Yes
A86: A130337 | B86: Aviation | C86: =IF(VLOOKUP($A86,Aviation!$A:$O,2,FALSE)<>0,VLOOKUP($A86,Aviation!$A:$O,2,FALSE),"") ->  | D86: =IF(VLOOKUP($A86,Aviation!$A:$O,3,FALSE)<>0,VLOOKUP($A86,Aviation!$A:$O,3,FALSE),"") -> Division Needs | E86: =IF(VLOOKUP($A86,Aviation!$A:$O,4,FALSE)<>0,VLOOKUP($A86,Aviation!$A:$O,4,FALSE),"") -> MEB - Laurinburg-Maxton | H86: =IF(VLOOKUP($A86,Aviation!$A:$O,6,FALSE)<>0,VLOOKUP($A86,Aviation!$A:$O,6,FALSE),"") -> This project will extend the Runway 5 end by 1500' which will bring Runway 5-23 to 8000' as shown on the current ALP. The project will require relocation of Airport Road and will also include extending the parallel taxiway to the new end of Runway 5 as well as relocating the existing MALSR. (includes Project Request Numbers: 3059 ) | I86: =IF(VLOOKUP($A86,Aviation!$A:$O,7,FALSE)<>0,VLOOKUP($A86,Aviation!$A:$O,7,FALSE),"") -> 0500 - Runway Length/Width | J86: =IF(VLOOKUP($A86,Aviation!$A:$O,8,FALSE)<>0,VLOOKUP($A86,Aviation!$A:$O,8,FALSE),"") -> 5751000 | K86: =IF(VLOOKUP($A86,Aviation!$A:$O,9,FALSE)<>0,VLOOKUP($A86,Aviation!$A:$O,9,FALSE),"") -> N/A | L86: =IF(VLOOKUP($A86,Aviation!$A:$O,10,FALSE)<>0,VLOOKUP($A86,Aviation!$A:$O,10,FALSE),"") -> N/A | M86: =IF(VLOOKUP($A86,Aviation!$A:$O,11,FALSE)<>0,VLOOKUP($A86,Aviation!$A:$O,11,FALSE),"") -> 40.4785 | N86: =IF(VLOOKUP($A86,Aviation!$A:$O,12,FALSE)<>0,VLOOKUP($A86,Aviation!$A:$O,12,FALSE),"") -> E | O86: =IF(VLOOKUP($A86,Aviation!$A:$O,13,FALSE)<>0,VLOOKUP($A86,Aviation!$A:$O,13,FALSE),"") -> 08 | P86: =IF(VLOOKUP($A86,Aviation!$A:$O,14,FALSE)<>0,VLOOKUP($A86,Aviation!$A:$O,14,FALSE),"") -> Lumber River RPO | Q86: =IF(VLOOKUP($A86,Aviation!$A:$O,15,FALSE)<>0,VLOOKUP($A86,Aviation!$A:$O,15,FALSE),"") -> Scotland | W86: Yes
A87: A130339 | B87: Aviation | C87: =IF(VLOOKUP($A87,Aviation!$A:$O,2,FALSE)<>0,VLOOKUP($A87,Aviation!$A:$O,2,FALSE),"") ->  | D87: =IF(VLOOKUP($A87,Aviation!$A:$O,3,FALSE)<>0,VLOOKUP($A87,Aviation!$A:$O,3,FALSE),"") -> Division Needs | E87: =IF(VLOOKUP($A87,Aviation!$A:$O,4,FALSE)<>0,VLOOKUP($A87,Aviation!$A:$O,4,FALSE),"") -> RCZ - Richmond County | H87: =IF(VLOOKUP($A87,Aviation!$A:$O,6,FALSE)<>0,VLOOKUP($A87,Aviation!$A:$O,6,FALSE),"") -> Expand the ramp to allow development of hangars (includes Project Request Numbers: 2942/3238 ) | I87: =IF(VLOOKUP($A87,Aviation!$A:$O,7,FALSE)<>0,VLOOKUP($A87,Aviation!$A:$O,7,FALSE),"") -> 1200 - Aircraft Apron / Helipad Requirements | J87: =IF(VLOOKUP($A87,Aviation!$A:$O,8,FALSE)<>0,VLOOKUP($A87,Aviation!$A:$O,8,FALSE),"") -> 3292200 | K87: =IF(VLOOKUP($A87,Aviation!$A:$O,9,FALSE)<>0,VLOOKUP($A87,Aviation!$A:$O,9,FALSE),"") -> N/A | L87: =IF(VLOOKUP($A87,Aviation!$A:$O,10,FALSE)<>0,VLOOKUP($A87,Aviation!$A:$O,10,FALSE),"") -> N/A | M87: =IF(VLOOKUP($A87,Aviation!$A:$O,11,FALSE)<>0,VLOOKUP($A87,Aviation!$A:$O,11,FALSE),"") -> 30.79 | N87: =IF(VLOOKUP($A87,Aviation!$A:$O,12,FALSE)<>0,VLOOKUP($A87,Aviation!$A:$O,12,FALSE),"") -> E | O87: =IF(VLOOKUP($A87,Aviation!$A:$O,13,FALSE)<>0,VLOOKUP($A87,Aviation!$A:$O,13,FALSE),"") -> 08 | P87: =IF(VLOOKUP($A87,Aviation!$A:$O,14,FALSE)<>0,VLOOKUP($A87,Aviation!$A:$O,14,FALSE),"") -> Lumber River RPO | Q87: =IF(VLOOKUP($A87,Aviation!$A:$O,15,FALSE)<>0,VLOOKUP($A87,Aviation!$A:$O,15,FALSE),"") -> Richmond | W87: Yes
A88: A130343 | B88: Aviation | C88: =IF(VLOOKUP($A88,Aviation!$A:$O,2,FALSE)<>0,VLOOKUP($A88,Aviation!$A:$O,2,FALSE),"") ->  | D88: =IF(VLOOKUP($A88,Aviation!$A:$O,3,FALSE)<>0,VLOOKUP($A88,Aviation!$A:$O,3,FALSE),"") -> Division Needs | E88: =IF(VLOOKUP($A88,Aviation!$A:$O,4,FALSE)<>0,VLOOKUP($A88,Aviation!$A:$O,4,FALSE),"") -> CTZ - Clinton-Sampson County | H88: =IF(VLOOKUP($A88,Aviation!$A:$O,6,FALSE)<>0,VLOOKUP($A88,Aviation!$A:$O,6,FALSE),"") -> Phase 1 Land acquisition obtains property in the Terminal Area to replace existing facilities and hangars displaced in order to relocate the mid-field section of the parallel taxiway and meet the required ROFA (runway object free area); Phase 2 Land acquisition obtains the ultimate object free area; Phase 3 Land acquisition obtains land required to relocate the existing facilities and Hangars currently located inside of the ROFA. (includes Project Request Numbers: 2466/2465/2467/3268 ) | I88: =IF(VLOOKUP($A88,Aviation!$A:$O,7,FALSE)<>0,VLOOKUP($A88,Aviation!$A:$O,7,FALSE),"") -> 1900 - Hangars | J88: =IF(VLOOKUP($A88,Aviation!$A:$O,8,FALSE)<>0,VLOOKUP($A88,Aviation!$A:$O,8,FALSE),"") -> 2398500 | K88: =IF(VLOOKUP($A88,Aviation!$A:$O,9,FALSE)<>0,VLOOKUP($A88,Aviation!$A:$O,9,FALSE),"") -> N/A | L88: =IF(VLOOKUP($A88,Aviation!$A:$O,10,FALSE)<>0,VLOOKUP($A88,Aviation!$A:$O,10,FALSE),"") -> N/A | M88: =IF(VLOOKUP($A88,Aviation!$A:$O,11,FALSE)<>0,VLOOKUP($A88,Aviation!$A:$O,11,FALSE),"") -> 20.0235 | N88: =IF(VLOOKUP($A88,Aviation!$A:$O,12,FALSE)<>0,VLOOKUP($A88,Aviation!$A:$O,12,FALSE),"") -> B | O88: =IF(VLOOKUP($A88,Aviation!$A:$O,13,FALSE)<>0,VLOOKUP($A88,Aviation!$A:$O,13,FALSE),"") -> 03 | P88: =IF(VLOOKUP($A88,Aviation!$A:$O,14,FALSE)<>0,VLOOKUP($A88,Aviation!$A:$O,14,FALSE),"") -> Mid-Carolina RPO | Q88: =IF(VLOOKUP($A88,Aviation!$A:$O,15,FALSE)<>0,VLOOKUP($A88,Aviation!$A:$O,15,FALSE),"") -> Sampson | W88: Yes
A89: A130347 | B89: Aviation | C89: =IF(VLOOKUP($A89,Aviation!$A:$O,2,FALSE)<>0,VLOOKUP($A89,Aviation!$A:$O,2,FALSE),"") ->  | D89: =IF(VLOOKUP($A89,Aviation!$A:$O,3,FALSE)<>0,VLOOKUP($A89,Aviation!$A:$O,3,FALSE),"") -> Division Needs | E89: =IF(VLOOKUP($A89,Aviation!$A:$O,4,FALSE)<>0,VLOOKUP($A89,Aviation!$A:$O,4,FALSE),"") -> CTZ - Clinton-Sampson County | H89: =IF(VLOOKUP($A89,Aviation!$A:$O,6,FALSE)<>0,VLOOKUP($A89,Aviation!$A:$O,6,FALSE),"") -> There are currently no airport owned hangars available for lease on the airport and no leasable area for new private/corporate hangar construction. This project will develop a hangar complex adjacent to the new southwest parallel taxiway. This project will include site preparation for 8 t-hangars to be constructed by the sponsor as well as site preparation for areas to be leased to private entities for hangar construction. (includes Project Request Numbers: 2464 ) | I89: =IF(VLOOKUP($A89,Aviation!$A:$O,7,FALSE)<>0,VLOOKUP($A89,Aviation!$A:$O,7,FALSE),"") -> 1900 - Hangars | J89: =IF(VLOOKUP($A89,Aviation!$A:$O,8,FALSE)<>0,VLOOKUP($A89,Aviation!$A:$O,8,FALSE),"") -> 802800 | K89: =IF(VLOOKUP($A89,Aviation!$A:$O,9,FALSE)<>0,VLOOKUP($A89,Aviation!$A:$O,9,FALSE),"") -> N/A | L89: =IF(VLOOKUP($A89,Aviation!$A:$O,10,FALSE)<>0,VLOOKUP($A89,Aviation!$A:$O,10,FALSE),"") -> N/A | M89: =IF(VLOOKUP($A89,Aviation!$A:$O,11,FALSE)<>0,VLOOKUP($A89,Aviation!$A:$O,11,FALSE),"") -> 21.8425 | N89: =IF(VLOOKUP($A89,Aviation!$A:$O,12,FALSE)<>0,VLOOKUP($A89,Aviation!$A:$O,12,FALSE),"") -> B | O89: =IF(VLOOKUP($A89,Aviation!$A:$O,13,FALSE)<>0,VLOOKUP($A89,Aviation!$A:$O,13,FALSE),"") -> 03 | P89: =IF(VLOOKUP($A89,Aviation!$A:$O,14,FALSE)<>0,VLOOKUP($A89,Aviation!$A:$O,14,FALSE),"") -> Mid-Carolina RPO | Q89: =IF(VLOOKUP($A89,Aviation!$A:$O,15,FALSE)<>0,VLOOKUP($A89,Aviation!$A:$O,15,FALSE),"") -> Sampson | W89: Yes
A90: A130348 | B90: Aviation | C90: =IF(VLOOKUP($A90,Aviation!$A:$O,2,FALSE)<>0,VLOOKUP($A90,Aviation!$A:$O,2,FALSE),"") ->  | D90: =IF(VLOOKUP($A90,Aviation!$A:$O,3,FALSE)<>0,VLOOKUP($A90,Aviation!$A:$O,3,FALSE),"") -> Division Needs | E90: =IF(VLOOKUP($A90,Aviation!$A:$O,4,FALSE)<>0,VLOOKUP($A90,Aviation!$A:$O,4,FALSE),"") -> CTZ - Clinton-Sampson County | H90: =IF(VLOOKUP($A90,Aviation!$A:$O,6,FALSE)<>0,VLOOKUP($A90,Aviation!$A:$O,6,FALSE),"") -> There are currently no airport owned hangars available for lease on the airport and no leasable area for new private/corporate hangar construction. Project will develop a hangar complex adjacent to the new southwest parallel taxiway over the course of four phases. This project will include site preparation for 8 t-hangars to be constructed by the airport as well as site preparation for areas to be leased to private entities for hangar construction. (includes Project Request Numbers: 3265 ) | I90: =IF(VLOOKUP($A90,Aviation!$A:$O,7,FALSE)<>0,VLOOKUP($A90,Aviation!$A:$O,7,FALSE),"") -> 1900 - Hangars | J90: =IF(VLOOKUP($A90,Aviation!$A:$O,8,FALSE)<>0,VLOOKUP($A90,Aviation!$A:$O,8,FALSE),"") -> 792900 | K90: =IF(VLOOKUP($A90,Aviation!$A:$O,9,FALSE)<>0,VLOOKUP($A90,Aviation!$A:$O,9,FALSE),"") -> N/A | L90: =IF(VLOOKUP($A90,Aviation!$A:$O,10,FALSE)<>0,VLOOKUP($A90,Aviation!$A:$O,10,FALSE),"") -> N/A | M90: =IF(VLOOKUP($A90,Aviation!$A:$O,11,FALSE)<>0,VLOOKUP($A90,Aviation!$A:$O,11,FALSE),"") -> 21.8425 | N90: =IF(VLOOKUP($A90,Aviation!$A:$O,12,FALSE)<>0,VLOOKUP($A90,Aviation!$A:$O,12,FALSE),"") -> B | O90: =IF(VLOOKUP($A90,Aviation!$A:$O,13,FALSE)<>0,VLOOKUP($A90,Aviation!$A:$O,13,FALSE),"") -> 03 | P90: =IF(VLOOKUP($A90,Aviation!$A:$O,14,FALSE)<>0,VLOOKUP($A90,Aviation!$A:$O,14,FALSE),"") -> Mid-Carolina RPO | Q90: =IF(VLOOKUP($A90,Aviation!$A:$O,15,FALSE)<>0,VLOOKUP($A90,Aviation!$A:$O,15,FALSE),"") -> Sampson | W90: Yes
A91: A130352 | B91: Aviation | C91: =IF(VLOOKUP($A91,Aviation!$A:$O,2,FALSE)<>0,VLOOKUP($A91,Aviation!$A:$O,2,FALSE),"") ->  | D91: =IF(VLOOKUP($A91,Aviation!$A:$O,3,FALSE)<>0,VLOOKUP($A91,Aviation!$A:$O,3,FALSE),"") -> Division Needs | E91: =IF(VLOOKUP($A91,Aviation!$A:$O,4,FALSE)<>0,VLOOKUP($A91,Aviation!$A:$O,4,FALSE),"") -> EYF - Curtis L. Brown Jr. Field | H91: =IF(VLOOKUP($A91,Aviation!$A:$O,6,FALSE)<>0,VLOOKUP($A91,Aviation!$A:$O,6,FALSE),"") -> The Airport desires to foster economic development through the use of the Airport, therefore this project will acquire land (approx. 33 acres) adjacent to the Airport for development of large corporate hangars/apron or aviation industrial development. (includes Project Request Numbers: 2139 ) | I91: =IF(VLOOKUP($A91,Aviation!$A:$O,7,FALSE)<>0,VLOOKUP($A91,Aviation!$A:$O,7,FALSE),"") -> 1240 - Corporate and T-hangar Taxiway: Construction | J91: =IF(VLOOKUP($A91,Aviation!$A:$O,8,FALSE)<>0,VLOOKUP($A91,Aviation!$A:$O,8,FALSE),"") -> 373500 | K91: =IF(VLOOKUP($A91,Aviation!$A:$O,9,FALSE)<>0,VLOOKUP($A91,Aviation!$A:$O,9,FALSE),"") -> N/A | L91: =IF(VLOOKUP($A91,Aviation!$A:$O,10,FALSE)<>0,VLOOKUP($A91,Aviation!$A:$O,10,FALSE),"") -> N/A | M91: =IF(VLOOKUP($A91,Aviation!$A:$O,11,FALSE)<>0,VLOOKUP($A91,Aviation!$A:$O,11,FALSE),"") -> 34.1715 | N91: =IF(VLOOKUP($A91,Aviation!$A:$O,12,FALSE)<>0,VLOOKUP($A91,Aviation!$A:$O,12,FALSE),"") -> C | O91: =IF(VLOOKUP($A91,Aviation!$A:$O,13,FALSE)<>0,VLOOKUP($A91,Aviation!$A:$O,13,FALSE),"") -> 06 | P91: =IF(VLOOKUP($A91,Aviation!$A:$O,14,FALSE)<>0,VLOOKUP($A91,Aviation!$A:$O,14,FALSE),"") -> Mid-Carolina RPO | Q91: =IF(VLOOKUP($A91,Aviation!$A:$O,15,FALSE)<>0,VLOOKUP($A91,Aviation!$A:$O,15,FALSE),"") -> Bladen | W91: Yes
A92: A130354 | B92: Aviation | C92: =IF(VLOOKUP($A92,Aviation!$A:$O,2,FALSE)<>0,VLOOKUP($A92,Aviation!$A:$O,2,FALSE),"") ->  | D92: =IF(VLOOKUP($A92,Aviation!$A:$O,3,FALSE)<>0,VLOOKUP($A92,Aviation!$A:$O,3,FALSE),"") -> Division Needs | E92: =IF(VLOOKUP($A92,Aviation!$A:$O,4,FALSE)<>0,VLOOKUP($A92,Aviation!$A:$O,4,FALSE),"") -> EYF - Curtis L. Brown Jr. Field | H92: =IF(VLOOKUP($A92,Aviation!$A:$O,6,FALSE)<>0,VLOOKUP($A92,Aviation!$A:$O,6,FALSE),"") -> Site preparation for two new corporate hangars. Project to include site preparation, taxilane and ramp paving, and utility installation. Construction of two hangars totaling approximately 16,400 sq.ft. to be completed by others. (includes Project Request Numbers: 2142 ) | I92: =IF(VLOOKUP($A92,Aviation!$A:$O,7,FALSE)<>0,VLOOKUP($A92,Aviation!$A:$O,7,FALSE),"") -> 1900 - Hangars | J92: =IF(VLOOKUP($A92,Aviation!$A:$O,8,FALSE)<>0,VLOOKUP($A92,Aviation!$A:$O,8,FALSE),"") -> 360000 | K92: =IF(VLOOKUP($A92,Aviation!$A:$O,9,FALSE)<>0,VLOOKUP($A92,Aviation!$A:$O,9,FALSE),"") -> N/A | L92: =IF(VLOOKUP($A92,Aviation!$A:$O,10,FALSE)<>0,VLOOKUP($A92,Aviation!$A:$O,10,FALSE),"") -> N/A | M92: =IF(VLOOKUP($A92,Aviation!$A:$O,11,FALSE)<>0,VLOOKUP($A92,Aviation!$A:$O,11,FALSE),"") -> 24.0585 | N92: =IF(VLOOKUP($A92,Aviation!$A:$O,12,FALSE)<>0,VLOOKUP($A92,Aviation!$A:$O,12,FALSE),"") -> C | O92: =IF(VLOOKUP($A92,Aviation!$A:$O,13,FALSE)<>0,VLOOKUP($A92,Aviation!$A:$O,13,FALSE),"") -> 06 | P92: =IF(VLOOKUP($A92,Aviation!$A:$O,14,FALSE)<>0,VLOOKUP($A92,Aviation!$A:$O,14,FALSE),"") -> Mid-Carolina RPO | Q92: =IF(VLOOKUP($A92,Aviation!$A:$O,15,FALSE)<>0,VLOOKUP($A92,Aviation!$A:$O,15,FALSE),"") -> Bladen | W92: Yes
A93: A130357 | B93: Aviation | C93: =IF(VLOOKUP($A93,Aviation!$A:$O,2,FALSE)<>0,VLOOKUP($A93,Aviation!$A:$O,2,FALSE),"") ->  | D93: =IF(VLOOKUP($A93,Aviation!$A:$O,3,FALSE)<>0,VLOOKUP($A93,Aviation!$A:$O,3,FALSE),"") -> Division Needs | E93: =IF(VLOOKUP($A93,Aviation!$A:$O,4,FALSE)<>0,VLOOKUP($A93,Aviation!$A:$O,4,FALSE),"") -> EYF - Curtis L. Brown Jr. Field | H93: =IF(VLOOKUP($A93,Aviation!$A:$O,6,FALSE)<>0,VLOOKUP($A93,Aviation!$A:$O,6,FALSE),"") -> This project will extend Runway 33 and the parallel taxiway 835'. The 835' extension will allow for an ultimate 5,500'x75'runway plus a 335' displaced threshold on Runway 15. The 335' displaced threshold is necessary to provide a 600' extended runway safety area. The larger ERSA is required for the airport to decrease the approach minimums for Runway 33 from 1 mile visibility to less than 3/4 visibility. (includes Project Request Numbers: 2911 ) | I93: =IF(VLOOKUP($A93,Aviation!$A:$O,7,FALSE)<>0,VLOOKUP($A93,Aviation!$A:$O,7,FALSE),"") -> 0500 - Runway Length/Width | J93: =IF(VLOOKUP($A93,Aviation!$A:$O,8,FALSE)<>0,VLOOKUP($A93,Aviation!$A:$O,8,FALSE),"") -> 2313000 | K93: =IF(VLOOKUP($A93,Aviation!$A:$O,9,FALSE)<>0,VLOOKUP($A93,Aviation!$A:$O,9,FALSE),"") -> N/A | L93: =IF(VLOOKUP($A93,Aviation!$A:$O,10,FALSE)<>0,VLOOKUP($A93,Aviation!$A:$O,10,FALSE),"") -> N/A | M93: =IF(VLOOKUP($A93,Aviation!$A:$O,11,FALSE)<>0,VLOOKUP($A93,Aviation!$A:$O,11,FALSE),"") -> 43.0355 | N93: =IF(VLOOKUP($A93,Aviation!$A:$O,12,FALSE)<>0,VLOOKUP($A93,Aviation!$A:$O,12,FALSE),"") -> C | O93: =IF(VLOOKUP($A93,Aviation!$A:$O,13,FALSE)<>0,VLOOKUP($A93,Aviation!$A:$O,13,FALSE),"") -> 06 | P93: =IF(VLOOKUP($A93,Aviation!$A:$O,14,FALSE)<>0,VLOOKUP($A93,Aviation!$A:$O,14,FALSE),"") -> Mid-Carolina RPO | Q93: =IF(VLOOKUP($A93,Aviation!$A:$O,15,FALSE)<>0,VLOOKUP($A93,Aviation!$A:$O,15,FALSE),"") -> Bladen | W93: Yes
A94: A130361 | B94: Aviation | C94: =IF(VLOOKUP($A94,Aviation!$A:$O,2,FALSE)<>0,VLOOKUP($A94,Aviation!$A:$O,2,FALSE),"") ->  | D94: =IF(VLOOKUP($A94,Aviation!$A:$O,3,FALSE)<>0,VLOOKUP($A94,Aviation!$A:$O,3,FALSE),"") -> Division Needs | E94: =IF(VLOOKUP($A94,Aviation!$A:$O,4,FALSE)<>0,VLOOKUP($A94,Aviation!$A:$O,4,FALSE),"") -> HRJ - Harnett Regional Jetport | H94: =IF(VLOOKUP($A94,Aviation!$A:$O,6,FALSE)<>0,VLOOKUP($A94,Aviation!$A:$O,6,FALSE),"") -> This project will construct much needed hangar taxiways. (includes Project Request Numbers: 2196 ) | I94: =IF(VLOOKUP($A94,Aviation!$A:$O,7,FALSE)<>0,VLOOKUP($A94,Aviation!$A:$O,7,FALSE),"") -> 1100 - Taxiway Requirements | J94: =IF(VLOOKUP($A94,Aviation!$A:$O,8,FALSE)<>0,VLOOKUP($A94,Aviation!$A:$O,8,FALSE),"") -> 727200 | K94: =IF(VLOOKUP($A94,Aviation!$A:$O,9,FALSE)<>0,VLOOKUP($A94,Aviation!$A:$O,9,FALSE),"") -> N/A | L94: =IF(VLOOKUP($A94,Aviation!$A:$O,10,FALSE)<>0,VLOOKUP($A94,Aviation!$A:$O,10,FALSE),"") -> N/A | M94: =IF(VLOOKUP($A94,Aviation!$A:$O,11,FALSE)<>0,VLOOKUP($A94,Aviation!$A:$O,11,FALSE),"") -> 42.6955 | N94: =IF(VLOOKUP($A94,Aviation!$A:$O,12,FALSE)<>0,VLOOKUP($A94,Aviation!$A:$O,12,FALSE),"") -> C | O94: =IF(VLOOKUP($A94,Aviation!$A:$O,13,FALSE)<>0,VLOOKUP($A94,Aviation!$A:$O,13,FALSE),"") -> 06 | P94: =IF(VLOOKUP($A94,Aviation!$A:$O,14,FALSE)<>0,VLOOKUP($A94,Aviation!$A:$O,14,FALSE),"") -> Mid-Carolina RPO | Q94: =IF(VLOOKUP($A94,Aviation!$A:$O,15,FALSE)<>0,VLOOKUP($A94,Aviation!$A:$O,15,FALSE),"") -> Harnett | W94: Yes
A95: A130363 | B95: Aviation | C95: =IF(VLOOKUP($A95,Aviation!$A:$O,2,FALSE)<>0,VLOOKUP($A95,Aviation!$A:$O,2,FALSE),"") ->  | D95: =IF(VLOOKUP($A95,Aviation!$A:$O,3,FALSE)<>0,VLOOKUP($A95,Aviation!$A:$O,3,FALSE),"") -> Division Needs | E95: =IF(VLOOKUP($A95,Aviation!$A:$O,4,FALSE)<>0,VLOOKUP($A95,Aviation!$A:$O,4,FALSE),"") -> HRJ - Harnett Regional Jetport | H95: =IF(VLOOKUP($A95,Aviation!$A:$O,6,FALSE)<>0,VLOOKUP($A95,Aviation!$A:$O,6,FALSE),"") -> Corporate Apron expansion is needed to provide dedicated parking space for larger corporate turboprop and jet aircraft next to the terminal building and to avoid maneuvering conflicts with the fueling apron and hangar access taxiway. Existing apron has 19 tie down locations which is insufficient to meet ADP requirements. Apron area will provide two helicopters. (Includes project request number 2190) | I95: =IF(VLOOKUP($A95,Aviation!$A:$O,7,FALSE)<>0,VLOOKUP($A95,Aviation!$A:$O,7,FALSE),"") -> 1200 - Aircraft Apron / Helipad Requirements | J95: =IF(VLOOKUP($A95,Aviation!$A:$O,8,FALSE)<>0,VLOOKUP($A95,Aviation!$A:$O,8,FALSE),"") -> 1515600 | K95: =IF(VLOOKUP($A95,Aviation!$A:$O,9,FALSE)<>0,VLOOKUP($A95,Aviation!$A:$O,9,FALSE),"") -> N/A | L95: =IF(VLOOKUP($A95,Aviation!$A:$O,10,FALSE)<>0,VLOOKUP($A95,Aviation!$A:$O,10,FALSE),"") -> N/A | M95: =IF(VLOOKUP($A95,Aviation!$A:$O,11,FALSE)<>0,VLOOKUP($A95,Aviation!$A:$O,11,FALSE),"") -> 34.597 | N95: =IF(VLOOKUP($A95,Aviation!$A:$O,12,FALSE)<>0,VLOOKUP($A95,Aviation!$A:$O,12,FALSE),"") -> C | O95: =IF(VLOOKUP($A95,Aviation!$A:$O,13,FALSE)<>0,VLOOKUP($A95,Aviation!$A:$O,13,FALSE),"") -> 06 | P95: =IF(VLOOKUP($A95,Aviation!$A:$O,14,FALSE)<>0,VLOOKUP($A95,Aviation!$A:$O,14,FALSE),"") -> Mid-Carolina RPO | Q95: =IF(VLOOKUP($A95,Aviation!$A:$O,15,FALSE)<>0,VLOOKUP($A95,Aviation!$A:$O,15,FALSE),"") -> Harnett | W95: Yes
A96: A130368 | B96: Aviation | C96: =IF(VLOOKUP($A96,Aviation!$A:$O,2,FALSE)<>0,VLOOKUP($A96,Aviation!$A:$O,2,FALSE),"") ->  | D96: =IF(VLOOKUP($A96,Aviation!$A:$O,3,FALSE)<>0,VLOOKUP($A96,Aviation!$A:$O,3,FALSE),"") -> Division Needs | E96: =IF(VLOOKUP($A96,Aviation!$A:$O,4,FALSE)<>0,VLOOKUP($A96,Aviation!$A:$O,4,FALSE),"") -> HRJ - Harnett Regional Jetport | H96: =IF(VLOOKUP($A96,Aviation!$A:$O,6,FALSE)<>0,VLOOKUP($A96,Aviation!$A:$O,6,FALSE),"") -> The Airport has a waiting list for hangar rental. This will provide needed space. (includes Project Request Numbers: 2195 ) | I96: =IF(VLOOKUP($A96,Aviation!$A:$O,7,FALSE)<>0,VLOOKUP($A96,Aviation!$A:$O,7,FALSE),"") -> 1900 - Hangars | J96: =IF(VLOOKUP($A96,Aviation!$A:$O,8,FALSE)<>0,VLOOKUP($A96,Aviation!$A:$O,8,FALSE),"") -> 1296000 | K96: =IF(VLOOKUP($A96,Aviation!$A:$O,9,FALSE)<>0,VLOOKUP($A96,Aviation!$A:$O,9,FALSE),"") -> N/A | L96: =IF(VLOOKUP($A96,Aviation!$A:$O,10,FALSE)<>0,VLOOKUP($A96,Aviation!$A:$O,10,FALSE),"") -> N/A | M96: =IF(VLOOKUP($A96,Aviation!$A:$O,11,FALSE)<>0,VLOOKUP($A96,Aviation!$A:$O,11,FALSE),"") -> 21.2175 | N96: =IF(VLOOKUP($A96,Aviation!$A:$O,12,FALSE)<>0,VLOOKUP($A96,Aviation!$A:$O,12,FALSE),"") -> C | O96: =IF(VLOOKUP($A96,Aviation!$A:$O,13,FALSE)<>0,VLOOKUP($A96,Aviation!$A:$O,13,FALSE),"") -> 06 | P96: =IF(VLOOKUP($A96,Aviation!$A:$O,14,FALSE)<>0,VLOOKUP($A96,Aviation!$A:$O,14,FALSE),"") -> Mid-Carolina RPO | Q96: =IF(VLOOKUP($A96,Aviation!$A:$O,15,FALSE)<>0,VLOOKUP($A96,Aviation!$A:$O,15,FALSE),"") -> Harnett | W96: Yes
A97: A130369 | B97: Aviation | C97: =IF(VLOOKUP($A97,Aviation!$A:$O,2,FALSE)<>0,VLOOKUP($A97,Aviation!$A:$O,2,FALSE),"") ->  | D97: =IF(VLOOKUP($A97,Aviation!$A:$O,3,FALSE)<>0,VLOOKUP($A97,Aviation!$A:$O,3,FALSE),"") -> Division Needs | E97: =IF(VLOOKUP($A97,Aviation!$A:$O,4,FALSE)<>0,VLOOKUP($A97,Aviation!$A:$O,4,FALSE),"") -> HRJ - Harnett Regional Jetport | H97: =IF(VLOOKUP($A97,Aviation!$A:$O,6,FALSE)<>0,VLOOKUP($A97,Aviation!$A:$O,6,FALSE),"") -> This project will construct much needed hangars. (includes Project Request Numbers: 2198 ) | I97: =IF(VLOOKUP($A97,Aviation!$A:$O,7,FALSE)<>0,VLOOKUP($A97,Aviation!$A:$O,7,FALSE),"") -> 1900 - Hangars | J97: =IF(VLOOKUP($A97,Aviation!$A:$O,8,FALSE)<>0,VLOOKUP($A97,Aviation!$A:$O,8,FALSE),"") -> 805500 | K97: =IF(VLOOKUP($A97,Aviation!$A:$O,9,FALSE)<>0,VLOOKUP($A97,Aviation!$A:$O,9,FALSE),"") -> N/A | L97: =IF(VLOOKUP($A97,Aviation!$A:$O,10,FALSE)<>0,VLOOKUP($A97,Aviation!$A:$O,10,FALSE),"") -> N/A | M97: =IF(VLOOKUP($A97,Aviation!$A:$O,11,FALSE)<>0,VLOOKUP($A97,Aviation!$A:$O,11,FALSE),"") -> 23.0925 | N97: =IF(VLOOKUP($A97,Aviation!$A:$O,12,FALSE)<>0,VLOOKUP($A97,Aviation!$A:$O,12,FALSE),"") -> C | O97: =IF(VLOOKUP($A97,Aviation!$A:$O,13,FALSE)<>0,VLOOKUP($A97,Aviation!$A:$O,13,FALSE),"") -> 06 | P97: =IF(VLOOKUP($A97,Aviation!$A:$O,14,FALSE)<>0,VLOOKUP($A97,Aviation!$A:$O,14,FALSE),"") -> Mid-Carolina RPO | Q97: =IF(VLOOKUP($A97,Aviation!$A:$O,15,FALSE)<>0,VLOOKUP($A97,Aviation!$A:$O,15,FALSE),"") -> Harnett | W97: Yes
A98: A130373 | B98: Aviation | C98: =IF(VLOOKUP($A98,Aviation!$A:$O,2,FALSE)<>0,VLOOKUP($A98,Aviation!$A:$O,2,FALSE),"") ->  | D98: =IF(VLOOKUP($A98,Aviation!$A:$O,3,FALSE)<>0,VLOOKUP($A98,Aviation!$A:$O,3,FALSE),"") -> Division Needs | E98: =IF(VLOOKUP($A98,Aviation!$A:$O,4,FALSE)<>0,VLOOKUP($A98,Aviation!$A:$O,4,FALSE),"") -> MCZ - Martin County | H98: =IF(VLOOKUP($A98,Aviation!$A:$O,6,FALSE)<>0,VLOOKUP($A98,Aviation!$A:$O,6,FALSE),"") -> Construction of new T-Hangar Taxilanes. Construction of apron for two corporate hangars, including site preparation for hangars (approximately 1540 sqyd..). (includes Project Request Numbers: 2155/2836 ) | I98: =IF(VLOOKUP($A98,Aviation!$A:$O,7,FALSE)<>0,VLOOKUP($A98,Aviation!$A:$O,7,FALSE),"") -> 1240 - Corporate and T-hangar Taxiway: Construction | J98: =IF(VLOOKUP($A98,Aviation!$A:$O,8,FALSE)<>0,VLOOKUP($A98,Aviation!$A:$O,8,FALSE),"") -> 234000 | K98: =IF(VLOOKUP($A98,Aviation!$A:$O,9,FALSE)<>0,VLOOKUP($A98,Aviation!$A:$O,9,FALSE),"") -> N/A | L98: =IF(VLOOKUP($A98,Aviation!$A:$O,10,FALSE)<>0,VLOOKUP($A98,Aviation!$A:$O,10,FALSE),"") -> N/A | M98: =IF(VLOOKUP($A98,Aviation!$A:$O,11,FALSE)<>0,VLOOKUP($A98,Aviation!$A:$O,11,FALSE),"") -> 37.1255 | N98: =IF(VLOOKUP($A98,Aviation!$A:$O,12,FALSE)<>0,VLOOKUP($A98,Aviation!$A:$O,12,FALSE),"") -> A | O98: =IF(VLOOKUP($A98,Aviation!$A:$O,13,FALSE)<>0,VLOOKUP($A98,Aviation!$A:$O,13,FALSE),"") -> 01 | P98: =IF(VLOOKUP($A98,Aviation!$A:$O,14,FALSE)<>0,VLOOKUP($A98,Aviation!$A:$O,14,FALSE),"") -> Mid-East RPO | Q98: =IF(VLOOKUP($A98,Aviation!$A:$O,15,FALSE)<>0,VLOOKUP($A98,Aviation!$A:$O,15,FALSE),"") -> Martin | W98: Yes
A99: A130374 | B99: Aviation | C99: =IF(VLOOKUP($A99,Aviation!$A:$O,2,FALSE)<>0,VLOOKUP($A99,Aviation!$A:$O,2,FALSE),"") ->  | D99: =IF(VLOOKUP($A99,Aviation!$A:$O,3,FALSE)<>0,VLOOKUP($A99,Aviation!$A:$O,3,FALSE),"") -> Division Needs | E99: =IF(VLOOKUP($A99,Aviation!$A:$O,4,FALSE)<>0,VLOOKUP($A99,Aviation!$A:$O,4,FALSE),"") -> MCZ - Martin County | H99: =IF(VLOOKUP($A99,Aviation!$A:$O,6,FALSE)<>0,VLOOKUP($A99,Aviation!$A:$O,6,FALSE),"") -> Construct 60'x60' corporate hangar. (includes Project Request Numbers: 2837 ) | I99: =IF(VLOOKUP($A99,Aviation!$A:$O,7,FALSE)<>0,VLOOKUP($A99,Aviation!$A:$O,7,FALSE),"") -> 1900 - Hangars | J99: =IF(VLOOKUP($A99,Aviation!$A:$O,8,FALSE)<>0,VLOOKUP($A99,Aviation!$A:$O,8,FALSE),"") -> 238500 | K99: =IF(VLOOKUP($A99,Aviation!$A:$O,9,FALSE)<>0,VLOOKUP($A99,Aviation!$A:$O,9,FALSE),"") -> N/A | L99: =IF(VLOOKUP($A99,Aviation!$A:$O,10,FALSE)<>0,VLOOKUP($A99,Aviation!$A:$O,10,FALSE),"") -> N/A | M99: =IF(VLOOKUP($A99,Aviation!$A:$O,11,FALSE)<>0,VLOOKUP($A99,Aviation!$A:$O,11,FALSE),"") -> 24.6265 | N99: =IF(VLOOKUP($A99,Aviation!$A:$O,12,FALSE)<>0,VLOOKUP($A99,Aviation!$A:$O,12,FALSE),"") -> A | O99: =IF(VLOOKUP($A99,Aviation!$A:$O,13,FALSE)<>0,VLOOKUP($A99,Aviation!$A:$O,13,FALSE),"") -> 01 | P99: =IF(VLOOKUP($A99,Aviation!$A:$O,14,FALSE)<>0,VLOOKUP($A99,Aviation!$A:$O,14,FALSE),"") -> Mid-East RPO | Q99: =IF(VLOOKUP($A99,Aviation!$A:$O,15,FALSE)<>0,VLOOKUP($A99,Aviation!$A:$O,15,FALSE),"") -> Martin | W99: Yes
A100: A130375 | B100: Aviation | C100: =IF(VLOOKUP($A100,Aviation!$A:$O,2,FALSE)<>0,VLOOKUP($A100,Aviation!$A:$O,2,FALSE),"") ->  | D100: =IF(VLOOKUP($A100,Aviation!$A:$O,3,FALSE)<>0,VLOOKUP($A100,Aviation!$A:$O,3,FALSE),"") -> Division Needs | E100: =IF(VLOOKUP($A100,Aviation!$A:$O,4,FALSE)<>0,VLOOKUP($A100,Aviation!$A:$O,4,FALSE),"") -> MCZ - Martin County | H100: =IF(VLOOKUP($A100,Aviation!$A:$O,6,FALSE)<>0,VLOOKUP($A100,Aviation!$A:$O,6,FALSE),"") -> Construct a 10 unit T-Hangar Construct an access road to existing T-hangars (includes Project Request Numbers: 2156/2154 ) | I100: =IF(VLOOKUP($A100,Aviation!$A:$O,7,FALSE)<>0,VLOOKUP($A100,Aviation!$A:$O,7,FALSE),"") -> 1900 - Hangars | J100: =IF(VLOOKUP($A100,Aviation!$A:$O,8,FALSE)<>0,VLOOKUP($A100,Aviation!$A:$O,8,FALSE),"") -> 535500 | K100: =IF(VLOOKUP($A100,Aviation!$A:$O,9,FALSE)<>0,VLOOKUP($A100,Aviation!$A:$O,9,FALSE),"") -> N/A | L100: =IF(VLOOKUP($A100,Aviation!$A:$O,10,FALSE)<>0,VLOOKUP($A100,Aviation!$A:$O,10,FALSE),"") -> N/A | M100: =IF(VLOOKUP($A100,Aviation!$A:$O,11,FALSE)<>0,VLOOKUP($A100,Aviation!$A:$O,11,FALSE),"") -> 23.3765 | N100: =IF(VLOOKUP($A100,Aviation!$A:$O,12,FALSE)<>0,VLOOKUP($A100,Aviation!$A:$O,12,FALSE),"") -> A | O100: =IF(VLOOKUP($A100,Aviation!$A:$O,13,FALSE)<>0,VLOOKUP($A100,Aviation!$A:$O,13,FALSE),"") -> 01 | P100: =IF(VLOOKUP($A100,Aviation!$A:$O,14,FALSE)<>0,VLOOKUP($A100,Aviation!$A:$O,14,FALSE),"") -> Mid-East RPO | Q100: =IF(VLOOKUP($A100,Aviation!$A:$O,15,FALSE)<>0,VLOOKUP($A100,Aviation!$A:$O,15,FALSE),"") -> Martin | W100: Yes
A101: A130378 | B101: Aviation | C101: =IF(VLOOKUP($A101,Aviation!$A:$O,2,FALSE)<>0,VLOOKUP($A101,Aviation!$A:$O,2,FALSE),"") ->  | D101: =IF(VLOOKUP($A101,Aviation!$A:$O,3,FALSE)<>0,VLOOKUP($A101,Aviation!$A:$O,3,FALSE),"") -> Division Needs | E101: =IF(VLOOKUP($A101,Aviation!$A:$O,4,FALSE)<>0,VLOOKUP($A101,Aviation!$A:$O,4,FALSE),"") -> OCW - Warren Field | H101: =IF(VLOOKUP($A101,Aviation!$A:$O,6,FALSE)<>0,VLOOKUP($A101,Aviation!$A:$O,6,FALSE),"") -> Includes construction of a new 6 unit T-Hangar, Site Preparation, and necessary taxiway located south of the existing T- Hangar development. The airport requests the ability to reserve FY 17, 18, and 19 Vision 100 Funds to complete this project. (includes Project Request Numbers: 2672 ) | I101: =IF(VLOOKUP($A101,Aviation!$A:$O,7,FALSE)<>0,VLOOKUP($A101,Aviation!$A:$O,7,FALSE),"") -> 1900 - Hangars | J101: =IF(VLOOKUP($A101,Aviation!$A:$O,8,FALSE)<>0,VLOOKUP($A101,Aviation!$A:$O,8,FALSE),"") -> 504000 | K101: =IF(VLOOKUP($A101,Aviation!$A:$O,9,FALSE)<>0,VLOOKUP($A101,Aviation!$A:$O,9,FALSE),"") -> N/A | L101: =IF(VLOOKUP($A101,Aviation!$A:$O,10,FALSE)<>0,VLOOKUP($A101,Aviation!$A:$O,10,FALSE),"") -> N/A | M101: =IF(VLOOKUP($A101,Aviation!$A:$O,11,FALSE)<>0,VLOOKUP($A101,Aviation!$A:$O,11,FALSE),"") -> 23.4895 | N101: =IF(VLOOKUP($A101,Aviation!$A:$O,12,FALSE)<>0,VLOOKUP($A101,Aviation!$A:$O,12,FALSE),"") -> B | O101: =IF(VLOOKUP($A101,Aviation!$A:$O,13,FALSE)<>0,VLOOKUP($A101,Aviation!$A:$O,13,FALSE),"") -> 02 | P101: =IF(VLOOKUP($A101,Aviation!$A:$O,14,FALSE)<>0,VLOOKUP($A101,Aviation!$A:$O,14,FALSE),"") -> Mid-East RPO | Q101: =IF(VLOOKUP($A101,Aviation!$A:$O,15,FALSE)<>0,VLOOKUP($A101,Aviation!$A:$O,15,FALSE),"") -> Beaufort | W101: Yes
A102: A130379 | B102: Aviation | C102: =IF(VLOOKUP($A102,Aviation!$A:$O,2,FALSE)<>0,VLOOKUP($A102,Aviation!$A:$O,2,FALSE),"") ->  | D102: =IF(VLOOKUP($A102,Aviation!$A:$O,3,FALSE)<>0,VLOOKUP($A102,Aviation!$A:$O,3,FALSE),"") -> Division Needs | E102: =IF(VLOOKUP($A102,Aviation!$A:$O,4,FALSE)<>0,VLOOKUP($A102,Aviation!$A:$O,4,FALSE),"") -> OCW - Warren Field | H102: =IF(VLOOKUP($A102,Aviation!$A:$O,6,FALSE)<>0,VLOOKUP($A102,Aviation!$A:$O,6,FALSE),"") -> Project incudes design and construction of new 100' x 100' maintenance hangar. The existing hangar was damaged during the tornado that hit the airport in 2012. The airport request the ability to reserve FY 14,15 and 16 vision 100 Funds to complete this project. (includes Project Request Numbers: 3003 ) | I102: =IF(VLOOKUP($A102,Aviation!$A:$O,7,FALSE)<>0,VLOOKUP($A102,Aviation!$A:$O,7,FALSE),"") -> 1900 - Hangars | J102: =IF(VLOOKUP($A102,Aviation!$A:$O,8,FALSE)<>0,VLOOKUP($A102,Aviation!$A:$O,8,FALSE),"") -> 585000 | K102: =IF(VLOOKUP($A102,Aviation!$A:$O,9,FALSE)<>0,VLOOKUP($A102,Aviation!$A:$O,9,FALSE),"") -> N/A | L102: =IF(VLOOKUP($A102,Aviation!$A:$O,10,FALSE)<>0,VLOOKUP($A102,Aviation!$A:$O,10,FALSE),"") -> N/A | M102: =IF(VLOOKUP($A102,Aviation!$A:$O,11,FALSE)<>0,VLOOKUP($A102,Aviation!$A:$O,11,FALSE),"") -> 23.0925 | N102: =IF(VLOOKUP($A102,Aviation!$A:$O,12,FALSE)<>0,VLOOKUP($A102,Aviation!$A:$O,12,FALSE),"") -> B | O102: =IF(VLOOKUP($A102,Aviation!$A:$O,13,FALSE)<>0,VLOOKUP($A102,Aviation!$A:$O,13,FALSE),"") -> 02 | P102: =IF(VLOOKUP($A102,Aviation!$A:$O,14,FALSE)<>0,VLOOKUP($A102,Aviation!$A:$O,14,FALSE),"") -> Mid-East RPO | Q102: =IF(VLOOKUP($A102,Aviation!$A:$O,15,FALSE)<>0,VLOOKUP($A102,Aviation!$A:$O,15,FALSE),"") -> Beaufort | W102: Yes
A103: A130380 | B103: Aviation | C103: =IF(VLOOKUP($A103,Aviation!$A:$O,2,FALSE)<>0,VLOOKUP($A103,Aviation!$A:$O,2,FALSE),"") ->  | D103: =IF(VLOOKUP($A103,Aviation!$A:$O,3,FALSE)<>0,VLOOKUP($A103,Aviation!$A:$O,3,FALSE),"") -> Division Needs | E103: =IF(VLOOKUP($A103,Aviation!$A:$O,4,FALSE)<>0,VLOOKUP($A103,Aviation!$A:$O,4,FALSE),"") -> OCW - Warren Field | H103: =IF(VLOOKUP($A103,Aviation!$A:$O,6,FALSE)<>0,VLOOKUP($A103,Aviation!$A:$O,6,FALSE),"") -> Project involves installation of approximately 2400 LF of new gravity sewer line from the intersection of Airport Road and Market Street to the terminal area to serve existing and future corporate hangar tenants and the maintenance hangar. (includes Project Request Numbers: 3002 ) | I103: =IF(VLOOKUP($A103,Aviation!$A:$O,7,FALSE)<>0,VLOOKUP($A103,Aviation!$A:$O,7,FALSE),"") -> 1900 - Hangars | J103: =IF(VLOOKUP($A103,Aviation!$A:$O,8,FALSE)<>0,VLOOKUP($A103,Aviation!$A:$O,8,FALSE),"") -> 306000 | K103: =IF(VLOOKUP($A103,Aviation!$A:$O,9,FALSE)<>0,VLOOKUP($A103,Aviation!$A:$O,9,FALSE),"") -> N/A | L103: =IF(VLOOKUP($A103,Aviation!$A:$O,10,FALSE)<>0,VLOOKUP($A103,Aviation!$A:$O,10,FALSE),"") -> N/A | M103: =IF(VLOOKUP($A103,Aviation!$A:$O,11,FALSE)<>0,VLOOKUP($A103,Aviation!$A:$O,11,FALSE),"") -> 22.6945 | N103: =IF(VLOOKUP($A103,Aviation!$A:$O,12,FALSE)<>0,VLOOKUP($A103,Aviation!$A:$O,12,FALSE),"") -> B | O103: =IF(VLOOKUP($A103,Aviation!$A:$O,13,FALSE)<>0,VLOOKUP($A103,Aviation!$A:$O,13,FALSE),"") -> 02 | P103: =IF(VLOOKUP($A103,Aviation!$A:$O,14,FALSE)<>0,VLOOKUP($A103,Aviation!$A:$O,14,FALSE),"") -> Mid-East RPO | Q103: =IF(VLOOKUP($A103,Aviation!$A:$O,15,FALSE)<>0,VLOOKUP($A103,Aviation!$A:$O,15,FALSE),"") -> Beaufort | W103: Yes
A104: A130384 | B104: Aviation | C104: =IF(VLOOKUP($A104,Aviation!$A:$O,2,FALSE)<>0,VLOOKUP($A104,Aviation!$A:$O,2,FALSE),"") ->  | D104: =IF(VLOOKUP($A104,Aviation!$A:$O,3,FALSE)<>0,VLOOKUP($A104,Aviation!$A:$O,3,FALSE),"") -> Regional Impact | E104: =IF(VLOOKUP($A104,Aviation!$A:$O,4,FALSE)<>0,VLOOKUP($A104,Aviation!$A:$O,4,FALSE),"") -> EWN - Coastal Carolina Regional | H104: =IF(VLOOKUP($A104,Aviation!$A:$O,6,FALSE)<>0,VLOOKUP($A104,Aviation!$A:$O,6,FALSE),"") -> This project includes the design for a corporate area apron, taxiway, and access road to accommodate development needs for the Airport. The area was cleared of trees to remove wildlife habitat within the airport fence line. Includes the coordination with regulatory agencies in order to mitigate and acquire the permits for the land associated with the Runway 32 corporate area expansion. (includes Project Request Numbers: 3159, 3167, 3166 ) | I104: =IF(VLOOKUP($A104,Aviation!$A:$O,7,FALSE)<>0,VLOOKUP($A104,Aviation!$A:$O,7,FALSE),"") -> 1900 - Hangars | J104: =IF(VLOOKUP($A104,Aviation!$A:$O,8,FALSE)<>0,VLOOKUP($A104,Aviation!$A:$O,8,FALSE),"") -> 300000 | K104: =IF(VLOOKUP($A104,Aviation!$A:$O,9,FALSE)<>0,VLOOKUP($A104,Aviation!$A:$O,9,FALSE),"") -> N/A | L104: =IF(VLOOKUP($A104,Aviation!$A:$O,10,FALSE)<>0,VLOOKUP($A104,Aviation!$A:$O,10,FALSE),"") -> 39.2805 | M104: =IF(VLOOKUP($A104,Aviation!$A:$O,11,FALSE)<>0,VLOOKUP($A104,Aviation!$A:$O,11,FALSE),"") -> 22.7535 | N104: =IF(VLOOKUP($A104,Aviation!$A:$O,12,FALSE)<>0,VLOOKUP($A104,Aviation!$A:$O,12,FALSE),"") -> B | O104: =IF(VLOOKUP($A104,Aviation!$A:$O,13,FALSE)<>0,VLOOKUP($A104,Aviation!$A:$O,13,FALSE),"") -> 02 | P104: =IF(VLOOKUP($A104,Aviation!$A:$O,14,FALSE)<>0,VLOOKUP($A104,Aviation!$A:$O,14,FALSE),"") -> New Bern MPO | Q104: =IF(VLOOKUP($A104,Aviation!$A:$O,15,FALSE)<>0,VLOOKUP($A104,Aviation!$A:$O,15,FALSE),"") -> Craven | W104: Yes
A105: A130385 | B105: Aviation | C105: =IF(VLOOKUP($A105,Aviation!$A:$O,2,FALSE)<>0,VLOOKUP($A105,Aviation!$A:$O,2,FALSE),"") ->  | D105: =IF(VLOOKUP($A105,Aviation!$A:$O,3,FALSE)<>0,VLOOKUP($A105,Aviation!$A:$O,3,FALSE),"") -> Regional Impact | E105: =IF(VLOOKUP($A105,Aviation!$A:$O,4,FALSE)<>0,VLOOKUP($A105,Aviation!$A:$O,4,FALSE),"") -> EWN - Coastal Carolina Regional | H105: =IF(VLOOKUP($A105,Aviation!$A:$O,6,FALSE)<>0,VLOOKUP($A105,Aviation!$A:$O,6,FALSE),"") -> This project includes the design and construction of taxiways, taxi lanes, and apron areas to allow for the construction of hangars to accommodate General Aviation needs on newly acquired property. The existing General Aviation area has reached the physical limits of expansion needed for future growth. We have a waiting list for hangars, and this expansion will allow the airport to satisfy that demand. (includes Project Request Numbers: 3161/3157 ) | I105: =IF(VLOOKUP($A105,Aviation!$A:$O,7,FALSE)<>0,VLOOKUP($A105,Aviation!$A:$O,7,FALSE),"") -> 1240 - Corporate and T-hangar Taxiway: Construction | J105: =IF(VLOOKUP($A105,Aviation!$A:$O,8,FALSE)<>0,VLOOKUP($A105,Aviation!$A:$O,8,FALSE),"") -> 300000 | K105: =IF(VLOOKUP($A105,Aviation!$A:$O,9,FALSE)<>0,VLOOKUP($A105,Aviation!$A:$O,9,FALSE),"") -> N/A | L105: =IF(VLOOKUP($A105,Aviation!$A:$O,10,FALSE)<>0,VLOOKUP($A105,Aviation!$A:$O,10,FALSE),"") -> 53.679 | M105: =IF(VLOOKUP($A105,Aviation!$A:$O,11,FALSE)<>0,VLOOKUP($A105,Aviation!$A:$O,11,FALSE),"") -> 38.1785 | N105: =IF(VLOOKUP($A105,Aviation!$A:$O,12,FALSE)<>0,VLOOKUP($A105,Aviation!$A:$O,12,FALSE),"") -> B | O105: =IF(VLOOKUP($A105,Aviation!$A:$O,13,FALSE)<>0,VLOOKUP($A105,Aviation!$A:$O,13,FALSE),"") -> 02 | P105: =IF(VLOOKUP($A105,Aviation!$A:$O,14,FALSE)<>0,VLOOKUP($A105,Aviation!$A:$O,14,FALSE),"") -> New Bern MPO | Q105: =IF(VLOOKUP($A105,Aviation!$A:$O,15,FALSE)<>0,VLOOKUP($A105,Aviation!$A:$O,15,FALSE),"") -> Craven | W105: Yes
A106: A130386 | B106: Aviation | C106: =IF(VLOOKUP($A106,Aviation!$A:$O,2,FALSE)<>0,VLOOKUP($A106,Aviation!$A:$O,2,FALSE),"") ->  | D106: =IF(VLOOKUP($A106,Aviation!$A:$O,3,FALSE)<>0,VLOOKUP($A106,Aviation!$A:$O,3,FALSE),"") -> Regional Impact | E106: =IF(VLOOKUP($A106,Aviation!$A:$O,4,FALSE)<>0,VLOOKUP($A106,Aviation!$A:$O,4,FALSE),"") -> EWN - Coastal Carolina Regional | H106: =IF(VLOOKUP($A106,Aviation!$A:$O,6,FALSE)<>0,VLOOKUP($A106,Aviation!$A:$O,6,FALSE),"") -> The project includes the design of apron and taxiway/taxi lanes and the removal of old outdated T-hangars. This will allow the construction of new corporate/GA hangars to accommodate growth. This project will allow expansion of the current apron and allow construction of modern corporate and General Aviation hangars. (includes Project Request Numbers: 3164/3165 ) | I106: =IF(VLOOKUP($A106,Aviation!$A:$O,7,FALSE)<>0,VLOOKUP($A106,Aviation!$A:$O,7,FALSE),"") -> 1900 - Hangars | J106: =IF(VLOOKUP($A106,Aviation!$A:$O,8,FALSE)<>0,VLOOKUP($A106,Aviation!$A:$O,8,FALSE),"") -> 300000 | K106: =IF(VLOOKUP($A106,Aviation!$A:$O,9,FALSE)<>0,VLOOKUP($A106,Aviation!$A:$O,9,FALSE),"") -> N/A | L106: =IF(VLOOKUP($A106,Aviation!$A:$O,10,FALSE)<>0,VLOOKUP($A106,Aviation!$A:$O,10,FALSE),"") -> 41.5195 | M106: =IF(VLOOKUP($A106,Aviation!$A:$O,11,FALSE)<>0,VLOOKUP($A106,Aviation!$A:$O,11,FALSE),"") -> 24.627 | N106: =IF(VLOOKUP($A106,Aviation!$A:$O,12,FALSE)<>0,VLOOKUP($A106,Aviation!$A:$O,12,FALSE),"") -> B | O106: =IF(VLOOKUP($A106,Aviation!$A:$O,13,FALSE)<>0,VLOOKUP($A106,Aviation!$A:$O,13,FALSE),"") -> 02 | P106: =IF(VLOOKUP($A106,Aviation!$A:$O,14,FALSE)<>0,VLOOKUP($A106,Aviation!$A:$O,14,FALSE),"") -> New Bern MPO | Q106: =IF(VLOOKUP($A106,Aviation!$A:$O,15,FALSE)<>0,VLOOKUP($A106,Aviation!$A:$O,15,FALSE),"") -> Craven | W106: Yes
A107: A130387 | B107: Aviation | C107: =IF(VLOOKUP($A107,Aviation!$A:$O,2,FALSE)<>0,VLOOKUP($A107,Aviation!$A:$O,2,FALSE),"") ->  | D107: =IF(VLOOKUP($A107,Aviation!$A:$O,3,FALSE)<>0,VLOOKUP($A107,Aviation!$A:$O,3,FALSE),"") -> Regional Impact | E107: =IF(VLOOKUP($A107,Aviation!$A:$O,4,FALSE)<>0,VLOOKUP($A107,Aviation!$A:$O,4,FALSE),"") -> EWN - Coastal Carolina Regional | H107: =IF(VLOOKUP($A107,Aviation!$A:$O,6,FALSE)<>0,VLOOKUP($A107,Aviation!$A:$O,6,FALSE),"") -> Land acquisition of approximately seven acres on Clermont road to accommodate future expansion of the airport. Joined with the property on which the old passenger terminal was located, provides easy access to Runway 4/22 and Runway 14/32. (includes Project Request Numbers: 3172 | I107: =IF(VLOOKUP($A107,Aviation!$A:$O,7,FALSE)<>0,VLOOKUP($A107,Aviation!$A:$O,7,FALSE),"") -> 3005 - Other: Not otherwise defined in system plan objectives | J107: =IF(VLOOKUP($A107,Aviation!$A:$O,8,FALSE)<>0,VLOOKUP($A107,Aviation!$A:$O,8,FALSE),"") -> 300000 | K107: =IF(VLOOKUP($A107,Aviation!$A:$O,9,FALSE)<>0,VLOOKUP($A107,Aviation!$A:$O,9,FALSE),"") -> N/A | L107: =IF(VLOOKUP($A107,Aviation!$A:$O,10,FALSE)<>0,VLOOKUP($A107,Aviation!$A:$O,10,FALSE),"") -> 25.4655 | M107: =IF(VLOOKUP($A107,Aviation!$A:$O,11,FALSE)<>0,VLOOKUP($A107,Aviation!$A:$O,11,FALSE),"") -> 12.9785 | N107: =IF(VLOOKUP($A107,Aviation!$A:$O,12,FALSE)<>0,VLOOKUP($A107,Aviation!$A:$O,12,FALSE),"") -> B | O107: =IF(VLOOKUP($A107,Aviation!$A:$O,13,FALSE)<>0,VLOOKUP($A107,Aviation!$A:$O,13,FALSE),"") -> 02 | P107: =IF(VLOOKUP($A107,Aviation!$A:$O,14,FALSE)<>0,VLOOKUP($A107,Aviation!$A:$O,14,FALSE),"") -> New Bern MPO | Q107: =IF(VLOOKUP($A107,Aviation!$A:$O,15,FALSE)<>0,VLOOKUP($A107,Aviation!$A:$O,15,FALSE),"") -> Craven | W107: Yes
A108: A130388 | B108: Aviation | C108: =IF(VLOOKUP($A108,Aviation!$A:$O,2,FALSE)<>0,VLOOKUP($A108,Aviation!$A:$O,2,FALSE),"") ->  | D108: =IF(VLOOKUP($A108,Aviation!$A:$O,3,FALSE)<>0,VLOOKUP($A108,Aviation!$A:$O,3,FALSE),"") -> Regional Impact | E108: =IF(VLOOKUP($A108,Aviation!$A:$O,4,FALSE)<>0,VLOOKUP($A108,Aviation!$A:$O,4,FALSE),"") -> EWN - Coastal Carolina Regional | H108: =IF(VLOOKUP($A108,Aviation!$A:$O,6,FALSE)<>0,VLOOKUP($A108,Aviation!$A:$O,6,FALSE),"") -> This project consists of the coordination, justification, and construction of a new Air Traffic Control Tower to replace the existing, aging structure. The airport's control tower was dedicated in 1974. It was vacated when President Reagan fired the striking air traffic controllers. It sat empty until it was put into service once again in 1999. It is a functioning, but aged structure in need of replacement. (includes Project Request Numbers: 3197 ) | I108: =IF(VLOOKUP($A108,Aviation!$A:$O,7,FALSE)<>0,VLOOKUP($A108,Aviation!$A:$O,7,FALSE),"") -> 3005 - Other: Not otherwise defined in system plan objectives | J108: =IF(VLOOKUP($A108,Aviation!$A:$O,8,FALSE)<>0,VLOOKUP($A108,Aviation!$A:$O,8,FALSE),"") -> 300000 | K108: =IF(VLOOKUP($A108,Aviation!$A:$O,9,FALSE)<>0,VLOOKUP($A108,Aviation!$A:$O,9,FALSE),"") -> N/A | L108: =IF(VLOOKUP($A108,Aviation!$A:$O,10,FALSE)<>0,VLOOKUP($A108,Aviation!$A:$O,10,FALSE),"") -> 21.6995 | M108: =IF(VLOOKUP($A108,Aviation!$A:$O,11,FALSE)<>0,VLOOKUP($A108,Aviation!$A:$O,11,FALSE),"") -> 8.777 | N108: =IF(VLOOKUP($A108,Aviation!$A:$O,12,FALSE)<>0,VLOOKUP($A108,Aviation!$A:$O,12,FALSE),"") -> B | O108: =IF(VLOOKUP($A108,Aviation!$A:$O,13,FALSE)<>0,VLOOKUP($A108,Aviation!$A:$O,13,FALSE),"") -> 02 | P108: =IF(VLOOKUP($A108,Aviation!$A:$O,14,FALSE)<>0,VLOOKUP($A108,Aviation!$A:$O,14,FALSE),"") -> New Bern MPO | Q108: =IF(VLOOKUP($A108,Aviation!$A:$O,15,FALSE)<>0,VLOOKUP($A108,Aviation!$A:$O,15,FALSE),"") -> Craven | W108: Yes
A109: A130394 | B109: Aviation | C109: =IF(VLOOKUP($A109,Aviation!$A:$O,2,FALSE)<>0,VLOOKUP($A109,Aviation!$A:$O,2,FALSE),"") ->  | D109: =IF(VLOOKUP($A109,Aviation!$A:$O,3,FALSE)<>0,VLOOKUP($A109,Aviation!$A:$O,3,FALSE),"") -> Division Needs | E109: =IF(VLOOKUP($A109,Aviation!$A:$O,4,FALSE)<>0,VLOOKUP($A109,Aviation!$A:$O,4,FALSE),"") -> MWK - Mount Airy-Surry County | H109: =IF(VLOOKUP($A109,Aviation!$A:$O,6,FALSE)<>0,VLOOKUP($A109,Aviation!$A:$O,6,FALSE),"") -> Construct general aviation apron in vicinity of new terminal building. All tie-down spaces are currently used. This project will increase the aircraft parking apron by approximately 14,500 square yards adding an additional 12 tie-down spaces and space for itinerant aircraft parking. Construct aircraft storage hangars to accommodate additional aircraft. (includes Project Request Numbers: 2594/2602/2604/2609 ) | I109: =IF(VLOOKUP($A109,Aviation!$A:$O,7,FALSE)<>0,VLOOKUP($A109,Aviation!$A:$O,7,FALSE),"") -> 1200 - Aircraft Apron / Helipad Requirements | J109: =IF(VLOOKUP($A109,Aviation!$A:$O,8,FALSE)<>0,VLOOKUP($A109,Aviation!$A:$O,8,FALSE),"") -> 5373000 | K109: =IF(VLOOKUP($A109,Aviation!$A:$O,9,FALSE)<>0,VLOOKUP($A109,Aviation!$A:$O,9,FALSE),"") -> N/A | L109: =IF(VLOOKUP($A109,Aviation!$A:$O,10,FALSE)<>0,VLOOKUP($A109,Aviation!$A:$O,10,FALSE),"") -> N/A | M109: =IF(VLOOKUP($A109,Aviation!$A:$O,11,FALSE)<>0,VLOOKUP($A109,Aviation!$A:$O,11,FALSE),"") -> 30.563 | N109: =IF(VLOOKUP($A109,Aviation!$A:$O,12,FALSE)<>0,VLOOKUP($A109,Aviation!$A:$O,12,FALSE),"") -> F | O109: =IF(VLOOKUP($A109,Aviation!$A:$O,13,FALSE)<>0,VLOOKUP($A109,Aviation!$A:$O,13,FALSE),"") -> 11 | P109: =IF(VLOOKUP($A109,Aviation!$A:$O,14,FALSE)<>0,VLOOKUP($A109,Aviation!$A:$O,14,FALSE),"") -> Northwest Piedmont RPO | Q109: =IF(VLOOKUP($A109,Aviation!$A:$O,15,FALSE)<>0,VLOOKUP($A109,Aviation!$A:$O,15,FALSE),"") -> Surry | W109: Yes
A110: A130407 | B110: Aviation | C110: =IF(VLOOKUP($A110,Aviation!$A:$O,2,FALSE)<>0,VLOOKUP($A110,Aviation!$A:$O,2,FALSE),"") ->  | D110: =IF(VLOOKUP($A110,Aviation!$A:$O,3,FALSE)<>0,VLOOKUP($A110,Aviation!$A:$O,3,FALSE),"") -> Division Needs | E110: =IF(VLOOKUP($A110,Aviation!$A:$O,4,FALSE)<>0,VLOOKUP($A110,Aviation!$A:$O,4,FALSE),"") -> ZEF - Elkin Municipal | H110: =IF(VLOOKUP($A110,Aviation!$A:$O,6,FALSE)<>0,VLOOKUP($A110,Aviation!$A:$O,6,FALSE),"") -> New Terminal Building to serve the airport, transient pilots, flight training and improve aesthetics for the patrons. Improvement to the airport's safety and security, access to the apron, airfield, and aircraft by controlling access through the new terminal building at an improved location and with improved fencing. (includes Project Request Numbers: 2223 ) | I110: =IF(VLOOKUP($A110,Aviation!$A:$O,7,FALSE)<>0,VLOOKUP($A110,Aviation!$A:$O,7,FALSE),"") -> 1305 - General Aviation Terminal Building: New Construction | J110: =IF(VLOOKUP($A110,Aviation!$A:$O,8,FALSE)<>0,VLOOKUP($A110,Aviation!$A:$O,8,FALSE),"") -> 1381050 | K110: =IF(VLOOKUP($A110,Aviation!$A:$O,9,FALSE)<>0,VLOOKUP($A110,Aviation!$A:$O,9,FALSE),"") -> N/A | L110: =IF(VLOOKUP($A110,Aviation!$A:$O,10,FALSE)<>0,VLOOKUP($A110,Aviation!$A:$O,10,FALSE),"") -> N/A | M110: =IF(VLOOKUP($A110,Aviation!$A:$O,11,FALSE)<>0,VLOOKUP($A110,Aviation!$A:$O,11,FALSE),"") -> 26.643 | N110: =IF(VLOOKUP($A110,Aviation!$A:$O,12,FALSE)<>0,VLOOKUP($A110,Aviation!$A:$O,12,FALSE),"") -> F | O110: =IF(VLOOKUP($A110,Aviation!$A:$O,13,FALSE)<>0,VLOOKUP($A110,Aviation!$A:$O,13,FALSE),"") -> 11 | P110: =IF(VLOOKUP($A110,Aviation!$A:$O,14,FALSE)<>0,VLOOKUP($A110,Aviation!$A:$O,14,FALSE),"") -> Northwest Piedmont RPO | Q110: =IF(VLOOKUP($A110,Aviation!$A:$O,15,FALSE)<>0,VLOOKUP($A110,Aviation!$A:$O,15,FALSE),"") -> Surry | W110: Yes
A111: A130409 | B111: Aviation | C111: =IF(VLOOKUP($A111,Aviation!$A:$O,2,FALSE)<>0,VLOOKUP($A111,Aviation!$A:$O,2,FALSE),"") ->  | D111: =IF(VLOOKUP($A111,Aviation!$A:$O,3,FALSE)<>0,VLOOKUP($A111,Aviation!$A:$O,3,FALSE),"") -> Division Needs | E111: =IF(VLOOKUP($A111,Aviation!$A:$O,4,FALSE)<>0,VLOOKUP($A111,Aviation!$A:$O,4,FALSE),"") -> ZEF - Elkin Municipal | H111: =IF(VLOOKUP($A111,Aviation!$A:$O,6,FALSE)<>0,VLOOKUP($A111,Aviation!$A:$O,6,FALSE),"") -> This project will prepare multiple individual hangar location for build out by the airport or individuals, provide additional T-hangars and box hangars on the eastside of the terminal area andexpand the apron and provide additional tiedowns. This project will increase the number of tiedowns, provide an additional taxilane to facilitate aircraft movements. This project can be phased. (includes Project Request Numbers: 2222/2225/2227 ) | I111: =IF(VLOOKUP($A111,Aviation!$A:$O,7,FALSE)<>0,VLOOKUP($A111,Aviation!$A:$O,7,FALSE),"") -> 1900 - Hangars | J111: =IF(VLOOKUP($A111,Aviation!$A:$O,8,FALSE)<>0,VLOOKUP($A111,Aviation!$A:$O,8,FALSE),"") -> 3406050 | K111: =IF(VLOOKUP($A111,Aviation!$A:$O,9,FALSE)<>0,VLOOKUP($A111,Aviation!$A:$O,9,FALSE),"") -> N/A | L111: =IF(VLOOKUP($A111,Aviation!$A:$O,10,FALSE)<>0,VLOOKUP($A111,Aviation!$A:$O,10,FALSE),"") -> N/A | M111: =IF(VLOOKUP($A111,Aviation!$A:$O,11,FALSE)<>0,VLOOKUP($A111,Aviation!$A:$O,11,FALSE),"") -> 17.1835 | N111: =IF(VLOOKUP($A111,Aviation!$A:$O,12,FALSE)<>0,VLOOKUP($A111,Aviation!$A:$O,12,FALSE),"") -> F | O111: =IF(VLOOKUP($A111,Aviation!$A:$O,13,FALSE)<>0,VLOOKUP($A111,Aviation!$A:$O,13,FALSE),"") -> 11 | P111: =IF(VLOOKUP($A111,Aviation!$A:$O,14,FALSE)<>0,VLOOKUP($A111,Aviation!$A:$O,14,FALSE),"") -> Northwest Piedmont RPO | Q111: =IF(VLOOKUP($A111,Aviation!$A:$O,15,FALSE)<>0,VLOOKUP($A111,Aviation!$A:$O,15,FALSE),"") -> Surry | W111: Yes
A112: A130413 | B112: Aviation | C112: =IF(VLOOKUP($A112,Aviation!$A:$O,2,FALSE)<>0,VLOOKUP($A112,Aviation!$A:$O,2,FALSE),"") ->  | D112: =IF(VLOOKUP($A112,Aviation!$A:$O,3,FALSE)<>0,VLOOKUP($A112,Aviation!$A:$O,3,FALSE),"") -> Division Needs | E112: =IF(VLOOKUP($A112,Aviation!$A:$O,4,FALSE)<>0,VLOOKUP($A112,Aviation!$A:$O,4,FALSE),"") -> ASJ - Tri-County | H112: =IF(VLOOKUP($A112,Aviation!$A:$O,6,FALSE)<>0,VLOOKUP($A112,Aviation!$A:$O,6,FALSE),"") -> This project will provide access to the T-Hangars that are to be constructed. (includes Project Request Numbers: 2648 ) | I112: =IF(VLOOKUP($A112,Aviation!$A:$O,7,FALSE)<>0,VLOOKUP($A112,Aviation!$A:$O,7,FALSE),"") -> 1240 - Corporate and T-hangar Taxiway: Construction | J112: =IF(VLOOKUP($A112,Aviation!$A:$O,8,FALSE)<>0,VLOOKUP($A112,Aviation!$A:$O,8,FALSE),"") -> 257130 | K112: =IF(VLOOKUP($A112,Aviation!$A:$O,9,FALSE)<>0,VLOOKUP($A112,Aviation!$A:$O,9,FALSE),"") -> N/A | L112: =IF(VLOOKUP($A112,Aviation!$A:$O,10,FALSE)<>0,VLOOKUP($A112,Aviation!$A:$O,10,FALSE),"") -> N/A | M112: =IF(VLOOKUP($A112,Aviation!$A:$O,11,FALSE)<>0,VLOOKUP($A112,Aviation!$A:$O,11,FALSE),"") -> 38.8875 | N112: =IF(VLOOKUP($A112,Aviation!$A:$O,12,FALSE)<>0,VLOOKUP($A112,Aviation!$A:$O,12,FALSE),"") -> A | O112: =IF(VLOOKUP($A112,Aviation!$A:$O,13,FALSE)<>0,VLOOKUP($A112,Aviation!$A:$O,13,FALSE),"") -> 01 | P112: =IF(VLOOKUP($A112,Aviation!$A:$O,14,FALSE)<>0,VLOOKUP($A112,Aviation!$A:$O,14,FALSE),"") -> Peanut Belt RPO | Q112: =IF(VLOOKUP($A112,Aviation!$A:$O,15,FALSE)<>0,VLOOKUP($A112,Aviation!$A:$O,15,FALSE),"") -> Hertford | W112: Yes
A113: A130416 | B113: Aviation | C113: =IF(VLOOKUP($A113,Aviation!$A:$O,2,FALSE)<>0,VLOOKUP($A113,Aviation!$A:$O,2,FALSE),"") ->  | D113: =IF(VLOOKUP($A113,Aviation!$A:$O,3,FALSE)<>0,VLOOKUP($A113,Aviation!$A:$O,3,FALSE),"") -> Division Needs | E113: =IF(VLOOKUP($A113,Aviation!$A:$O,4,FALSE)<>0,VLOOKUP($A113,Aviation!$A:$O,4,FALSE),"") -> ASJ - Tri-County | H113: =IF(VLOOKUP($A113,Aviation!$A:$O,6,FALSE)<>0,VLOOKUP($A113,Aviation!$A:$O,6,FALSE),"") -> This project will construct a 500' runway extension for a 5000' runway. (includes Project Request Numbers: 2639 ) | I113: =IF(VLOOKUP($A113,Aviation!$A:$O,7,FALSE)<>0,VLOOKUP($A113,Aviation!$A:$O,7,FALSE),"") -> 0500 - Runway Length/Width | J113: =IF(VLOOKUP($A113,Aviation!$A:$O,8,FALSE)<>0,VLOOKUP($A113,Aviation!$A:$O,8,FALSE),"") -> 611190 | K113: =IF(VLOOKUP($A113,Aviation!$A:$O,9,FALSE)<>0,VLOOKUP($A113,Aviation!$A:$O,9,FALSE),"") -> N/A | L113: =IF(VLOOKUP($A113,Aviation!$A:$O,10,FALSE)<>0,VLOOKUP($A113,Aviation!$A:$O,10,FALSE),"") -> N/A | M113: =IF(VLOOKUP($A113,Aviation!$A:$O,11,FALSE)<>0,VLOOKUP($A113,Aviation!$A:$O,11,FALSE),"") -> 46.2175 | N113: =IF(VLOOKUP($A113,Aviation!$A:$O,12,FALSE)<>0,VLOOKUP($A113,Aviation!$A:$O,12,FALSE),"") -> A | O113: =IF(VLOOKUP($A113,Aviation!$A:$O,13,FALSE)<>0,VLOOKUP($A113,Aviation!$A:$O,13,FALSE),"") -> 01 | P113: =IF(VLOOKUP($A113,Aviation!$A:$O,14,FALSE)<>0,VLOOKUP($A113,Aviation!$A:$O,14,FALSE),"") -> Peanut Belt RPO | Q113: =IF(VLOOKUP($A113,Aviation!$A:$O,15,FALSE)<>0,VLOOKUP($A113,Aviation!$A:$O,15,FALSE),"") -> Hertford | W113: Yes
A114: A130417 | B114: Aviation | C114: =IF(VLOOKUP($A114,Aviation!$A:$O,2,FALSE)<>0,VLOOKUP($A114,Aviation!$A:$O,2,FALSE),"") ->  | D114: =IF(VLOOKUP($A114,Aviation!$A:$O,3,FALSE)<>0,VLOOKUP($A114,Aviation!$A:$O,3,FALSE),"") -> Division Needs | E114: =IF(VLOOKUP($A114,Aviation!$A:$O,4,FALSE)<>0,VLOOKUP($A114,Aviation!$A:$O,4,FALSE),"") -> IXA - Halifax-Northampton Regional | H114: =IF(VLOOKUP($A114,Aviation!$A:$O,6,FALSE)<>0,VLOOKUP($A114,Aviation!$A:$O,6,FALSE),"") -> Construction of taxilane and apron for corporate hangar development and site preparation for 6 corporate hangars and associated parking lots. (includes Project Request Numbers: 2170 ) | I114: =IF(VLOOKUP($A114,Aviation!$A:$O,7,FALSE)<>0,VLOOKUP($A114,Aviation!$A:$O,7,FALSE),"") -> 1240 - Corporate and T-hangar Taxiway: Construction | J114: =IF(VLOOKUP($A114,Aviation!$A:$O,8,FALSE)<>0,VLOOKUP($A114,Aviation!$A:$O,8,FALSE),"") -> 643500 | K114: =IF(VLOOKUP($A114,Aviation!$A:$O,9,FALSE)<>0,VLOOKUP($A114,Aviation!$A:$O,9,FALSE),"") -> N/A | L114: =IF(VLOOKUP($A114,Aviation!$A:$O,10,FALSE)<>0,VLOOKUP($A114,Aviation!$A:$O,10,FALSE),"") -> N/A | M114: =IF(VLOOKUP($A114,Aviation!$A:$O,11,FALSE)<>0,VLOOKUP($A114,Aviation!$A:$O,11,FALSE),"") -> 36.2165 | N114: =IF(VLOOKUP($A114,Aviation!$A:$O,12,FALSE)<>0,VLOOKUP($A114,Aviation!$A:$O,12,FALSE),"") -> A | O114: =IF(VLOOKUP($A114,Aviation!$A:$O,13,FALSE)<>0,VLOOKUP($A114,Aviation!$A:$O,13,FALSE),"") -> 04 | P114: =IF(VLOOKUP($A114,Aviation!$A:$O,14,FALSE)<>0,VLOOKUP($A114,Aviation!$A:$O,14,FALSE),"") -> Peanut Belt RPO | Q114: =IF(VLOOKUP($A114,Aviation!$A:$O,15,FALSE)<>0,VLOOKUP($A114,Aviation!$A:$O,15,FALSE),"") -> Halifax | W114: Yes
A115: A130419 | B115: Aviation | C115: =IF(VLOOKUP($A115,Aviation!$A:$O,2,FALSE)<>0,VLOOKUP($A115,Aviation!$A:$O,2,FALSE),"") ->  | D115: =IF(VLOOKUP($A115,Aviation!$A:$O,3,FALSE)<>0,VLOOKUP($A115,Aviation!$A:$O,3,FALSE),"") -> Division Needs | E115: =IF(VLOOKUP($A115,Aviation!$A:$O,4,FALSE)<>0,VLOOKUP($A115,Aviation!$A:$O,4,FALSE),"") -> IXA - Halifax-Northampton Regional | H115: =IF(VLOOKUP($A115,Aviation!$A:$O,6,FALSE)<>0,VLOOKUP($A115,Aviation!$A:$O,6,FALSE),"") -> Construction of taxilane and site preparation for additional T-Hangars. (includes Project Request Numbers: 2788 ) | I115: =IF(VLOOKUP($A115,Aviation!$A:$O,7,FALSE)<>0,VLOOKUP($A115,Aviation!$A:$O,7,FALSE),"") -> 1240 - Corporate and T-hangar Taxiway: Construction | J115: =IF(VLOOKUP($A115,Aviation!$A:$O,8,FALSE)<>0,VLOOKUP($A115,Aviation!$A:$O,8,FALSE),"") -> 315000 | K115: =IF(VLOOKUP($A115,Aviation!$A:$O,9,FALSE)<>0,VLOOKUP($A115,Aviation!$A:$O,9,FALSE),"") -> N/A | L115: =IF(VLOOKUP($A115,Aviation!$A:$O,10,FALSE)<>0,VLOOKUP($A115,Aviation!$A:$O,10,FALSE),"") -> N/A | M115: =IF(VLOOKUP($A115,Aviation!$A:$O,11,FALSE)<>0,VLOOKUP($A115,Aviation!$A:$O,11,FALSE),"") -> 38.9445 | N115: =IF(VLOOKUP($A115,Aviation!$A:$O,12,FALSE)<>0,VLOOKUP($A115,Aviation!$A:$O,12,FALSE),"") -> A | O115: =IF(VLOOKUP($A115,Aviation!$A:$O,13,FALSE)<>0,VLOOKUP($A115,Aviation!$A:$O,13,FALSE),"") -> 04 | P115: =IF(VLOOKUP($A115,Aviation!$A:$O,14,FALSE)<>0,VLOOKUP($A115,Aviation!$A:$O,14,FALSE),"") -> Peanut Belt RPO | Q115: =IF(VLOOKUP($A115,Aviation!$A:$O,15,FALSE)<>0,VLOOKUP($A115,Aviation!$A:$O,15,FALSE),"") -> Halifax | W115: Yes
A116: A130420 | B116: Aviation | C116: =IF(VLOOKUP($A116,Aviation!$A:$O,2,FALSE)<>0,VLOOKUP($A116,Aviation!$A:$O,2,FALSE),"") ->  | D116: =IF(VLOOKUP($A116,Aviation!$A:$O,3,FALSE)<>0,VLOOKUP($A116,Aviation!$A:$O,3,FALSE),"") -> Division Needs | E116: =IF(VLOOKUP($A116,Aviation!$A:$O,4,FALSE)<>0,VLOOKUP($A116,Aviation!$A:$O,4,FALSE),"") -> IXA - Halifax-Northampton Regional | H116: =IF(VLOOKUP($A116,Aviation!$A:$O,6,FALSE)<>0,VLOOKUP($A116,Aviation!$A:$O,6,FALSE),"") -> Construction of one 10 unit T-Hangar building. (includes Project Request Numbers: 2789 ) | I116: =IF(VLOOKUP($A116,Aviation!$A:$O,7,FALSE)<>0,VLOOKUP($A116,Aviation!$A:$O,7,FALSE),"") -> 1900 - Hangars | J116: =IF(VLOOKUP($A116,Aviation!$A:$O,8,FALSE)<>0,VLOOKUP($A116,Aviation!$A:$O,8,FALSE),"") -> 51750 | K116: =IF(VLOOKUP($A116,Aviation!$A:$O,9,FALSE)<>0,VLOOKUP($A116,Aviation!$A:$O,9,FALSE),"") -> N/A | L116: =IF(VLOOKUP($A116,Aviation!$A:$O,10,FALSE)<>0,VLOOKUP($A116,Aviation!$A:$O,10,FALSE),"") -> N/A | M116: =IF(VLOOKUP($A116,Aviation!$A:$O,11,FALSE)<>0,VLOOKUP($A116,Aviation!$A:$O,11,FALSE),"") -> 27.0695 | N116: =IF(VLOOKUP($A116,Aviation!$A:$O,12,FALSE)<>0,VLOOKUP($A116,Aviation!$A:$O,12,FALSE),"") -> A | O116: =IF(VLOOKUP($A116,Aviation!$A:$O,13,FALSE)<>0,VLOOKUP($A116,Aviation!$A:$O,13,FALSE),"") -> 04 | P116: =IF(VLOOKUP($A116,Aviation!$A:$O,14,FALSE)<>0,VLOOKUP($A116,Aviation!$A:$O,14,FALSE),"") -> Peanut Belt RPO | Q116: =IF(VLOOKUP($A116,Aviation!$A:$O,15,FALSE)<>0,VLOOKUP($A116,Aviation!$A:$O,15,FALSE),"") -> Halifax | W116: Yes
A117: A130421 | B117: Aviation | C117: =IF(VLOOKUP($A117,Aviation!$A:$O,2,FALSE)<>0,VLOOKUP($A117,Aviation!$A:$O,2,FALSE),"") ->  | D117: =IF(VLOOKUP($A117,Aviation!$A:$O,3,FALSE)<>0,VLOOKUP($A117,Aviation!$A:$O,3,FALSE),"") -> Division Needs | E117: =IF(VLOOKUP($A117,Aviation!$A:$O,4,FALSE)<>0,VLOOKUP($A117,Aviation!$A:$O,4,FALSE),"") -> IXA - Halifax-Northampton Regional | H117: =IF(VLOOKUP($A117,Aviation!$A:$O,6,FALSE)<>0,VLOOKUP($A117,Aviation!$A:$O,6,FALSE),"") -> Construction of a 100' X 120' aircraft maintenance hanger. (includes Project Request Numbers: 2791 ) | I117: =IF(VLOOKUP($A117,Aviation!$A:$O,7,FALSE)<>0,VLOOKUP($A117,Aviation!$A:$O,7,FALSE),"") -> 1900 - Hangars | J117: =IF(VLOOKUP($A117,Aviation!$A:$O,8,FALSE)<>0,VLOOKUP($A117,Aviation!$A:$O,8,FALSE),"") -> 720000 | K117: =IF(VLOOKUP($A117,Aviation!$A:$O,9,FALSE)<>0,VLOOKUP($A117,Aviation!$A:$O,9,FALSE),"") -> N/A | L117: =IF(VLOOKUP($A117,Aviation!$A:$O,10,FALSE)<>0,VLOOKUP($A117,Aviation!$A:$O,10,FALSE),"") -> N/A | M117: =IF(VLOOKUP($A117,Aviation!$A:$O,11,FALSE)<>0,VLOOKUP($A117,Aviation!$A:$O,11,FALSE),"") -> 23.7175 | N117: =IF(VLOOKUP($A117,Aviation!$A:$O,12,FALSE)<>0,VLOOKUP($A117,Aviation!$A:$O,12,FALSE),"") -> A | O117: =IF(VLOOKUP($A117,Aviation!$A:$O,13,FALSE)<>0,VLOOKUP($A117,Aviation!$A:$O,13,FALSE),"") -> 04 | P117: =IF(VLOOKUP($A117,Aviation!$A:$O,14,FALSE)<>0,VLOOKUP($A117,Aviation!$A:$O,14,FALSE),"") -> Peanut Belt RPO | Q117: =IF(VLOOKUP($A117,Aviation!$A:$O,15,FALSE)<>0,VLOOKUP($A117,Aviation!$A:$O,15,FALSE),"") -> Halifax | W117: Yes
A118: A130422 | B118: Aviation | C118: =IF(VLOOKUP($A118,Aviation!$A:$O,2,FALSE)<>0,VLOOKUP($A118,Aviation!$A:$O,2,FALSE),"") ->  | D118: =IF(VLOOKUP($A118,Aviation!$A:$O,3,FALSE)<>0,VLOOKUP($A118,Aviation!$A:$O,3,FALSE),"") -> Division Needs | E118: =IF(VLOOKUP($A118,Aviation!$A:$O,4,FALSE)<>0,VLOOKUP($A118,Aviation!$A:$O,4,FALSE),"") -> IXA - Halifax-Northampton Regional | H118: =IF(VLOOKUP($A118,Aviation!$A:$O,6,FALSE)<>0,VLOOKUP($A118,Aviation!$A:$O,6,FALSE),"") -> Construct new Access road, taxiway and small apron for corporate development of the LSA facility. Still awaiting Grant. (includes Project Request Numbers: 2165 ) | I118: =IF(VLOOKUP($A118,Aviation!$A:$O,7,FALSE)<>0,VLOOKUP($A118,Aviation!$A:$O,7,FALSE),"") -> 1240 - Corporate and T-hangar Taxiway: Construction | J118: =IF(VLOOKUP($A118,Aviation!$A:$O,8,FALSE)<>0,VLOOKUP($A118,Aviation!$A:$O,8,FALSE),"") -> 364500 | K118: =IF(VLOOKUP($A118,Aviation!$A:$O,9,FALSE)<>0,VLOOKUP($A118,Aviation!$A:$O,9,FALSE),"") -> N/A | L118: =IF(VLOOKUP($A118,Aviation!$A:$O,10,FALSE)<>0,VLOOKUP($A118,Aviation!$A:$O,10,FALSE),"") -> N/A | M118: =IF(VLOOKUP($A118,Aviation!$A:$O,11,FALSE)<>0,VLOOKUP($A118,Aviation!$A:$O,11,FALSE),"") -> 37.1825 | N118: =IF(VLOOKUP($A118,Aviation!$A:$O,12,FALSE)<>0,VLOOKUP($A118,Aviation!$A:$O,12,FALSE),"") -> A | O118: =IF(VLOOKUP($A118,Aviation!$A:$O,13,FALSE)<>0,VLOOKUP($A118,Aviation!$A:$O,13,FALSE),"") -> 04 | P118: =IF(VLOOKUP($A118,Aviation!$A:$O,14,FALSE)<>0,VLOOKUP($A118,Aviation!$A:$O,14,FALSE),"") -> Peanut Belt RPO | Q118: =IF(VLOOKUP($A118,Aviation!$A:$O,15,FALSE)<>0,VLOOKUP($A118,Aviation!$A:$O,15,FALSE),"") -> Halifax | W118: Yes
A119: A130423 | B119: Aviation | C119: =IF(VLOOKUP($A119,Aviation!$A:$O,2,FALSE)<>0,VLOOKUP($A119,Aviation!$A:$O,2,FALSE),"") ->  | D119: =IF(VLOOKUP($A119,Aviation!$A:$O,3,FALSE)<>0,VLOOKUP($A119,Aviation!$A:$O,3,FALSE),"") -> Division Needs | E119: =IF(VLOOKUP($A119,Aviation!$A:$O,4,FALSE)<>0,VLOOKUP($A119,Aviation!$A:$O,4,FALSE),"") -> SIF - Rockingham County / NC Shiloh | H119: =IF(VLOOKUP($A119,Aviation!$A:$O,6,FALSE)<>0,VLOOKUP($A119,Aviation!$A:$O,6,FALSE),"") -> Expand terminal apron to allow for additional aircraft parking areas. (includes Project Request Numbers: 2542 ) | I119: =IF(VLOOKUP($A119,Aviation!$A:$O,7,FALSE)<>0,VLOOKUP($A119,Aviation!$A:$O,7,FALSE),"") -> 1200 - Aircraft Apron / Helipad Requirements | J119: =IF(VLOOKUP($A119,Aviation!$A:$O,8,FALSE)<>0,VLOOKUP($A119,Aviation!$A:$O,8,FALSE),"") -> 1818000 | K119: =IF(VLOOKUP($A119,Aviation!$A:$O,9,FALSE)<>0,VLOOKUP($A119,Aviation!$A:$O,9,FALSE),"") -> N/A | L119: =IF(VLOOKUP($A119,Aviation!$A:$O,10,FALSE)<>0,VLOOKUP($A119,Aviation!$A:$O,10,FALSE),"") -> N/A | M119: =IF(VLOOKUP($A119,Aviation!$A:$O,11,FALSE)<>0,VLOOKUP($A119,Aviation!$A:$O,11,FALSE),"") -> 33.972 | N119: =IF(VLOOKUP($A119,Aviation!$A:$O,12,FALSE)<>0,VLOOKUP($A119,Aviation!$A:$O,12,FALSE),"") -> D | O119: =IF(VLOOKUP($A119,Aviation!$A:$O,13,FALSE)<>0,VLOOKUP($A119,Aviation!$A:$O,13,FALSE),"") -> 07 | P119: =IF(VLOOKUP($A119,Aviation!$A:$O,14,FALSE)<>0,VLOOKUP($A119,Aviation!$A:$O,14,FALSE),"") -> Piedmont Triad RPO | Q119: =IF(VLOOKUP($A119,Aviation!$A:$O,15,FALSE)<>0,VLOOKUP($A119,Aviation!$A:$O,15,FALSE),"") -> Rockingham | W119: Yes
A120: A130424 | B120: Aviation | C120: =IF(VLOOKUP($A120,Aviation!$A:$O,2,FALSE)<>0,VLOOKUP($A120,Aviation!$A:$O,2,FALSE),"") ->  | D120: =IF(VLOOKUP($A120,Aviation!$A:$O,3,FALSE)<>0,VLOOKUP($A120,Aviation!$A:$O,3,FALSE),"") -> Division Needs | E120: =IF(VLOOKUP($A120,Aviation!$A:$O,4,FALSE)<>0,VLOOKUP($A120,Aviation!$A:$O,4,FALSE),"") -> SIF - Rockingham County / NC Shiloh | H120: =IF(VLOOKUP($A120,Aviation!$A:$O,6,FALSE)<>0,VLOOKUP($A120,Aviation!$A:$O,6,FALSE),"") -> Construct t-hangar taxilanes for addition of t-hangars. (includes Project Request Numbers: 2541 ) | I120: =IF(VLOOKUP($A120,Aviation!$A:$O,7,FALSE)<>0,VLOOKUP($A120,Aviation!$A:$O,7,FALSE),"") -> 1900 - Hangars | J120: =IF(VLOOKUP($A120,Aviation!$A:$O,8,FALSE)<>0,VLOOKUP($A120,Aviation!$A:$O,8,FALSE),"") -> 574290 | K120: =IF(VLOOKUP($A120,Aviation!$A:$O,9,FALSE)<>0,VLOOKUP($A120,Aviation!$A:$O,9,FALSE),"") -> N/A | L120: =IF(VLOOKUP($A120,Aviation!$A:$O,10,FALSE)<>0,VLOOKUP($A120,Aviation!$A:$O,10,FALSE),"") -> N/A | M120: =IF(VLOOKUP($A120,Aviation!$A:$O,11,FALSE)<>0,VLOOKUP($A120,Aviation!$A:$O,11,FALSE),"") -> 24.5125 | N120: =IF(VLOOKUP($A120,Aviation!$A:$O,12,FALSE)<>0,VLOOKUP($A120,Aviation!$A:$O,12,FALSE),"") -> D | O120: =IF(VLOOKUP($A120,Aviation!$A:$O,13,FALSE)<>0,VLOOKUP($A120,Aviation!$A:$O,13,FALSE),"") -> 07 | P120: =IF(VLOOKUP($A120,Aviation!$A:$O,14,FALSE)<>0,VLOOKUP($A120,Aviation!$A:$O,14,FALSE),"") -> Piedmont Triad RPO | Q120: =IF(VLOOKUP($A120,Aviation!$A:$O,15,FALSE)<>0,VLOOKUP($A120,Aviation!$A:$O,15,FALSE),"") -> Rockingham | W120: Yes
A121: A130425 | B121: Aviation | C121: =IF(VLOOKUP($A121,Aviation!$A:$O,2,FALSE)<>0,VLOOKUP($A121,Aviation!$A:$O,2,FALSE),"") ->  | D121: =IF(VLOOKUP($A121,Aviation!$A:$O,3,FALSE)<>0,VLOOKUP($A121,Aviation!$A:$O,3,FALSE),"") -> Division Needs | E121: =IF(VLOOKUP($A121,Aviation!$A:$O,4,FALSE)<>0,VLOOKUP($A121,Aviation!$A:$O,4,FALSE),"") -> SIF - Rockingham County / NC Shiloh | H121: =IF(VLOOKUP($A121,Aviation!$A:$O,6,FALSE)<>0,VLOOKUP($A121,Aviation!$A:$O,6,FALSE),"") -> Construct corporate hangars (six - 60 'x 60') and access aprons. (includes Project Request Numbers: 2544 ) | I121: =IF(VLOOKUP($A121,Aviation!$A:$O,7,FALSE)<>0,VLOOKUP($A121,Aviation!$A:$O,7,FALSE),"") -> 1900 - Hangars | J121: =IF(VLOOKUP($A121,Aviation!$A:$O,8,FALSE)<>0,VLOOKUP($A121,Aviation!$A:$O,8,FALSE),"") -> 1455570 | K121: =IF(VLOOKUP($A121,Aviation!$A:$O,9,FALSE)<>0,VLOOKUP($A121,Aviation!$A:$O,9,FALSE),"") -> N/A | L121: =IF(VLOOKUP($A121,Aviation!$A:$O,10,FALSE)<>0,VLOOKUP($A121,Aviation!$A:$O,10,FALSE),"") -> N/A | M121: =IF(VLOOKUP($A121,Aviation!$A:$O,11,FALSE)<>0,VLOOKUP($A121,Aviation!$A:$O,11,FALSE),"") -> 20.7055 | N121: =IF(VLOOKUP($A121,Aviation!$A:$O,12,FALSE)<>0,VLOOKUP($A121,Aviation!$A:$O,12,FALSE),"") -> D | O121: =IF(VLOOKUP($A121,Aviation!$A:$O,13,FALSE)<>0,VLOOKUP($A121,Aviation!$A:$O,13,FALSE),"") -> 07 | P121: =IF(VLOOKUP($A121,Aviation!$A:$O,14,FALSE)<>0,VLOOKUP($A121,Aviation!$A:$O,14,FALSE),"") -> Piedmont Triad RPO | Q121: =IF(VLOOKUP($A121,Aviation!$A:$O,15,FALSE)<>0,VLOOKUP($A121,Aviation!$A:$O,15,FALSE),"") -> Rockingham | W121: Yes
A122: A130426 | B122: Aviation | C122: =IF(VLOOKUP($A122,Aviation!$A:$O,2,FALSE)<>0,VLOOKUP($A122,Aviation!$A:$O,2,FALSE),"") ->  | D122: =IF(VLOOKUP($A122,Aviation!$A:$O,3,FALSE)<>0,VLOOKUP($A122,Aviation!$A:$O,3,FALSE),"") -> Division Needs | E122: =IF(VLOOKUP($A122,Aviation!$A:$O,4,FALSE)<>0,VLOOKUP($A122,Aviation!$A:$O,4,FALSE),"") -> SIF - Rockingham County / NC Shiloh | H122: =IF(VLOOKUP($A122,Aviation!$A:$O,6,FALSE)<>0,VLOOKUP($A122,Aviation!$A:$O,6,FALSE),"") -> Extend Runway from 5,200' to 5,500' to accommodate larger aircraft. Includes planning, design, land, and construction. (includes Project Request Numbers: 2122/2945 ) | I122: =IF(VLOOKUP($A122,Aviation!$A:$O,7,FALSE)<>0,VLOOKUP($A122,Aviation!$A:$O,7,FALSE),"") -> 0500 - Runway Length/Width | J122: =IF(VLOOKUP($A122,Aviation!$A:$O,8,FALSE)<>0,VLOOKUP($A122,Aviation!$A:$O,8,FALSE),"") -> 1683900 | K122: =IF(VLOOKUP($A122,Aviation!$A:$O,9,FALSE)<>0,VLOOKUP($A122,Aviation!$A:$O,9,FALSE),"") -> N/A | L122: =IF(VLOOKUP($A122,Aviation!$A:$O,10,FALSE)<>0,VLOOKUP($A122,Aviation!$A:$O,10,FALSE),"") -> N/A | M122: =IF(VLOOKUP($A122,Aviation!$A:$O,11,FALSE)<>0,VLOOKUP($A122,Aviation!$A:$O,11,FALSE),"") -> 44.9665 | N122: =IF(VLOOKUP($A122,Aviation!$A:$O,12,FALSE)<>0,VLOOKUP($A122,Aviation!$A:$O,12,FALSE),"") -> D | O122: =IF(VLOOKUP($A122,Aviation!$A:$O,13,FALSE)<>0,VLOOKUP($A122,Aviation!$A:$O,13,FALSE),"") -> 07 | P122: =IF(VLOOKUP($A122,Aviation!$A:$O,14,FALSE)<>0,VLOOKUP($A122,Aviation!$A:$O,14,FALSE),"") -> Piedmont Triad RPO | Q122: =IF(VLOOKUP($A122,Aviation!$A:$O,15,FALSE)<>0,VLOOKUP($A122,Aviation!$A:$O,15,FALSE),"") -> Rockingham | W122: Yes
A123: A130431 | B123: Aviation | C123: =IF(VLOOKUP($A123,Aviation!$A:$O,2,FALSE)<>0,VLOOKUP($A123,Aviation!$A:$O,2,FALSE),"") ->  | D123: =IF(VLOOKUP($A123,Aviation!$A:$O,3,FALSE)<>0,VLOOKUP($A123,Aviation!$A:$O,3,FALSE),"") -> Division Needs | E123: =IF(VLOOKUP($A123,Aviation!$A:$O,4,FALSE)<>0,VLOOKUP($A123,Aviation!$A:$O,4,FALSE),"") -> HBI - Asheboro Regional | H123: =IF(VLOOKUP($A123,Aviation!$A:$O,6,FALSE)<>0,VLOOKUP($A123,Aviation!$A:$O,6,FALSE),"") -> A new terminal building is proposed to replace the existing aged terminal building. (includes Project Request Numbers: 3047 ) | I123: =IF(VLOOKUP($A123,Aviation!$A:$O,7,FALSE)<>0,VLOOKUP($A123,Aviation!$A:$O,7,FALSE),"") -> 1305 - General Aviation Terminal Building: New Construction | J123: =IF(VLOOKUP($A123,Aviation!$A:$O,8,FALSE)<>0,VLOOKUP($A123,Aviation!$A:$O,8,FALSE),"") -> 6570000 | K123: =IF(VLOOKUP($A123,Aviation!$A:$O,9,FALSE)<>0,VLOOKUP($A123,Aviation!$A:$O,9,FALSE),"") -> N/A | L123: =IF(VLOOKUP($A123,Aviation!$A:$O,10,FALSE)<>0,VLOOKUP($A123,Aviation!$A:$O,10,FALSE),"") -> N/A | M123: =IF(VLOOKUP($A123,Aviation!$A:$O,11,FALSE)<>0,VLOOKUP($A123,Aviation!$A:$O,11,FALSE),"") -> 22.212 | N123: =IF(VLOOKUP($A123,Aviation!$A:$O,12,FALSE)<>0,VLOOKUP($A123,Aviation!$A:$O,12,FALSE),"") -> E | O123: =IF(VLOOKUP($A123,Aviation!$A:$O,13,FALSE)<>0,VLOOKUP($A123,Aviation!$A:$O,13,FALSE),"") -> 08 | P123: =IF(VLOOKUP($A123,Aviation!$A:$O,14,FALSE)<>0,VLOOKUP($A123,Aviation!$A:$O,14,FALSE),"") -> Piedmont Triad RPO | Q123: =IF(VLOOKUP($A123,Aviation!$A:$O,15,FALSE)<>0,VLOOKUP($A123,Aviation!$A:$O,15,FALSE),"") -> Randolph | W123: Yes
A124: A130432 | B124: Aviation | C124: =IF(VLOOKUP($A124,Aviation!$A:$O,2,FALSE)<>0,VLOOKUP($A124,Aviation!$A:$O,2,FALSE),"") ->  | D124: =IF(VLOOKUP($A124,Aviation!$A:$O,3,FALSE)<>0,VLOOKUP($A124,Aviation!$A:$O,3,FALSE),"") -> Division Needs | E124: =IF(VLOOKUP($A124,Aviation!$A:$O,4,FALSE)<>0,VLOOKUP($A124,Aviation!$A:$O,4,FALSE),"") -> HBI - Asheboro Regional | H124: =IF(VLOOKUP($A124,Aviation!$A:$O,6,FALSE)<>0,VLOOKUP($A124,Aviation!$A:$O,6,FALSE),"") -> Project includes: paving one taxilane and extending an existing taxilane to serve additional hangar site; extension of an existing access road to serve the proposed Taxilane, a new access road to the existing taxilanes and relocation of the existing airport entrance road allowing additional development area for expanding the facilities and parking of the North Carolina Aviation Museum located at the airport; new 10 Unit T-Hangar Building (includes Project Request Numbers: 2205/2207/2208/2212 ) | I124: =IF(VLOOKUP($A124,Aviation!$A:$O,7,FALSE)<>0,VLOOKUP($A124,Aviation!$A:$O,7,FALSE),"") -> 1240 - Corporate and T-hangar Taxiway: Construction | J124: =IF(VLOOKUP($A124,Aviation!$A:$O,8,FALSE)<>0,VLOOKUP($A124,Aviation!$A:$O,8,FALSE),"") -> 3109500 | K124: =IF(VLOOKUP($A124,Aviation!$A:$O,9,FALSE)<>0,VLOOKUP($A124,Aviation!$A:$O,9,FALSE),"") -> N/A | L124: =IF(VLOOKUP($A124,Aviation!$A:$O,10,FALSE)<>0,VLOOKUP($A124,Aviation!$A:$O,10,FALSE),"") -> N/A | M124: =IF(VLOOKUP($A124,Aviation!$A:$O,11,FALSE)<>0,VLOOKUP($A124,Aviation!$A:$O,11,FALSE),"") -> 30.0235 | N124: =IF(VLOOKUP($A124,Aviation!$A:$O,12,FALSE)<>0,VLOOKUP($A124,Aviation!$A:$O,12,FALSE),"") -> E | O124: =IF(VLOOKUP($A124,Aviation!$A:$O,13,FALSE)<>0,VLOOKUP($A124,Aviation!$A:$O,13,FALSE),"") -> 08 | P124: =IF(VLOOKUP($A124,Aviation!$A:$O,14,FALSE)<>0,VLOOKUP($A124,Aviation!$A:$O,14,FALSE),"") -> Piedmont Triad RPO | Q124: =IF(VLOOKUP($A124,Aviation!$A:$O,15,FALSE)<>0,VLOOKUP($A124,Aviation!$A:$O,15,FALSE),"") -> Randolph | W124: Yes
A125: A130436 | B125: Aviation | C125: =IF(VLOOKUP($A125,Aviation!$A:$O,2,FALSE)<>0,VLOOKUP($A125,Aviation!$A:$O,2,FALSE),"") ->  | D125: =IF(VLOOKUP($A125,Aviation!$A:$O,3,FALSE)<>0,VLOOKUP($A125,Aviation!$A:$O,3,FALSE),"") -> Division Needs | E125: =IF(VLOOKUP($A125,Aviation!$A:$O,4,FALSE)<>0,VLOOKUP($A125,Aviation!$A:$O,4,FALSE),"") -> RWI - Rocky Mount-Wilson | H125: =IF(VLOOKUP($A125,Aviation!$A:$O,6,FALSE)<>0,VLOOKUP($A125,Aviation!$A:$O,6,FALSE),"") -> This project will consist of three phases; Construction of a portion of new parallel taxiway and a taxilane to the new hangar area development; Site preparation and paving for a 10 unit t-hangar site; Construction of a 10 unit t-hangar. There are currently no t-hangar units at the airport. This project will extend the existing north corporate access road to the new north corporate development area and to aviation drive. (includes Project Request Numbers: 2317/2319/2320/2853 ) | I125: =IF(VLOOKUP($A125,Aviation!$A:$O,7,FALSE)<>0,VLOOKUP($A125,Aviation!$A:$O,7,FALSE),"") -> 1240 - Corporate and T-hangar Taxiway: Construction | J125: =IF(VLOOKUP($A125,Aviation!$A:$O,8,FALSE)<>0,VLOOKUP($A125,Aviation!$A:$O,8,FALSE),"") -> 1746000 | K125: =IF(VLOOKUP($A125,Aviation!$A:$O,9,FALSE)<>0,VLOOKUP($A125,Aviation!$A:$O,9,FALSE),"") -> N/A | L125: =IF(VLOOKUP($A125,Aviation!$A:$O,10,FALSE)<>0,VLOOKUP($A125,Aviation!$A:$O,10,FALSE),"") -> N/A | M125: =IF(VLOOKUP($A125,Aviation!$A:$O,11,FALSE)<>0,VLOOKUP($A125,Aviation!$A:$O,11,FALSE),"") -> 28.2625 | N125: =IF(VLOOKUP($A125,Aviation!$A:$O,12,FALSE)<>0,VLOOKUP($A125,Aviation!$A:$O,12,FALSE),"") -> A | O125: =IF(VLOOKUP($A125,Aviation!$A:$O,13,FALSE)<>0,VLOOKUP($A125,Aviation!$A:$O,13,FALSE),"") -> 04 | P125: =IF(VLOOKUP($A125,Aviation!$A:$O,14,FALSE)<>0,VLOOKUP($A125,Aviation!$A:$O,14,FALSE),"") -> Rocky Mount Urban Area MPO | Q125: =IF(VLOOKUP($A125,Aviation!$A:$O,15,FALSE)<>0,VLOOKUP($A125,Aviation!$A:$O,15,FALSE),"") -> Nash | W125: Yes
A126: A130439 | B126: Aviation | C126: =IF(VLOOKUP($A126,Aviation!$A:$O,2,FALSE)<>0,VLOOKUP($A126,Aviation!$A:$O,2,FALSE),"") ->  | D126: =IF(VLOOKUP($A126,Aviation!$A:$O,3,FALSE)<>0,VLOOKUP($A126,Aviation!$A:$O,3,FALSE),"") -> Division Needs | E126: =IF(VLOOKUP($A126,Aviation!$A:$O,4,FALSE)<>0,VLOOKUP($A126,Aviation!$A:$O,4,FALSE),"") -> AFP - Anson County-Jeff Cloud Field | H126: =IF(VLOOKUP($A126,Aviation!$A:$O,6,FALSE)<>0,VLOOKUP($A126,Aviation!$A:$O,6,FALSE),"") -> Expand apron by approximately 6,000 square yards. This expansion would relocate itinerant parking areas away from existing hangars. (includes Project Request Numbers: 2871 ) | I126: =IF(VLOOKUP($A126,Aviation!$A:$O,7,FALSE)<>0,VLOOKUP($A126,Aviation!$A:$O,7,FALSE),"") -> 1200 - Aircraft Apron / Helipad Requirements | J126: =IF(VLOOKUP($A126,Aviation!$A:$O,8,FALSE)<>0,VLOOKUP($A126,Aviation!$A:$O,8,FALSE),"") -> 536220 | K126: =IF(VLOOKUP($A126,Aviation!$A:$O,9,FALSE)<>0,VLOOKUP($A126,Aviation!$A:$O,9,FALSE),"") -> N/A | L126: =IF(VLOOKUP($A126,Aviation!$A:$O,10,FALSE)<>0,VLOOKUP($A126,Aviation!$A:$O,10,FALSE),"") -> N/A | M126: =IF(VLOOKUP($A126,Aviation!$A:$O,11,FALSE)<>0,VLOOKUP($A126,Aviation!$A:$O,11,FALSE),"") -> 36.699 | N126: =IF(VLOOKUP($A126,Aviation!$A:$O,12,FALSE)<>0,VLOOKUP($A126,Aviation!$A:$O,12,FALSE),"") -> E | O126: =IF(VLOOKUP($A126,Aviation!$A:$O,13,FALSE)<>0,VLOOKUP($A126,Aviation!$A:$O,13,FALSE),"") -> 10 | P126: =IF(VLOOKUP($A126,Aviation!$A:$O,14,FALSE)<>0,VLOOKUP($A126,Aviation!$A:$O,14,FALSE),"") -> Rocky River RPO | Q126: =IF(VLOOKUP($A126,Aviation!$A:$O,15,FALSE)<>0,VLOOKUP($A126,Aviation!$A:$O,15,FALSE),"") -> Anson | W126: Yes
A127: A130449 | B127: Aviation | C127: =IF(VLOOKUP($A127,Aviation!$A:$O,2,FALSE)<>0,VLOOKUP($A127,Aviation!$A:$O,2,FALSE),"") ->  | D127: =IF(VLOOKUP($A127,Aviation!$A:$O,3,FALSE)<>0,VLOOKUP($A127,Aviation!$A:$O,3,FALSE),"") -> Division Needs | E127: =IF(VLOOKUP($A127,Aviation!$A:$O,4,FALSE)<>0,VLOOKUP($A127,Aviation!$A:$O,4,FALSE),"") -> VUJ - Stanly County | H127: =IF(VLOOKUP($A127,Aviation!$A:$O,6,FALSE)<>0,VLOOKUP($A127,Aviation!$A:$O,6,FALSE),"") -> Access road from terminal parking area to ramp. (includes Project Request Numbers: 2801 ) | I127: =IF(VLOOKUP($A127,Aviation!$A:$O,7,FALSE)<>0,VLOOKUP($A127,Aviation!$A:$O,7,FALSE),"") -> 1320 - General Aviation Terminal Building: Construct Terminal Access Road | J127: =IF(VLOOKUP($A127,Aviation!$A:$O,8,FALSE)<>0,VLOOKUP($A127,Aviation!$A:$O,8,FALSE),"") -> 126198 | K127: =IF(VLOOKUP($A127,Aviation!$A:$O,9,FALSE)<>0,VLOOKUP($A127,Aviation!$A:$O,9,FALSE),"") -> N/A | L127: =IF(VLOOKUP($A127,Aviation!$A:$O,10,FALSE)<>0,VLOOKUP($A127,Aviation!$A:$O,10,FALSE),"") -> N/A | M127: =IF(VLOOKUP($A127,Aviation!$A:$O,11,FALSE)<>0,VLOOKUP($A127,Aviation!$A:$O,11,FALSE),"") -> 24.855 | N127: =IF(VLOOKUP($A127,Aviation!$A:$O,12,FALSE)<>0,VLOOKUP($A127,Aviation!$A:$O,12,FALSE),"") -> E | O127: =IF(VLOOKUP($A127,Aviation!$A:$O,13,FALSE)<>0,VLOOKUP($A127,Aviation!$A:$O,13,FALSE),"") -> 10 | P127: =IF(VLOOKUP($A127,Aviation!$A:$O,14,FALSE)<>0,VLOOKUP($A127,Aviation!$A:$O,14,FALSE),"") -> Rocky River RPO | Q127: =IF(VLOOKUP($A127,Aviation!$A:$O,15,FALSE)<>0,VLOOKUP($A127,Aviation!$A:$O,15,FALSE),"") -> Stanly | W127: Yes
A128: A130451 | B128: Aviation | C128: =IF(VLOOKUP($A128,Aviation!$A:$O,2,FALSE)<>0,VLOOKUP($A128,Aviation!$A:$O,2,FALSE),"") ->  | D128: =IF(VLOOKUP($A128,Aviation!$A:$O,3,FALSE)<>0,VLOOKUP($A128,Aviation!$A:$O,3,FALSE),"") -> Division Needs | E128: =IF(VLOOKUP($A128,Aviation!$A:$O,4,FALSE)<>0,VLOOKUP($A128,Aviation!$A:$O,4,FALSE),"") -> VUJ - Stanly County | H128: =IF(VLOOKUP($A128,Aviation!$A:$O,6,FALSE)<>0,VLOOKUP($A128,Aviation!$A:$O,6,FALSE),"") -> Acquire land for expansion and perform ESA to determine status of structures on property. (includes Project Request Numbers: 2782) and Clearing and grubbing land acquired for expansion; Demo houses on property acquired (includes Project Request Numbers: 3134 ) | I128: =IF(VLOOKUP($A128,Aviation!$A:$O,7,FALSE)<>0,VLOOKUP($A128,Aviation!$A:$O,7,FALSE),"") -> 0500 - Runway Length/Width | J128: =IF(VLOOKUP($A128,Aviation!$A:$O,8,FALSE)<>0,VLOOKUP($A128,Aviation!$A:$O,8,FALSE),"") -> 4171900 | K128: =IF(VLOOKUP($A128,Aviation!$A:$O,9,FALSE)<>0,VLOOKUP($A128,Aviation!$A:$O,9,FALSE),"") -> N/A | L128: =IF(VLOOKUP($A128,Aviation!$A:$O,10,FALSE)<>0,VLOOKUP($A128,Aviation!$A:$O,10,FALSE),"") -> N/A | M128: =IF(VLOOKUP($A128,Aviation!$A:$O,11,FALSE)<>0,VLOOKUP($A128,Aviation!$A:$O,11,FALSE),"") -> 40.5355 | N128: =IF(VLOOKUP($A128,Aviation!$A:$O,12,FALSE)<>0,VLOOKUP($A128,Aviation!$A:$O,12,FALSE),"") -> E | O128: =IF(VLOOKUP($A128,Aviation!$A:$O,13,FALSE)<>0,VLOOKUP($A128,Aviation!$A:$O,13,FALSE),"") -> 10 | P128: =IF(VLOOKUP($A128,Aviation!$A:$O,14,FALSE)<>0,VLOOKUP($A128,Aviation!$A:$O,14,FALSE),"") -> Rocky River RPO | Q128: =IF(VLOOKUP($A128,Aviation!$A:$O,15,FALSE)<>0,VLOOKUP($A128,Aviation!$A:$O,15,FALSE),"") -> Stanly | W128: Yes
A129: A130452 | B129: Aviation | C129: =IF(VLOOKUP($A129,Aviation!$A:$O,2,FALSE)<>0,VLOOKUP($A129,Aviation!$A:$O,2,FALSE),"") ->  | D129: =IF(VLOOKUP($A129,Aviation!$A:$O,3,FALSE)<>0,VLOOKUP($A129,Aviation!$A:$O,3,FALSE),"") -> Division Needs | E129: =IF(VLOOKUP($A129,Aviation!$A:$O,4,FALSE)<>0,VLOOKUP($A129,Aviation!$A:$O,4,FALSE),"") -> VUJ - Stanly County | H129: =IF(VLOOKUP($A129,Aviation!$A:$O,6,FALSE)<>0,VLOOKUP($A129,Aviation!$A:$O,6,FALSE),"") -> Phase 1 - Design work for proposed 1,000' extension for Runway 4R-22L to accommodate existing aircraft users. Phase 2 - Grading and drainage portion of 1,000' runway extension for Runway 4R-22L to accommodate existing aircraft users. Phase 3 - Paving and lighting portion of 1,000' runway extension for Runway4R-22L to accommosdate existing aircraft users. (includes Project Request Numbers: 2787/2792/2794 ) | I129: =IF(VLOOKUP($A129,Aviation!$A:$O,7,FALSE)<>0,VLOOKUP($A129,Aviation!$A:$O,7,FALSE),"") -> 0500 - Runway Length/Width | J129: =IF(VLOOKUP($A129,Aviation!$A:$O,8,FALSE)<>0,VLOOKUP($A129,Aviation!$A:$O,8,FALSE),"") -> 10683000 | K129: =IF(VLOOKUP($A129,Aviation!$A:$O,9,FALSE)<>0,VLOOKUP($A129,Aviation!$A:$O,9,FALSE),"") -> N/A | L129: =IF(VLOOKUP($A129,Aviation!$A:$O,10,FALSE)<>0,VLOOKUP($A129,Aviation!$A:$O,10,FALSE),"") -> N/A | M129: =IF(VLOOKUP($A129,Aviation!$A:$O,11,FALSE)<>0,VLOOKUP($A129,Aviation!$A:$O,11,FALSE),"") -> 38.4335 | N129: =IF(VLOOKUP($A129,Aviation!$A:$O,12,FALSE)<>0,VLOOKUP($A129,Aviation!$A:$O,12,FALSE),"") -> E | O129: =IF(VLOOKUP($A129,Aviation!$A:$O,13,FALSE)<>0,VLOOKUP($A129,Aviation!$A:$O,13,FALSE),"") -> 10 | P129: =IF(VLOOKUP($A129,Aviation!$A:$O,14,FALSE)<>0,VLOOKUP($A129,Aviation!$A:$O,14,FALSE),"") -> Rocky River RPO | Q129: =IF(VLOOKUP($A129,Aviation!$A:$O,15,FALSE)<>0,VLOOKUP($A129,Aviation!$A:$O,15,FALSE),"") -> Stanly | W129: Yes
A130: A130455 | B130: Aviation | C130: =IF(VLOOKUP($A130,Aviation!$A:$O,2,FALSE)<>0,VLOOKUP($A130,Aviation!$A:$O,2,FALSE),"") ->  | D130: =IF(VLOOKUP($A130,Aviation!$A:$O,3,FALSE)<>0,VLOOKUP($A130,Aviation!$A:$O,3,FALSE),"") -> Division Needs | E130: =IF(VLOOKUP($A130,Aviation!$A:$O,4,FALSE)<>0,VLOOKUP($A130,Aviation!$A:$O,4,FALSE),"") -> 1A5 - Macon County | H130: =IF(VLOOKUP($A130,Aviation!$A:$O,6,FALSE)<>0,VLOOKUP($A130,Aviation!$A:$O,6,FALSE),"") -> This project will develop the area to the east of the terminal. This phase includes all site preparation and erosion control measures for the ultimate development. This project will develop the area to the east of the terminal. This phase will include paving and lighting of one connector taxiway, 3 T-Hangar taxilanes and construction of 2 10 Unit T-Hangars. (includes Project Request Numbers: 2258/2263 ) | I130: =IF(VLOOKUP($A130,Aviation!$A:$O,7,FALSE)<>0,VLOOKUP($A130,Aviation!$A:$O,7,FALSE),"") -> 1240 - Corporate and T-hangar Taxiway: Construction | J130: =IF(VLOOKUP($A130,Aviation!$A:$O,8,FALSE)<>0,VLOOKUP($A130,Aviation!$A:$O,8,FALSE),"") -> 3073500 | K130: =IF(VLOOKUP($A130,Aviation!$A:$O,9,FALSE)<>0,VLOOKUP($A130,Aviation!$A:$O,9,FALSE),"") -> N/A | L130: =IF(VLOOKUP($A130,Aviation!$A:$O,10,FALSE)<>0,VLOOKUP($A130,Aviation!$A:$O,10,FALSE),"") -> N/A | M130: =IF(VLOOKUP($A130,Aviation!$A:$O,11,FALSE)<>0,VLOOKUP($A130,Aviation!$A:$O,11,FALSE),"") -> 24.8535 | N130: =IF(VLOOKUP($A130,Aviation!$A:$O,12,FALSE)<>0,VLOOKUP($A130,Aviation!$A:$O,12,FALSE),"") -> G | O130: =IF(VLOOKUP($A130,Aviation!$A:$O,13,FALSE)<>0,VLOOKUP($A130,Aviation!$A:$O,13,FALSE),"") -> 14 | P130: =IF(VLOOKUP($A130,Aviation!$A:$O,14,FALSE)<>0,VLOOKUP($A130,Aviation!$A:$O,14,FALSE),"") -> Southwestern RPO | Q130: =IF(VLOOKUP($A130,Aviation!$A:$O,15,FALSE)<>0,VLOOKUP($A130,Aviation!$A:$O,15,FALSE),"") -> Macon | W130: Yes
A131: A130458 | B131: Aviation | C131: =IF(VLOOKUP($A131,Aviation!$A:$O,2,FALSE)<>0,VLOOKUP($A131,Aviation!$A:$O,2,FALSE),"") ->  | D131: =IF(VLOOKUP($A131,Aviation!$A:$O,3,FALSE)<>0,VLOOKUP($A131,Aviation!$A:$O,3,FALSE),"") -> Division Needs | E131: =IF(VLOOKUP($A131,Aviation!$A:$O,4,FALSE)<>0,VLOOKUP($A131,Aviation!$A:$O,4,FALSE),"") -> 24A - Jackson County | H131: =IF(VLOOKUP($A131,Aviation!$A:$O,6,FALSE)<>0,VLOOKUP($A131,Aviation!$A:$O,6,FALSE),"") -> This project consists of a total of an 8 unit T-Hangar Building, two T-hangar taxilanes and all associated site preparation to meet the needs of a hangar "wait list". The design of Phase I is complete. (includes Project Request Numbers: 2228 ) | I131: =IF(VLOOKUP($A131,Aviation!$A:$O,7,FALSE)<>0,VLOOKUP($A131,Aviation!$A:$O,7,FALSE),"") -> 1900 - Hangars | J131: =IF(VLOOKUP($A131,Aviation!$A:$O,8,FALSE)<>0,VLOOKUP($A131,Aviation!$A:$O,8,FALSE),"") -> 616500 | K131: =IF(VLOOKUP($A131,Aviation!$A:$O,9,FALSE)<>0,VLOOKUP($A131,Aviation!$A:$O,9,FALSE),"") -> N/A | L131: =IF(VLOOKUP($A131,Aviation!$A:$O,10,FALSE)<>0,VLOOKUP($A131,Aviation!$A:$O,10,FALSE),"") -> N/A | M131: =IF(VLOOKUP($A131,Aviation!$A:$O,11,FALSE)<>0,VLOOKUP($A131,Aviation!$A:$O,11,FALSE),"") -> 21.3875 | N131: =IF(VLOOKUP($A131,Aviation!$A:$O,12,FALSE)<>0,VLOOKUP($A131,Aviation!$A:$O,12,FALSE),"") -> G | O131: =IF(VLOOKUP($A131,Aviation!$A:$O,13,FALSE)<>0,VLOOKUP($A131,Aviation!$A:$O,13,FALSE),"") -> 14 | P131: =IF(VLOOKUP($A131,Aviation!$A:$O,14,FALSE)<>0,VLOOKUP($A131,Aviation!$A:$O,14,FALSE),"") -> Southwestern RPO | Q131: =IF(VLOOKUP($A131,Aviation!$A:$O,15,FALSE)<>0,VLOOKUP($A131,Aviation!$A:$O,15,FALSE),"") -> Jackson | W131: Yes
A132: A130462 | B132: Aviation | C132: =IF(VLOOKUP($A132,Aviation!$A:$O,2,FALSE)<>0,VLOOKUP($A132,Aviation!$A:$O,2,FALSE),"") ->  | D132: =IF(VLOOKUP($A132,Aviation!$A:$O,3,FALSE)<>0,VLOOKUP($A132,Aviation!$A:$O,3,FALSE),"") -> Division Needs | E132: =IF(VLOOKUP($A132,Aviation!$A:$O,4,FALSE)<>0,VLOOKUP($A132,Aviation!$A:$O,4,FALSE),"") -> RHP - Western Carolina Regional | H132: =IF(VLOOKUP($A132,Aviation!$A:$O,6,FALSE)<>0,VLOOKUP($A132,Aviation!$A:$O,6,FALSE),"") -> Expand aircraft parking apron to accommodate additional aircraft. (includes Project Request Numbers: 2961 ) | I132: =IF(VLOOKUP($A132,Aviation!$A:$O,7,FALSE)<>0,VLOOKUP($A132,Aviation!$A:$O,7,FALSE),"") -> 1200 - Aircraft Apron / Helipad Requirements | J132: =IF(VLOOKUP($A132,Aviation!$A:$O,8,FALSE)<>0,VLOOKUP($A132,Aviation!$A:$O,8,FALSE),"") -> 2214000 | K132: =IF(VLOOKUP($A132,Aviation!$A:$O,9,FALSE)<>0,VLOOKUP($A132,Aviation!$A:$O,9,FALSE),"") -> N/A | L132: =IF(VLOOKUP($A132,Aviation!$A:$O,10,FALSE)<>0,VLOOKUP($A132,Aviation!$A:$O,10,FALSE),"") -> N/A | M132: =IF(VLOOKUP($A132,Aviation!$A:$O,11,FALSE)<>0,VLOOKUP($A132,Aviation!$A:$O,11,FALSE),"") -> 33.006 | N132: =IF(VLOOKUP($A132,Aviation!$A:$O,12,FALSE)<>0,VLOOKUP($A132,Aviation!$A:$O,12,FALSE),"") -> G | O132: =IF(VLOOKUP($A132,Aviation!$A:$O,13,FALSE)<>0,VLOOKUP($A132,Aviation!$A:$O,13,FALSE),"") -> 14 | P132: =IF(VLOOKUP($A132,Aviation!$A:$O,14,FALSE)<>0,VLOOKUP($A132,Aviation!$A:$O,14,FALSE),"") -> Southwestern RPO | Q132: =IF(VLOOKUP($A132,Aviation!$A:$O,15,FALSE)<>0,VLOOKUP($A132,Aviation!$A:$O,15,FALSE),"") -> Cherokee | W132: Yes
A133: A130463 | B133: Aviation | C133: =IF(VLOOKUP($A133,Aviation!$A:$O,2,FALSE)<>0,VLOOKUP($A133,Aviation!$A:$O,2,FALSE),"") ->  | D133: =IF(VLOOKUP($A133,Aviation!$A:$O,3,FALSE)<>0,VLOOKUP($A133,Aviation!$A:$O,3,FALSE),"") -> Division Needs | E133: =IF(VLOOKUP($A133,Aviation!$A:$O,4,FALSE)<>0,VLOOKUP($A133,Aviation!$A:$O,4,FALSE),"") -> RHP - Western Carolina Regional | H133: =IF(VLOOKUP($A133,Aviation!$A:$O,6,FALSE)<>0,VLOOKUP($A133,Aviation!$A:$O,6,FALSE),"") -> Construct a new terminal building. Construct a new vehicular parking area to serve new terminal building. (includes Project Request Numbers: 2955/2956 ) | I133: =IF(VLOOKUP($A133,Aviation!$A:$O,7,FALSE)<>0,VLOOKUP($A133,Aviation!$A:$O,7,FALSE),"") -> 1305 - General Aviation Terminal Building: New Construction | J133: =IF(VLOOKUP($A133,Aviation!$A:$O,8,FALSE)<>0,VLOOKUP($A133,Aviation!$A:$O,8,FALSE),"") -> 1480500 | K133: =IF(VLOOKUP($A133,Aviation!$A:$O,9,FALSE)<>0,VLOOKUP($A133,Aviation!$A:$O,9,FALSE),"") -> N/A | L133: =IF(VLOOKUP($A133,Aviation!$A:$O,10,FALSE)<>0,VLOOKUP($A133,Aviation!$A:$O,10,FALSE),"") -> N/A | M133: =IF(VLOOKUP($A133,Aviation!$A:$O,11,FALSE)<>0,VLOOKUP($A133,Aviation!$A:$O,11,FALSE),"") -> 26.643 | N133: =IF(VLOOKUP($A133,Aviation!$A:$O,12,FALSE)<>0,VLOOKUP($A133,Aviation!$A:$O,12,FALSE),"") -> G | O133: =IF(VLOOKUP($A133,Aviation!$A:$O,13,FALSE)<>0,VLOOKUP($A133,Aviation!$A:$O,13,FALSE),"") -> 14 | P133: =IF(VLOOKUP($A133,Aviation!$A:$O,14,FALSE)<>0,VLOOKUP($A133,Aviation!$A:$O,14,FALSE),"") -> Southwestern RPO | Q133: =IF(VLOOKUP($A133,Aviation!$A:$O,15,FALSE)<>0,VLOOKUP($A133,Aviation!$A:$O,15,FALSE),"") -> Cherokee | W133: Yes
A134: A130466 | B134: Aviation | C134: =IF(VLOOKUP($A134,Aviation!$A:$O,2,FALSE)<>0,VLOOKUP($A134,Aviation!$A:$O,2,FALSE),"") ->  | D134: =IF(VLOOKUP($A134,Aviation!$A:$O,3,FALSE)<>0,VLOOKUP($A134,Aviation!$A:$O,3,FALSE),"") -> Division Needs | E134: =IF(VLOOKUP($A134,Aviation!$A:$O,4,FALSE)<>0,VLOOKUP($A134,Aviation!$A:$O,4,FALSE),"") -> RHP - Western Carolina Regional | H134: =IF(VLOOKUP($A134,Aviation!$A:$O,6,FALSE)<>0,VLOOKUP($A134,Aviation!$A:$O,6,FALSE),"") -> Strengthen runway pavement to accommodate 60,000 lb. dual wheel gear aircraft. (includes Project Request Numbers: 2963 ) | I134: =IF(VLOOKUP($A134,Aviation!$A:$O,7,FALSE)<>0,VLOOKUP($A134,Aviation!$A:$O,7,FALSE),"") -> 0605 - Pavement Strength - Runway | J134: =IF(VLOOKUP($A134,Aviation!$A:$O,8,FALSE)<>0,VLOOKUP($A134,Aviation!$A:$O,8,FALSE),"") -> 1539000 | K134: =IF(VLOOKUP($A134,Aviation!$A:$O,9,FALSE)<>0,VLOOKUP($A134,Aviation!$A:$O,9,FALSE),"") -> N/A | L134: =IF(VLOOKUP($A134,Aviation!$A:$O,10,FALSE)<>0,VLOOKUP($A134,Aviation!$A:$O,10,FALSE),"") -> N/A | M134: =IF(VLOOKUP($A134,Aviation!$A:$O,11,FALSE)<>0,VLOOKUP($A134,Aviation!$A:$O,11,FALSE),"") -> 39.7385 | N134: =IF(VLOOKUP($A134,Aviation!$A:$O,12,FALSE)<>0,VLOOKUP($A134,Aviation!$A:$O,12,FALSE),"") -> G | O134: =IF(VLOOKUP($A134,Aviation!$A:$O,13,FALSE)<>0,VLOOKUP($A134,Aviation!$A:$O,13,FALSE),"") -> 14 | P134: =IF(VLOOKUP($A134,Aviation!$A:$O,14,FALSE)<>0,VLOOKUP($A134,Aviation!$A:$O,14,FALSE),"") -> Southwestern RPO | Q134: =IF(VLOOKUP($A134,Aviation!$A:$O,15,FALSE)<>0,VLOOKUP($A134,Aviation!$A:$O,15,FALSE),"") -> Cherokee | W134: Yes
A135: A130469 | B135: Aviation | C135: =IF(VLOOKUP($A135,Aviation!$A:$O,2,FALSE)<>0,VLOOKUP($A135,Aviation!$A:$O,2,FALSE),"") ->  | D135: =IF(VLOOKUP($A135,Aviation!$A:$O,3,FALSE)<>0,VLOOKUP($A135,Aviation!$A:$O,3,FALSE),"") -> Division Needs | E135: =IF(VLOOKUP($A135,Aviation!$A:$O,4,FALSE)<>0,VLOOKUP($A135,Aviation!$A:$O,4,FALSE),"") -> SCR 5W8 - Siler City Municipal | H135: =IF(VLOOKUP($A135,Aviation!$A:$O,6,FALSE)<>0,VLOOKUP($A135,Aviation!$A:$O,6,FALSE),"") -> 500' extension of Runway 22 and the parallel taxiway. Project also includes relocation of Airport Road (approximately 1,700 LF) to accommodate the runway extension and acquisition of approximately 2 acres of land to relocate Airport Road. (includes Project Request Numbers: 3137 ) | I135: =IF(VLOOKUP($A135,Aviation!$A:$O,7,FALSE)<>0,VLOOKUP($A135,Aviation!$A:$O,7,FALSE),"") -> 0500 - Runway Length/Width | J135: =IF(VLOOKUP($A135,Aviation!$A:$O,8,FALSE)<>0,VLOOKUP($A135,Aviation!$A:$O,8,FALSE),"") -> 5094000 | K135: =IF(VLOOKUP($A135,Aviation!$A:$O,9,FALSE)<>0,VLOOKUP($A135,Aviation!$A:$O,9,FALSE),"") -> N/A | L135: =IF(VLOOKUP($A135,Aviation!$A:$O,10,FALSE)<>0,VLOOKUP($A135,Aviation!$A:$O,10,FALSE),"") -> N/A | M135: =IF(VLOOKUP($A135,Aviation!$A:$O,11,FALSE)<>0,VLOOKUP($A135,Aviation!$A:$O,11,FALSE),"") -> 40.5915 | N135: =IF(VLOOKUP($A135,Aviation!$A:$O,12,FALSE)<>0,VLOOKUP($A135,Aviation!$A:$O,12,FALSE),"") -> E | O135: =IF(VLOOKUP($A135,Aviation!$A:$O,13,FALSE)<>0,VLOOKUP($A135,Aviation!$A:$O,13,FALSE),"") -> 08 | P135: =IF(VLOOKUP($A135,Aviation!$A:$O,14,FALSE)<>0,VLOOKUP($A135,Aviation!$A:$O,14,FALSE),"") -> Triangle Area RPO | Q135: =IF(VLOOKUP($A135,Aviation!$A:$O,15,FALSE)<>0,VLOOKUP($A135,Aviation!$A:$O,15,FALSE),"") -> Chatham | W135: Yes
A136: A130488 | B136: Aviation | C136: =IF(VLOOKUP($A136,Aviation!$A:$O,2,FALSE)<>0,VLOOKUP($A136,Aviation!$A:$O,2,FALSE),"") ->  | D136: =IF(VLOOKUP($A136,Aviation!$A:$O,3,FALSE)<>0,VLOOKUP($A136,Aviation!$A:$O,3,FALSE),"") -> Division Needs | E136: =IF(VLOOKUP($A136,Aviation!$A:$O,4,FALSE)<>0,VLOOKUP($A136,Aviation!$A:$O,4,FALSE),"") -> TTA - Raleigh Exec at Sanford-Lee County | H136: =IF(VLOOKUP($A136,Aviation!$A:$O,6,FALSE)<>0,VLOOKUP($A136,Aviation!$A:$O,6,FALSE),"") -> Site development for expansion of the Corporate Hangar Apron - Phase II (includes Project Request Numbers: 2401 ) | I136: =IF(VLOOKUP($A136,Aviation!$A:$O,7,FALSE)<>0,VLOOKUP($A136,Aviation!$A:$O,7,FALSE),"") -> 1200 - Aircraft Apron / Helipad Requirements | J136: =IF(VLOOKUP($A136,Aviation!$A:$O,8,FALSE)<>0,VLOOKUP($A136,Aviation!$A:$O,8,FALSE),"") -> 3150000 | K136: =IF(VLOOKUP($A136,Aviation!$A:$O,9,FALSE)<>0,VLOOKUP($A136,Aviation!$A:$O,9,FALSE),"") -> N/A | L136: =IF(VLOOKUP($A136,Aviation!$A:$O,10,FALSE)<>0,VLOOKUP($A136,Aviation!$A:$O,10,FALSE),"") -> N/A | M136: =IF(VLOOKUP($A136,Aviation!$A:$O,11,FALSE)<>0,VLOOKUP($A136,Aviation!$A:$O,11,FALSE),"") -> 32.666 | N136: =IF(VLOOKUP($A136,Aviation!$A:$O,12,FALSE)<>0,VLOOKUP($A136,Aviation!$A:$O,12,FALSE),"") -> E | O136: =IF(VLOOKUP($A136,Aviation!$A:$O,13,FALSE)<>0,VLOOKUP($A136,Aviation!$A:$O,13,FALSE),"") -> 08 | P136: =IF(VLOOKUP($A136,Aviation!$A:$O,14,FALSE)<>0,VLOOKUP($A136,Aviation!$A:$O,14,FALSE),"") -> Triangle Area RPO | Q136: =IF(VLOOKUP($A136,Aviation!$A:$O,15,FALSE)<>0,VLOOKUP($A136,Aviation!$A:$O,15,FALSE),"") -> Lee | W136: Yes
A137: A130489 | B137: Aviation | C137: =IF(VLOOKUP($A137,Aviation!$A:$O,2,FALSE)<>0,VLOOKUP($A137,Aviation!$A:$O,2,FALSE),"") ->  | D137: =IF(VLOOKUP($A137,Aviation!$A:$O,3,FALSE)<>0,VLOOKUP($A137,Aviation!$A:$O,3,FALSE),"") -> Division Needs | E137: =IF(VLOOKUP($A137,Aviation!$A:$O,4,FALSE)<>0,VLOOKUP($A137,Aviation!$A:$O,4,FALSE),"") -> TTA - Raleigh Exec at Sanford-Lee County | H137: =IF(VLOOKUP($A137,Aviation!$A:$O,6,FALSE)<>0,VLOOKUP($A137,Aviation!$A:$O,6,FALSE),"") -> Site development for the expansion of the Corporate Hangar Area - Phase I (includes Project Request Numbers: 2396 ) | I137: =IF(VLOOKUP($A137,Aviation!$A:$O,7,FALSE)<>0,VLOOKUP($A137,Aviation!$A:$O,7,FALSE),"") -> 1200 - Aircraft Apron / Helipad Requirements | J137: =IF(VLOOKUP($A137,Aviation!$A:$O,8,FALSE)<>0,VLOOKUP($A137,Aviation!$A:$O,8,FALSE),"") -> 3060000 | K137: =IF(VLOOKUP($A137,Aviation!$A:$O,9,FALSE)<>0,VLOOKUP($A137,Aviation!$A:$O,9,FALSE),"") -> N/A | L137: =IF(VLOOKUP($A137,Aviation!$A:$O,10,FALSE)<>0,VLOOKUP($A137,Aviation!$A:$O,10,FALSE),"") -> N/A | M137: =IF(VLOOKUP($A137,Aviation!$A:$O,11,FALSE)<>0,VLOOKUP($A137,Aviation!$A:$O,11,FALSE),"") -> 32.666 | N137: =IF(VLOOKUP($A137,Aviation!$A:$O,12,FALSE)<>0,VLOOKUP($A137,Aviation!$A:$O,12,FALSE),"") -> E | O137: =IF(VLOOKUP($A137,Aviation!$A:$O,13,FALSE)<>0,VLOOKUP($A137,Aviation!$A:$O,13,FALSE),"") -> 08 | P137: =IF(VLOOKUP($A137,Aviation!$A:$O,14,FALSE)<>0,VLOOKUP($A137,Aviation!$A:$O,14,FALSE),"") -> Triangle Area RPO | Q137: =IF(VLOOKUP($A137,Aviation!$A:$O,15,FALSE)<>0,VLOOKUP($A137,Aviation!$A:$O,15,FALSE),"") -> Lee | W137: Yes
A138: A130491 | B138: Aviation | C138: =IF(VLOOKUP($A138,Aviation!$A:$O,2,FALSE)<>0,VLOOKUP($A138,Aviation!$A:$O,2,FALSE),"") ->  | D138: =IF(VLOOKUP($A138,Aviation!$A:$O,3,FALSE)<>0,VLOOKUP($A138,Aviation!$A:$O,3,FALSE),"") -> Division Needs | E138: =IF(VLOOKUP($A138,Aviation!$A:$O,4,FALSE)<>0,VLOOKUP($A138,Aviation!$A:$O,4,FALSE),"") -> TTA - Raleigh Exec at Sanford-Lee County | H138: =IF(VLOOKUP($A138,Aviation!$A:$O,6,FALSE)<>0,VLOOKUP($A138,Aviation!$A:$O,6,FALSE),"") -> Construct new 13 unit T-hangar to meet demand. (includes Project Request Numbers: 2403 ) | I138: =IF(VLOOKUP($A138,Aviation!$A:$O,7,FALSE)<>0,VLOOKUP($A138,Aviation!$A:$O,7,FALSE),"") -> 1900 - Hangars | J138: =IF(VLOOKUP($A138,Aviation!$A:$O,8,FALSE)<>0,VLOOKUP($A138,Aviation!$A:$O,8,FALSE),"") -> 553500 | K138: =IF(VLOOKUP($A138,Aviation!$A:$O,9,FALSE)<>0,VLOOKUP($A138,Aviation!$A:$O,9,FALSE),"") -> N/A | L138: =IF(VLOOKUP($A138,Aviation!$A:$O,10,FALSE)<>0,VLOOKUP($A138,Aviation!$A:$O,10,FALSE),"") -> N/A | M138: =IF(VLOOKUP($A138,Aviation!$A:$O,11,FALSE)<>0,VLOOKUP($A138,Aviation!$A:$O,11,FALSE),"") -> 24.9675 | N138: =IF(VLOOKUP($A138,Aviation!$A:$O,12,FALSE)<>0,VLOOKUP($A138,Aviation!$A:$O,12,FALSE),"") -> E | O138: =IF(VLOOKUP($A138,Aviation!$A:$O,13,FALSE)<>0,VLOOKUP($A138,Aviation!$A:$O,13,FALSE),"") -> 08 | P138: =IF(VLOOKUP($A138,Aviation!$A:$O,14,FALSE)<>0,VLOOKUP($A138,Aviation!$A:$O,14,FALSE),"") -> Triangle Area RPO | Q138: =IF(VLOOKUP($A138,Aviation!$A:$O,15,FALSE)<>0,VLOOKUP($A138,Aviation!$A:$O,15,FALSE),"") -> Lee | W138: Yes
A139: A130494 | B139: Aviation | C139: =IF(VLOOKUP($A139,Aviation!$A:$O,2,FALSE)<>0,VLOOKUP($A139,Aviation!$A:$O,2,FALSE),"") ->  | D139: =IF(VLOOKUP($A139,Aviation!$A:$O,3,FALSE)<>0,VLOOKUP($A139,Aviation!$A:$O,3,FALSE),"") -> Division Needs | E139: =IF(VLOOKUP($A139,Aviation!$A:$O,4,FALSE)<>0,VLOOKUP($A139,Aviation!$A:$O,4,FALSE),"") -> ETC - Tarboro - Edgecombe | H139: =IF(VLOOKUP($A139,Aviation!$A:$O,6,FALSE)<>0,VLOOKUP($A139,Aviation!$A:$O,6,FALSE),"") -> Expand the Corporate Apron by 8,350 SF and construct a 70' X 80' Hangar. (includes Project Request Numbers: 2898 ) | I139: =IF(VLOOKUP($A139,Aviation!$A:$O,7,FALSE)<>0,VLOOKUP($A139,Aviation!$A:$O,7,FALSE),"") -> 1240 - Corporate and T-hangar Taxiway: Construction | J139: =IF(VLOOKUP($A139,Aviation!$A:$O,8,FALSE)<>0,VLOOKUP($A139,Aviation!$A:$O,8,FALSE),"") -> 513000 | K139: =IF(VLOOKUP($A139,Aviation!$A:$O,9,FALSE)<>0,VLOOKUP($A139,Aviation!$A:$O,9,FALSE),"") -> N/A | L139: =IF(VLOOKUP($A139,Aviation!$A:$O,10,FALSE)<>0,VLOOKUP($A139,Aviation!$A:$O,10,FALSE),"") -> N/A | M139: =IF(VLOOKUP($A139,Aviation!$A:$O,11,FALSE)<>0,VLOOKUP($A139,Aviation!$A:$O,11,FALSE),"") -> 33.3765 | N139: =IF(VLOOKUP($A139,Aviation!$A:$O,12,FALSE)<>0,VLOOKUP($A139,Aviation!$A:$O,12,FALSE),"") -> A | O139: =IF(VLOOKUP($A139,Aviation!$A:$O,13,FALSE)<>0,VLOOKUP($A139,Aviation!$A:$O,13,FALSE),"") -> 04 | P139: =IF(VLOOKUP($A139,Aviation!$A:$O,14,FALSE)<>0,VLOOKUP($A139,Aviation!$A:$O,14,FALSE),"") -> Upper Coastal Plain RPO | Q139: =IF(VLOOKUP($A139,Aviation!$A:$O,15,FALSE)<>0,VLOOKUP($A139,Aviation!$A:$O,15,FALSE),"") -> Edgecombe | W139: Yes
A140: A130498 | B140: Aviation | C140: =IF(VLOOKUP($A140,Aviation!$A:$O,2,FALSE)<>0,VLOOKUP($A140,Aviation!$A:$O,2,FALSE),"") ->  | D140: =IF(VLOOKUP($A140,Aviation!$A:$O,3,FALSE)<>0,VLOOKUP($A140,Aviation!$A:$O,3,FALSE),"") -> Division Needs | E140: =IF(VLOOKUP($A140,Aviation!$A:$O,4,FALSE)<>0,VLOOKUP($A140,Aviation!$A:$O,4,FALSE),"") -> JNX - Johnston County | H140: =IF(VLOOKUP($A140,Aviation!$A:$O,6,FALSE)<>0,VLOOKUP($A140,Aviation!$A:$O,6,FALSE),"") -> The existing taxiway pavements will be approaching the end of their useful life and require pavement rehabilitation. Assumed design would include a 3" asphalt maintenance overlay. The taxiways will be widened to 50' at this time to conform to C- III standards. (includes Project Request Numbers: 2129 ) | I140: =IF(VLOOKUP($A140,Aviation!$A:$O,7,FALSE)<>0,VLOOKUP($A140,Aviation!$A:$O,7,FALSE),"") -> 1100 - Taxiway Requirements | J140: =IF(VLOOKUP($A140,Aviation!$A:$O,8,FALSE)<>0,VLOOKUP($A140,Aviation!$A:$O,8,FALSE),"") -> 3348000 | K140: =IF(VLOOKUP($A140,Aviation!$A:$O,9,FALSE)<>0,VLOOKUP($A140,Aviation!$A:$O,9,FALSE),"") -> N/A | L140: =IF(VLOOKUP($A140,Aviation!$A:$O,10,FALSE)<>0,VLOOKUP($A140,Aviation!$A:$O,10,FALSE),"") -> N/A | M140: =IF(VLOOKUP($A140,Aviation!$A:$O,11,FALSE)<>0,VLOOKUP($A140,Aviation!$A:$O,11,FALSE),"") -> 34.1725 | N140: =IF(VLOOKUP($A140,Aviation!$A:$O,12,FALSE)<>0,VLOOKUP($A140,Aviation!$A:$O,12,FALSE),"") -> A | O140: =IF(VLOOKUP($A140,Aviation!$A:$O,13,FALSE)<>0,VLOOKUP($A140,Aviation!$A:$O,13,FALSE),"") -> 04 | P140: =IF(VLOOKUP($A140,Aviation!$A:$O,14,FALSE)<>0,VLOOKUP($A140,Aviation!$A:$O,14,FALSE),"") -> Upper Coastal Plain RPO | Q140: =IF(VLOOKUP($A140,Aviation!$A:$O,15,FALSE)<>0,VLOOKUP($A140,Aviation!$A:$O,15,FALSE),"") -> Johnston | W140: Yes
A141: A130499 | B141: Aviation | C141: =IF(VLOOKUP($A141,Aviation!$A:$O,2,FALSE)<>0,VLOOKUP($A141,Aviation!$A:$O,2,FALSE),"") ->  | D141: =IF(VLOOKUP($A141,Aviation!$A:$O,3,FALSE)<>0,VLOOKUP($A141,Aviation!$A:$O,3,FALSE),"") -> Division Needs | E141: =IF(VLOOKUP($A141,Aviation!$A:$O,4,FALSE)<>0,VLOOKUP($A141,Aviation!$A:$O,4,FALSE),"") -> JNX - Johnston County | H141: =IF(VLOOKUP($A141,Aviation!$A:$O,6,FALSE)<>0,VLOOKUP($A141,Aviation!$A:$O,6,FALSE),"") -> This project provides for construction of Phase I of the new corporate area development. Phase I will include the construction of a new t-hangar area and construction of a new apron. Elements of construction will include clearing and grubbing, grading and drainage, paving, and erosion control measures. (includes Project Request Numbers: 2127 ) | I141: =IF(VLOOKUP($A141,Aviation!$A:$O,7,FALSE)<>0,VLOOKUP($A141,Aviation!$A:$O,7,FALSE),"") -> 1240 - Corporate and T-hangar Taxiway: Construction | J141: =IF(VLOOKUP($A141,Aviation!$A:$O,8,FALSE)<>0,VLOOKUP($A141,Aviation!$A:$O,8,FALSE),"") -> 3618000 | K141: =IF(VLOOKUP($A141,Aviation!$A:$O,9,FALSE)<>0,VLOOKUP($A141,Aviation!$A:$O,9,FALSE),"") -> N/A | L141: =IF(VLOOKUP($A141,Aviation!$A:$O,10,FALSE)<>0,VLOOKUP($A141,Aviation!$A:$O,10,FALSE),"") -> N/A | M141: =IF(VLOOKUP($A141,Aviation!$A:$O,11,FALSE)<>0,VLOOKUP($A141,Aviation!$A:$O,11,FALSE),"") -> 26.0475 | N141: =IF(VLOOKUP($A141,Aviation!$A:$O,12,FALSE)<>0,VLOOKUP($A141,Aviation!$A:$O,12,FALSE),"") -> A | O141: =IF(VLOOKUP($A141,Aviation!$A:$O,13,FALSE)<>0,VLOOKUP($A141,Aviation!$A:$O,13,FALSE),"") -> 04 | P141: =IF(VLOOKUP($A141,Aviation!$A:$O,14,FALSE)<>0,VLOOKUP($A141,Aviation!$A:$O,14,FALSE),"") -> Upper Coastal Plain RPO | Q141: =IF(VLOOKUP($A141,Aviation!$A:$O,15,FALSE)<>0,VLOOKUP($A141,Aviation!$A:$O,15,FALSE),"") -> Johnston | W141: Yes
A142: A150096 | B142: Aviation | C142: =IF(VLOOKUP($A142,Aviation!$A:$O,2,FALSE)<>0,VLOOKUP($A142,Aviation!$A:$O,2,FALSE),"") ->  | D142: =IF(VLOOKUP($A142,Aviation!$A:$O,3,FALSE)<>0,VLOOKUP($A142,Aviation!$A:$O,3,FALSE),"") -> Division Needs | E142: =IF(VLOOKUP($A142,Aviation!$A:$O,4,FALSE)<>0,VLOOKUP($A142,Aviation!$A:$O,4,FALSE),"") -> SVH - Statesville Regional | H142: =IF(VLOOKUP($A142,Aviation!$A:$O,6,FALSE)<>0,VLOOKUP($A142,Aviation!$A:$O,6,FALSE),"") -> Project includes a new 7,000 square foot terminal, new parking lot, and relocation of West Aviation Drive. Project includes land acquisition, design and construction costs.(Includes Project Request Numbers 3371) | I142: =IF(VLOOKUP($A142,Aviation!$A:$O,7,FALSE)<>0,VLOOKUP($A142,Aviation!$A:$O,7,FALSE),"") -> 1305 - General Aviation Terminal Building: New Construction | J142: =IF(VLOOKUP($A142,Aviation!$A:$O,8,FALSE)<>0,VLOOKUP($A142,Aviation!$A:$O,8,FALSE),"") -> 10296900 | K142: =IF(VLOOKUP($A142,Aviation!$A:$O,9,FALSE)<>0,VLOOKUP($A142,Aviation!$A:$O,9,FALSE),"") -> N/A | L142: =IF(VLOOKUP($A142,Aviation!$A:$O,10,FALSE)<>0,VLOOKUP($A142,Aviation!$A:$O,10,FALSE),"") -> N/A | M142: =IF(VLOOKUP($A142,Aviation!$A:$O,11,FALSE)<>0,VLOOKUP($A142,Aviation!$A:$O,11,FALSE),"") -> 22.041 | N142: =IF(VLOOKUP($A142,Aviation!$A:$O,12,FALSE)<>0,VLOOKUP($A142,Aviation!$A:$O,12,FALSE),"") -> F | O142: =IF(VLOOKUP($A142,Aviation!$A:$O,13,FALSE)<>0,VLOOKUP($A142,Aviation!$A:$O,13,FALSE),"") -> 12 | P142: =IF(VLOOKUP($A142,Aviation!$A:$O,14,FALSE)<>0,VLOOKUP($A142,Aviation!$A:$O,14,FALSE),"") -> Charlotte Regional Transportation Planning Organization | Q142: =IF(VLOOKUP($A142,Aviation!$A:$O,15,FALSE)<>0,VLOOKUP($A142,Aviation!$A:$O,15,FALSE),"") -> Iredell | W142: Yes
A143: A150097 | B143: Aviation | C143: =IF(VLOOKUP($A143,Aviation!$A:$O,2,FALSE)<>0,VLOOKUP($A143,Aviation!$A:$O,2,FALSE),"") ->  | D143: =IF(VLOOKUP($A143,Aviation!$A:$O,3,FALSE)<>0,VLOOKUP($A143,Aviation!$A:$O,3,FALSE),"") -> Division Needs | E143: =IF(VLOOKUP($A143,Aviation!$A:$O,4,FALSE)<>0,VLOOKUP($A143,Aviation!$A:$O,4,FALSE),"") -> SVH - Statesville Regional | H143: =IF(VLOOKUP($A143,Aviation!$A:$O,6,FALSE)<>0,VLOOKUP($A143,Aviation!$A:$O,6,FALSE),"") -> Acquire property for future corporate aviation development. | I143: =IF(VLOOKUP($A143,Aviation!$A:$O,7,FALSE)<>0,VLOOKUP($A143,Aviation!$A:$O,7,FALSE),"") -> 1240 - Corporate and T-hangar Taxiway: Construction | J143: =IF(VLOOKUP($A143,Aviation!$A:$O,8,FALSE)<>0,VLOOKUP($A143,Aviation!$A:$O,8,FALSE),"") -> 15810300 | K143: =IF(VLOOKUP($A143,Aviation!$A:$O,9,FALSE)<>0,VLOOKUP($A143,Aviation!$A:$O,9,FALSE),"") -> N/A | L143: =IF(VLOOKUP($A143,Aviation!$A:$O,10,FALSE)<>0,VLOOKUP($A143,Aviation!$A:$O,10,FALSE),"") -> N/A | M143: =IF(VLOOKUP($A143,Aviation!$A:$O,11,FALSE)<>0,VLOOKUP($A143,Aviation!$A:$O,11,FALSE),"") -> 26.7845 | N143: =IF(VLOOKUP($A143,Aviation!$A:$O,12,FALSE)<>0,VLOOKUP($A143,Aviation!$A:$O,12,FALSE),"") -> F | O143: =IF(VLOOKUP($A143,Aviation!$A:$O,13,FALSE)<>0,VLOOKUP($A143,Aviation!$A:$O,13,FALSE),"") -> 12 | P143: =IF(VLOOKUP($A143,Aviation!$A:$O,14,FALSE)<>0,VLOOKUP($A143,Aviation!$A:$O,14,FALSE),"") -> Charlotte Regional Transportation Planning Organization | Q143: =IF(VLOOKUP($A143,Aviation!$A:$O,15,FALSE)<>0,VLOOKUP($A143,Aviation!$A:$O,15,FALSE),"") -> Iredell | W143: Yes
A144: A150099 | B144: Aviation | C144: =IF(VLOOKUP($A144,Aviation!$A:$O,2,FALSE)<>0,VLOOKUP($A144,Aviation!$A:$O,2,FALSE),"") ->  | D144: =IF(VLOOKUP($A144,Aviation!$A:$O,3,FALSE)<>0,VLOOKUP($A144,Aviation!$A:$O,3,FALSE),"") -> Division Needs | E144: =IF(VLOOKUP($A144,Aviation!$A:$O,4,FALSE)<>0,VLOOKUP($A144,Aviation!$A:$O,4,FALSE),"") -> SVH - Statesville Regional | H144: =IF(VLOOKUP($A144,Aviation!$A:$O,6,FALSE)<>0,VLOOKUP($A144,Aviation!$A:$O,6,FALSE),"") -> The current runway length of 7,000' is anticipated to be a limiting factor to desired avaition growth in the region over the next 20 year planning period. Project consists of land acquisition, Navaid relocation, East Aviation Drive relocation, and construction of the runway extension. (Includes Project Request Number 3458) | I144: =IF(VLOOKUP($A144,Aviation!$A:$O,7,FALSE)<>0,VLOOKUP($A144,Aviation!$A:$O,7,FALSE),"") -> 0500 - Runway Length/Width | J144: =IF(VLOOKUP($A144,Aviation!$A:$O,8,FALSE)<>0,VLOOKUP($A144,Aviation!$A:$O,8,FALSE),"") -> 38230200 | K144: =IF(VLOOKUP($A144,Aviation!$A:$O,9,FALSE)<>0,VLOOKUP($A144,Aviation!$A:$O,9,FALSE),"") -> N/A | L144: =IF(VLOOKUP($A144,Aviation!$A:$O,10,FALSE)<>0,VLOOKUP($A144,Aviation!$A:$O,10,FALSE),"") -> N/A | M144: =IF(VLOOKUP($A144,Aviation!$A:$O,11,FALSE)<>0,VLOOKUP($A144,Aviation!$A:$O,11,FALSE),"") -> 38.5465 | N144: =IF(VLOOKUP($A144,Aviation!$A:$O,12,FALSE)<>0,VLOOKUP($A144,Aviation!$A:$O,12,FALSE),"") -> F | O144: =IF(VLOOKUP($A144,Aviation!$A:$O,13,FALSE)<>0,VLOOKUP($A144,Aviation!$A:$O,13,FALSE),"") -> 12 | P144: =IF(VLOOKUP($A144,Aviation!$A:$O,14,FALSE)<>0,VLOOKUP($A144,Aviation!$A:$O,14,FALSE),"") -> Charlotte Regional Transportation Planning Organization | Q144: =IF(VLOOKUP($A144,Aviation!$A:$O,15,FALSE)<>0,VLOOKUP($A144,Aviation!$A:$O,15,FALSE),"") -> Iredell | W144: Yes
A145: A150101 | B145: Aviation | C145: =IF(VLOOKUP($A145,Aviation!$A:$O,2,FALSE)<>0,VLOOKUP($A145,Aviation!$A:$O,2,FALSE),"") ->  | D145: =IF(VLOOKUP($A145,Aviation!$A:$O,3,FALSE)<>0,VLOOKUP($A145,Aviation!$A:$O,3,FALSE),"") -> Statewide Mobility | E145: =IF(VLOOKUP($A145,Aviation!$A:$O,4,FALSE)<>0,VLOOKUP($A145,Aviation!$A:$O,4,FALSE),"") -> ILM - Wilmington International | H145: =IF(VLOOKUP($A145,Aviation!$A:$O,6,FALSE)<>0,VLOOKUP($A145,Aviation!$A:$O,6,FALSE),"") -> Expand the GA Apron grassed area to paved surface to accommodate additional tie down space for aircraft. Includes Project Request Number: 00003432. | I145: =IF(VLOOKUP($A145,Aviation!$A:$O,7,FALSE)<>0,VLOOKUP($A145,Aviation!$A:$O,7,FALSE),"") -> 1200 - Aircraft Apron / Helipad Requirements | J145: =IF(VLOOKUP($A145,Aviation!$A:$O,8,FALSE)<>0,VLOOKUP($A145,Aviation!$A:$O,8,FALSE),"") -> 500000 | K145: =IF(VLOOKUP($A145,Aviation!$A:$O,9,FALSE)<>0,VLOOKUP($A145,Aviation!$A:$O,9,FALSE),"") -> 79.586 | L145: =IF(VLOOKUP($A145,Aviation!$A:$O,10,FALSE)<>0,VLOOKUP($A145,Aviation!$A:$O,10,FALSE),"") -> 55.955 | M145: =IF(VLOOKUP($A145,Aviation!$A:$O,11,FALSE)<>0,VLOOKUP($A145,Aviation!$A:$O,11,FALSE),"") -> 37.44 | N145: =IF(VLOOKUP($A145,Aviation!$A:$O,12,FALSE)<>0,VLOOKUP($A145,Aviation!$A:$O,12,FALSE),"") -> B | O145: =IF(VLOOKUP($A145,Aviation!$A:$O,13,FALSE)<>0,VLOOKUP($A145,Aviation!$A:$O,13,FALSE),"") -> 03 | P145: =IF(VLOOKUP($A145,Aviation!$A:$O,14,FALSE)<>0,VLOOKUP($A145,Aviation!$A:$O,14,FALSE),"") -> Wilmington Urban Area MPO | Q145: =IF(VLOOKUP($A145,Aviation!$A:$O,15,FALSE)<>0,VLOOKUP($A145,Aviation!$A:$O,15,FALSE),"") -> New Hanover | R145: 500000 | T145: 2026 | U145: Statewide Mobility | W145: No - Fully Funded in Statewide Mobility
A146: A150113 | B146: Aviation | C146: =IF(VLOOKUP($A146,Aviation!$A:$O,2,FALSE)<>0,VLOOKUP($A146,Aviation!$A:$O,2,FALSE),"") ->  | D146: =IF(VLOOKUP($A146,Aviation!$A:$O,3,FALSE)<>0,VLOOKUP($A146,Aviation!$A:$O,3,FALSE),"") -> Statewide Mobility | E146: =IF(VLOOKUP($A146,Aviation!$A:$O,4,FALSE)<>0,VLOOKUP($A146,Aviation!$A:$O,4,FALSE),"") -> ILM - Wilmington International | H146: =IF(VLOOKUP($A146,Aviation!$A:$O,6,FALSE)<>0,VLOOKUP($A146,Aviation!$A:$O,6,FALSE),"") -> Project includes overlay of existing WWII-era concrete pavement with new concrete pavement; construction of new concrete apron and bituminous tie-ins to Taxiway A; and construction of storm drain infrastructure (RCP to convey storm drainage from North GA Redevelopment Area to the existing Extended Dry Detention Basin). The project is in accordance with the Airport's GA Master Plan as well as the Stormwater Master Plan Permit. Includes Project Request Number: 00003413 | I146: =IF(VLOOKUP($A146,Aviation!$A:$O,7,FALSE)<>0,VLOOKUP($A146,Aviation!$A:$O,7,FALSE),"") -> 0615 - Pavement Strength - Apron | J146: =IF(VLOOKUP($A146,Aviation!$A:$O,8,FALSE)<>0,VLOOKUP($A146,Aviation!$A:$O,8,FALSE),"") -> 500000 | K146: =IF(VLOOKUP($A146,Aviation!$A:$O,9,FALSE)<>0,VLOOKUP($A146,Aviation!$A:$O,9,FALSE),"") -> 77.154 | L146: =IF(VLOOKUP($A146,Aviation!$A:$O,10,FALSE)<>0,VLOOKUP($A146,Aviation!$A:$O,10,FALSE),"") -> 54.258 | M146: =IF(VLOOKUP($A146,Aviation!$A:$O,11,FALSE)<>0,VLOOKUP($A146,Aviation!$A:$O,11,FALSE),"") -> 35.426 | N146: =IF(VLOOKUP($A146,Aviation!$A:$O,12,FALSE)<>0,VLOOKUP($A146,Aviation!$A:$O,12,FALSE),"") -> B | O146: =IF(VLOOKUP($A146,Aviation!$A:$O,13,FALSE)<>0,VLOOKUP($A146,Aviation!$A:$O,13,FALSE),"") -> 03 | P146: =IF(VLOOKUP($A146,Aviation!$A:$O,14,FALSE)<>0,VLOOKUP($A146,Aviation!$A:$O,14,FALSE),"") -> Wilmington Urban Area MPO | Q146: =IF(VLOOKUP($A146,Aviation!$A:$O,15,FALSE)<>0,VLOOKUP($A146,Aviation!$A:$O,15,FALSE),"") -> New Hanover | R146: 500000 | T146: 2026 | U146: Statewide Mobility | W146: No - Fully Funded in Statewide Mobility
A147: A150114 | B147: Aviation | C147: =IF(VLOOKUP($A147,Aviation!$A:$O,2,FALSE)<>0,VLOOKUP($A147,Aviation!$A:$O,2,FALSE),"") ->  | D147: =IF(VLOOKUP($A147,Aviation!$A:$O,3,FALSE)<>0,VLOOKUP($A147,Aviation!$A:$O,3,FALSE),"") -> Statewide Mobility | E147: =IF(VLOOKUP($A147,Aviation!$A:$O,4,FALSE)<>0,VLOOKUP($A147,Aviation!$A:$O,4,FALSE),"") -> ILM - Wilmington International | H147: =IF(VLOOKUP($A147,Aviation!$A:$O,6,FALSE)<>0,VLOOKUP($A147,Aviation!$A:$O,6,FALSE),"") -> The airport has had plans to widen the North-South TWY system to make the width consistent throughout. Currently the TWY system width ranges from 51 to 75 feet. The project will also add shoulders and keep the TWY lights on pavement to reduce mowing and maintenance. Includes Project Request Number: 00002988 | I147: =IF(VLOOKUP($A147,Aviation!$A:$O,7,FALSE)<>0,VLOOKUP($A147,Aviation!$A:$O,7,FALSE),"") -> 1100 - Taxiway Requirements | J147: =IF(VLOOKUP($A147,Aviation!$A:$O,8,FALSE)<>0,VLOOKUP($A147,Aviation!$A:$O,8,FALSE),"") -> 500000 | K147: =IF(VLOOKUP($A147,Aviation!$A:$O,9,FALSE)<>0,VLOOKUP($A147,Aviation!$A:$O,9,FALSE),"") -> 74.654 | L147: =IF(VLOOKUP($A147,Aviation!$A:$O,10,FALSE)<>0,VLOOKUP($A147,Aviation!$A:$O,10,FALSE),"") -> 52.2125 | M147: =IF(VLOOKUP($A147,Aviation!$A:$O,11,FALSE)<>0,VLOOKUP($A147,Aviation!$A:$O,11,FALSE),"") -> 34.3175 | N147: =IF(VLOOKUP($A147,Aviation!$A:$O,12,FALSE)<>0,VLOOKUP($A147,Aviation!$A:$O,12,FALSE),"") -> B | O147: =IF(VLOOKUP($A147,Aviation!$A:$O,13,FALSE)<>0,VLOOKUP($A147,Aviation!$A:$O,13,FALSE),"") -> 03 | P147: =IF(VLOOKUP($A147,Aviation!$A:$O,14,FALSE)<>0,VLOOKUP($A147,Aviation!$A:$O,14,FALSE),"") -> Wilmington Urban Area MPO | Q147: =IF(VLOOKUP($A147,Aviation!$A:$O,15,FALSE)<>0,VLOOKUP($A147,Aviation!$A:$O,15,FALSE),"") -> New Hanover | R147: 500000 | T147: 2027 | U147: Statewide Mobility | W147: No - Fully Funded in Statewide Mobility
A148: A150118 | B148: Aviation | C148: =IF(VLOOKUP($A148,Aviation!$A:$O,2,FALSE)<>0,VLOOKUP($A148,Aviation!$A:$O,2,FALSE),"") ->  | D148: =IF(VLOOKUP($A148,Aviation!$A:$O,3,FALSE)<>0,VLOOKUP($A148,Aviation!$A:$O,3,FALSE),"") -> Statewide Mobility | E148: =IF(VLOOKUP($A148,Aviation!$A:$O,4,FALSE)<>0,VLOOKUP($A148,Aviation!$A:$O,4,FALSE),"") -> ILM - Wilmington International | H148: =IF(VLOOKUP($A148,Aviation!$A:$O,6,FALSE)<>0,VLOOKUP($A148,Aviation!$A:$O,6,FALSE),"") -> Construction for expansion of the Air Carrier Apron in support of the proposed terminal expansion project. Includes Project Request Number: 00003428 | I148: =IF(VLOOKUP($A148,Aviation!$A:$O,7,FALSE)<>0,VLOOKUP($A148,Aviation!$A:$O,7,FALSE),"") -> 1200 - Aircraft Apron / Helipad Requirements | J148: =IF(VLOOKUP($A148,Aviation!$A:$O,8,FALSE)<>0,VLOOKUP($A148,Aviation!$A:$O,8,FALSE),"") -> 500000 | K148: =IF(VLOOKUP($A148,Aviation!$A:$O,9,FALSE)<>0,VLOOKUP($A148,Aviation!$A:$O,9,FALSE),"") -> 73.856 | L148: =IF(VLOOKUP($A148,Aviation!$A:$O,10,FALSE)<>0,VLOOKUP($A148,Aviation!$A:$O,10,FALSE),"") -> 51.529 | M148: =IF(VLOOKUP($A148,Aviation!$A:$O,11,FALSE)<>0,VLOOKUP($A148,Aviation!$A:$O,11,FALSE),"") -> 34.061 | N148: =IF(VLOOKUP($A148,Aviation!$A:$O,12,FALSE)<>0,VLOOKUP($A148,Aviation!$A:$O,12,FALSE),"") -> B | O148: =IF(VLOOKUP($A148,Aviation!$A:$O,13,FALSE)<>0,VLOOKUP($A148,Aviation!$A:$O,13,FALSE),"") -> 03 | P148: =IF(VLOOKUP($A148,Aviation!$A:$O,14,FALSE)<>0,VLOOKUP($A148,Aviation!$A:$O,14,FALSE),"") -> Wilmington Urban Area MPO | Q148: =IF(VLOOKUP($A148,Aviation!$A:$O,15,FALSE)<>0,VLOOKUP($A148,Aviation!$A:$O,15,FALSE),"") -> New Hanover | R148: 500000 | T148: 2027 | U148: Statewide Mobility | W148: No - Fully Funded in Statewide Mobility
A149: A150140 | B149: Aviation | C149: =IF(VLOOKUP($A149,Aviation!$A:$O,2,FALSE)<>0,VLOOKUP($A149,Aviation!$A:$O,2,FALSE),"") ->  | D149: =IF(VLOOKUP($A149,Aviation!$A:$O,3,FALSE)<>0,VLOOKUP($A149,Aviation!$A:$O,3,FALSE),"") -> Division Needs | E149: =IF(VLOOKUP($A149,Aviation!$A:$O,4,FALSE)<>0,VLOOKUP($A149,Aviation!$A:$O,4,FALSE),"") -> SOP - Moore County | H149: =IF(VLOOKUP($A149,Aviation!$A:$O,6,FALSE)<>0,VLOOKUP($A149,Aviation!$A:$O,6,FALSE),"") -> Continue hangar development as demand warrants. Construct T-hangar taxiways to new hangar area in GA development plan. Construct 1440 linear feet of Internal Airfield Service Road to segregate vehicle traffic from aircraft movement areas, including auto parking areas for the east side hangar development area. (includes Project Request Numbers: 2504, 2506, 2508) | I149: =IF(VLOOKUP($A149,Aviation!$A:$O,7,FALSE)<>0,VLOOKUP($A149,Aviation!$A:$O,7,FALSE),"") -> 1240 - Corporate and T-hangar Taxiway: Construction | J149: =IF(VLOOKUP($A149,Aviation!$A:$O,8,FALSE)<>0,VLOOKUP($A149,Aviation!$A:$O,8,FALSE),"") -> 2448000 | K149: =IF(VLOOKUP($A149,Aviation!$A:$O,9,FALSE)<>0,VLOOKUP($A149,Aviation!$A:$O,9,FALSE),"") -> N/A | L149: =IF(VLOOKUP($A149,Aviation!$A:$O,10,FALSE)<>0,VLOOKUP($A149,Aviation!$A:$O,10,FALSE),"") -> N/A | M149: =IF(VLOOKUP($A149,Aviation!$A:$O,11,FALSE)<>0,VLOOKUP($A149,Aviation!$A:$O,11,FALSE),"") -> 27.3535 | N149: =IF(VLOOKUP($A149,Aviation!$A:$O,12,FALSE)<>0,VLOOKUP($A149,Aviation!$A:$O,12,FALSE),"") -> E | O149: =IF(VLOOKUP($A149,Aviation!$A:$O,13,FALSE)<>0,VLOOKUP($A149,Aviation!$A:$O,13,FALSE),"") -> 08 | P149: =IF(VLOOKUP($A149,Aviation!$A:$O,14,FALSE)<>0,VLOOKUP($A149,Aviation!$A:$O,14,FALSE),"") -> Triangle Area RPO | Q149: =IF(VLOOKUP($A149,Aviation!$A:$O,15,FALSE)<>0,VLOOKUP($A149,Aviation!$A:$O,15,FALSE),"") -> Moore | W149: Yes
A150: A150349 | B150: Aviation | C150: =IF(VLOOKUP($A150,Aviation!$A:$O,2,FALSE)<>0,VLOOKUP($A150,Aviation!$A:$O,2,FALSE),"") ->  | D150: =IF(VLOOKUP($A150,Aviation!$A:$O,3,FALSE)<>0,VLOOKUP($A150,Aviation!$A:$O,3,FALSE),"") -> Division Needs | E150: =IF(VLOOKUP($A150,Aviation!$A:$O,4,FALSE)<>0,VLOOKUP($A150,Aviation!$A:$O,4,FALSE),"") -> AKH - Gastonia Municipal | H150: =IF(VLOOKUP($A150,Aviation!$A:$O,6,FALSE)<>0,VLOOKUP($A150,Aviation!$A:$O,6,FALSE),"") -> Site preparation for expansion of Hangar Area (5 hangars, 2 corporate) | I150: =IF(VLOOKUP($A150,Aviation!$A:$O,7,FALSE)<>0,VLOOKUP($A150,Aviation!$A:$O,7,FALSE),"") -> 1900 - Hangars | J150: =IF(VLOOKUP($A150,Aviation!$A:$O,8,FALSE)<>0,VLOOKUP($A150,Aviation!$A:$O,8,FALSE),"") -> 373500 | K150: =IF(VLOOKUP($A150,Aviation!$A:$O,9,FALSE)<>0,VLOOKUP($A150,Aviation!$A:$O,9,FALSE),"") -> N/A | L150: =IF(VLOOKUP($A150,Aviation!$A:$O,10,FALSE)<>0,VLOOKUP($A150,Aviation!$A:$O,10,FALSE),"") -> N/A | M150: =IF(VLOOKUP($A150,Aviation!$A:$O,11,FALSE)<>0,VLOOKUP($A150,Aviation!$A:$O,11,FALSE),"") -> 25.1945 | N150: =IF(VLOOKUP($A150,Aviation!$A:$O,12,FALSE)<>0,VLOOKUP($A150,Aviation!$A:$O,12,FALSE),"") -> F | O150: =IF(VLOOKUP($A150,Aviation!$A:$O,13,FALSE)<>0,VLOOKUP($A150,Aviation!$A:$O,13,FALSE),"") -> 12 | P150: =IF(VLOOKUP($A150,Aviation!$A:$O,14,FALSE)<>0,VLOOKUP($A150,Aviation!$A:$O,14,FALSE),"") -> Gaston-Cleveland-Lincoln MPO | Q150: =IF(VLOOKUP($A150,Aviation!$A:$O,15,FALSE)<>0,VLOOKUP($A150,Aviation!$A:$O,15,FALSE),"") -> Gaston | W150: Yes
A151: A150418 | B151: Aviation | C151: =IF(VLOOKUP($A151,Aviation!$A:$O,2,FALSE)<>0,VLOOKUP($A151,Aviation!$A:$O,2,FALSE),"") ->  | D151: =IF(VLOOKUP($A151,Aviation!$A:$O,3,FALSE)<>0,VLOOKUP($A151,Aviation!$A:$O,3,FALSE),"") -> Statewide Mobility | E151: =IF(VLOOKUP($A151,Aviation!$A:$O,4,FALSE)<>0,VLOOKUP($A151,Aviation!$A:$O,4,FALSE),"") -> ILM - Wilmington International | H151: =IF(VLOOKUP($A151,Aviation!$A:$O,6,FALSE)<>0,VLOOKUP($A151,Aviation!$A:$O,6,FALSE),"") -> Remediate Potential "Hot Spots" at Terminal Apron (Relocate Taxiway B at Air Carrier Apron, Remove Taxiway F, Remove Portion of Taxiway J) Includes Project Request Number: 00003434 | I151: =IF(VLOOKUP($A151,Aviation!$A:$O,7,FALSE)<>0,VLOOKUP($A151,Aviation!$A:$O,7,FALSE),"") -> 1100 - Taxiway Requirements | J151: =IF(VLOOKUP($A151,Aviation!$A:$O,8,FALSE)<>0,VLOOKUP($A151,Aviation!$A:$O,8,FALSE),"") -> 500000 | K151: =IF(VLOOKUP($A151,Aviation!$A:$O,9,FALSE)<>0,VLOOKUP($A151,Aviation!$A:$O,9,FALSE),"") -> 77.04 | L151: =IF(VLOOKUP($A151,Aviation!$A:$O,10,FALSE)<>0,VLOOKUP($A151,Aviation!$A:$O,10,FALSE),"") -> 53.5475 | M151: =IF(VLOOKUP($A151,Aviation!$A:$O,11,FALSE)<>0,VLOOKUP($A151,Aviation!$A:$O,11,FALSE),"") -> 36.505 | N151: =IF(VLOOKUP($A151,Aviation!$A:$O,12,FALSE)<>0,VLOOKUP($A151,Aviation!$A:$O,12,FALSE),"") -> B | O151: =IF(VLOOKUP($A151,Aviation!$A:$O,13,FALSE)<>0,VLOOKUP($A151,Aviation!$A:$O,13,FALSE),"") -> 03 | P151: =IF(VLOOKUP($A151,Aviation!$A:$O,14,FALSE)<>0,VLOOKUP($A151,Aviation!$A:$O,14,FALSE),"") -> Wilmington Urban Area MPO | Q151: =IF(VLOOKUP($A151,Aviation!$A:$O,15,FALSE)<>0,VLOOKUP($A151,Aviation!$A:$O,15,FALSE),"") -> New Hanover | R151: 500000 | T151: 2026 | U151: Statewide Mobility | W151: No - Fully Funded in Statewide Mobility
A152: A150420 | B152: Aviation | C152: =IF(VLOOKUP($A152,Aviation!$A:$O,2,FALSE)<>0,VLOOKUP($A152,Aviation!$A:$O,2,FALSE),"") ->  | D152: =IF(VLOOKUP($A152,Aviation!$A:$O,3,FALSE)<>0,VLOOKUP($A152,Aviation!$A:$O,3,FALSE),"") -> Statewide Mobility | E152: =IF(VLOOKUP($A152,Aviation!$A:$O,4,FALSE)<>0,VLOOKUP($A152,Aviation!$A:$O,4,FALSE),"") -> ILM - Wilmington International | H152: =IF(VLOOKUP($A152,Aviation!$A:$O,6,FALSE)<>0,VLOOKUP($A152,Aviation!$A:$O,6,FALSE),"") -> Project will improve safety by relocating the Airport's vehicle perimeter road outside NAVAID critical areas and Object Free Areas. The road will be all-weather road allowing traffic to be separated from Aircraft movement areas. Includes Project Request Number: 00003415 | I152: =IF(VLOOKUP($A152,Aviation!$A:$O,7,FALSE)<>0,VLOOKUP($A152,Aviation!$A:$O,7,FALSE),"") -> 3005 - Other: Not otherwise defined in system plan objectives | J152: =IF(VLOOKUP($A152,Aviation!$A:$O,8,FALSE)<>0,VLOOKUP($A152,Aviation!$A:$O,8,FALSE),"") -> 500000 | K152: =IF(VLOOKUP($A152,Aviation!$A:$O,9,FALSE)<>0,VLOOKUP($A152,Aviation!$A:$O,9,FALSE),"") -> 30.272 | L152: =IF(VLOOKUP($A152,Aviation!$A:$O,10,FALSE)<>0,VLOOKUP($A152,Aviation!$A:$O,10,FALSE),"") -> 20.2475 | M152: =IF(VLOOKUP($A152,Aviation!$A:$O,11,FALSE)<>0,VLOOKUP($A152,Aviation!$A:$O,11,FALSE),"") -> 5.9925 | N152: =IF(VLOOKUP($A152,Aviation!$A:$O,12,FALSE)<>0,VLOOKUP($A152,Aviation!$A:$O,12,FALSE),"") -> B | O152: =IF(VLOOKUP($A152,Aviation!$A:$O,13,FALSE)<>0,VLOOKUP($A152,Aviation!$A:$O,13,FALSE),"") -> 03 | P152: =IF(VLOOKUP($A152,Aviation!$A:$O,14,FALSE)<>0,VLOOKUP($A152,Aviation!$A:$O,14,FALSE),"") -> Wilmington Urban Area MPO | Q152: =IF(VLOOKUP($A152,Aviation!$A:$O,15,FALSE)<>0,VLOOKUP($A152,Aviation!$A:$O,15,FALSE),"") -> New Hanover | R152: 0 | W152: Yes
A153: A150423 | B153: Aviation | C153: =IF(VLOOKUP($A153,Aviation!$A:$O,2,FALSE)<>0,VLOOKUP($A153,Aviation!$A:$O,2,FALSE),"") ->  | D153: =IF(VLOOKUP($A153,Aviation!$A:$O,3,FALSE)<>0,VLOOKUP($A153,Aviation!$A:$O,3,FALSE),"") -> Statewide Mobility | E153: =IF(VLOOKUP($A153,Aviation!$A:$O,4,FALSE)<>0,VLOOKUP($A153,Aviation!$A:$O,4,FALSE),"") -> ILM - Wilmington International | H153: =IF(VLOOKUP($A153,Aviation!$A:$O,6,FALSE)<>0,VLOOKUP($A153,Aviation!$A:$O,6,FALSE),"") -> Increase width of all taxiways to 75' that will accomendate all aircraft that utilize ILM. Includes Project Request Number: 00003450 | I153: =IF(VLOOKUP($A153,Aviation!$A:$O,7,FALSE)<>0,VLOOKUP($A153,Aviation!$A:$O,7,FALSE),"") -> 1100 - Taxiway Requirements | J153: =IF(VLOOKUP($A153,Aviation!$A:$O,8,FALSE)<>0,VLOOKUP($A153,Aviation!$A:$O,8,FALSE),"") -> 500000 | K153: =IF(VLOOKUP($A153,Aviation!$A:$O,9,FALSE)<>0,VLOOKUP($A153,Aviation!$A:$O,9,FALSE),"") -> 77.549 | L153: =IF(VLOOKUP($A153,Aviation!$A:$O,10,FALSE)<>0,VLOOKUP($A153,Aviation!$A:$O,10,FALSE),"") -> 54.455 | M153: =IF(VLOOKUP($A153,Aviation!$A:$O,11,FALSE)<>0,VLOOKUP($A153,Aviation!$A:$O,11,FALSE),"") -> 36.05 | N153: =IF(VLOOKUP($A153,Aviation!$A:$O,12,FALSE)<>0,VLOOKUP($A153,Aviation!$A:$O,12,FALSE),"") -> B | O153: =IF(VLOOKUP($A153,Aviation!$A:$O,13,FALSE)<>0,VLOOKUP($A153,Aviation!$A:$O,13,FALSE),"") -> 03 | P153: =IF(VLOOKUP($A153,Aviation!$A:$O,14,FALSE)<>0,VLOOKUP($A153,Aviation!$A:$O,14,FALSE),"") -> Wilmington Urban Area MPO | Q153: =IF(VLOOKUP($A153,Aviation!$A:$O,15,FALSE)<>0,VLOOKUP($A153,Aviation!$A:$O,15,FALSE),"") -> New Hanover | R153: 500000 | T153: 2026 | U153: Statewide Mobility | W153: No - Fully Funded in Statewide Mobility
A154: A150497 | B154: Aviation | C154: =IF(VLOOKUP($A154,Aviation!$A:$O,2,FALSE)<>0,VLOOKUP($A154,Aviation!$A:$O,2,FALSE),"") ->  | D154: =IF(VLOOKUP($A154,Aviation!$A:$O,3,FALSE)<>0,VLOOKUP($A154,Aviation!$A:$O,3,FALSE),"") -> Division Needs | E154: =IF(VLOOKUP($A154,Aviation!$A:$O,4,FALSE)<>0,VLOOKUP($A154,Aviation!$A:$O,4,FALSE),"") -> ACZ - Henderson Field - Wallace | H154: =IF(VLOOKUP($A154,Aviation!$A:$O,6,FALSE)<>0,VLOOKUP($A154,Aviation!$A:$O,6,FALSE),"") -> This project consist of Apron Expansion Phase 2 and a partial parallel taxiway. Since the completion of the Apron Expansion Phase -1 in 2013, the apron has remained 90-100% full. Additional Apron space is needed to service transient traffic and future tenants. As noted in the recently completed NC Airport System Plan, the current apron parking meets the system objective for Henderson Field (ACZ). This project will exceed the system objective value for apron parking. (Project Request 2485) | I154: =IF(VLOOKUP($A154,Aviation!$A:$O,7,FALSE)<>0,VLOOKUP($A154,Aviation!$A:$O,7,FALSE),"") -> 1100 - Taxiway Requirements | J154: =IF(VLOOKUP($A154,Aviation!$A:$O,8,FALSE)<>0,VLOOKUP($A154,Aviation!$A:$O,8,FALSE),"") -> 1352970 | K154: =IF(VLOOKUP($A154,Aviation!$A:$O,9,FALSE)<>0,VLOOKUP($A154,Aviation!$A:$O,9,FALSE),"") -> N/A | L154: =IF(VLOOKUP($A154,Aviation!$A:$O,10,FALSE)<>0,VLOOKUP($A154,Aviation!$A:$O,10,FALSE),"") -> N/A | M154: =IF(VLOOKUP($A154,Aviation!$A:$O,11,FALSE)<>0,VLOOKUP($A154,Aviation!$A:$O,11,FALSE),"") -> 40.9335 | N154: =IF(VLOOKUP($A154,Aviation!$A:$O,12,FALSE)<>0,VLOOKUP($A154,Aviation!$A:$O,12,FALSE),"") -> B | O154: =IF(VLOOKUP($A154,Aviation!$A:$O,13,FALSE)<>0,VLOOKUP($A154,Aviation!$A:$O,13,FALSE),"") -> 03 | P154: =IF(VLOOKUP($A154,Aviation!$A:$O,14,FALSE)<>0,VLOOKUP($A154,Aviation!$A:$O,14,FALSE),"") -> Cape Fear RPO | Q154: =IF(VLOOKUP($A154,Aviation!$A:$O,15,FALSE)<>0,VLOOKUP($A154,Aviation!$A:$O,15,FALSE),"") -> Pender | W154: Yes
A155: A150502 | B155: Aviation | C155: =IF(VLOOKUP($A155,Aviation!$A:$O,2,FALSE)<>0,VLOOKUP($A155,Aviation!$A:$O,2,FALSE),"") ->  | D155: =IF(VLOOKUP($A155,Aviation!$A:$O,3,FALSE)<>0,VLOOKUP($A155,Aviation!$A:$O,3,FALSE),"") -> Division Needs | E155: =IF(VLOOKUP($A155,Aviation!$A:$O,4,FALSE)<>0,VLOOKUP($A155,Aviation!$A:$O,4,FALSE),"") -> SUT - Cape Fear Regional Jetport/Howie Franklin Field | H155: =IF(VLOOKUP($A155,Aviation!$A:$O,6,FALSE)<>0,VLOOKUP($A155,Aviation!$A:$O,6,FALSE),"") -> East Apron Rehabilitation and Expansion - Apron remains full and over capacity regularly. This project will include the east apron rehabilitation area that was excluded from the previous construction project and provide an expansion of the apron to offset the 26 aircraft spaces that will be lost due to FAA safety changes. (Project Request Numbers: 3402) | I155: =IF(VLOOKUP($A155,Aviation!$A:$O,7,FALSE)<>0,VLOOKUP($A155,Aviation!$A:$O,7,FALSE),"") -> 1200 - Aircraft Apron / Helipad Requirements | J155: =IF(VLOOKUP($A155,Aviation!$A:$O,8,FALSE)<>0,VLOOKUP($A155,Aviation!$A:$O,8,FALSE),"") -> 1854000 | K155: =IF(VLOOKUP($A155,Aviation!$A:$O,9,FALSE)<>0,VLOOKUP($A155,Aviation!$A:$O,9,FALSE),"") -> N/A | L155: =IF(VLOOKUP($A155,Aviation!$A:$O,10,FALSE)<>0,VLOOKUP($A155,Aviation!$A:$O,10,FALSE),"") -> N/A | M155: =IF(VLOOKUP($A155,Aviation!$A:$O,11,FALSE)<>0,VLOOKUP($A155,Aviation!$A:$O,11,FALSE),"") -> 34.484 | N155: =IF(VLOOKUP($A155,Aviation!$A:$O,12,FALSE)<>0,VLOOKUP($A155,Aviation!$A:$O,12,FALSE),"") -> B | O155: =IF(VLOOKUP($A155,Aviation!$A:$O,13,FALSE)<>0,VLOOKUP($A155,Aviation!$A:$O,13,FALSE),"") -> 03 | P155: =IF(VLOOKUP($A155,Aviation!$A:$O,14,FALSE)<>0,VLOOKUP($A155,Aviation!$A:$O,14,FALSE),"") -> Cape Fear RPO | Q155: =IF(VLOOKUP($A155,Aviation!$A:$O,15,FALSE)<>0,VLOOKUP($A155,Aviation!$A:$O,15,FALSE),"") -> Brunswick | W155: Yes
A156: A150518 | B156: Aviation | C156: =IF(VLOOKUP($A156,Aviation!$A:$O,2,FALSE)<>0,VLOOKUP($A156,Aviation!$A:$O,2,FALSE),"") ->  | D156: =IF(VLOOKUP($A156,Aviation!$A:$O,3,FALSE)<>0,VLOOKUP($A156,Aviation!$A:$O,3,FALSE),"") -> Division Needs | E156: =IF(VLOOKUP($A156,Aviation!$A:$O,4,FALSE)<>0,VLOOKUP($A156,Aviation!$A:$O,4,FALSE),"") -> CTZ - Clinton-Sampson County | H156: =IF(VLOOKUP($A156,Aviation!$A:$O,6,FALSE)<>0,VLOOKUP($A156,Aviation!$A:$O,6,FALSE),"") -> Project provides a 2" asphalt overlay to achieve a runway strength of 30,000# DW. (includes Project Request Numbers: 2469) | I156: =IF(VLOOKUP($A156,Aviation!$A:$O,7,FALSE)<>0,VLOOKUP($A156,Aviation!$A:$O,7,FALSE),"") -> 0605 - Pavement Strength - Runway | J156: =IF(VLOOKUP($A156,Aviation!$A:$O,8,FALSE)<>0,VLOOKUP($A156,Aviation!$A:$O,8,FALSE),"") -> 1713600 | K156: =IF(VLOOKUP($A156,Aviation!$A:$O,9,FALSE)<>0,VLOOKUP($A156,Aviation!$A:$O,9,FALSE),"") -> N/A | L156: =IF(VLOOKUP($A156,Aviation!$A:$O,10,FALSE)<>0,VLOOKUP($A156,Aviation!$A:$O,10,FALSE),"") -> N/A | M156: =IF(VLOOKUP($A156,Aviation!$A:$O,11,FALSE)<>0,VLOOKUP($A156,Aviation!$A:$O,11,FALSE),"") -> 38.8305 | N156: =IF(VLOOKUP($A156,Aviation!$A:$O,12,FALSE)<>0,VLOOKUP($A156,Aviation!$A:$O,12,FALSE),"") -> C | O156: =IF(VLOOKUP($A156,Aviation!$A:$O,13,FALSE)<>0,VLOOKUP($A156,Aviation!$A:$O,13,FALSE),"") -> 06 | P156: =IF(VLOOKUP($A156,Aviation!$A:$O,14,FALSE)<>0,VLOOKUP($A156,Aviation!$A:$O,14,FALSE),"") -> Mid-Carolina RPO | Q156: =IF(VLOOKUP($A156,Aviation!$A:$O,15,FALSE)<>0,VLOOKUP($A156,Aviation!$A:$O,15,FALSE),"") -> Sampson | W156: Yes
A157: A150523 | B157: Aviation | C157: =IF(VLOOKUP($A157,Aviation!$A:$O,2,FALSE)<>0,VLOOKUP($A157,Aviation!$A:$O,2,FALSE),"") ->  | D157: =IF(VLOOKUP($A157,Aviation!$A:$O,3,FALSE)<>0,VLOOKUP($A157,Aviation!$A:$O,3,FALSE),"") -> Division Needs | E157: =IF(VLOOKUP($A157,Aviation!$A:$O,4,FALSE)<>0,VLOOKUP($A157,Aviation!$A:$O,4,FALSE),"") -> EYF - Curtis L. Brown Jr. Field | H157: =IF(VLOOKUP($A157,Aviation!$A:$O,6,FALSE)<>0,VLOOKUP($A157,Aviation!$A:$O,6,FALSE),"") -> Phase 2 - Airport industrial park. Hangar site prep for two 120' x 150' hangars, construct approximately 5560 sq yd aircraft apron, and parking lot construction. Includes Project Request Number 3404. | I157: =IF(VLOOKUP($A157,Aviation!$A:$O,7,FALSE)<>0,VLOOKUP($A157,Aviation!$A:$O,7,FALSE),"") -> 1900 - Hangars | J157: =IF(VLOOKUP($A157,Aviation!$A:$O,8,FALSE)<>0,VLOOKUP($A157,Aviation!$A:$O,8,FALSE),"") -> 720000 | K157: =IF(VLOOKUP($A157,Aviation!$A:$O,9,FALSE)<>0,VLOOKUP($A157,Aviation!$A:$O,9,FALSE),"") -> N/A | L157: =IF(VLOOKUP($A157,Aviation!$A:$O,10,FALSE)<>0,VLOOKUP($A157,Aviation!$A:$O,10,FALSE),"") -> N/A | M157: =IF(VLOOKUP($A157,Aviation!$A:$O,11,FALSE)<>0,VLOOKUP($A157,Aviation!$A:$O,11,FALSE),"") -> 22.4675 | N157: =IF(VLOOKUP($A157,Aviation!$A:$O,12,FALSE)<>0,VLOOKUP($A157,Aviation!$A:$O,12,FALSE),"") -> C | O157: =IF(VLOOKUP($A157,Aviation!$A:$O,13,FALSE)<>0,VLOOKUP($A157,Aviation!$A:$O,13,FALSE),"") -> 06 | P157: =IF(VLOOKUP($A157,Aviation!$A:$O,14,FALSE)<>0,VLOOKUP($A157,Aviation!$A:$O,14,FALSE),"") -> Mid-Carolina RPO | Q157: =IF(VLOOKUP($A157,Aviation!$A:$O,15,FALSE)<>0,VLOOKUP($A157,Aviation!$A:$O,15,FALSE),"") -> Bladen | W157: Yes
A158: A150584 | B158: Aviation | C158: =IF(VLOOKUP($A158,Aviation!$A:$O,2,FALSE)<>0,VLOOKUP($A158,Aviation!$A:$O,2,FALSE),"") ->  | D158: =IF(VLOOKUP($A158,Aviation!$A:$O,3,FALSE)<>0,VLOOKUP($A158,Aviation!$A:$O,3,FALSE),"") -> Division Needs | E158: =IF(VLOOKUP($A158,Aviation!$A:$O,4,FALSE)<>0,VLOOKUP($A158,Aviation!$A:$O,4,FALSE),"") -> LBT - Lumberton Municipal | H158: =IF(VLOOKUP($A158,Aviation!$A:$O,6,FALSE)<>0,VLOOKUP($A158,Aviation!$A:$O,6,FALSE),"") -> Relocate the glideslope to recapture 150 ft of displaced threshold for Runway 5 to allow maximum use of runway & increase safety margins for business jet users. The Runway 5 localizer is 500 ft. from the threshold of Runway 23 and should be a minimum of 600 ft. Replace current OM/MM system with a DME to increase reliability for the IAP. Install medium-intensity approach lighting system for Runway 5 to lower decision altitude for precision approach. (Includes Project Request 2411 & 2423) | I158: =IF(VLOOKUP($A158,Aviation!$A:$O,7,FALSE)<>0,VLOOKUP($A158,Aviation!$A:$O,7,FALSE),"") -> 3005 - Other: Not otherwise defined in system plan objectives | J158: =IF(VLOOKUP($A158,Aviation!$A:$O,8,FALSE)<>0,VLOOKUP($A158,Aviation!$A:$O,8,FALSE),"") -> 3690000 | K158: =IF(VLOOKUP($A158,Aviation!$A:$O,9,FALSE)<>0,VLOOKUP($A158,Aviation!$A:$O,9,FALSE),"") -> N/A | L158: =IF(VLOOKUP($A158,Aviation!$A:$O,10,FALSE)<>0,VLOOKUP($A158,Aviation!$A:$O,10,FALSE),"") -> N/A | M158: =IF(VLOOKUP($A158,Aviation!$A:$O,11,FALSE)<>0,VLOOKUP($A158,Aviation!$A:$O,11,FALSE),"") -> 11.7285 | N158: =IF(VLOOKUP($A158,Aviation!$A:$O,12,FALSE)<>0,VLOOKUP($A158,Aviation!$A:$O,12,FALSE),"") -> C | O158: =IF(VLOOKUP($A158,Aviation!$A:$O,13,FALSE)<>0,VLOOKUP($A158,Aviation!$A:$O,13,FALSE),"") -> 06 | P158: =IF(VLOOKUP($A158,Aviation!$A:$O,14,FALSE)<>0,VLOOKUP($A158,Aviation!$A:$O,14,FALSE),"") -> Lumber River RPO | Q158: =IF(VLOOKUP($A158,Aviation!$A:$O,15,FALSE)<>0,VLOOKUP($A158,Aviation!$A:$O,15,FALSE),"") -> Robeson | W158: Yes
A159: A150604 | B159: Aviation | C159: =IF(VLOOKUP($A159,Aviation!$A:$O,2,FALSE)<>0,VLOOKUP($A159,Aviation!$A:$O,2,FALSE),"") ->  | D159: =IF(VLOOKUP($A159,Aviation!$A:$O,3,FALSE)<>0,VLOOKUP($A159,Aviation!$A:$O,3,FALSE),"") -> Regional Impact | E159: =IF(VLOOKUP($A159,Aviation!$A:$O,4,FALSE)<>0,VLOOKUP($A159,Aviation!$A:$O,4,FALSE),"") -> OAJ - Albert J. Ellis | H159: =IF(VLOOKUP($A159,Aviation!$A:$O,6,FALSE)<>0,VLOOKUP($A159,Aviation!$A:$O,6,FALSE),"") -> Acquire land for runway extension and roadway relocation | I159: =IF(VLOOKUP($A159,Aviation!$A:$O,7,FALSE)<>0,VLOOKUP($A159,Aviation!$A:$O,7,FALSE),"") -> 0500 - Runway Length/Width | J159: =IF(VLOOKUP($A159,Aviation!$A:$O,8,FALSE)<>0,VLOOKUP($A159,Aviation!$A:$O,8,FALSE),"") -> 300000 | K159: =IF(VLOOKUP($A159,Aviation!$A:$O,9,FALSE)<>0,VLOOKUP($A159,Aviation!$A:$O,9,FALSE),"") -> N/A | L159: =IF(VLOOKUP($A159,Aviation!$A:$O,10,FALSE)<>0,VLOOKUP($A159,Aviation!$A:$O,10,FALSE),"") -> 65.413 | M159: =IF(VLOOKUP($A159,Aviation!$A:$O,11,FALSE)<>0,VLOOKUP($A159,Aviation!$A:$O,11,FALSE),"") -> 47.127 | N159: =IF(VLOOKUP($A159,Aviation!$A:$O,12,FALSE)<>0,VLOOKUP($A159,Aviation!$A:$O,12,FALSE),"") -> B | O159: =IF(VLOOKUP($A159,Aviation!$A:$O,13,FALSE)<>0,VLOOKUP($A159,Aviation!$A:$O,13,FALSE),"") -> 03 | P159: =IF(VLOOKUP($A159,Aviation!$A:$O,14,FALSE)<>0,VLOOKUP($A159,Aviation!$A:$O,14,FALSE),"") -> Jacksonville Urban MPO | Q159: =IF(VLOOKUP($A159,Aviation!$A:$O,15,FALSE)<>0,VLOOKUP($A159,Aviation!$A:$O,15,FALSE),"") -> Onslow | W159: Yes
A160: A150605 | B160: Aviation | C160: =IF(VLOOKUP($A160,Aviation!$A:$O,2,FALSE)<>0,VLOOKUP($A160,Aviation!$A:$O,2,FALSE),"") ->  | D160: =IF(VLOOKUP($A160,Aviation!$A:$O,3,FALSE)<>0,VLOOKUP($A160,Aviation!$A:$O,3,FALSE),"") -> Regional Impact | E160: =IF(VLOOKUP($A160,Aviation!$A:$O,4,FALSE)<>0,VLOOKUP($A160,Aviation!$A:$O,4,FALSE),"") -> OAJ - Albert J. Ellis | H160: =IF(VLOOKUP($A160,Aviation!$A:$O,6,FALSE)<>0,VLOOKUP($A160,Aviation!$A:$O,6,FALSE),"") -> Acquire land for roadway relocation, RPZ and runway extension | I160: =IF(VLOOKUP($A160,Aviation!$A:$O,7,FALSE)<>0,VLOOKUP($A160,Aviation!$A:$O,7,FALSE),"") -> 0500 - Runway Length/Width | J160: =IF(VLOOKUP($A160,Aviation!$A:$O,8,FALSE)<>0,VLOOKUP($A160,Aviation!$A:$O,8,FALSE),"") -> 300000 | K160: =IF(VLOOKUP($A160,Aviation!$A:$O,9,FALSE)<>0,VLOOKUP($A160,Aviation!$A:$O,9,FALSE),"") -> N/A | L160: =IF(VLOOKUP($A160,Aviation!$A:$O,10,FALSE)<>0,VLOOKUP($A160,Aviation!$A:$O,10,FALSE),"") -> 65.44 | M160: =IF(VLOOKUP($A160,Aviation!$A:$O,11,FALSE)<>0,VLOOKUP($A160,Aviation!$A:$O,11,FALSE),"") -> 47.3825 | N160: =IF(VLOOKUP($A160,Aviation!$A:$O,12,FALSE)<>0,VLOOKUP($A160,Aviation!$A:$O,12,FALSE),"") -> B | O160: =IF(VLOOKUP($A160,Aviation!$A:$O,13,FALSE)<>0,VLOOKUP($A160,Aviation!$A:$O,13,FALSE),"") -> 03 | P160: =IF(VLOOKUP($A160,Aviation!$A:$O,14,FALSE)<>0,VLOOKUP($A160,Aviation!$A:$O,14,FALSE),"") -> Jacksonville Urban MPO | Q160: =IF(VLOOKUP($A160,Aviation!$A:$O,15,FALSE)<>0,VLOOKUP($A160,Aviation!$A:$O,15,FALSE),"") -> Onslow | W160: Yes
A161: A150610 | B161: Aviation | C161: =IF(VLOOKUP($A161,Aviation!$A:$O,2,FALSE)<>0,VLOOKUP($A161,Aviation!$A:$O,2,FALSE),"") ->  | D161: =IF(VLOOKUP($A161,Aviation!$A:$O,3,FALSE)<>0,VLOOKUP($A161,Aviation!$A:$O,3,FALSE),"") -> Regional Impact | E161: =IF(VLOOKUP($A161,Aviation!$A:$O,4,FALSE)<>0,VLOOKUP($A161,Aviation!$A:$O,4,FALSE),"") -> OAJ - Albert J. Ellis | H161: =IF(VLOOKUP($A161,Aviation!$A:$O,6,FALSE)<>0,VLOOKUP($A161,Aviation!$A:$O,6,FALSE),"") -> Extend runway 23 and taxiway A 900' (construction) | I161: =IF(VLOOKUP($A161,Aviation!$A:$O,7,FALSE)<>0,VLOOKUP($A161,Aviation!$A:$O,7,FALSE),"") -> 0500 - Runway Length/Width | J161: =IF(VLOOKUP($A161,Aviation!$A:$O,8,FALSE)<>0,VLOOKUP($A161,Aviation!$A:$O,8,FALSE),"") -> 300000 | K161: =IF(VLOOKUP($A161,Aviation!$A:$O,9,FALSE)<>0,VLOOKUP($A161,Aviation!$A:$O,9,FALSE),"") -> N/A | L161: =IF(VLOOKUP($A161,Aviation!$A:$O,10,FALSE)<>0,VLOOKUP($A161,Aviation!$A:$O,10,FALSE),"") -> 57.073 | M161: =IF(VLOOKUP($A161,Aviation!$A:$O,11,FALSE)<>0,VLOOKUP($A161,Aviation!$A:$O,11,FALSE),"") -> 40.7095 | N161: =IF(VLOOKUP($A161,Aviation!$A:$O,12,FALSE)<>0,VLOOKUP($A161,Aviation!$A:$O,12,FALSE),"") -> B | O161: =IF(VLOOKUP($A161,Aviation!$A:$O,13,FALSE)<>0,VLOOKUP($A161,Aviation!$A:$O,13,FALSE),"") -> 03 | P161: =IF(VLOOKUP($A161,Aviation!$A:$O,14,FALSE)<>0,VLOOKUP($A161,Aviation!$A:$O,14,FALSE),"") -> Jacksonville Urban MPO | Q161: =IF(VLOOKUP($A161,Aviation!$A:$O,15,FALSE)<>0,VLOOKUP($A161,Aviation!$A:$O,15,FALSE),"") -> Onslow | W161: Yes
A162: A150627 | B162: Aviation | C162: =IF(VLOOKUP($A162,Aviation!$A:$O,2,FALSE)<>0,VLOOKUP($A162,Aviation!$A:$O,2,FALSE),"") ->  | D162: =IF(VLOOKUP($A162,Aviation!$A:$O,3,FALSE)<>0,VLOOKUP($A162,Aviation!$A:$O,3,FALSE),"") -> Division Needs | E162: =IF(VLOOKUP($A162,Aviation!$A:$O,4,FALSE)<>0,VLOOKUP($A162,Aviation!$A:$O,4,FALSE),"") -> DPL - Duplin County | H162: =IF(VLOOKUP($A162,Aviation!$A:$O,6,FALSE)<>0,VLOOKUP($A162,Aviation!$A:$O,6,FALSE),"") -> Complete a 3" bituminous overlay of the runway to strengthen the pavement. This project will also widen the runway from 75' to 100' on the south side of the runway (18,000 sy of pavement area) to meet the recommended minimum width in accordance with System Plan and to encourage more corporate jet traffic. Project includes runway edge lights in cans and conduit, new LED REIL, new LED Wind Cone and PLC Touchscreen. (includes Project Request Number 2454 & 2455) | I162: =IF(VLOOKUP($A162,Aviation!$A:$O,7,FALSE)<>0,VLOOKUP($A162,Aviation!$A:$O,7,FALSE),"") -> 0605 - Pavement Strength - Runway | J162: =IF(VLOOKUP($A162,Aviation!$A:$O,8,FALSE)<>0,VLOOKUP($A162,Aviation!$A:$O,8,FALSE),"") -> 3555000 | K162: =IF(VLOOKUP($A162,Aviation!$A:$O,9,FALSE)<>0,VLOOKUP($A162,Aviation!$A:$O,9,FALSE),"") -> N/A | L162: =IF(VLOOKUP($A162,Aviation!$A:$O,10,FALSE)<>0,VLOOKUP($A162,Aviation!$A:$O,10,FALSE),"") -> N/A | M162: =IF(VLOOKUP($A162,Aviation!$A:$O,11,FALSE)<>0,VLOOKUP($A162,Aviation!$A:$O,11,FALSE),"") -> 35.5915 | N162: =IF(VLOOKUP($A162,Aviation!$A:$O,12,FALSE)<>0,VLOOKUP($A162,Aviation!$A:$O,12,FALSE),"") -> B | O162: =IF(VLOOKUP($A162,Aviation!$A:$O,13,FALSE)<>0,VLOOKUP($A162,Aviation!$A:$O,13,FALSE),"") -> 03 | P162: =IF(VLOOKUP($A162,Aviation!$A:$O,14,FALSE)<>0,VLOOKUP($A162,Aviation!$A:$O,14,FALSE),"") -> East Carolina RPO | Q162: =IF(VLOOKUP($A162,Aviation!$A:$O,15,FALSE)<>0,VLOOKUP($A162,Aviation!$A:$O,15,FALSE),"") -> Duplin | W162: Yes
A163: A150632 | B163: Aviation | C163: =IF(VLOOKUP($A163,Aviation!$A:$O,2,FALSE)<>0,VLOOKUP($A163,Aviation!$A:$O,2,FALSE),"") ->  | D163: =IF(VLOOKUP($A163,Aviation!$A:$O,3,FALSE)<>0,VLOOKUP($A163,Aviation!$A:$O,3,FALSE),"") -> Division Needs | E163: =IF(VLOOKUP($A163,Aviation!$A:$O,4,FALSE)<>0,VLOOKUP($A163,Aviation!$A:$O,4,FALSE),"") -> W40 - Mount Olive Municipal | H163: =IF(VLOOKUP($A163,Aviation!$A:$O,6,FALSE)<>0,VLOOKUP($A163,Aviation!$A:$O,6,FALSE),"") -> Realign entrance road along Everett Road and to the Terminal area. This work would include rehabilitation of approximately 400 ft of existing roadway and construction of approximately 600 ft of new roadway. This project will provide a more direct access to the terminal building and allow for future expansion of the terminal area. (includes Project Request Number: 3397) | I163: =IF(VLOOKUP($A163,Aviation!$A:$O,7,FALSE)<>0,VLOOKUP($A163,Aviation!$A:$O,7,FALSE),"") -> 1320 - General Aviation Terminal Building: Construct Terminal Access Road | J163: =IF(VLOOKUP($A163,Aviation!$A:$O,8,FALSE)<>0,VLOOKUP($A163,Aviation!$A:$O,8,FALSE),"") -> 405000 | K163: =IF(VLOOKUP($A163,Aviation!$A:$O,9,FALSE)<>0,VLOOKUP($A163,Aviation!$A:$O,9,FALSE),"") -> N/A | L163: =IF(VLOOKUP($A163,Aviation!$A:$O,10,FALSE)<>0,VLOOKUP($A163,Aviation!$A:$O,10,FALSE),"") -> N/A | M163: =IF(VLOOKUP($A163,Aviation!$A:$O,11,FALSE)<>0,VLOOKUP($A163,Aviation!$A:$O,11,FALSE),"") -> 23.661 | N163: =IF(VLOOKUP($A163,Aviation!$A:$O,12,FALSE)<>0,VLOOKUP($A163,Aviation!$A:$O,12,FALSE),"") -> A | O163: =IF(VLOOKUP($A163,Aviation!$A:$O,13,FALSE)<>0,VLOOKUP($A163,Aviation!$A:$O,13,FALSE),"") -> 04 | P163: =IF(VLOOKUP($A163,Aviation!$A:$O,14,FALSE)<>0,VLOOKUP($A163,Aviation!$A:$O,14,FALSE),"") -> East Carolina RPO | Q163: =IF(VLOOKUP($A163,Aviation!$A:$O,15,FALSE)<>0,VLOOKUP($A163,Aviation!$A:$O,15,FALSE),"") -> Wayne | W163: Yes
A164: A150697 | B164: Aviation | C164: =IF(VLOOKUP($A164,Aviation!$A:$O,2,FALSE)<>0,VLOOKUP($A164,Aviation!$A:$O,2,FALSE),"") ->  | D164: =IF(VLOOKUP($A164,Aviation!$A:$O,3,FALSE)<>0,VLOOKUP($A164,Aviation!$A:$O,3,FALSE),"") -> Division Needs | E164: =IF(VLOOKUP($A164,Aviation!$A:$O,4,FALSE)<>0,VLOOKUP($A164,Aviation!$A:$O,4,FALSE),"") -> SUT - Cape Fear Regional Jetport/Howie Franklin Field | H164: =IF(VLOOKUP($A164,Aviation!$A:$O,6,FALSE)<>0,VLOOKUP($A164,Aviation!$A:$O,6,FALSE),"") -> The new terminal building will be moved to the west side of the airport. The expansion of the west side apron will provide apron space for corporate jets and /or transient aircraft within close proximity to the new terminal building. (Project Request # 2175) | I164: =IF(VLOOKUP($A164,Aviation!$A:$O,7,FALSE)<>0,VLOOKUP($A164,Aviation!$A:$O,7,FALSE),"") -> 1200 - Aircraft Apron / Helipad Requirements | J164: =IF(VLOOKUP($A164,Aviation!$A:$O,8,FALSE)<>0,VLOOKUP($A164,Aviation!$A:$O,8,FALSE),"") -> 3348000 | K164: =IF(VLOOKUP($A164,Aviation!$A:$O,9,FALSE)<>0,VLOOKUP($A164,Aviation!$A:$O,9,FALSE),"") -> N/A | L164: =IF(VLOOKUP($A164,Aviation!$A:$O,10,FALSE)<>0,VLOOKUP($A164,Aviation!$A:$O,10,FALSE),"") -> N/A | M164: =IF(VLOOKUP($A164,Aviation!$A:$O,11,FALSE)<>0,VLOOKUP($A164,Aviation!$A:$O,11,FALSE),"") -> 32.325 | N164: =IF(VLOOKUP($A164,Aviation!$A:$O,12,FALSE)<>0,VLOOKUP($A164,Aviation!$A:$O,12,FALSE),"") -> B | O164: =IF(VLOOKUP($A164,Aviation!$A:$O,13,FALSE)<>0,VLOOKUP($A164,Aviation!$A:$O,13,FALSE),"") -> 03 | P164: =IF(VLOOKUP($A164,Aviation!$A:$O,14,FALSE)<>0,VLOOKUP($A164,Aviation!$A:$O,14,FALSE),"") -> Cape Fear RPO | Q164: =IF(VLOOKUP($A164,Aviation!$A:$O,15,FALSE)<>0,VLOOKUP($A164,Aviation!$A:$O,15,FALSE),"") -> Brunswick | W164: Yes
A165: A150700 | B165: Aviation | C165: =IF(VLOOKUP($A165,Aviation!$A:$O,2,FALSE)<>0,VLOOKUP($A165,Aviation!$A:$O,2,FALSE),"") ->  | D165: =IF(VLOOKUP($A165,Aviation!$A:$O,3,FALSE)<>0,VLOOKUP($A165,Aviation!$A:$O,3,FALSE),"") -> Division Needs | E165: =IF(VLOOKUP($A165,Aviation!$A:$O,4,FALSE)<>0,VLOOKUP($A165,Aviation!$A:$O,4,FALSE),"") -> GWW - Goldsboro-Wayne Municipal | H165: =IF(VLOOKUP($A165,Aviation!$A:$O,6,FALSE)<>0,VLOOKUP($A165,Aviation!$A:$O,6,FALSE),"") -> Extend Runway 23 1,000 feet. This project includes land acquisition, design, site prep, paving and lighting, and NAVAID relocation (Project request number 3302) | I165: =IF(VLOOKUP($A165,Aviation!$A:$O,7,FALSE)<>0,VLOOKUP($A165,Aviation!$A:$O,7,FALSE),"") -> 0500 - Runway Length/Width | J165: =IF(VLOOKUP($A165,Aviation!$A:$O,8,FALSE)<>0,VLOOKUP($A165,Aviation!$A:$O,8,FALSE),"") -> 6727500 | K165: =IF(VLOOKUP($A165,Aviation!$A:$O,9,FALSE)<>0,VLOOKUP($A165,Aviation!$A:$O,9,FALSE),"") -> N/A | L165: =IF(VLOOKUP($A165,Aviation!$A:$O,10,FALSE)<>0,VLOOKUP($A165,Aviation!$A:$O,10,FALSE),"") -> N/A | M165: =IF(VLOOKUP($A165,Aviation!$A:$O,11,FALSE)<>0,VLOOKUP($A165,Aviation!$A:$O,11,FALSE),"") -> 40.1375 | N165: =IF(VLOOKUP($A165,Aviation!$A:$O,12,FALSE)<>0,VLOOKUP($A165,Aviation!$A:$O,12,FALSE),"") -> A | O165: =IF(VLOOKUP($A165,Aviation!$A:$O,13,FALSE)<>0,VLOOKUP($A165,Aviation!$A:$O,13,FALSE),"") -> 04 | P165: =IF(VLOOKUP($A165,Aviation!$A:$O,14,FALSE)<>0,VLOOKUP($A165,Aviation!$A:$O,14,FALSE),"") -> Goldsboro Urban Area MPO | Q165: =IF(VLOOKUP($A165,Aviation!$A:$O,15,FALSE)<>0,VLOOKUP($A165,Aviation!$A:$O,15,FALSE),"") -> Wayne | W165: Yes
A166: A150741 | B166: Aviation | C166: =IF(VLOOKUP($A166,Aviation!$A:$O,2,FALSE)<>0,VLOOKUP($A166,Aviation!$A:$O,2,FALSE),"") ->  | D166: =IF(VLOOKUP($A166,Aviation!$A:$O,3,FALSE)<>0,VLOOKUP($A166,Aviation!$A:$O,3,FALSE),"") -> Division Needs | E166: =IF(VLOOKUP($A166,Aviation!$A:$O,4,FALSE)<>0,VLOOKUP($A166,Aviation!$A:$O,4,FALSE),"") -> ETC - Tarboro - Edgecombe | H166: =IF(VLOOKUP($A166,Aviation!$A:$O,6,FALSE)<>0,VLOOKUP($A166,Aviation!$A:$O,6,FALSE),"") -> Tarboro Airport T-Hangars & Taxilane - Partner Connect Project #3431 | I166: =IF(VLOOKUP($A166,Aviation!$A:$O,7,FALSE)<>0,VLOOKUP($A166,Aviation!$A:$O,7,FALSE),"") -> 1900 - Hangars | J166: =IF(VLOOKUP($A166,Aviation!$A:$O,8,FALSE)<>0,VLOOKUP($A166,Aviation!$A:$O,8,FALSE),"") -> 495000 | K166: =IF(VLOOKUP($A166,Aviation!$A:$O,9,FALSE)<>0,VLOOKUP($A166,Aviation!$A:$O,9,FALSE),"") -> N/A | L166: =IF(VLOOKUP($A166,Aviation!$A:$O,10,FALSE)<>0,VLOOKUP($A166,Aviation!$A:$O,10,FALSE),"") -> N/A | M166: =IF(VLOOKUP($A166,Aviation!$A:$O,11,FALSE)<>0,VLOOKUP($A166,Aviation!$A:$O,11,FALSE),"") -> 22.0125 | N166: =IF(VLOOKUP($A166,Aviation!$A:$O,12,FALSE)<>0,VLOOKUP($A166,Aviation!$A:$O,12,FALSE),"") -> A | O166: =IF(VLOOKUP($A166,Aviation!$A:$O,13,FALSE)<>0,VLOOKUP($A166,Aviation!$A:$O,13,FALSE),"") -> 04 | P166: =IF(VLOOKUP($A166,Aviation!$A:$O,14,FALSE)<>0,VLOOKUP($A166,Aviation!$A:$O,14,FALSE),"") -> Upper Coastal Plain RPO | Q166: =IF(VLOOKUP($A166,Aviation!$A:$O,15,FALSE)<>0,VLOOKUP($A166,Aviation!$A:$O,15,FALSE),"") -> Edgecombe | W166: Yes
A167: A150755 | B167: Aviation | C167: =IF(VLOOKUP($A167,Aviation!$A:$O,2,FALSE)<>0,VLOOKUP($A167,Aviation!$A:$O,2,FALSE),"") ->  | D167: =IF(VLOOKUP($A167,Aviation!$A:$O,3,FALSE)<>0,VLOOKUP($A167,Aviation!$A:$O,3,FALSE),"") -> Division Needs | E167: =IF(VLOOKUP($A167,Aviation!$A:$O,4,FALSE)<>0,VLOOKUP($A167,Aviation!$A:$O,4,FALSE),"") -> INT - Smith Reynolds | H167: =IF(VLOOKUP($A167,Aviation!$A:$O,6,FALSE)<>0,VLOOKUP($A167,Aviation!$A:$O,6,FALSE),"") -> Construct new Taxilane Lima and associated ramp from north of Taxiway Foxtrot to viable development area. This project will involve pavement and lighting design and full construction of new taxilane. A project in FFY 2015 is underway and includes site design and environmental. | I167: =IF(VLOOKUP($A167,Aviation!$A:$O,7,FALSE)<>0,VLOOKUP($A167,Aviation!$A:$O,7,FALSE),"") -> 1100 - Taxiway Requirements | J167: =IF(VLOOKUP($A167,Aviation!$A:$O,8,FALSE)<>0,VLOOKUP($A167,Aviation!$A:$O,8,FALSE),"") -> 5580000 | K167: =IF(VLOOKUP($A167,Aviation!$A:$O,9,FALSE)<>0,VLOOKUP($A167,Aviation!$A:$O,9,FALSE),"") -> N/A | L167: =IF(VLOOKUP($A167,Aviation!$A:$O,10,FALSE)<>0,VLOOKUP($A167,Aviation!$A:$O,10,FALSE),"") -> N/A | M167: =IF(VLOOKUP($A167,Aviation!$A:$O,11,FALSE)<>0,VLOOKUP($A167,Aviation!$A:$O,11,FALSE),"") -> 36.5015 | N167: =IF(VLOOKUP($A167,Aviation!$A:$O,12,FALSE)<>0,VLOOKUP($A167,Aviation!$A:$O,12,FALSE),"") -> D | O167: =IF(VLOOKUP($A167,Aviation!$A:$O,13,FALSE)<>0,VLOOKUP($A167,Aviation!$A:$O,13,FALSE),"") -> 09 | P167: =IF(VLOOKUP($A167,Aviation!$A:$O,14,FALSE)<>0,VLOOKUP($A167,Aviation!$A:$O,14,FALSE),"") -> Wilmington Urban Area MPO | Q167: =IF(VLOOKUP($A167,Aviation!$A:$O,15,FALSE)<>0,VLOOKUP($A167,Aviation!$A:$O,15,FALSE),"") -> Forsyth | W167: Yes
A168: A150860 | B168: Aviation | C168: =IF(VLOOKUP($A168,Aviation!$A:$O,2,FALSE)<>0,VLOOKUP($A168,Aviation!$A:$O,2,FALSE),"") ->  | D168: =IF(VLOOKUP($A168,Aviation!$A:$O,3,FALSE)<>0,VLOOKUP($A168,Aviation!$A:$O,3,FALSE),"") -> Statewide Mobility | E168: =IF(VLOOKUP($A168,Aviation!$A:$O,4,FALSE)<>0,VLOOKUP($A168,Aviation!$A:$O,4,FALSE),"") -> AVL - Asheville Regional | H168: =IF(VLOOKUP($A168,Aviation!$A:$O,6,FALSE)<>0,VLOOKUP($A168,Aviation!$A:$O,6,FALSE),"") -> Upon completion of the construction of the new permanent Runway 17/35, two taxiway connectors and associated systems will not have been completed with them due to budgetary constraints in the funding for those years. This phase includes paving, electrical systems and other associated work with the design/construction of the two remaining connector taxiways, which are required in order for the airfield to function at the needed level of capacity. (Includes Project Request Number: 3411.) | I168: =IF(VLOOKUP($A168,Aviation!$A:$O,7,FALSE)<>0,VLOOKUP($A168,Aviation!$A:$O,7,FALSE),"") -> 1100 - Taxiway Requirements | J168: =IF(VLOOKUP($A168,Aviation!$A:$O,8,FALSE)<>0,VLOOKUP($A168,Aviation!$A:$O,8,FALSE),"") -> 300000 | K168: =IF(VLOOKUP($A168,Aviation!$A:$O,9,FALSE)<>0,VLOOKUP($A168,Aviation!$A:$O,9,FALSE),"") -> 59.716 | L168: =IF(VLOOKUP($A168,Aviation!$A:$O,10,FALSE)<>0,VLOOKUP($A168,Aviation!$A:$O,10,FALSE),"") -> 42.983 | M168: =IF(VLOOKUP($A168,Aviation!$A:$O,11,FALSE)<>0,VLOOKUP($A168,Aviation!$A:$O,11,FALSE),"") -> 37.557 | N168: =IF(VLOOKUP($A168,Aviation!$A:$O,12,FALSE)<>0,VLOOKUP($A168,Aviation!$A:$O,12,FALSE),"") -> G | O168: =IF(VLOOKUP($A168,Aviation!$A:$O,13,FALSE)<>0,VLOOKUP($A168,Aviation!$A:$O,13,FALSE),"") -> 13 | P168: =IF(VLOOKUP($A168,Aviation!$A:$O,14,FALSE)<>0,VLOOKUP($A168,Aviation!$A:$O,14,FALSE),"") -> French Broad River MPO | Q168: =IF(VLOOKUP($A168,Aviation!$A:$O,15,FALSE)<>0,VLOOKUP($A168,Aviation!$A:$O,15,FALSE),"") -> Buncombe | R168: 0 | W168: Yes
A169: A150869 | B169: Aviation | C169: =IF(VLOOKUP($A169,Aviation!$A:$O,2,FALSE)<>0,VLOOKUP($A169,Aviation!$A:$O,2,FALSE),"") ->  | D169: =IF(VLOOKUP($A169,Aviation!$A:$O,3,FALSE)<>0,VLOOKUP($A169,Aviation!$A:$O,3,FALSE),"") -> Division Needs | E169: =IF(VLOOKUP($A169,Aviation!$A:$O,4,FALSE)<>0,VLOOKUP($A169,Aviation!$A:$O,4,FALSE),"") -> TDF - Person County Executive | H169: =IF(VLOOKUP($A169,Aviation!$A:$O,6,FALSE)<>0,VLOOKUP($A169,Aviation!$A:$O,6,FALSE),"") -> Extend runway 500' to 6,500 ft total length(takeoff length); includes former projects 2432 Environmental Assessment/Preliminary Engineering; 2429 Land acquisition Rwy 24; and 2433/2434 Runway 24 Safety Area Extension, Relocate SR 1131 & Relocate Localizer, 200' extension on Rwy 6 and 300' extension | I169: =IF(VLOOKUP($A169,Aviation!$A:$O,7,FALSE)<>0,VLOOKUP($A169,Aviation!$A:$O,7,FALSE),"") -> 0500 - Runway Length/Width | J169: =IF(VLOOKUP($A169,Aviation!$A:$O,8,FALSE)<>0,VLOOKUP($A169,Aviation!$A:$O,8,FALSE),"") -> 7623000 | K169: =IF(VLOOKUP($A169,Aviation!$A:$O,9,FALSE)<>0,VLOOKUP($A169,Aviation!$A:$O,9,FALSE),"") -> N/A | L169: =IF(VLOOKUP($A169,Aviation!$A:$O,10,FALSE)<>0,VLOOKUP($A169,Aviation!$A:$O,10,FALSE),"") -> N/A | M169: =IF(VLOOKUP($A169,Aviation!$A:$O,11,FALSE)<>0,VLOOKUP($A169,Aviation!$A:$O,11,FALSE),"") -> 39.9665 | N169: =IF(VLOOKUP($A169,Aviation!$A:$O,12,FALSE)<>0,VLOOKUP($A169,Aviation!$A:$O,12,FALSE),"") -> C | O169: =IF(VLOOKUP($A169,Aviation!$A:$O,13,FALSE)<>0,VLOOKUP($A169,Aviation!$A:$O,13,FALSE),"") -> 05 | P169: =IF(VLOOKUP($A169,Aviation!$A:$O,14,FALSE)<>0,VLOOKUP($A169,Aviation!$A:$O,14,FALSE),"") -> Kerr-Tar RPO | Q169: =IF(VLOOKUP($A169,Aviation!$A:$O,15,FALSE)<>0,VLOOKUP($A169,Aviation!$A:$O,15,FALSE),"") -> Person | W169: Yes
A170: A150871 | B170: Aviation | C170: =IF(VLOOKUP($A170,Aviation!$A:$O,2,FALSE)<>0,VLOOKUP($A170,Aviation!$A:$O,2,FALSE),"") ->  | D170: =IF(VLOOKUP($A170,Aviation!$A:$O,3,FALSE)<>0,VLOOKUP($A170,Aviation!$A:$O,3,FALSE),"") -> Division Needs | E170: =IF(VLOOKUP($A170,Aviation!$A:$O,4,FALSE)<>0,VLOOKUP($A170,Aviation!$A:$O,4,FALSE),"") -> TDF - Person County Executive | H170: =IF(VLOOKUP($A170,Aviation!$A:$O,6,FALSE)<>0,VLOOKUP($A170,Aviation!$A:$O,6,FALSE),"") -> Strengthen Runway, Taxiway, and Apron Pavements to 90,000# for Critical Air Freight Aircraft. The runway, apron & majority of the taxiways were last overlaid in 2003; Taxiway A West and Taxiway H were constructed in 2007. The design strength for these pavements was 30,000# SWG, 68.000# DWG. The pavement PCI's range from 67 (Fair) on the runway, 74 (Satisfactory) on the taxiways, & 67 (Fair) on the apron. The airport currently has operations by aircraft in excess of the pavement design strength. | I170: =IF(VLOOKUP($A170,Aviation!$A:$O,7,FALSE)<>0,VLOOKUP($A170,Aviation!$A:$O,7,FALSE),"") -> 0605 - Pavement Strength - Runway | J170: =IF(VLOOKUP($A170,Aviation!$A:$O,8,FALSE)<>0,VLOOKUP($A170,Aviation!$A:$O,8,FALSE),"") -> 7110000 | K170: =IF(VLOOKUP($A170,Aviation!$A:$O,9,FALSE)<>0,VLOOKUP($A170,Aviation!$A:$O,9,FALSE),"") -> N/A | L170: =IF(VLOOKUP($A170,Aviation!$A:$O,10,FALSE)<>0,VLOOKUP($A170,Aviation!$A:$O,10,FALSE),"") -> N/A | M170: =IF(VLOOKUP($A170,Aviation!$A:$O,11,FALSE)<>0,VLOOKUP($A170,Aviation!$A:$O,11,FALSE),"") -> 34.7385 | N170: =IF(VLOOKUP($A170,Aviation!$A:$O,12,FALSE)<>0,VLOOKUP($A170,Aviation!$A:$O,12,FALSE),"") -> C | O170: =IF(VLOOKUP($A170,Aviation!$A:$O,13,FALSE)<>0,VLOOKUP($A170,Aviation!$A:$O,13,FALSE),"") -> 05 | P170: =IF(VLOOKUP($A170,Aviation!$A:$O,14,FALSE)<>0,VLOOKUP($A170,Aviation!$A:$O,14,FALSE),"") -> Kerr-Tar RPO | Q170: =IF(VLOOKUP($A170,Aviation!$A:$O,15,FALSE)<>0,VLOOKUP($A170,Aviation!$A:$O,15,FALSE),"") -> Person | W170: Yes
A171: A150872 | B171: Aviation | C171: =IF(VLOOKUP($A171,Aviation!$A:$O,2,FALSE)<>0,VLOOKUP($A171,Aviation!$A:$O,2,FALSE),"") ->  | D171: =IF(VLOOKUP($A171,Aviation!$A:$O,3,FALSE)<>0,VLOOKUP($A171,Aviation!$A:$O,3,FALSE),"") -> Division Needs | E171: =IF(VLOOKUP($A171,Aviation!$A:$O,4,FALSE)<>0,VLOOKUP($A171,Aviation!$A:$O,4,FALSE),"") -> HNZ - Oxford-Henderson | H171: =IF(VLOOKUP($A171,Aviation!$A:$O,6,FALSE)<>0,VLOOKUP($A171,Aviation!$A:$O,6,FALSE),"") -> Construct a New Parallel Taxiway (Project Request Number 3462); Construct a new terminal area apron(Project Request Number 3463); Construct a new terminal building (Project Request Number 3464);Access Road and Parking for new terminal (Project Request Number 3465). Project includes Project Request Numbers: 3462,3463,3464,3465 | I171: =IF(VLOOKUP($A171,Aviation!$A:$O,7,FALSE)<>0,VLOOKUP($A171,Aviation!$A:$O,7,FALSE),"") -> 1305 - General Aviation Terminal Building: New Construction | J171: =IF(VLOOKUP($A171,Aviation!$A:$O,8,FALSE)<>0,VLOOKUP($A171,Aviation!$A:$O,8,FALSE),"") -> 5674500 | K171: =IF(VLOOKUP($A171,Aviation!$A:$O,9,FALSE)<>0,VLOOKUP($A171,Aviation!$A:$O,9,FALSE),"") -> N/A | L171: =IF(VLOOKUP($A171,Aviation!$A:$O,10,FALSE)<>0,VLOOKUP($A171,Aviation!$A:$O,10,FALSE),"") -> N/A | M171: =IF(VLOOKUP($A171,Aviation!$A:$O,11,FALSE)<>0,VLOOKUP($A171,Aviation!$A:$O,11,FALSE),"") -> 22.666 | N171: =IF(VLOOKUP($A171,Aviation!$A:$O,12,FALSE)<>0,VLOOKUP($A171,Aviation!$A:$O,12,FALSE),"") -> C | O171: =IF(VLOOKUP($A171,Aviation!$A:$O,13,FALSE)<>0,VLOOKUP($A171,Aviation!$A:$O,13,FALSE),"") -> 05 | P171: =IF(VLOOKUP($A171,Aviation!$A:$O,14,FALSE)<>0,VLOOKUP($A171,Aviation!$A:$O,14,FALSE),"") -> Kerr-Tar RPO | Q171: =IF(VLOOKUP($A171,Aviation!$A:$O,15,FALSE)<>0,VLOOKUP($A171,Aviation!$A:$O,15,FALSE),"") -> Granville | W171: Yes
A172: A150956 | B172: Aviation | C172: =IF(VLOOKUP($A172,Aviation!$A:$O,2,FALSE)<>0,VLOOKUP($A172,Aviation!$A:$O,2,FALSE),"") ->  | D172: =IF(VLOOKUP($A172,Aviation!$A:$O,3,FALSE)<>0,VLOOKUP($A172,Aviation!$A:$O,3,FALSE),"") -> Division Needs | E172: =IF(VLOOKUP($A172,Aviation!$A:$O,4,FALSE)<>0,VLOOKUP($A172,Aviation!$A:$O,4,FALSE),"") -> ISO - Kinston Regional Jetport at Stallings Field | H172: =IF(VLOOKUP($A172,Aviation!$A:$O,6,FALSE)<>0,VLOOKUP($A172,Aviation!$A:$O,6,FALSE),"") -> Construct 171,500 sq ft hanger w/fire suppression system for MRO facility, prospect includes apron/taxiway and landside improvements (includes Project Request number 3476) | I172: =IF(VLOOKUP($A172,Aviation!$A:$O,7,FALSE)<>0,VLOOKUP($A172,Aviation!$A:$O,7,FALSE),"") -> 1900 - Hangars | J172: =IF(VLOOKUP($A172,Aviation!$A:$O,8,FALSE)<>0,VLOOKUP($A172,Aviation!$A:$O,8,FALSE),"") -> 33404625 | K172: =IF(VLOOKUP($A172,Aviation!$A:$O,9,FALSE)<>0,VLOOKUP($A172,Aviation!$A:$O,9,FALSE),"") -> N/A | L172: =IF(VLOOKUP($A172,Aviation!$A:$O,10,FALSE)<>0,VLOOKUP($A172,Aviation!$A:$O,10,FALSE),"") -> N/A | M172: =IF(VLOOKUP($A172,Aviation!$A:$O,11,FALSE)<>0,VLOOKUP($A172,Aviation!$A:$O,11,FALSE),"") -> 15.8195 | N172: =IF(VLOOKUP($A172,Aviation!$A:$O,12,FALSE)<>0,VLOOKUP($A172,Aviation!$A:$O,12,FALSE),"") -> B | O172: =IF(VLOOKUP($A172,Aviation!$A:$O,13,FALSE)<>0,VLOOKUP($A172,Aviation!$A:$O,13,FALSE),"") -> 02 | P172: =IF(VLOOKUP($A172,Aviation!$A:$O,14,FALSE)<>0,VLOOKUP($A172,Aviation!$A:$O,14,FALSE),"") -> East Carolina RPO | Q172: =IF(VLOOKUP($A172,Aviation!$A:$O,15,FALSE)<>0,VLOOKUP($A172,Aviation!$A:$O,15,FALSE),"") -> Lenoir | W172: Yes
A173: A150957 | B173: Aviation | C173: =IF(VLOOKUP($A173,Aviation!$A:$O,2,FALSE)<>0,VLOOKUP($A173,Aviation!$A:$O,2,FALSE),"") ->  | D173: =IF(VLOOKUP($A173,Aviation!$A:$O,3,FALSE)<>0,VLOOKUP($A173,Aviation!$A:$O,3,FALSE),"") -> Division Needs | E173: =IF(VLOOKUP($A173,Aviation!$A:$O,4,FALSE)<>0,VLOOKUP($A173,Aviation!$A:$O,4,FALSE),"") -> ISO - Kinston Regional Jetport at Stallings Field | H173: =IF(VLOOKUP($A173,Aviation!$A:$O,6,FALSE)<>0,VLOOKUP($A173,Aviation!$A:$O,6,FALSE),"") -> Construct concrete apron (500 ft x 250 ft) & taxiway to T/WA (75 ft x 300 ft) for MRO facility including landside improvements (includes Project Request number 3477) | I173: =IF(VLOOKUP($A173,Aviation!$A:$O,7,FALSE)<>0,VLOOKUP($A173,Aviation!$A:$O,7,FALSE),"") -> 1200 - Aircraft Apron / Helipad Requirements | J173: =IF(VLOOKUP($A173,Aviation!$A:$O,8,FALSE)<>0,VLOOKUP($A173,Aviation!$A:$O,8,FALSE),"") -> 6264000 | K173: =IF(VLOOKUP($A173,Aviation!$A:$O,9,FALSE)<>0,VLOOKUP($A173,Aviation!$A:$O,9,FALSE),"") -> N/A | L173: =IF(VLOOKUP($A173,Aviation!$A:$O,10,FALSE)<>0,VLOOKUP($A173,Aviation!$A:$O,10,FALSE),"") -> N/A | M173: =IF(VLOOKUP($A173,Aviation!$A:$O,11,FALSE)<>0,VLOOKUP($A173,Aviation!$A:$O,11,FALSE),"") -> 31.87 | N173: =IF(VLOOKUP($A173,Aviation!$A:$O,12,FALSE)<>0,VLOOKUP($A173,Aviation!$A:$O,12,FALSE),"") -> B | O173: =IF(VLOOKUP($A173,Aviation!$A:$O,13,FALSE)<>0,VLOOKUP($A173,Aviation!$A:$O,13,FALSE),"") -> 02 | P173: =IF(VLOOKUP($A173,Aviation!$A:$O,14,FALSE)<>0,VLOOKUP($A173,Aviation!$A:$O,14,FALSE),"") -> East Carolina RPO | Q173: =IF(VLOOKUP($A173,Aviation!$A:$O,15,FALSE)<>0,VLOOKUP($A173,Aviation!$A:$O,15,FALSE),"") -> Lenoir | W173: Yes
A174: A150958 | B174: Aviation | C174: =IF(VLOOKUP($A174,Aviation!$A:$O,2,FALSE)<>0,VLOOKUP($A174,Aviation!$A:$O,2,FALSE),"") ->  | D174: =IF(VLOOKUP($A174,Aviation!$A:$O,3,FALSE)<>0,VLOOKUP($A174,Aviation!$A:$O,3,FALSE),"") -> Division Needs | E174: =IF(VLOOKUP($A174,Aviation!$A:$O,4,FALSE)<>0,VLOOKUP($A174,Aviation!$A:$O,4,FALSE),"") -> ISO - Kinston Regional Jetport at Stallings Field | H174: =IF(VLOOKUP($A174,Aviation!$A:$O,6,FALSE)<>0,VLOOKUP($A174,Aviation!$A:$O,6,FALSE),"") -> Construct 171, 500 sq ft hangar for 2 wide body or 4 narrow body aircraft, including offices, parts storage, and shop space w/ fire suppression system for MRO facility. Project to include landside improvements (includes Project Request number 3478) | I174: =IF(VLOOKUP($A174,Aviation!$A:$O,7,FALSE)<>0,VLOOKUP($A174,Aviation!$A:$O,7,FALSE),"") -> 1900 - Hangars | J174: =IF(VLOOKUP($A174,Aviation!$A:$O,8,FALSE)<>0,VLOOKUP($A174,Aviation!$A:$O,8,FALSE),"") -> 29885625 | K174: =IF(VLOOKUP($A174,Aviation!$A:$O,9,FALSE)<>0,VLOOKUP($A174,Aviation!$A:$O,9,FALSE),"") -> N/A | L174: =IF(VLOOKUP($A174,Aviation!$A:$O,10,FALSE)<>0,VLOOKUP($A174,Aviation!$A:$O,10,FALSE),"") -> N/A | M174: =IF(VLOOKUP($A174,Aviation!$A:$O,11,FALSE)<>0,VLOOKUP($A174,Aviation!$A:$O,11,FALSE),"") -> 15.8195 | N174: =IF(VLOOKUP($A174,Aviation!$A:$O,12,FALSE)<>0,VLOOKUP($A174,Aviation!$A:$O,12,FALSE),"") -> B | O174: =IF(VLOOKUP($A174,Aviation!$A:$O,13,FALSE)<>0,VLOOKUP($A174,Aviation!$A:$O,13,FALSE),"") -> 02 | P174: =IF(VLOOKUP($A174,Aviation!$A:$O,14,FALSE)<>0,VLOOKUP($A174,Aviation!$A:$O,14,FALSE),"") -> East Carolina RPO | Q174: =IF(VLOOKUP($A174,Aviation!$A:$O,15,FALSE)<>0,VLOOKUP($A174,Aviation!$A:$O,15,FALSE),"") -> Lenoir | W174: Yes
A175: A150971 | B175: Aviation | C175: =IF(VLOOKUP($A175,Aviation!$A:$O,2,FALSE)<>0,VLOOKUP($A175,Aviation!$A:$O,2,FALSE),"") ->  | D175: =IF(VLOOKUP($A175,Aviation!$A:$O,3,FALSE)<>0,VLOOKUP($A175,Aviation!$A:$O,3,FALSE),"") -> Division Needs | E175: =IF(VLOOKUP($A175,Aviation!$A:$O,4,FALSE)<>0,VLOOKUP($A175,Aviation!$A:$O,4,FALSE),"") -> 1A5 - Macon County | H175: =IF(VLOOKUP($A175,Aviation!$A:$O,6,FALSE)<>0,VLOOKUP($A175,Aviation!$A:$O,6,FALSE),"") -> Extend runway by 1,000 ft: The Macon County Airport runway length is currently 5,000 feet. The runway was extended in the past from 4,400 to 5,000 feet, which improvement has resulted in an increase of jet traffic, with utilization by local employers increasing. There has also been an increase in fuel sales, etc. The extension to 6,000 ft. will enable utilization of more jet traffic into the area. The extension of the runway would include a comparable taxiway extension. FY 2016-2017. | I175: =IF(VLOOKUP($A175,Aviation!$A:$O,7,FALSE)<>0,VLOOKUP($A175,Aviation!$A:$O,7,FALSE),"") -> 0500 - Runway Length/Width | J175: =IF(VLOOKUP($A175,Aviation!$A:$O,8,FALSE)<>0,VLOOKUP($A175,Aviation!$A:$O,8,FALSE),"") -> 4500000 | K175: =IF(VLOOKUP($A175,Aviation!$A:$O,9,FALSE)<>0,VLOOKUP($A175,Aviation!$A:$O,9,FALSE),"") -> N/A | L175: =IF(VLOOKUP($A175,Aviation!$A:$O,10,FALSE)<>0,VLOOKUP($A175,Aviation!$A:$O,10,FALSE),"") -> N/A | M175: =IF(VLOOKUP($A175,Aviation!$A:$O,11,FALSE)<>0,VLOOKUP($A175,Aviation!$A:$O,11,FALSE),"") -> 40.4785 | N175: =IF(VLOOKUP($A175,Aviation!$A:$O,12,FALSE)<>0,VLOOKUP($A175,Aviation!$A:$O,12,FALSE),"") -> G | O175: =IF(VLOOKUP($A175,Aviation!$A:$O,13,FALSE)<>0,VLOOKUP($A175,Aviation!$A:$O,13,FALSE),"") -> 14 | P175: =IF(VLOOKUP($A175,Aviation!$A:$O,14,FALSE)<>0,VLOOKUP($A175,Aviation!$A:$O,14,FALSE),"") -> Southwestern RPO | Q175: =IF(VLOOKUP($A175,Aviation!$A:$O,15,FALSE)<>0,VLOOKUP($A175,Aviation!$A:$O,15,FALSE),"") -> Macon | W175: Yes
A176: A150972 | B176: Aviation | C176: =IF(VLOOKUP($A176,Aviation!$A:$O,2,FALSE)<>0,VLOOKUP($A176,Aviation!$A:$O,2,FALSE),"") ->  | D176: =IF(VLOOKUP($A176,Aviation!$A:$O,3,FALSE)<>0,VLOOKUP($A176,Aviation!$A:$O,3,FALSE),"") -> Division Needs | E176: =IF(VLOOKUP($A176,Aviation!$A:$O,4,FALSE)<>0,VLOOKUP($A176,Aviation!$A:$O,4,FALSE),"") -> 1A5 - Macon County | H176: =IF(VLOOKUP($A176,Aviation!$A:$O,6,FALSE)<>0,VLOOKUP($A176,Aviation!$A:$O,6,FALSE),"") -> Realign Airport Rd adjacent to the Macon County Airport, and along Iotla Creek from Haughton-Williams Road West. Realigning the road along this area will provide more property for airport utilization and more convenient access to the airport property. This project has been addressed by NCDOT in the past, with plans being developed, but the construction phase was not initiated. The MCAA wants to proceed with this project while the plans are in place. FY 2016. | I176: =IF(VLOOKUP($A176,Aviation!$A:$O,7,FALSE)<>0,VLOOKUP($A176,Aviation!$A:$O,7,FALSE),"") -> 3005 - Other: Not otherwise defined in system plan objectives | J176: =IF(VLOOKUP($A176,Aviation!$A:$O,8,FALSE)<>0,VLOOKUP($A176,Aviation!$A:$O,8,FALSE),"") -> 90000 | K176: =IF(VLOOKUP($A176,Aviation!$A:$O,9,FALSE)<>0,VLOOKUP($A176,Aviation!$A:$O,9,FALSE),"") -> N/A | L176: =IF(VLOOKUP($A176,Aviation!$A:$O,10,FALSE)<>0,VLOOKUP($A176,Aviation!$A:$O,10,FALSE),"") -> N/A | M176: =IF(VLOOKUP($A176,Aviation!$A:$O,11,FALSE)<>0,VLOOKUP($A176,Aviation!$A:$O,11,FALSE),"") -> 17.9215 | N176: =IF(VLOOKUP($A176,Aviation!$A:$O,12,FALSE)<>0,VLOOKUP($A176,Aviation!$A:$O,12,FALSE),"") -> G | O176: =IF(VLOOKUP($A176,Aviation!$A:$O,13,FALSE)<>0,VLOOKUP($A176,Aviation!$A:$O,13,FALSE),"") -> 14 | P176: =IF(VLOOKUP($A176,Aviation!$A:$O,14,FALSE)<>0,VLOOKUP($A176,Aviation!$A:$O,14,FALSE),"") -> Southwestern RPO | Q176: =IF(VLOOKUP($A176,Aviation!$A:$O,15,FALSE)<>0,VLOOKUP($A176,Aviation!$A:$O,15,FALSE),"") -> Macon | W176: Yes
A177: A151018 | B177: Aviation | C177: =IF(VLOOKUP($A177,Aviation!$A:$O,2,FALSE)<>0,VLOOKUP($A177,Aviation!$A:$O,2,FALSE),"") ->  | D177: =IF(VLOOKUP($A177,Aviation!$A:$O,3,FALSE)<>0,VLOOKUP($A177,Aviation!$A:$O,3,FALSE),"") -> Division Needs | E177: =IF(VLOOKUP($A177,Aviation!$A:$O,4,FALSE)<>0,VLOOKUP($A177,Aviation!$A:$O,4,FALSE),"") -> 60J - Odell Williamson Municipal | H177: =IF(VLOOKUP($A177,Aviation!$A:$O,6,FALSE)<>0,VLOOKUP($A177,Aviation!$A:$O,6,FALSE),"") -> Acquire parcel with hangers located at the northeast corner of SR 1184 (Ocean Isle Beach Road) and NC 179 and construct new hangar building: Includes Project Request Number: 0002298 | I177: =IF(VLOOKUP($A177,Aviation!$A:$O,7,FALSE)<>0,VLOOKUP($A177,Aviation!$A:$O,7,FALSE),"") -> 1900 - Hangars | J177: =IF(VLOOKUP($A177,Aviation!$A:$O,8,FALSE)<>0,VLOOKUP($A177,Aviation!$A:$O,8,FALSE),"") -> 630000 | K177: =IF(VLOOKUP($A177,Aviation!$A:$O,9,FALSE)<>0,VLOOKUP($A177,Aviation!$A:$O,9,FALSE),"") -> N/A | L177: =IF(VLOOKUP($A177,Aviation!$A:$O,10,FALSE)<>0,VLOOKUP($A177,Aviation!$A:$O,10,FALSE),"") -> N/A | M177: =IF(VLOOKUP($A177,Aviation!$A:$O,11,FALSE)<>0,VLOOKUP($A177,Aviation!$A:$O,11,FALSE),"") -> 24.0585 | N177: =IF(VLOOKUP($A177,Aviation!$A:$O,12,FALSE)<>0,VLOOKUP($A177,Aviation!$A:$O,12,FALSE),"") -> B | O177: =IF(VLOOKUP($A177,Aviation!$A:$O,13,FALSE)<>0,VLOOKUP($A177,Aviation!$A:$O,13,FALSE),"") -> 03 | P177: =IF(VLOOKUP($A177,Aviation!$A:$O,14,FALSE)<>0,VLOOKUP($A177,Aviation!$A:$O,14,FALSE),"") -> Grand Strand Transportation Study Area | Q177: =IF(VLOOKUP($A177,Aviation!$A:$O,15,FALSE)<>0,VLOOKUP($A177,Aviation!$A:$O,15,FALSE),"") -> Brunswick | W177: Yes
A178: A151025 | B178: Aviation | C178: =IF(VLOOKUP($A178,Aviation!$A:$O,2,FALSE)<>0,VLOOKUP($A178,Aviation!$A:$O,2,FALSE),"") ->  | D178: =IF(VLOOKUP($A178,Aviation!$A:$O,3,FALSE)<>0,VLOOKUP($A178,Aviation!$A:$O,3,FALSE),"") -> Statewide Mobility | E178: =IF(VLOOKUP($A178,Aviation!$A:$O,4,FALSE)<>0,VLOOKUP($A178,Aviation!$A:$O,4,FALSE),"") -> GSO - Piedmont-Triad International | H178: =IF(VLOOKUP($A178,Aviation!$A:$O,6,FALSE)<>0,VLOOKUP($A178,Aviation!$A:$O,6,FALSE),"") -> World Wide Drive ? This road will increase public access into multiple areas on the airport. #3472 FY 2021 | I178: =IF(VLOOKUP($A178,Aviation!$A:$O,7,FALSE)<>0,VLOOKUP($A178,Aviation!$A:$O,7,FALSE),"") -> 3005 - Other: Not otherwise defined in system plan objectives | J178: =IF(VLOOKUP($A178,Aviation!$A:$O,8,FALSE)<>0,VLOOKUP($A178,Aviation!$A:$O,8,FALSE),"") -> 500000 | K178: =IF(VLOOKUP($A178,Aviation!$A:$O,9,FALSE)<>0,VLOOKUP($A178,Aviation!$A:$O,9,FALSE),"") -> 36.182 | L178: =IF(VLOOKUP($A178,Aviation!$A:$O,10,FALSE)<>0,VLOOKUP($A178,Aviation!$A:$O,10,FALSE),"") -> 23.288 | M178: =IF(VLOOKUP($A178,Aviation!$A:$O,11,FALSE)<>0,VLOOKUP($A178,Aviation!$A:$O,11,FALSE),"") -> 11.817 | N178: =IF(VLOOKUP($A178,Aviation!$A:$O,12,FALSE)<>0,VLOOKUP($A178,Aviation!$A:$O,12,FALSE),"") -> D | O178: =IF(VLOOKUP($A178,Aviation!$A:$O,13,FALSE)<>0,VLOOKUP($A178,Aviation!$A:$O,13,FALSE),"") -> 07 | P178: =IF(VLOOKUP($A178,Aviation!$A:$O,14,FALSE)<>0,VLOOKUP($A178,Aviation!$A:$O,14,FALSE),"") -> Greensboro Urban Area MPO | Q178: =IF(VLOOKUP($A178,Aviation!$A:$O,15,FALSE)<>0,VLOOKUP($A178,Aviation!$A:$O,15,FALSE),"") -> Guilford | R178: 0 | W178: Yes
A179: A151026 | B179: Aviation | C179: =IF(VLOOKUP($A179,Aviation!$A:$O,2,FALSE)<>0,VLOOKUP($A179,Aviation!$A:$O,2,FALSE),"") ->  | D179: =IF(VLOOKUP($A179,Aviation!$A:$O,3,FALSE)<>0,VLOOKUP($A179,Aviation!$A:$O,3,FALSE),"") -> Statewide Mobility | E179: =IF(VLOOKUP($A179,Aviation!$A:$O,4,FALSE)<>0,VLOOKUP($A179,Aviation!$A:$O,4,FALSE),"") -> GSO - Piedmont-Triad International | H179: =IF(VLOOKUP($A179,Aviation!$A:$O,6,FALSE)<>0,VLOOKUP($A179,Aviation!$A:$O,6,FALSE),"") -> Taxiway F ? This taxiway will increase our capacity and improve aircraft movement around the airfield. This includes a Taxiway bridge over Ted Johnson Parkway. #3473 FY 2022 | I179: =IF(VLOOKUP($A179,Aviation!$A:$O,7,FALSE)<>0,VLOOKUP($A179,Aviation!$A:$O,7,FALSE),"") -> 1100 - Taxiway Requirements | J179: =IF(VLOOKUP($A179,Aviation!$A:$O,8,FALSE)<>0,VLOOKUP($A179,Aviation!$A:$O,8,FALSE),"") -> 500000 | K179: =IF(VLOOKUP($A179,Aviation!$A:$O,9,FALSE)<>0,VLOOKUP($A179,Aviation!$A:$O,9,FALSE),"") -> 71.535 | L179: =IF(VLOOKUP($A179,Aviation!$A:$O,10,FALSE)<>0,VLOOKUP($A179,Aviation!$A:$O,10,FALSE),"") -> 49.262 | M179: =IF(VLOOKUP($A179,Aviation!$A:$O,11,FALSE)<>0,VLOOKUP($A179,Aviation!$A:$O,11,FALSE),"") -> 33.637 | N179: =IF(VLOOKUP($A179,Aviation!$A:$O,12,FALSE)<>0,VLOOKUP($A179,Aviation!$A:$O,12,FALSE),"") -> D | O179: =IF(VLOOKUP($A179,Aviation!$A:$O,13,FALSE)<>0,VLOOKUP($A179,Aviation!$A:$O,13,FALSE),"") -> 07 | P179: =IF(VLOOKUP($A179,Aviation!$A:$O,14,FALSE)<>0,VLOOKUP($A179,Aviation!$A:$O,14,FALSE),"") -> Greensboro Urban Area MPO | Q179: =IF(VLOOKUP($A179,Aviation!$A:$O,15,FALSE)<>0,VLOOKUP($A179,Aviation!$A:$O,15,FALSE),"") -> Guilford | R179: 500000 | T179: 2024 | U179: Statewide Mobility | W179: No - Fully Funded in Statewide Mobility
A180: A151027 | B180: Aviation | C180: =IF(VLOOKUP($A180,Aviation!$A:$O,2,FALSE)<>0,VLOOKUP($A180,Aviation!$A:$O,2,FALSE),"") ->  | D180: =IF(VLOOKUP($A180,Aviation!$A:$O,3,FALSE)<>0,VLOOKUP($A180,Aviation!$A:$O,3,FALSE),"") -> Statewide Mobility | E180: =IF(VLOOKUP($A180,Aviation!$A:$O,4,FALSE)<>0,VLOOKUP($A180,Aviation!$A:$O,4,FALSE),"") -> GSO - Piedmont-Triad International | H180: =IF(VLOOKUP($A180,Aviation!$A:$O,6,FALSE)<>0,VLOOKUP($A180,Aviation!$A:$O,6,FALSE),"") -> Taxiway J ? This taxiway will increase our capacity and improve aircraft movement between Taxiway D and J2. This is adjacent to our Fixed Based Operator and this area can be a bottleneck for commercial service and general aviation. #3474 FY 2023 | I180: =IF(VLOOKUP($A180,Aviation!$A:$O,7,FALSE)<>0,VLOOKUP($A180,Aviation!$A:$O,7,FALSE),"") -> 0535 - Runway Length: Taxiway Extension | J180: =IF(VLOOKUP($A180,Aviation!$A:$O,8,FALSE)<>0,VLOOKUP($A180,Aviation!$A:$O,8,FALSE),"") -> 500000 | K180: =IF(VLOOKUP($A180,Aviation!$A:$O,9,FALSE)<>0,VLOOKUP($A180,Aviation!$A:$O,9,FALSE),"") -> 80.68 | L180: =IF(VLOOKUP($A180,Aviation!$A:$O,10,FALSE)<>0,VLOOKUP($A180,Aviation!$A:$O,10,FALSE),"") -> 56.1635 | M180: =IF(VLOOKUP($A180,Aviation!$A:$O,11,FALSE)<>0,VLOOKUP($A180,Aviation!$A:$O,11,FALSE),"") -> 38.6645 | N180: =IF(VLOOKUP($A180,Aviation!$A:$O,12,FALSE)<>0,VLOOKUP($A180,Aviation!$A:$O,12,FALSE),"") -> D | O180: =IF(VLOOKUP($A180,Aviation!$A:$O,13,FALSE)<>0,VLOOKUP($A180,Aviation!$A:$O,13,FALSE),"") -> 07 | P180: =IF(VLOOKUP($A180,Aviation!$A:$O,14,FALSE)<>0,VLOOKUP($A180,Aviation!$A:$O,14,FALSE),"") -> Greensboro Urban Area MPO | Q180: =IF(VLOOKUP($A180,Aviation!$A:$O,15,FALSE)<>0,VLOOKUP($A180,Aviation!$A:$O,15,FALSE),"") -> Guilford | R180: 500000 | T180: 2023 | U180: Statewide Mobility | W180: No - Fully Funded in Statewide Mobility
A181: A151029 | B181: Aviation | C181: =IF(VLOOKUP($A181,Aviation!$A:$O,2,FALSE)<>0,VLOOKUP($A181,Aviation!$A:$O,2,FALSE),"") ->  | D181: =IF(VLOOKUP($A181,Aviation!$A:$O,3,FALSE)<>0,VLOOKUP($A181,Aviation!$A:$O,3,FALSE),"") -> Statewide Mobility | E181: =IF(VLOOKUP($A181,Aviation!$A:$O,4,FALSE)<>0,VLOOKUP($A181,Aviation!$A:$O,4,FALSE),"") -> GSO - Piedmont-Triad International | H181: =IF(VLOOKUP($A181,Aviation!$A:$O,6,FALSE)<>0,VLOOKUP($A181,Aviation!$A:$O,6,FALSE),"") -> Northwest Apron ? This apron will increase capacity for future expansion.#3475 FY2024 | I181: =IF(VLOOKUP($A181,Aviation!$A:$O,7,FALSE)<>0,VLOOKUP($A181,Aviation!$A:$O,7,FALSE),"") -> 1200 - Aircraft Apron / Helipad Requirements | J181: =IF(VLOOKUP($A181,Aviation!$A:$O,8,FALSE)<>0,VLOOKUP($A181,Aviation!$A:$O,8,FALSE),"") -> 500000 | K181: =IF(VLOOKUP($A181,Aviation!$A:$O,9,FALSE)<>0,VLOOKUP($A181,Aviation!$A:$O,9,FALSE),"") -> 71.703 | L181: =IF(VLOOKUP($A181,Aviation!$A:$O,10,FALSE)<>0,VLOOKUP($A181,Aviation!$A:$O,10,FALSE),"") -> 49.232 | M181: =IF(VLOOKUP($A181,Aviation!$A:$O,11,FALSE)<>0,VLOOKUP($A181,Aviation!$A:$O,11,FALSE),"") -> 33.8345 | N181: =IF(VLOOKUP($A181,Aviation!$A:$O,12,FALSE)<>0,VLOOKUP($A181,Aviation!$A:$O,12,FALSE),"") -> D | O181: =IF(VLOOKUP($A181,Aviation!$A:$O,13,FALSE)<>0,VLOOKUP($A181,Aviation!$A:$O,13,FALSE),"") -> 07 | P181: =IF(VLOOKUP($A181,Aviation!$A:$O,14,FALSE)<>0,VLOOKUP($A181,Aviation!$A:$O,14,FALSE),"") -> Greensboro Urban Area MPO | Q181: =IF(VLOOKUP($A181,Aviation!$A:$O,15,FALSE)<>0,VLOOKUP($A181,Aviation!$A:$O,15,FALSE),"") -> Guilford | R181: 500000 | T181: 2023 | U181: Statewide Mobility | W181: No - Fully Funded in Statewide Mobility
A182: A151063 | B182: Aviation | C182: =IF(VLOOKUP($A182,Aviation!$A:$O,2,FALSE)<>0,VLOOKUP($A182,Aviation!$A:$O,2,FALSE),"") ->  | D182: =IF(VLOOKUP($A182,Aviation!$A:$O,3,FALSE)<>0,VLOOKUP($A182,Aviation!$A:$O,3,FALSE),"") -> Division Needs | E182: =IF(VLOOKUP($A182,Aviation!$A:$O,4,FALSE)<>0,VLOOKUP($A182,Aviation!$A:$O,4,FALSE),"") -> BUY - Burlington-Alamance Regional | H182: =IF(VLOOKUP($A182,Aviation!$A:$O,6,FALSE)<>0,VLOOKUP($A182,Aviation!$A:$O,6,FALSE),"") -> This project will perform design, environmental assessment, and construction of new Terminal (8,000 sf) and Flight Operations (55,000 sf). Included with this project is the public access road, public vehicle parking and aircraft parking apron, and approximately 9 acres of land acquisition. (PRN 3468, 3469, 2610, 2613, 2649, 2655, 3138, 3143, 3187, 3189, 3190, 3191, 3468, 3469, 3470) | I182: =IF(VLOOKUP($A182,Aviation!$A:$O,7,FALSE)<>0,VLOOKUP($A182,Aviation!$A:$O,7,FALSE),"") -> 1305 - General Aviation Terminal Building: New Construction | J182: =IF(VLOOKUP($A182,Aviation!$A:$O,8,FALSE)<>0,VLOOKUP($A182,Aviation!$A:$O,8,FALSE),"") -> 20041200 | K182: =IF(VLOOKUP($A182,Aviation!$A:$O,9,FALSE)<>0,VLOOKUP($A182,Aviation!$A:$O,9,FALSE),"") -> N/A | L182: =IF(VLOOKUP($A182,Aviation!$A:$O,10,FALSE)<>0,VLOOKUP($A182,Aviation!$A:$O,10,FALSE),"") -> N/A | M182: =IF(VLOOKUP($A182,Aviation!$A:$O,11,FALSE)<>0,VLOOKUP($A182,Aviation!$A:$O,11,FALSE),"") -> 21.928 | N182: =IF(VLOOKUP($A182,Aviation!$A:$O,12,FALSE)<>0,VLOOKUP($A182,Aviation!$A:$O,12,FALSE),"") -> D | O182: =IF(VLOOKUP($A182,Aviation!$A:$O,13,FALSE)<>0,VLOOKUP($A182,Aviation!$A:$O,13,FALSE),"") -> 07 | P182: =IF(VLOOKUP($A182,Aviation!$A:$O,14,FALSE)<>0,VLOOKUP($A182,Aviation!$A:$O,14,FALSE),"") -> Burlington Graham MPO | Q182: =IF(VLOOKUP($A182,Aviation!$A:$O,15,FALSE)<>0,VLOOKUP($A182,Aviation!$A:$O,15,FALSE),"") -> Alamance | W182: Yes
A183: A151104 | B183: Aviation | C183: =IF(VLOOKUP($A183,Aviation!$A:$O,2,FALSE)<>0,VLOOKUP($A183,Aviation!$A:$O,2,FALSE),"") ->  | D183: =IF(VLOOKUP($A183,Aviation!$A:$O,3,FALSE)<>0,VLOOKUP($A183,Aviation!$A:$O,3,FALSE),"") -> Division Needs | E183: =IF(VLOOKUP($A183,Aviation!$A:$O,4,FALSE)<>0,VLOOKUP($A183,Aviation!$A:$O,4,FALSE),"") -> EXX - Davidson County | H183: =IF(VLOOKUP($A183,Aviation!$A:$O,6,FALSE)<>0,VLOOKUP($A183,Aviation!$A:$O,6,FALSE),"") -> Upgrade and strengthen the existing runway due to excessive cracking on the airfield and an increase of the number of requests for large private aircraft for landings. The PCI in 2014 was 74; however the airport has contractors making regular trips for crack sealing. In 2016 the pavement will be 17 years old and in need of rehab. | I183: =IF(VLOOKUP($A183,Aviation!$A:$O,7,FALSE)<>0,VLOOKUP($A183,Aviation!$A:$O,7,FALSE),"") -> 0605 - Pavement Strength - Runway | J183: =IF(VLOOKUP($A183,Aviation!$A:$O,8,FALSE)<>0,VLOOKUP($A183,Aviation!$A:$O,8,FALSE),"") -> 3254400 | K183: =IF(VLOOKUP($A183,Aviation!$A:$O,9,FALSE)<>0,VLOOKUP($A183,Aviation!$A:$O,9,FALSE),"") -> N/A | L183: =IF(VLOOKUP($A183,Aviation!$A:$O,10,FALSE)<>0,VLOOKUP($A183,Aviation!$A:$O,10,FALSE),"") -> N/A | M183: =IF(VLOOKUP($A183,Aviation!$A:$O,11,FALSE)<>0,VLOOKUP($A183,Aviation!$A:$O,11,FALSE),"") -> 36.8975 | N183: =IF(VLOOKUP($A183,Aviation!$A:$O,12,FALSE)<>0,VLOOKUP($A183,Aviation!$A:$O,12,FALSE),"") -> D | O183: =IF(VLOOKUP($A183,Aviation!$A:$O,13,FALSE)<>0,VLOOKUP($A183,Aviation!$A:$O,13,FALSE),"") -> 09 | P183: =IF(VLOOKUP($A183,Aviation!$A:$O,14,FALSE)<>0,VLOOKUP($A183,Aviation!$A:$O,14,FALSE),"") -> High Point Urban Area MPO | Q183: =IF(VLOOKUP($A183,Aviation!$A:$O,15,FALSE)<>0,VLOOKUP($A183,Aviation!$A:$O,15,FALSE),"") -> Davidson | W183: Yes
